Workbook

Sheet Menu
B1: =+E32 -> 0
U2: PROJECT NAME: | X2: =Menu!N3 -> 0
L3: PROJECT NAME:
U4: LOCATION: | X4: =Menu!N5 -> 0
L5: ADDRESS:
L7: COMPANY NAME: | U7: * Use Press To Exit button to "Save As"
C9: Note: If you receive a pop-up Debug Error, make sure that "Protect Workbook" is not highlighted on the Review Menu, click once to un-highlight | L9: PREPARED BY:
L11: * Information Entered Above Will Popoulate Across All Tabs
C15: Battery Calculators | K15: Voltage Drop Calculators | U15: COMPANY NAME: | X15: =Menu!N7 -> 0
D17: Tab Name | G17: Make Single Sheet Visible | H17: Multiple Sheet Qty. | L17: Tab Name | P17: Make Single Sheet Visible | Q17: Multiple Sheet Qty. | U17: PREPARED BY: | X17: =Menu!N9 -> 0
G18: select from Drop-Downs below | P18: select from Drop-Downs below
D19: FA-300/FR-300 | G19: NO | L19: 24 FWR VOLTAGE DROP* | P19: NO
D21: FX-350 | G21: NO | L21: 24 VDC VOLTAGE DROP** | P21: NO
D23: FA-1000/BPS-1100 | G23: NO | L23: CUSTOM VOLTAGE DROP | P23: NO
D25: FX-2000 | G25: NO | L25: MIRCOM WIRING TABLE 21 | P25: NO
D27: QX-5000/MNS ext Audio | G27: NO | L27: *All Panels, except FX-MNS-6000, INX-10A & QX-mini. **FX-MNS-6000, INX-10A & QX-mini
D29: FX-3318 (CLIP/AP) | G29: NO | H29: *UL ONLY | K29: MGC SLC Resistance Calculator
D31: FX-3500 (CLIP/AP) | G31: NO | L31: SLC RESISTANCE (MIX-4000) | P31: NO | R31: **
D33: FX-400 (MGC) | G33: NO | H33: *UL ONLY | L33: For MGC MIX-4000 Isolators and/or Isolated Sensor Heads
D35: FX-401 (MGC) | G35: NO | K35: Audio Db Loss Calculator
D37: FleXNet/FX-4000 | G37: NO | I37: ** | L37: AUDIO dB LOSS | P37: NO
D39: FX-MNS-6000 | G39: NO | I39: ** | L39: MIRCOM TABLE 1 | P39: NO
D41: QBB-6001 ext Audio | G41: NO | I41: ** | L41: NEC TABLE 8 | P41: NO
D43: QX-mini | G43: NO
D45: INX-10A | G45: NO | I45: ** | K45: Strobe Coverage Calculator
D47: Graphic Panel | G47: NO | L47: STROBE COVERAGE* | P47: NO
E49: ** Selecting "YES" + "9" will give you to "10" Sheets | L49: * Calculations of Coverage as described in NFPA 72, CAN/ULC-S524
Q51: v 6.3 June.2025

Sheet FA-300 (hidden)
F2: FA-300/FR-300 Battery Calculation Program
B4: PROJECT NAME: | E4: =Menu!X2 -> 0
B6: ADDRESS: | E6: =Menu!X4 -> 0
B8: COMPANY NAME: | E8: =Menu!X15 -> 0
B10: PREPARED BY: | E10: =Menu!X17 -> 0
E11: * Enter Info On Menu Tab
E12: Important: Enter Quantities then press enter, tab, or click another cell to update calculator.
B13: 1 | R13: All Current in Amps
B14: 1
B15: 1 | R15: Standby | S15: Alarm
B16: 1 | D16: Panel Model | R16: Current | S16: Current
B18: 1 | D18: =VLOOKUP(U18,NAC!AE39:AH57,2) -> 0 | O18: =VLOOKUP(U18,NAC!AE39:AH57,3) -> 0 | P18: =VLOOKUP(U18,NAC!AE39:AH57,4) -> 0 | R18: =O18 -> 0 | S18: =P18 -> 0 | U18: 1
B19: QTY | U19: 2
B20: =COUNTIF(B22:B24,">0")*{1} -> 0 | D20: Panel Adder Modules
D22: =VLOOKUP(U22,NAC!X32:AA35,2) -> RM-306 Series Series 300 6 adder Relay | O22: =VLOOKUP(U22,NAC!X32:AA35,3) -> 0 | P22: =VLOOKUP(U22,NAC!X32:AA35,4) -> 0.08 | R22: =B22*O22 -> 0 | S22: =B22*P22 -> 0 | U22: 2
D24: =VLOOKUP(U24,NAC!X32:AA35,2) -> RM-312 Series Series 300 12 adder Relay | O24: =VLOOKUP(U24,NAC!X32:AA35,3) -> 0 | P24: =VLOOKUP(U24,NAC!X32:AA35,4) -> 0.16 | R24: =B24*O24 -> 0 | S24: =B24*P24 -> 0 | U24: 3
D26: =VLOOKUP(U26,NAC!X32:AA35,2) -> PR-300 Polarity Reversal & City Tie Module | O26: =VLOOKUP(U26,NAC!X32:AA35,3) -> 0.035 | P26: =VLOOKUP(U26,NAC!X32:AA35,4) -> 0.3 | R26: =B26*O26 -> 0 | S26: =B26*P26 -> 0 | U26: 4
B27: =COUNTIF(B30:B40,">0")*{1} -> 0
B28: =COUNTIF(B30:B40,">0")*{1} -> 0 | D28: Remote Annunciators
D29: * Maximum Six (6) Annunciators
D30: =VLOOKUP(U30,NAC!X19:AA27,2) -> RAM-300L Remote LCD Annunciator | O30: =VLOOKUP(U30,NAC!X19:AA27,3) -> 0.056 | P30: =VLOOKUP(U30,NAC!X19:AA27,4) -> 0.065 | R30: =B30*O30 -> 0 | S30: =B30*P30 -> 0 | T30: =VLOOKUP(U30,NAC!X19:AB27,5) -> 1 | U30: 6 | V30: =B30*T30 -> 0
D32: =VLOOKUP(U32,NAC!X19:AA27,2) -> RAM-208 Annunciator 8 Zone LED | O32: =VLOOKUP(U32,NAC!X19:AA27,3) -> 0.035 | P32: =VLOOKUP(U32,NAC!X19:AA27,4) -> 0.09 | R32: =B32*O32 -> 0 | S32: =B32*P32 -> 0 | T32: =VLOOKUP(U32,NAC!X19:AB27,5) -> 1 | U32: 2 | V32: =B32*T32 -> 0
D34: =VLOOKUP(U34,NAC!X19:AA27,2) -> RAM-216 Annunciator 16 Zone LED | O34: =VLOOKUP(U34,NAC!X19:AA27,3) -> 0.035 | P34: =VLOOKUP(U34,NAC!X19:AA27,4) -> 0.14 | R34: =B34*O34 -> 0 | S34: =B34*P34 -> 0 | T34: =VLOOKUP(U34,NAC!X19:AB27,5) -> 1 | U34: 3 | V34: =B34*T34 -> 0
D36: =VLOOKUP(U36,NAC!X19:AA27,2) -> RAM-1016TZDS Main Remote Annunciator w/16 Zones Active | O36: =VLOOKUP(U36,NAC!X19:AA27,3) -> 0.05 | P36: =VLOOKUP(U36,NAC!X19:AA27,4) -> 0.3 | R36: =B36*O36 -> 0 | S36: =B36*P36 -> 0 | T36: =VLOOKUP(U36,NAC!X19:AB27,5) -> 1 | U36: 4 | V36: =B36*T36 -> 0
V37: Total
D38: =VLOOKUP(U38,NAC!X19:AA27,2) -> RTI-1 Remote Trouble Indicators | O38: =VLOOKUP(U38,NAC!X19:AA27,3) -> 0.035 | P38: =VLOOKUP(U38,NAC!X19:AA27,4) -> 0.035 | R38: =B38*O38 -> 0 | S38: =B38*P38 -> 0 | T38: =VLOOKUP(U38,NAC!X19:AB27,5) -> 1 | U38: 5 | V38: =B38*T38 -> 0
B40: 0 | D40: =VLOOKUP(U40,NAC!X19:AA27,2) -> SRM-312W Smart Relay | O40: =VLOOKUP(U40,NAC!X19:AA27,3) -> 0.03 | P40: =VLOOKUP(U40,NAC!X19:AA27,4) -> 0.14 | R40: =B40*O40 -> 0 | S40: =B40*P40 -> 0 | T40: =VLOOKUP(U40,NAC!X19:AB27,5) -> 1 | U40: 7 | V40: =B40*T40 -> 0
B41: =COUNTIF(B44:B56,">0")*{1} -> 0
B42: =COUNTIF(B44:B56,">0")*{1} -> 0 | D42: 2 Wire Detectors
D44: 2W/C2W i3 Series Photoelectric Smoke Detectors | N44: 5e-05 | P44: 5e-05 | R44: =B44*N44 -> 0 | S44: =B44*P44 -> 0 | U44: 2
D46: 2W/C2W i3 Series Photo/Thermal Detectors | N46: 5e-05 | P46: 5e-05 | R46: =B46*N46 -> 0 | S46: =B46*P46 -> 0 | U46: 3
D48: 2W/C2W i3 Series Detectors w/Sounder Base | N48: 5e-05 | P48: 5e-05 | R48: =B48*N48 -> 0 | S48: =B48*P48 -> 0 | U48: 4
D50: 2W/C2W i3 Series Detectors w/Sounder Base & Relay | N50: 5e-05 | P50: 5e-05 | R50: =B50*N50 -> 0 | S50: =B50*P50 -> 0 | U50: 5
D52: 2151(A) Photoelectric Smoke Detector | N52: 8.5e-05 | P52: 8.5e-05 | R52: =B52*N52 -> 0 | S52: =B52*P52 -> 0 | U52: 6
D54: =VLOOKUP(U54,NAC!O34:R44,2) -> C2W-MOD2A LoopTest Maintenance Module | N54: =VLOOKUP(U54,NAC!O34:R44,3) -> 0.03 | P54: =VLOOKUP(U54,NAC!O34:R44,4) -> 0.03 | R54: =B54*N54 -> 0 | S54: =B54*P54 -> 0 | U54: 7
D56: D2(A) Photoelectric Duct Detector | N56: 0.00012 | P56: 0.00012 | R56: =B56*N56 -> 0 | S56: =B56*P56 -> 0 | U56: 8
B58: =COUNTIF(B44:B56,">0")*{1} -> 0 | J58: =IF(Y58>0,"ASSUMES 3 INITIATING CTS. IN ALARM","") ->  | R58: =SUM(R44:R56) -> 0 | S58: =IF(Y58>0,"0.090000","") ->  | Y58: =COUNTIF(B44:B56,">0")*{1} -> 0
B59: =COUNTIF(B62:B82,">0")*{1} -> 0
B60: =COUNTIF(B62:B82,">0")*{1} -> 0 | D60: 4 Wire Detectors
D62: 4W/C4W i3 Series Photoelectric Smoke Detectors | N62: 5e-05 | O62: 5e-05 | P62: 5e-05 | R62: =B62*N62 -> 0 | S62: =B62*P62 -> 0 | U62: 2
D64: 4W/C4W i3 Series Photo/Thermal Detectors | N64: 5e-05 | O64: 5e-05 | P64: 5e-05 | R64: =B64*N64 -> 0 | S64: =B64*P64 -> 0 | U64: 3
D66: 4W/C4W i3 Series Detectors w/Sounder Base | N66: 5e-05 | O66: 5e-05 | P66: 5e-05 | R66: =B66*N66 -> 0 | S66: =B66*P66 -> 0 | U66: 4
D68: 4W/C4W i3 Series Detectors w/Sounder Base & Relay | N68: 0.0255 | O68: 0.0255 | P68: 0.0255 | R68: =B68*N68 -> 0 | S68: =B68*P68 -> 0 | U68: 5
D70: =VLOOKUP(U70,NAC!BA98:BF148,2) -> CO1224(A) Carbon Monoxide Detector | O70: 0.02 | P70: 0.02 | R70: =B70*O70 -> 0 | S70: =B70*P70 -> 0 | U70: 13
D72: =VLOOKUP(U72,NAC!O57:R67,2) -> CRRS-MODA Reversing Relay | N72: =VLOOKUP(U72,NAC!O57:R67,3) -> 1e-07 | P72: =VLOOKUP(U72,NAC!O57:R67,4) -> 0.025 | R72: =B72*N72 -> 0 | S72: =B72*P72 -> 0 | U72: 7
D74: =VLOOKUP(U74,NAC!O57:R67,2) -> B401BHA Sounder Base for 1451A or 2451A | N74: =VLOOKUP(U74,NAC!O57:R67,3) -> 0.017 | P74: =VLOOKUP(U74,NAC!O57:R67,3) -> 0.017 | R74: =B74*N74 -> 0 | S74: =B74*P74 -> 0 | U74: 8
D76: OSI-R-SS Conventional Imaging Beam Smoke Detector | N76: 0.011 | O76: 0.015 | P76: 0.011 | R76: =B76*N76 -> 0 | S76: =B76*P76 -> 0
D78: =VLOOKUP(U78,NAC!BA98:BF148,2) -> BEAM1224(A) Series Beam Detectors | N78: 0.017 | O78: 0.017 | P78: 0.017 | R78: =B78*N78 -> 0 | S78: =B78*P78 -> 0 | U78: 16
D80: D4120(A) Photoelectric Duct Detector w/ Relay, 120VAC | N80: 0.02 | O80: 0.02 | P80: 0.02 | R80: =B80*N80 -> 0 | S80: =B80*P80 -> 0 | U80: 10
D82: D4120(A) Photoelectric Duct Detector w/ Relay, 24VAC | N82: 0.065 | O82: 0.065 | P82: 0.065 | R82: =B82*N82 -> 0 | S82: =B82*P82 -> 0 | U82: 11
B83: =COUNTIF(B88:B92,">0")*{1} -> 0
B84: =COUNTIF(B88:B92,">0")*{1} -> 0 | D84: Auxilary Power | J84: Enter | M84: Enter
B85: =COUNTIF(B88:B92,">0")*{1} -> 0 | J85: Standby | M85: Alarm
B86: =COUNTIF(B88:B92,">0")*{1} -> 0 | D86: Enter Description | J86: Current | M86: Current
R88: =B88*J88 -> 0 | S88: =B88*M88 -> 0
R90: =B90*J90 -> 0 | S90: =B90*M90 -> 0
R92: =B92*J92 -> 0 | S92: =B92*M92 -> 0
U93: =B88+B90+B92 -> 0 | V93: Total
B94: =COUNTIF(B96:B114,">0")*{1} -> 0 | D94: Signaling Devices - 24 FWR
D95: Select From Drop-Down Box - Check Guide for Compatibility
B96: 0 | D96: =VLOOKUP(U96,NAC!BX11:CA185,2) -> 0 | O96: =VLOOKUP(U96,NAC!BX11:CA185,3) -> 0 | P96: =VLOOKUP(U96,NAC!BX11:CA185,4) -> 0 | R96: =B96*O96 -> 0 | S96: =B96*P96 -> 0 | U96: 1
B98: 0 | D98: =VLOOKUP(U98,NAC!BX11:CA185,2) -> 0 | O98: =VLOOKUP(U98,NAC!BX11:CA185,3) -> 0 | P98: =VLOOKUP(U98,NAC!BX11:CA185,4) -> 0 | R98: =B98*O98 -> 0 | S98: =B98*P98 -> 0 | U98: 1
D100: =VLOOKUP(U100,NAC!BX11:CA185,2) -> 0 | O100: =VLOOKUP(U100,NAC!BX11:CA185,3) -> 0 | P100: =VLOOKUP(U100,NAC!BX11:CA185,4) -> 0 | R100: =B100*O100 -> 0 | S100: =B100*P100 -> 0 | U100: 1
D102: =VLOOKUP(U102,NAC!BX11:CA185,2) -> 0 | O102: =VLOOKUP(U102,NAC!BX11:CA185,3) -> 0 | P102: =VLOOKUP(U102,NAC!BX11:CA185,4) -> 0 | R102: =B102*O102 -> 0 | S102: =B102*P102 -> 0 | U102: 1
D104: =VLOOKUP(U104,NAC!BX11:CA185,2) -> 0 | O104: =VLOOKUP(U104,NAC!BX11:CA185,3) -> 0 | P104: =VLOOKUP(U104,NAC!BX11:CA185,4) -> 0 | R104: =B104*O104 -> 0 | S104: =B104*P104 -> 0 | U104: 1
D106: =VLOOKUP(U106,NAC!BX11:CA185,2) -> 0 | O106: =VLOOKUP(U106,NAC!BX11:CA185,3) -> 0 | P106: =VLOOKUP(U106,NAC!BX11:CA185,4) -> 0 | R106: =B106*O106 -> 0 | S106: =B106*P106 -> 0 | U106: 1
D108: =VLOOKUP(U108,NAC!BX11:CA185,2) -> 0 | O108: =VLOOKUP(U108,NAC!BX11:CA185,3) -> 0 | P108: =VLOOKUP(U108,NAC!BX11:CA185,4) -> 0 | R108: =B108*O108 -> 0 | S108: =B108*P108 -> 0 | U108: 1
D110: =VLOOKUP(U110,NAC!BX11:CA185,2) -> 0 | O110: =VLOOKUP(U110,NAC!BX11:CA185,3) -> 0 | P110: =VLOOKUP(U110,NAC!BX11:CA185,4) -> 0 | R110: =B110*O110 -> 0 | S110: =B110*P110 -> 0 | U110: 1
D112: =VLOOKUP(U112,NAC!BX11:CA185,2) -> 0 | O112: =VLOOKUP(U112,NAC!BX11:CA185,3) -> 0 | P112: =VLOOKUP(U112,NAC!BX11:CA185,4) -> 0 | R112: =B112*O112 -> 0 | S112: =B112*P112 -> 0 | U112: 1
D114: =VLOOKUP(U114,NAC!BX11:CA185,2) -> 0 | O114: =VLOOKUP(U114,NAC!BX11:CA185,3) -> 0 | P114: =VLOOKUP(U114,NAC!BX11:CA185,4) -> 0 | R114: =B114*O114 -> 0 | S114: =B114*P114 -> 0 | U114: 1
R116: =B116*J116 -> 0 | S116: =B116*M116 -> 0
R118: =B118*J118 -> 0 | S118: =B118*M118 -> 0
R120: =B120*J120 -> 0 | S120: =B120*M120 -> 0
R122: =B122*J122 -> 0 | S122: =B122*M122 -> 0
R124: =B124*J124 -> 0 | S124: =B124*M124 -> 0
B125: =COUNTIF(B130:B150,">0")*{1} -> 1 | D125: * Indicating Circuits Must Not Exceed 5 Amps Total | U125: =SUM(S96:S124) -> 0
B126: =COUNTIF(B130:B150,">0")*{1} -> 1
J127: Enter | M127: Enter
B128: =COUNTIF(B130:B150,">0")*{1} -> 1 | D128: Additional Devices | J128: Standby | M128: Alarm
B129: =COUNTIF(B130:B150,">0")*{1} -> 1 | D129: Enter Description | J129: Current | M129: Current
R130: =B130*J130 -> 0 | S130: =B130*M130 -> 0
B131: 1
R132: =B132*J132 -> 0 | S132: =B132*M132 -> 0
D133: 9
R134: =B134*J134 -> 0 | S134: =B134*M134 -> 0
R136: =B136*J136 -> 0 | S136: =B136*M136 -> 0
R138: =B138*J138 -> 0 | S138: =B138*M138 -> 0
R140: =B140*J140 -> 0 | S140: =B140*M140 -> 0
R142: =B142*J142 -> 0 | S142: =B142*M142 -> 0
D143: 9
R144: =B144*J144 -> 0 | S144: =B144*M144 -> 0
R146: =B146*J146 -> 0 | S146: =B146*M146 -> 0
R148: =B148*J148 -> 0 | S148: =B148*M148 -> 0
R150: =B150*J150 -> 0 | S150: =B150*M150 -> 0
B151: 1
B152: 1
B153: 1 | R153: Total Standby Current in Amps | S153: =SUM(R18:R40,R58,R62:R150) -> 0 | U153: =B155*S153 -> 0
B154: 1
B155: 24 | D155: Enter Number of Standby Hours | R155: Total Alarm Current in Amps | S155: =SUM(S18:S40,S58,S62:S150) -> 0 | U155: =B157*S155/60 -> 0
B156: 1
B157: 30 | D157: Enter Alarm Period in Minutes | U157: =U153+U155 -> 0
B158: 1
B159: 1.25 | D159: Enter Battery Derating | R159: Battery Capacity Requirement (Ah) | S159: =U157*B159 -> 0
B160: 1
B161: =COUNTIF(S159,"<26")*{1} -> 1 | J161: Recommended Mircom Batteries (x2) | S161: =IF(OR(S159=0),"",IF(OR(S159<12.0009),"BAT-12V12A","")) -> 
H162: * Battery Charging Capability: 10AH (BAT-12V12A)
D163: Maximum AMPS For Power Supply Has Been Exceeded
D164: Exceeds Battery Maximums For This Panel
D165: =IF(S159>12.0009,"Exceeded Maximum Charging Capacity 10AH (BAT-12V12A)","") -> 
B168: -9999
A172: Mircom Technologies hereby disclaims all warranties relating to this software utility, whether expressed or implied, including without limitation any implied warranties of merchantability or fitness for a particular purpose. Mircom Technologies cannot and will not assume, accept or be liable for any special, incidental, consequential, indirect or similar claims, losses or damages for any reason whatsoever. Use of this Software Utility shall be deemed acceptance of these terms. It is the sole responsibility of the user to ascertain the accuracy and the reliability of any and all information generated or provided by this software utility and to ensure maximum current levels for control units have not been exceeded

Sheet FX-350 (hidden)
F2: FX-350 Battery Calculation Program
B4: PROJECT NAME: | E4: =Menu!X2 -> 0
B6: ADDRESS: | E6: =Menu!X4 -> 0
B8: COMPANY NAME: | E8: =Menu!X15 -> 0
B10: PREPARED BY: | E10: =Menu!X17 -> 0
D12: Important: Enter Quantities then press enter, tab, or click another cell to update calculator.
B13: 1
B14: 1 | R14: All Current in Amps
B15: 1 | R15: Standby | S15: Alarm
B16: 1 | D16: Panel Model | R16: Current | S16: Current
B18: 1 | D18: =VLOOKUP(U18,NAC!AE3:AH7,2) -> 0 | O18: =VLOOKUP(U18,NAC!AE3:AH7,3) -> 0 | P18: =VLOOKUP(U18,NAC!AE3:AH7,4) -> 0 | R18: =O18 -> 0 | S18: =P18 -> 0 | U18: 1
B19: QTY
B20: =COUNTIF(B22:B26,">0")*{1} -> 0 | D20: Panel Adder Modules
D22: =VLOOKUP(U22,NAC!AE8:AH11,2) -> ALC-252 Dual Addressable Loop Adder for FX-351 | O22: =VLOOKUP(U22,NAC!AE8:AH11,3) -> 0.12 | P22: =VLOOKUP(U22,NAC!AE8:AH11,4) -> 0.23 | R22: =B22*O22 -> 0 | S22: =B22*P22 -> 0 | U22: 4
D24: =VLOOKUP(U24,NAC!AE8:AH11,2) -> RAX-332 32 Zone LED Adder Module for FX-351 & FX-353 | J24: 0.12 | M24: 0.23 | O24: =VLOOKUP(U24,NAC!AE8:AH11,3) -> 0.005 | P24: =VLOOKUP(U24,NAC!AE8:AH11,4) -> 0.01 | R24: =B24*J24 -> 0 | S24: =B24*M24 -> 0 | U24: 2
D26: =VLOOKUP(U26,NAC!AE8:AH10,2) -> PR-300 Polarity Reversal & City Tie Module | O26: =VLOOKUP(U26,NAC!AE8:AH10,3) -> 0.035 | P26: =VLOOKUP(U26,NAC!AE8:AH10,4) -> 0.3 | R26: =B26*O26 -> 0 | S26: =B26*P26 -> 0 | U26: 3
B27: =COUNTIF(B30:B42,">0")*{1} -> 0 | C27: =IF(B26<2,"","Warning Only One PR-300 Module Can Be Installed") -> 
B28: =COUNTIF(B30:B42,">0")*{1} -> 0 | D28: Remote Annunciators, Smart Relays
D29: * Maximum Seven (7) Annunciators
D30: =VLOOKUP(U30,NAC!O14:R30,2) -> RAM-300LCD LCD Annunciator | O30: =VLOOKUP(U30,NAC!O14:R30,3) -> 0.056 | P30: =VLOOKUP(U30,NAC!O14:R30,4) -> 0.065 | R30: =B30*O30 -> 0 | S30: =B30*P30 -> 0 | U30: 10
D32: =VLOOKUP(U32,NAC!O14:R30,2) -> RAM-1016TZDS Main Remote Annunciator w/16 Zones Active | O32: =VLOOKUP(U32,NAC!O14:R30,3) -> 0.05 | P32: =VLOOKUP(U32,NAC!O14:R30,4) -> 0.3 | R32: =B32*O32 -> 0 | S32: =B32*P32 -> 0 | U32: 2
D34: =VLOOKUP(U34,NAC!O4:R30,2) -> RAM-1032TZDS Main Remote Annunciator w/ 32 Zones Active | O34: =VLOOKUP(U34,NAC!O14:R30,3) -> 0.05 | P34: =VLOOKUP(U34,NAC!O14:R30,4) -> 0.3 | R34: =B34*O34 -> 0 | S34: =B34*P34 -> 0 | U34: 3
D36: =VLOOKUP(U36,NAC!O14:R30,2) -> RAX-1048TZDS 48 Zone & Trouble LED Adder w/ 4 Zones Active | O36: =VLOOKUP(U36,NAC!O14:R30,3) -> 0.022 | P36: =VLOOKUP(U36,NAC!O14:R30,4) -> 0.039 | R36: 0 | S36: =B36*P36 -> 0 | U36: 4
D38: =VLOOKUP(U38,NAC!O14:R30,2) -> RAM-208 Annunciator 8 Zone LED | O38: =VLOOKUP(U38,NAC!O14:R30,3) -> 0.035 | P38: =VLOOKUP(U38,NAC!O14:R30,4) -> 0.09 | R38: =B38*O38 -> 0 | S38: =B38*P38 -> 0 | U38: 8
D40: =VLOOKUP(U40,NAC!O14:R30,2) -> RAM-216 Annunciator 16 Zone LED | O40: =VLOOKUP(U40,NAC!O14:R30,3) -> 0.035 | P40: =VLOOKUP(U40,NAC!O14:R30,4) -> 0.14 | R40: 0 | S40: =B40*P40 -> 0 | U40: 9
D42: =VLOOKUP(U42,NAC!O14:R30,2) -> RTI-1 Remote Trouble Indicators | O42: =VLOOKUP(U42,NAC!O14:R30,3) -> 0.035 | P42: =VLOOKUP(U42,NAC!O14:R30,4) -> 0.035 | R42: 0 | S42: =B42*P42 -> 0 | U42: 7
D44: =VLOOKUP(U44,NAC!O14:R30,2) -> SRM-312W Smart Relay | O44: =VLOOKUP(U44,NAC!O14:R30,3) -> 0.03 | P44: =VLOOKUP(U44,NAC!O14:R30,4) -> 0.14 | R44: =B44*O44 -> 0 | S44: =B44*P44 -> 0 | U44: 11
D46: =VLOOKUP(U46,NAC!O14:R30,2) -> MGD-32 Master Graphic Driver w/ 3 LEDS Active | O46: =VLOOKUP(U46,NAC!O14:R30,3) -> 0.035 | P46: =VLOOKUP(U46,NAC!O14:R30,4) -> 0.047 | R46: =B46*O46 -> 0 | S46: =B46*P46 -> 0 | U46: 5
D48: =VLOOKUP(U48,NAC!O14:R30,2) -> AGD-048 Adder Graphic Board w/ 3 LEDS Active | O48: =VLOOKUP(U48,NAC!O14:R30,3) -> 0.035 | P48: =VLOOKUP(U48,NAC!O14:R30,4) -> 0.047 | R48: =B48*O48 -> 0 | S48: =B48*P48 -> 0 | U48: 6
B49: 1 | V49: Total
B50: =COUNTIF(B52:B88,">0")*{1} -> 0 | D50: Addressable Devices
D52: =VLOOKUP(U52,NAC!AE13:AH36,2) -> MIX-3100 Addressable Photoelectric Smoke Sensor | O52: =VLOOKUP(U52,NAC!AE13:AH36,3) -> 0.0004 | P52: =VLOOKUP(U52,NAC!AE13:AH36,4) -> 0.0034 | R52: =B52*O52 -> 0 | S52: =B52*P52 -> 0 | U52: 2
D54: =VLOOKUP(U54,NAC!AE13:AH36,2) -> MIX-3200 Addressable Multi-Criteria Photo &Heat Sensor | O54: =VLOOKUP(U54,NAC!AE13:AH36,3) -> 0.0005 | P54: =VLOOKUP(U54,NAC!AE13:AH36,4) -> 0.0035 | R54: =B54*O54 -> 0 | S54: =B54*P54 -> 0 | U54: 3
D56: =VLOOKUP(U56,NAC!AE13:AH36,2) -> MIX-3300 Addressable Heat Sensor | O56: =VLOOKUP(U56,NAC!AE13:AH36,3) -> 0.0005 | P56: =VLOOKUP(U56,NAC!AE13:AH36,4) -> 0.0034 | R56: =B56*O56 -> 0 | S56: =B56*P56 -> 0 | U56: 4
D58: =VLOOKUP(U58,NAC!AE13:AH36,2) -> MIX-2001R Relay Base | O58: =VLOOKUP(U58,NAC!AE13:AH36,3) -> 0 | P58: =VLOOKUP(U58,NAC!AE13:AH36,4) -> 0.046 | R58: =B58*O58 -> 0 | S58: =B58*P58 -> 0 | U58: 5
D60: =VLOOKUP(U60,NAC!AE13:AH36,2) -> MIX-2001HT Sounder Base | O60: =VLOOKUP(U60,NAC!AE13:AH36,3) -> 0 | P60: =VLOOKUP(U60,NAC!AE13:AH36,4) -> 0.008 | R60: =B60*O60 -> 0 | S60: =B60*P60 -> 0 | U60: 6
D62: =VLOOKUP(U62,NAC!AE13:AH36,2) -> MIX-DH3100 Addressable Photo Duct Detector | O62: =VLOOKUP(U62,NAC!AE13:AH36,3) -> 0.026 | P62: =VLOOKUP(U62,NAC!AE13:AH36,4) -> 0.054 | R62: =B62*O62 -> 0 | S62: =B62*P62 -> 0 | U62: 7
D64: =VLOOKUP(U64,NAC!AE13:AH36,2) -> MIX-DH3100R Addressable Photo Duct Detector With Relay | O64: =VLOOKUP(U64,NAC!AE13:AH36,3) -> 0.026 | P64: =VLOOKUP(U64,NAC!AE13:AH36,4) -> 0.054 | R64: =B64*O64 -> 0 | S64: =B64*P64 -> 0 | U64: 8
D66: =VLOOKUP(U66,NAC!AE13:AH36,2) -> MIX-101P Addressable Input Mini Module | O66: =VLOOKUP(U66,NAC!AE13:AH36,3) -> 0.0006 | P66: =VLOOKUP(U66,NAC!AE13:AH36,4) -> 0.0046 | R66: =B66*O66 -> 0 | S66: =B66*P66 -> 0 | U66: 9
D68: =VLOOKUP(U68,NAC!AE13:AH36,2) -> MIX-100P Addressable Input Module | O68: =VLOOKUP(U68,NAC!AE13:AH36,3) -> 0.0006 | P68: =VLOOKUP(U68,NAC!AE13:AH36,4) -> 0.0046 | R68: =B68*O68 -> 0 | S68: =B68*P68 -> 0 | U68: 10
D70: =VLOOKUP(U70,NAC!AE13:AH36,2) -> MIX-100R Addressable Relay Module | O70: =VLOOKUP(U70,NAC!AE13:AH36,3) -> 0.00085 | P70: =VLOOKUP(U70,NAC!AE13:AH36,4) -> 0.0035 | R70: =B70*O70 -> 0 | S70: =B70*P70 -> 0 | U70: 11
D72: =VLOOKUP(U72,NAC!AE13:AH36,2) -> MIX-100S Addressable Supervised Output Module | O72: =VLOOKUP(U72,NAC!AE13:AH36,3) -> 0.001 | P72: =VLOOKUP(U72,NAC!AE13:AH36,4) -> 0.001 | R72: =B72*O72 -> 0 | S72: =B72*P72 -> 0 | U72: 12
D74: =VLOOKUP(U74,NAC!AE13:AH36,2) -> MIX-100X Line Isolator Module | O74: =VLOOKUP(U74,NAC!AE13:AH36,3) -> 3.5e-05 | P74: =VLOOKUP(U74,NAC!AE13:AH36,4) -> 3.5e-05 | R74: =B74*O74 -> 0 | S74: =B74*P74 -> 0 | U74: 13
D76: =VLOOKUP(U76,NAC!AE13:AH36,2) -> 55000-820 Addressable Relay Module | O76: =VLOOKUP(U76,NAC!AE13:AH36,3) -> 0.0025 | P76: =VLOOKUP(U76,NAC!AE13:AH36,4) -> 0.006 | R76: =B76*O76 -> 0 | S76: =B76*P76 -> 0 | U76: 14
D78: =VLOOKUP(U78,NAC!AE13:AH36,2) -> MS-401ID Addressable Manual Station | O78: =VLOOKUP(U78,NAC!AE13:AH36,3) -> 0.001 | P78: =VLOOKUP(U78,NAC!AE13:AH36,4) -> 0.005 | R78: =B78*O78 -> 0 | S78: =B78*P78 -> 0 | U78: 15
D80: =VLOOKUP(U80,NAC!AE13:AH36,2) -> MS-402ID Addressable Two Stage Manual Station | O80: =VLOOKUP(U80,NAC!AE13:AH36,3) -> 0.001 | P80: =VLOOKUP(U80,NAC!AE13:AH36,4) -> 0.005 | R80: =B80*O80 -> 0 | S80: =B80*P80 -> 0 | U80: 16
D82: =VLOOKUP(U82,NAC!AE13:AH36,2) -> MS-710ID Addressable Manual Station Dual Action Bilingual | O82: =VLOOKUP(U82,NAC!AE13:AH36,3) -> 0.001 | P82: =VLOOKUP(U82,NAC!AE13:AH36,4) -> 0.005 | R82: =B82*O82 -> 0 | S82: =B82*P82 -> 0 | U82: 17
D84: =VLOOKUP(U84,NAC!AE13:AH36,2) -> MS-710IDU Addressable Manual Station Dual Action | O84: =VLOOKUP(U84,NAC!AE13:AH36,3) -> 0.001 | P84: =VLOOKUP(U84,NAC!AE13:AH36,4) -> 0.005 | R84: =B84*O84 -> 0 | S84: =B84*P84 -> 0 | U84: 18
D86: =VLOOKUP(U86,NAC!AE13:AH36,2) -> MRTS-KAPR Remote Alarm LED, Key Operated Test/Reset | O86: =VLOOKUP(U86,NAC!AE13:AH36,3) -> 0.015 | P86: =VLOOKUP(U86,NAC!AE13:AH36,4) -> 0.015 | R86: =B86*O86 -> 0 | S86: =B86*P86 -> 0 | U86: 19
D88: =VLOOKUP(U88,NAC!AE13:AH36,2) -> MS-402ID Addressable Two Stage Manual Station | O88: =VLOOKUP(U88,NAC!AE13:AH36,3) -> 0.001 | P88: =VLOOKUP(U88,NAC!AE13:AH36,4) -> 0.005 | R88: =B88*O88 -> 0 | S88: =B88*P88 -> 0 | U88: 16
B89: =COUNTIF(B93:B97,">0")*{1} -> 0
J90: Enter | M90: Enter
B91: =COUNTIF(B93:B97,">0")*{1} -> 0 | D91: Auxiliary Power | J91: Standby | M91: Alarm
B92: =COUNTIF(B93:B97,">0")*{1} -> 0 | D92: Enter Description | J92: Current | M92: Current
R93: =B93*J93 -> 0 | S93: =B93*M93 -> 0
R95: =B95*J95 -> 0 | S95: =B95*M95 -> 0
R97: =B97*J97 -> 0 | S97: =B97*M97 -> 0
B98: =COUNTIF(B101:B129,">0")*{1} -> 0 | U98: =B93+B95+B97 -> 0 | V98: Total
B99: =COUNTIF(B101:B129,">0")*{1} -> 0 | D99: Signaling Devices - 24 FWR
D100: Select From Drop-Down Box - Check Guide for Compatibility
B101: 0 | D101: =VLOOKUP(U101,NAC!BR11:BU172,2) -> 0 | O101: =VLOOKUP(U101,NAC!BR11:BU172,3) -> 0 | P101: =VLOOKUP(U101,NAC!BR11:BU172,4) -> 0 | R101: =B101*O101 -> 0 | S101: =B101*P101 -> 0 | U101: 1
D103: =VLOOKUP(U103,NAC!BR11:BU172,2) -> 0 | O103: =VLOOKUP(U103,NAC!BR11:BU172,3) -> 0 | P103: =VLOOKUP(U103,NAC!BR11:BU172,4) -> 0 | R103: =B103*O103 -> 0 | S103: =B103*P103 -> 0 | U103: 1
D105: =VLOOKUP(U105,NAC!BR11:BU172,2) -> 0 | O105: =VLOOKUP(U105,NAC!BR11:BU172,3) -> 0 | P105: =VLOOKUP(U105,NAC!BR11:BU172,4) -> 0 | R105: =B105*O105 -> 0 | S105: =B105*P105 -> 0 | U105: 1
D107: =VLOOKUP(U107,NAC!BR11:BU172,2) -> 0 | O107: =VLOOKUP(U107,NAC!BR11:BU172,3) -> 0 | P107: =VLOOKUP(U107,NAC!BR11:BU172,4) -> 0 | R107: =B107*O107 -> 0 | S107: =B107*P107 -> 0 | U107: 1
D109: =VLOOKUP(U109,NAC!BR11:BU172,2) -> 0 | O109: =VLOOKUP(U109,NAC!BR11:BU172,3) -> 0 | P109: =VLOOKUP(U109,NAC!BR11:BU172,4) -> 0 | R109: =B109*O109 -> 0 | S109: =B109*P109 -> 0 | U109: 1
D111: =VLOOKUP(U111,NAC!BR11:BU172,2) -> 0 | O111: =VLOOKUP(U111,NAC!BR11:BU172,3) -> 0 | P111: =VLOOKUP(U111,NAC!BR11:BU172,4) -> 0 | R111: =B111*O111 -> 0 | S111: =B111*P111 -> 0 | U111: 1
D113: =VLOOKUP(U113,NAC!BR11:BU172,2) -> 0 | O113: =VLOOKUP(U113,NAC!BR11:BU172,3) -> 0 | P113: =VLOOKUP(U113,NAC!BR11:BU172,4) -> 0 | R113: =B113*O113 -> 0 | S113: =B113*P113 -> 0 | U113: 1
D115: =VLOOKUP(U115,NAC!BR11:BU172,2) -> 0 | O115: =VLOOKUP(U115,NAC!BR11:BU172,3) -> 0 | P115: =VLOOKUP(U115,NAC!BR11:BU172,4) -> 0 | R115: =B115*O115 -> 0 | S115: =B115*P115 -> 0 | U115: 1
D117: =VLOOKUP(U117,NAC!BR11:BU172,2) -> 0 | O117: =VLOOKUP(U117,NAC!BR11:BU172,3) -> 0 | P117: =VLOOKUP(U117,NAC!BR11:BU172,4) -> 0 | R117: =B117*O117 -> 0 | S117: =B117*P117 -> 0 | U117: 1
D119: =VLOOKUP(U119,NAC!BR11:BU172,2) -> 0 | O119: =VLOOKUP(U119,NAC!BR11:BU172,3) -> 0 | P119: =VLOOKUP(U119,NAC!BR11:BU172,4) -> 0 | R119: =B119*O119 -> 0 | S119: =B119*P119 -> 0 | U119: 1
D121: =VLOOKUP(U121,NAC!BR11:BU172,2) -> 0 | O121: =VLOOKUP(U121,NAC!BR11:BU172,3) -> 0 | P121: =VLOOKUP(U121,NAC!BR11:BU172,4) -> 0 | R121: =B121*O121 -> 0 | S121: =B121*P121 -> 0 | U121: 1
D123: =VLOOKUP(U123,NAC!BR11:BU172,2) -> 0 | O123: =VLOOKUP(U123,NAC!BR11:BU172,3) -> 0 | P123: =VLOOKUP(U123,NAC!BR11:BU172,4) -> 0 | R123: =B123*O123 -> 0 | S123: =B123*P123 -> 0 | U123: 1
D125: =VLOOKUP(U125,NAC!BR11:BU172,2) -> 0 | O125: =VLOOKUP(U125,NAC!BR11:BU172,3) -> 0 | P125: =VLOOKUP(U125,NAC!BR11:BU172,4) -> 0 | R125: =B125*O125 -> 0 | S125: =B125*P125 -> 0 | U125: 1
D127: =VLOOKUP(U127,NAC!BR11:BU172,2) -> 0 | O127: =VLOOKUP(U127,NAC!BR11:BU172,3) -> 0 | P127: =VLOOKUP(U127,NAC!BR11:BU172,4) -> 0 | R127: =B127*O127 -> 0 | S127: =B127*P127 -> 0 | U127: 1
D129: =VLOOKUP(U129,NAC!BR11:BU172,2) -> 0 | O129: =VLOOKUP(U129,NAC!BR11:BU172,3) -> 0 | P129: =VLOOKUP(U129,NAC!BR11:BU172,4) -> 0 | R129: =B129*O129 -> 0 | S129: =B129*P129 -> 0 | U129: 1
R131: =B131*J131 -> 0 | S131: =B131*M131 -> 0
R133: =B133*J133 -> 0 | S133: =B133*M133 -> 0
R135: =B135*J135 -> 0 | S135: =B135*M135 -> 0
R137: =B137*J137 -> 0 | S137: =B137*M137 -> 0
R139: =B139*J139 -> 0 | S139: =B139*M139 -> 0
B140: =COUNTIF(B144:B162,">0")*{1} -> 0 | D140: * Indicating Circuits Must Not Exceed 5 Amps Total | U140: =SUM(S101:S139) -> 0
J141: Enter | M141: Enter
B142: =COUNTIF(B144:B162,">0")*{1} -> 0 | D142: Additional Devices | J142: Standby | M142: Alarm
B143: =COUNTIF(B144:B162,">0")*{1} -> 0 | D143: Enter Description | J143: Current | M143: Current
J144: 0 | R144: =B144*J144 -> 0 | S144: =B144*M144 -> 0
M145: 43.35
R146: =B146*J146 -> 0 | S146: =B146*M146 -> 0
R148: =B148*J148 -> 0 | S148: =B148*M148 -> 0
R150: =B150*J150 -> 0 | S150: =B150*M150 -> 0
R152: =B152*J152 -> 0 | S152: =B152*M152 -> 0
R154: =B154*J154 -> 0 | S154: =B154*M154 -> 0
R156: =B156*J156 -> 0 | S156: =B156*M156 -> 0
R158: =B158*J158 -> 0 | S158: =B158*M158 -> 0
R160: =B160*J160 -> 0 | S160: =B160*M160 -> 0
R162: =B162*J162 -> 0 | S162: =B162*M162 -> 0
B163: 1
B164: 1
B165: 1 | R165: Total Standby Current in Amps | S165: =SUM(R18:R162) -> 0 | U165: =B167*S165 -> 0
B166: 1
B167: 24 | D167: Enter Number of Standby Hours | R167: Total Alarm Current in Amps | S167: =SUM(S18:S162) -> 0 | U167: =B169*S167/60 -> 0
B168: 1
B169: 30 | D169: Enter Alarm Period in Minutes | U169: =U165+U167 -> 0
B170: 1
B171: 1.25 | D171: Enter Battery Derating | R171: Battery Capacity Requirement (Ah) | S171: =U169*B171 -> 0
B172: 1
B173: =COUNTIF(S171,"<26")*{1} -> 1 | J173: Recommended Mircom Batteries (x2) | S173: =IF(OR(S171=0),"",IF(OR(S171<12),"BAT-12V12A",IF(OR(S171<18),"BAT-12V18A",IF(OR(S171<26),"BAT-12V26A",IF(OR(S171>26),""))))) -> 
G174: * Battery Charging Capability: Minimum 10AH (BAT-12V12A), Maximum 24AH (BAT-12V26A)
D175: Maximum AMPS For Power Supply Has Been Exceeded
D176: Exceeds Battery Maximums For This Panel
D177: =IF(S171<26.0009,"","Exceeded Maximum Charging Capacity 24AH (BAT-12V26A)") -> 
D178: Battery Exceeds Backbox, Use BC-160 Battery Cabinet | Z178: =SUM(COUNTIF(R18,{0.22,0.21,0.23," "})*{1,2,2,0}) -> 0
B179: -9999
A183: Mircom Technologies hereby disclaims all warranties relating to this software utility, whether expressed or implied, including without limitation any implied warranties of merchantability or fitness for a particular purpose. Mircom Technologies cannot and will not assume, accept or be liable for any special, incidental, consequential, indirect or similar claims, losses or damages for any reason whatsoever. Use of this Software Utility shall be deemed acceptance of these terms. It is the sole responsibility of the user to ascertain the accuracy and the reliability of any and all information generated or provided by this software utility and to ensure maximum current levels for control units have not been exceeded

Sheet FA-1000 (hidden)
F2: FA-1000 / BPS-1100 Battery Calculation Program
B4: PROJECT NAME: | E4: =Menu!X2 -> 0
B6: ADDRESS: | E6: =Menu!X4 -> 0
B8: COMPANY NAME: | E8: =Menu!X15 -> 0
B10: PREPARED BY: | E10: =Menu!X17 -> 0
E12: Important: Enter Info and Quantities in Clear Cells then press enter, tab, or click another Cell to Update Calculator.
B14: 1 | Q14: All Current in Amps
B15: 1 | Q15: Standby | R15: Alarm
B16: 1 | D16: Panel Model | Q16: Current | R16: Current
B18: 1 | D18: =VLOOKUP(T18,NAC!O4:R9,2) -> 0 | N18: =VLOOKUP(T18,NAC!O4:R9,3) -> 0 | O18: =VLOOKUP(T18,NAC!O4:R9,4) -> 0 | Q18: =N18 -> 0 | R18: =O18 -> 0 | T18: 1
B19: QTY | T19: 2
B20: =COUNTIF(B22:B30,">0")*{1} -> 0 | D20: Panel Adder Modules | T20: =VLOOKUP(T18,NAC!O4:T8,5) -> 0
D21: =IF(OR(Z179<5),"* Maximum One (1) UDACT or PR-300 per Panel",IF(OR(Z179=5),"* Maximum Three (3) Adder Modules Total: Two (2) SGM-1004A Maximum (11Amps Total) and/or up to Three (3) RM-1008A","")) -> * Maximum One (1) UDACT or PR-300 per Panel
B22: 0 | D22: =VLOOKUP(T22,NAC!O70:R75,2) -> DM-1008A 8 Initiating Circuit Module with 4 zones active | N22: =VLOOKUP(T22,NAC!O70:R75,3) -> 0.08 | O22: =VLOOKUP(T22,NAC!O70:R75,4) -> 0.275 | Q22: =B22*N22 -> 0 | R22: =B22*O22 -> 0 | T22: 2 | V22: =IF((W22>8),"no",IF((B22>8),"no",IF((B22>0),"yes",IF((B22<0),"no",IF((B22=0),"yes"))))) -> yes | W22: =SUM(B22) -> 0
B24: 0 | D24: =VLOOKUP(T24,NAC!O70:R75,2) -> SGM-1004A 4 Indicating Circuit Module (Unloaded) | N24: =VLOOKUP(T24,NAC!O70:R75,3) -> 0.035 | O24: =VLOOKUP(T24,NAC!O70:R75,4) -> 0.15 | Q24: =B24*N24 -> 0 | R24: =B24*O24 -> 0 | T24: 3 | V24: =IF((W24>3),"no",IF((B24>3),"no",IF((B24>0),"yes",IF((B24<0),"no",IF((B24=0),"yes"))))) -> yes | W24: =SUM(B24) -> 0
B26: 0 | D26: =VLOOKUP(T26,NAC!O70:R75,2) -> RM-1008A 8 Relay Circuit Module | N26: =VLOOKUP(T26,NAC!O70:R75,3) -> 0.025 | O26: =VLOOKUP(T26,NAC!O70:R75,4) -> 0.15 | Q26: =B26*N26 -> 0 | R26: =B26*O26 -> 0 | T26: 4 | V26: =IF((W26>2),"no",IF((B26>2),"no",IF((W24>0),"yes",IF((W24<0),"no",IF((W24=0),"yes"))))) -> yes | W26: =SUM(B26) -> 0
D28: =VLOOKUP(T28,NAC!O70:R75,2) -> UDACT-300A Dialer Module | N28: =VLOOKUP(T28,NAC!O70:R75,3) -> 0.045 | O28: =VLOOKUP(T28,NAC!O70:R75,4) -> 0.12 | Q28: =B28*N28 -> 0 | R28: =B28*O28 -> 0 | T28: 5
D30: =VLOOKUP(T30,NAC!O70:R75,2) -> PR-300 Polarity Reversal & City Tie Module | N30: =VLOOKUP(T30,NAC!O70:R75,3) -> 0.035 | O30: =VLOOKUP(T30,NAC!O70:R75,4) -> 0.3 | Q30: =B30*N30 -> 0 | R30: =B30*O30 -> 0 | T30: 6
B31: =COUNTIF(B34:B46,">0")*{1} -> 0 | T31: =B22+B24+B26+B28+B30 -> 0 | U31: Total
B32: =COUNTIF(B34:B46,">0")*{1} -> 0 | D32: Remote Annunciators
D33: =IF(OR(Z179<5),"* Maximum Eight (8) Annunciators",IF(OR(Z179=5),"* Maximum Eight (8) Annunciators, Circuit Must Be Configured As Continuous Power on BPS-1100","")) -> * Maximum Eight (8) Annunciators
D34: =VLOOKUP(T34,NAC!O14:R30,2) -> RAM-1016TZDS Main Remote Annunciator w/16 Zones Active | N34: =VLOOKUP(T34,NAC!O14:R30,3) -> 0.05 | O34: =VLOOKUP(T34,NAC!O14:R30,4) -> 0.3 | Q34: =B34*N34 -> 0 | R34: =B34*O34 -> 0 | S34: =VLOOKUP(T34,NAC!O14:S27,5) -> 1 | T34: 2 | U34: =B34*S34 -> 0
D36: =VLOOKUP(T36,NAC!O14:R30,2) -> RAM-1032TZDS Main Remote Annunciator w/ 32 Zones Active | N36: =VLOOKUP(T36,NAC!O14:R30,3) -> 0.05 | O36: =VLOOKUP(T36,NAC!O14:R30,4) -> 0.3 | Q36: =B36*N36 -> 0 | R36: =B36*O36 -> 0 | S36: =VLOOKUP(T36,NAC!O14:S27,5) -> 1 | T36: 3 | U36: =B36*S36 -> 0
D38: =VLOOKUP(T38,NAC!O14:R30,2) -> RAX-1048TZDS 48 Zone & Trouble LED Adder w/ 4 Zones Active | N38: =VLOOKUP(T38,NAC!O14:R30,3) -> 0.022 | O38: =VLOOKUP(T38,NAC!O14:R30,4) -> 0.039 | Q38: =B38*N38 -> 0 | R38: =B38*O38 -> 0 | S38: =VLOOKUP(T38,NAC!O14:S27,5) -> 1 | T38: 4 | U38: =B38*S38 -> 0
D40: =VLOOKUP(T40,NAC!O14:R30,2) -> RTI-1 Remote Trouble Indicators | N40: =VLOOKUP(T40,NAC!O14:R30,3) -> 0.035 | O40: =VLOOKUP(T40,NAC!O14:R30,4) -> 0.035 | Q40: =B40*N40 -> 0 | R40: =B40*O40 -> 0 | S40: =VLOOKUP(T40,NAC!O14:S27,5) -> 1 | T40: 7 | U40: =B40*S40 -> 0
D42: =VLOOKUP(T42,NAC!O14:R30,2) -> FDS-008 Fan Damper Control Module | N42: =VLOOKUP(T42,NAC!O14:R30,3) -> 0.024 | O42: =VLOOKUP(T42,NAC!O14:R30,4) -> 0.112 | Q42: =B42*N42 -> 0 | R42: =B42*O42 -> 0 | T42: 12
D44: =VLOOKUP(T44,NAC!O14:R30,2) -> MGD-32 Master Graphic Driver w/ 3 LEDS Active | N44: =VLOOKUP(T44,NAC!O14:R30,3) -> 0.035 | O44: =VLOOKUP(T44,NAC!O14:R30,4) -> 0.047 | Q44: =B44*N44 -> 0 | R44: =B44*O44 -> 0 | S44: =VLOOKUP(T44,NAC!O14:S27,5) -> 1 | T44: 5 | U44: =B44*S44 -> 0
D46: =VLOOKUP(T46,NAC!O14:R30,2) -> AGD-048 Adder Graphic Board w/ 3 LEDS Active | N46: =VLOOKUP(T46,NAC!O14:R30,3) -> 0.035 | O46: =VLOOKUP(T46,NAC!O14:R30,4) -> 0.047 | Q46: =B46*N46 -> 0 | R46: =B46*O46 -> 0 | S46: =VLOOKUP(T46,NAC!O14:S27,5) -> 1 | T46: 6 | U46: =B46*S46 -> 0
B47: =COUNTIF(B50:B62,">0")*{1} -> 0
B48: =COUNTIF(B50:B62,">0")*{1} -> 0 | D48: 2 Wire Detectors
B50: 0 | D50: 2W/C2W i3 Series Photoelectric Smoke Detectors | N50: 5e-05 | O50: 5e-05 | Q50: =B50*N50 -> 0 | R50: =B50*O50 -> 0 | T50: 2
B52: 0 | D52: 2W/C2W i3 Series Photo/Thermal Detectors | N52: 5e-05 | O52: 5e-05 | Q52: =B52*N52 -> 0 | R52: =B52*O52 -> 0 | T52: 3
B54: 0 | D54: 2W/C2W i3 Series Detectors w/Sounder Base | N54: 5e-05 | O54: 5e-05 | Q54: =B54*N54 -> 0 | R54: =B54*O54 -> 0 | T54: 4
B56: 0 | D56: 2W/C2W i3 Series Detectors w/Sounder Base & Relay | N56: 5e-05 | O56: 5e-05 | Q56: =B56*N56 -> 0 | R56: =B56*O56 -> 0 | T56: 5
B58: 0 | D58: 2151(A) Photoelectric Smoke Detector | N58: 8.5e-05 | O58: 8.5e-05 | Q58: =B58*N58 -> 0 | R58: =B58*O58 -> 0 | T58: 6
B60: 0 | D60: =VLOOKUP(U60,NAC!O34:R44,2) -> C2W-MOD2A LoopTest Maintenance Module | N60: =VLOOKUP(U60,NAC!O34:R44,3) -> 0.03 | O60: =VLOOKUP(U60,NAC!O34:R44,4) -> 0.03 | Q60: =B60*N60 -> 0 | R60: =B60*O60 -> 0 | T60: 7 | U60: 7
B62: 0 | D62: D2(A) Photoelectric Duct Detector | N62: 0.00012 | O62: 0.00012 | Q62: =B62*N62 -> 0 | R62: =B62*O62 -> 0 | T62: 8
B63: =COUNTIF(B50:B62,">0")*{1} -> 0
B64: =COUNTIF(B50:B62,">0")*{1} -> 0 | J64: =IF(Y64>0,"ASSUMES 3 INITIATING CTS. IN ALARM","") ->  | Q64: =SUM(Q50:Q62) -> 0 | R64: =IF(Y64>0,"0.090000","") ->  | Y64: =COUNTIF(B50:B62,">0")*{1} -> 0
B65: =COUNTIF(B68:B88,">0")*{1} -> 0 | U65: Total
B66: =COUNTIF(B68:B88,">0")*{1} -> 0 | D66: 4 Wire Detectors
B68: 0 | D68: 4W/C4W i3 Series Photoelectric Smoke Detectors | N68: =VLOOKUP(T68,NAC!O57:R67,3) -> 0.0005 | O68: =VLOOKUP(T68,NAC!O57:R67,3) -> 0.0005 | Q68: =B68*N68 -> 0 | R68: =B68*O68 -> 0 | T68: 2
B70: 0 | D70: 4W/C4W i3 Series Photo/Thermal Detectors | N70: =VLOOKUP(T70,NAC!O57:R67,3) -> 0.0005 | O70: =VLOOKUP(T70,NAC!O57:R67,3) -> 0.0005 | Q70: =B70*N70 -> 0 | R70: =B70*O70 -> 0 | T70: 3
B72: 0 | D72: 4W/C4W i3 Series Detectors w/Sounder Base | N72: =VLOOKUP(T72,NAC!O57:R67,3) -> 0.0005 | O72: =VLOOKUP(T72,NAC!O57:R67,3) -> 0.0005 | Q72: =B72*N72 -> 0 | R72: =B72*O72 -> 0 | T72: 4
B74: 0 | D74: 4W/C4W i3 Series Detectors w/Sounder Base & Relay | N74: =VLOOKUP(T74,NAC!O57:R67,3) -> 0.0255 | O74: =VLOOKUP(T74,NAC!O57:R67,3) -> 0.0255 | Q74: =B74*N74 -> 0 | R74: =B74*O74 -> 0 | T74: 5
B76: 0 | D76: =VLOOKUP(U76,NAC!BA98:BF148,2) -> CO1224(A) Carbon Monoxide Detector | N76: 0.02 | O76: 0.02 | Q76: =B76*N76 -> 0 | R76: =B76*O76 -> 0 | T76: 6 | U76: 13
B78: 0 | D78: =VLOOKUP(U78,NAC!O57:R67,2) -> CRRS-MODA Reversing Relay | N78: =VLOOKUP(U78,NAC!O57:R67,3) -> 1e-07 | O78: =VLOOKUP(U78,NAC!O57:R67,4) -> 0.025 | Q78: =B78*N78 -> 0 | R78: =B78*O78 -> 0 | T78: 7 | U78: 7
B80: 0 | D80: =VLOOKUP(U80,NAC!O57:R67,2) -> B401BHA Sounder Base for 1451A or 2451A | N80: =VLOOKUP(U80,NAC!O57:R67,3) -> 0.017 | O80: =VLOOKUP(U80,NAC!O57:R67,3) -> 0.017 | Q80: =B80*N80 -> 0 | R80: =B80*O80 -> 0 | T80: 8 | U80: 8
B82: 0 | D82: OSI-R-SS Conventional Imaging Beam Smoke Detector | N82: 0.011 | O82: 0.011 | Q82: =B82*N82 -> 0 | R82: =B82*O82 -> 0
B84: 0 | D84: =VLOOKUP(U84,NAC!BA98:BF148,2) -> BEAM1224(A) Series Beam Detectors | N84: 0.017 | O84: 0.017 | Q84: =B84*N84 -> 0 | R84: =B84*O84 -> 0 | T84: 9 | U84: 16
B86: 0 | D86: D4120(A) Photoelectric Duct Detector w/ Relay, 120VAC | N86: =VLOOKUP(T86,NAC!O57:R67,3) -> 0.02 | O86: =VLOOKUP(T86,NAC!O57:R67,3) -> 0.02 | Q86: =B86*N86 -> 0 | R86: =B86*O86 -> 0 | T86: 10
B88: 0 | D88: D4120(A) Photoelectric Duct Detector w/ Relay, 24VAC | N88: =VLOOKUP(T88,NAC!O57:R67,3) -> 0.065 | O88: =VLOOKUP(T88,NAC!O57:R67,3) -> 0.065 | Q88: =B88*N88 -> 0 | R88: =B88*O88 -> 0 | T88: 11
B89: =COUNTIF(B93:B97,">0")*{1} -> 0 | T89: =B68+B70+B72 -> 0 | U89: Total
J90: Enter | M90: Enter
B91: =COUNTIF(B93:B97,">0")*{1} -> 0 | D91: Auxiliary Power | J91: Standby | M91: Alarm
B92: =COUNTIF(B93:B97,">0")*{1} -> 0 | D92: Enter Description | J92: Current | M92: Current
Q93: =B93*J93 -> 0 | R93: =B93*M93 -> 0
Q95: =B95*J95 -> 0 | R95: =B95*M95 -> 0
Q97: =B97*J97 -> 0 | R97: =B97*M97 -> 0
B98: =COUNTIF(B101:B129,">0")*{1} -> 0 | T98: =B93+B95+B97 -> 0 | U98: Total
B99: =COUNTIF(B101:B129,">0")*{1} -> 0 | D99: Signaling Devices - 24 FWR
D100: Select From Drop-Down Box - Check Guide for Compatibility
B101: 0 | D101: =VLOOKUP(T101,NAC!BR11:BU172,2) -> 0 | N101: =VLOOKUP(T101,NAC!BR11:BU172,3) -> 0 | O101: =VLOOKUP(T101,NAC!BR11:BU172,4) -> 0 | Q101: =B101*N101 -> 0 | R101: =B101*O101 -> 0 | T101: 1
D103: =VLOOKUP(T103,NAC!BR11:BU172,2) -> 0 | N103: =VLOOKUP(T103,NAC!BR11:BU172,3) -> 0 | O103: =VLOOKUP(T103,NAC!BR11:BU172,4) -> 0 | Q103: =B103*N103 -> 0 | R103: =B103*O103 -> 0 | T103: 1
D105: =VLOOKUP(T105,NAC!BR11:BU172,2) -> 0 | N105: =VLOOKUP(T105,NAC!BR11:BU172,3) -> 0 | O105: =VLOOKUP(T105,NAC!BR11:BU172,4) -> 0 | Q105: =B105*N105 -> 0 | R105: =B105*O105 -> 0 | T105: 1
D107: =VLOOKUP(T107,NAC!BR11:BU172,2) -> 0 | N107: =VLOOKUP(T107,NAC!BR11:BU172,3) -> 0 | O107: =VLOOKUP(T107,NAC!BR11:BU172,4) -> 0 | Q107: =B107*N107 -> 0 | R107: =B107*O107 -> 0 | T107: 1
D109: =VLOOKUP(T109,NAC!BR11:BU172,2) -> 0 | N109: =VLOOKUP(T109,NAC!BR11:BU172,3) -> 0 | O109: =VLOOKUP(T109,NAC!BR11:BU172,4) -> 0 | Q109: =B109*N109 -> 0 | R109: =B109*O109 -> 0 | T109: 1
D111: =VLOOKUP(T111,NAC!BR11:BU172,2) -> 0 | N111: =VLOOKUP(T111,NAC!BR11:BU172,3) -> 0 | O111: =VLOOKUP(T111,NAC!BR11:BU172,4) -> 0 | Q111: =B111*N111 -> 0 | R111: =B111*O111 -> 0 | T111: 1
D113: =VLOOKUP(T113,NAC!BR11:BU172,2) -> 0 | N113: =VLOOKUP(T113,NAC!BR11:BU172,3) -> 0 | O113: =VLOOKUP(T113,NAC!BR11:BU172,4) -> 0 | Q113: =B113*N113 -> 0 | R113: =B113*O113 -> 0 | T113: 1
D115: =VLOOKUP(T115,NAC!BR11:BU172,2) -> 0 | N115: =VLOOKUP(T115,NAC!BR11:BU172,3) -> 0 | O115: =VLOOKUP(T115,NAC!BR11:BU172,4) -> 0 | Q115: =B115*N115 -> 0 | R115: =B115*O115 -> 0 | T115: 1
D117: =VLOOKUP(T117,NAC!BR11:BU172,2) -> 0 | N117: =VLOOKUP(T117,NAC!BR11:BU172,3) -> 0 | O117: =VLOOKUP(T117,NAC!BR11:BU172,4) -> 0 | Q117: =B117*N117 -> 0 | R117: =B117*O117 -> 0 | T117: 1
D119: =VLOOKUP(T119,NAC!BR11:BU172,2) -> 0 | N119: =VLOOKUP(T119,NAC!BR11:BU172,3) -> 0 | O119: =VLOOKUP(T119,NAC!BR11:BU172,4) -> 0 | Q119: =B119*N119 -> 0 | R119: =B119*O119 -> 0 | T119: 1
D121: =VLOOKUP(T121,NAC!BR11:BU172,2) -> 0 | N121: =VLOOKUP(T121,NAC!BR11:BU172,3) -> 0 | O121: =VLOOKUP(T121,NAC!BR11:BU172,4) -> 0 | Q121: =B121*N121 -> 0 | R121: =B121*O121 -> 0 | T121: 1
D123: =VLOOKUP(T123,NAC!BR11:BU172,2) -> 0 | N123: =VLOOKUP(T123,NAC!BR11:BU172,3) -> 0 | O123: =VLOOKUP(T123,NAC!BR11:BU172,4) -> 0 | Q123: =B123*N123 -> 0 | R123: =B123*O123 -> 0 | T123: 1
D125: =VLOOKUP(T125,NAC!BR11:BU172,2) -> 0 | N125: =VLOOKUP(T125,NAC!BR11:BU172,3) -> 0 | O125: =VLOOKUP(T125,NAC!BR11:BU172,4) -> 0 | Q125: =B125*N125 -> 0 | R125: =B125*O125 -> 0 | T125: 1
D127: =VLOOKUP(T127,NAC!BR11:BU172,2) -> 0 | N127: =VLOOKUP(T127,NAC!BR11:BU172,3) -> 0 | O127: =VLOOKUP(T127,NAC!BR11:BU172,4) -> 0 | Q127: =B127*N127 -> 0 | R127: =B127*O127 -> 0 | T127: 1
D129: =VLOOKUP(T129,NAC!BR11:BU172,2) -> 0 | N129: =VLOOKUP(T129,NAC!BR11:BU172,3) -> 0 | O129: =VLOOKUP(T129,NAC!BR11:BU172,4) -> 0 | Q129: =B129*N129 -> 0 | R129: =B129*O129 -> 0 | T129: 1
Q131: =B131*J131 -> 0 | R131: =B131*M131 -> 0
Q133: =B133*J133 -> 0 | R133: =B133*M133 -> 0
Q135: =B135*J135 -> 0 | R135: =B135*M135 -> 0
Q137: =B137*J137 -> 0 | R137: =B137*M137 -> 0
Q139: =B139*J139 -> 0 | R139: =B139*M139 -> 0
B140: =COUNTIF(B144:B162,">0")*{1} -> 0 | D140: =IF(OR(Z179=1),"* Indicating Circuits Must Not Exceed 5 Amps Total",IF(OR(Z179=2),"* Indicating Circuits Must Not Exceed 5 Amps Total",IF(OR(Z179=3),"* Indicating Circuits Must Not Exceed 10 Amps Total",IF(OR(Z179=4),"* Indicating Circuits Must Not Exceed 10 Amps Total",IF(OR(Z179=5),"* Indicating Circuits Must Not Exceed 11 Amps Total",""))))) ->  | U140: =SUM(R101:R139) -> 0
J141: Enter | M141: Enter
B142: =COUNTIF(B144:B162,">0")*{1} -> 0 | D142: Additional Devices | J142: Standby | M142: Alarm
B143: =COUNTIF(B144:B162,">0")*{1} -> 0 | D143: Enter Description | J143: Current | M143: Current
Q144: =B144*J144 -> 0 | R144: =B144*M144 -> 0
Q146: =B146*J146 -> 0 | R146: =B146*M146 -> 0
Q148: =B148*J148 -> 0 | R148: =B148*M148 -> 0
Q150: =B150*J150 -> 0 | R150: =B150*M150 -> 0
Q152: =B152*J152 -> 0 | R152: =B152*M152 -> 0
Q154: =B154*J154 -> 0 | R154: =B154*M154 -> 0
Q156: =B156*J156 -> 0 | R156: =B156*M156 -> 0
Q158: =B158*J158 -> 0 | R158: =B158*M158 -> 0
Q160: =B160*J160 -> 0 | R160: =B160*M160 -> 0
Q162: =B162*J162 -> 0 | R162: =B162*M162 -> 0
B163: 1
B164: 1 | T164: =B144+B146+B148+B150+B152+B154+B156+B158+B160+B162 -> 0
B165: 1 | Q165: Total Standby Current in Amps | R165: =SUM(Q18:Q162) -> 0 | T165: =B167*R165 -> 0
B166: 1
B167: 24 | D167: Enter Number of Standby Hours | Q167: Total Alarm Current in Amps | R167: =SUM(R18:R162) -> 0 | T167: =B169*R167/60 -> 0
B168: 1
B169: 30 | D169: Enter Alarm Period in Minutes | T169: =T165+T167 -> 0
B170: 1
B171: 1.25 | D171: Enter Battery Derating | Q171: Battery Capacity Requirement (Ah) | R171: =T169*B171 -> 0
B172: 1
B173: =COUNTIF(R171,"<26")*{1} -> 1 | I173: Recommended Mircom Batteries (x2) | R173: =IF(OR(R171=0),"",IF(OR(R171<12),"BAT-12V12A",IF(OR(R171<18),"BAT-12V18A",IF(OR(R171<26),"BAT-12V26A",IF(OR(R171>26),""))))) -> 
B175: =COUNTIF(R171,">26")*{1} -> 0 | I175: Recommended Mircom Batteries (x2) | R175: =IF(OR(R171<26),"",IF(OR(R171<33),"BAT-12V33A",IF(OR(R171<42),"BAT-12V42A",""))) -> 
G176: =IF(OR(Z179=1),"* Battery Charging Capability: Minimum 10AH (BAT-12V12A), Maximum 24AH (BAT-12V26A)",IF(OR(Z179=2),"* Battery Charging Capability: Minimum 10AH (BAT-12V12A), Maximum 24AH (BAT-12V26A)",IF(OR(Z179=3),"* Battery Charging Capability: Minimum 17AH (BAT-12V18A), Maximum 40AH (BAT-12V42A)",IF(OR(Z179=4),"* Battery Charging Capability: Minimum 17AH (BAT-12V18A), Maximum 40AH (BAT-12V42A)",IF(OR(Z179=5),"* Battery Charging Capability: Minimum 10AH (BAT-12V12A), Maximum 18AH (BAT-12V18A)",""))))) -> 
D177: Exceeds Battery Maximums For This Panel
D178: =IF(OR(Z179=1),"Exceeded Maximum Charging Capacity 24AH (BAT-12V26A)",IF(OR(Z179=2),"Exceeded Maximum Charging Capacity 24AH (BAT-12V26A)",IF(OR(Z179=3),"Exceeded Maximum Charging Capacity 40AH (BAT-12V42A)",IF(OR(Z179=4),"Exceeded Maximum Charging Capacity 40AH (BAT-12V42A)",IF(OR(Z179=5),"Exceeded Maximum Charging Capacity 18AH (BAT-12V18A)"))))) -> FALSE
D179: Battery Exceeds Backbox, Use BC-160 Battery Cabinet | Z179: =SUM(COUNTIF(Q18,{0.2000001,0.2800001,0.2,0.28,0.20000001," "})*{1,2,3,4,5,0}) -> 0
B180: -9999 | D180: Maximum AMPS For Power Supply Has Been Exceeded
A184: Mircom Technologies hereby disclaims all warranties relating to this software utility, whether expressed or implied, including without limitation any implied warranties of merchantability or fitness for a particular purpose. Mircom Technologies cannot and will not assume, accept or be liable for any special, incidental, consequential, indirect or similar claims, losses or damages for any reason whatsoever. Use of this Software Utility shall be deemed acceptance of these terms. It is the sole responsibility of the user to ascertain the accuracy and the reliability of any and all information generated or provided by this software utility and to ensure maximum current levels for control units have not been exceeded
T286: 3

Sheet FA-1000 (2) (hidden)
C1: FA-1000 Battery Calculation Program
B3: Project: | C3: ='FA-1000'!H4 -> 0
B4: Line 2: | C4: ='FA-1000'!H6 -> 0
B5: Line 3: | C5: ='FA-1000'!H8 -> 0
B6: Prepared By: | C6: ='FA-1000'!H10 -> 0
E8: Total | F8: Total
A9: QTY | E9: Standby | F9: Alarm
B10: Panel Model | E10: Current | F10: Current
A11: 1 | B11: ='FA-1000'!B18 -> 1 | E11: ='FA-1000'!Q18 -> 0 | F11: ='FA-1000'!R18 -> 0
A13: Column1 | B13: Column3 | C13: Column6 | D13: Column2 | E13: Column9 | F13: Column10
A14: ='FA-1000'!T31 -> 0 | B14: Panel Adder Modules
A15: ='FA-1000'!B22 -> 0 | B15: ='FA-1000'!D22 -> DM-1008A 8 Initiating Circuit Module with 4 zones active | E15: ='FA-1000'!Q22 -> 0 | F15: ='FA-1000'!R22 -> 0
A16: ='FA-1000'!B24 -> 0 | B16: ='FA-1000'!D24 -> SGM-1004A 4 Indicating Circuit Module (Unloaded) | E16: ='FA-1000'!Q24 -> 0 | F16: ='FA-1000'!R24 -> 0
A17: ='FA-1000'!B26 -> 0 | B17: ='FA-1000'!D26 -> RM-1008A 8 Relay Circuit Module | E17: ='FA-1000'!Q26 -> 0 | F17: ='FA-1000'!R26 -> 0
A18: ='FA-1000'!B28 -> 0 | B18: ='FA-1000'!D28 -> UDACT-300A Dialer Module | E18: ='FA-1000'!Q28 -> 0 | F18: ='FA-1000'!R28 -> 0
A19: ='FA-1000'!B30 -> 0 | B19: ='FA-1000'!D30 -> PR-300 Polarity Reversal & City Tie Module | E19: ='FA-1000'!Q30 -> 0 | F19: ='FA-1000'!R30 -> 0
A20: ='FA-1000'!#REF! ->  | B20: Remote Annunicator
A21: ='FA-1000'!B34 -> 0 | B21: ='FA-1000'!$D$34 -> RAM-1016TZDS Main Remote Annunciator w/16 Zones Active | E21: ='FA-1000'!Q34 -> 0 | F21: ='FA-1000'!R34 -> 0
A22: ='FA-1000'!B36 -> 0 | B22: ='FA-1000'!$D$36 -> RAM-1032TZDS Main Remote Annunciator w/ 32 Zones Active | E22: ='FA-1000'!Q36 -> 0 | F22: ='FA-1000'!R36 -> 0
A23: ='FA-1000'!B38 -> 0 | B23: ='FA-1000'!$D$38 -> RAX-1048TZDS 48 Zone & Trouble LED Adder w/ 4 Zones Active | E23: ='FA-1000'!Q38 -> 0 | F23: ='FA-1000'!R38 -> 0
A24: ='FA-1000'!B40 -> 0 | B24: ='FA-1000'!$D$40 -> RTI-1 Remote Trouble Indicators | E24: ='FA-1000'!Q40 -> 0 | F24: ='FA-1000'!R40 -> 0
A25: ='FA-1000'!B44 -> 0 | B25: ='FA-1000'!$D$44 -> MGD-32 Master Graphic Driver w/ 3 LEDS Active | E25: ='FA-1000'!Q44 -> 0 | F25: ='FA-1000'!R44 -> 0
A26: ='FA-1000'!B46 -> 0 | B26: ='FA-1000'!$D$46 -> AGD-048 Adder Graphic Board w/ 3 LEDS Active | E26: ='FA-1000'!Q46 -> 0 | F26: ='FA-1000'!R46 -> 0
A27: ='FA-1000'!T65 -> 0 | B27: 2 Wire Detectors
A28: ='FA-1000'!$B$50 -> 0 | B28: ='FA-1000'!$D$50 -> 2W/C2W i3 Series Photoelectric Smoke Detectors | E28: ='FA-1000'!Q50 -> 0 | F28: ='FA-1000'!R50 -> 0
A29: ='FA-1000'!$B$52 -> 0 | B29: ='FA-1000'!$D$52 -> 2W/C2W i3 Series Photo/Thermal Detectors | E29: ='FA-1000'!Q52 -> 0 | F29: ='FA-1000'!R52 -> 0
A30: ='FA-1000'!$B$54 -> 0 | B30: ='FA-1000'!$D$54 -> 2W/C2W i3 Series Detectors w/Sounder Base | E30: ='FA-1000'!Q54 -> 0 | F30: ='FA-1000'!R54 -> 0
A31: ='FA-1000'!$B$56 -> 0 | B31: ='FA-1000'!$D$56 -> 2W/C2W i3 Series Detectors w/Sounder Base & Relay | E31: ='FA-1000'!Q56 -> 0 | F31: ='FA-1000'!R56 -> 0
A32: ='FA-1000'!$B$58 -> 0 | B32: ='FA-1000'!$D$58 -> 2151(A) Photoelectric Smoke Detector | E32: ='FA-1000'!Q58 -> 0 | F32: ='FA-1000'!R58 -> 0
A33: ='FA-1000'!$B$60 -> 0 | B33: ='FA-1000'!$D$60 -> C2W-MOD2A LoopTest Maintenance Module | E33: ='FA-1000'!Q60 -> 0 | F33: ='FA-1000'!R60 -> 0
A34: ='FA-1000'!$B$62 -> 0 | B34: ='FA-1000'!$D$62 -> D2(A) Photoelectric Duct Detector | E34: ='FA-1000'!Q62 -> 0 | F34: ='FA-1000'!R62 -> 0
A35: ='FA-1000'!#REF! ->  | B35: 4 Wire Detectors
A36: ='FA-1000'!B68 -> 0 | B36: ='FA-1000'!D68 -> 4W/C4W i3 Series Photoelectric Smoke Detectors | E36: ='FA-1000'!Q68 -> 0 | F36: ='FA-1000'!R68 -> 0
A37: ='FA-1000'!B70 -> 0 | B37: ='FA-1000'!D70 -> 4W/C4W i3 Series Photo/Thermal Detectors | E37: ='FA-1000'!Q70 -> 0 | F37: ='FA-1000'!R70 -> 0
A38: ='FA-1000'!B72 -> 0 | B38: ='FA-1000'!D72 -> 4W/C4W i3 Series Detectors w/Sounder Base | E38: ='FA-1000'!Q72 -> 0 | F38: ='FA-1000'!R72 -> 0
A39: ='FA-1000'!B74 -> 0 | B39: ='FA-1000'!D74 -> 4W/C4W i3 Series Detectors w/Sounder Base & Relay | E39: ='FA-1000'!Q74 -> 0 | F39: ='FA-1000'!R74 -> 0
A40: ='FA-1000'!B76 -> 0 | B40: ='FA-1000'!D76 -> CO1224(A) Carbon Monoxide Detector | E40: ='FA-1000'!Q76 -> 0 | F40: ='FA-1000'!R76 -> 0
A41: ='FA-1000'!B78 -> 0 | B41: ='FA-1000'!D78 -> CRRS-MODA Reversing Relay | E41: ='FA-1000'!Q78 -> 0 | F41: ='FA-1000'!R78 -> 0
A42: ='FA-1000'!B80 -> 0 | B42: ='FA-1000'!D80 -> B401BHA Sounder Base for 1451A or 2451A | E42: ='FA-1000'!Q80 -> 0 | F42: ='FA-1000'!R80 -> 0
A43: ='FA-1000'!B84 -> 0 | B43: ='FA-1000'!D84 -> BEAM1224(A) Series Beam Detectors | E43: ='FA-1000'!Q84 -> 0 | F43: ='FA-1000'!R84 -> 0
A44: ='FA-1000'!B86 -> 0 | B44: ='FA-1000'!D86 -> D4120(A) Photoelectric Duct Detector w/ Relay, 120VAC | E44: ='FA-1000'!Q86 -> 0 | F44: ='FA-1000'!R86 -> 0
A45: ='FA-1000'!B88 -> 0 | B45: ='FA-1000'!D88 -> D4120(A) Photoelectric Duct Detector w/ Relay, 24VAC | E45: ='FA-1000'!Q88 -> 0 | F45: ='FA-1000'!R88 -> 0
A46: ='FA-1000'!T98 -> 0 | B46: Auxillary Power
A47: ='FA-1000'!B93 -> 0 | B47: ='FA-1000'!D93 -> 0 | E47: ='FA-1000'!Q93 -> 0 | F47: ='FA-1000'!R93 -> 0
A48: ='FA-1000'!B95 -> 0 | B48: ='FA-1000'!D95 -> 0 | E48: ='FA-1000'!Q95 -> 0 | F48: ='FA-1000'!R95 -> 0
A49: ='FA-1000'!B97 -> 0 | B49: ='FA-1000'!D97 -> 0 | E49: ='FA-1000'!Q97 -> 0 | F49: ='FA-1000'!R97 -> 0
A50: ='FA-1000'!#REF! ->  | B50: Signals
A51: ='FA-1000'!B101 -> 0 | B51: ='FA-1000'!D101 -> 0 | E51: ='FA-1000'!Q101 -> 0 | F51: ='FA-1000'!R101 -> 0
A52: ='FA-1000'!B103 -> 0 | B52: ='FA-1000'!D103 -> 0 | E52: ='FA-1000'!Q103 -> 0 | F52: ='FA-1000'!R103 -> 0
A53: ='FA-1000'!B105 -> 0 | B53: ='FA-1000'!D105 -> 0 | E53: ='FA-1000'!Q105 -> 0 | F53: ='FA-1000'!R105 -> 0
A54: ='FA-1000'!B107 -> 0 | B54: ='FA-1000'!D107 -> 0 | E54: ='FA-1000'!Q107 -> 0 | F54: ='FA-1000'!R107 -> 0
A55: ='FA-1000'!B109 -> 0 | B55: ='FA-1000'!D109 -> 0 | E55: ='FA-1000'!Q109 -> 0 | F55: ='FA-1000'!R109 -> 0
A56: ='FA-1000'!B111 -> 0 | B56: ='FA-1000'!D111 -> 0 | E56: ='FA-1000'!Q111 -> 0 | F56: ='FA-1000'!R111 -> 0
A57: ='FA-1000'!B113 -> 0 | B57: ='FA-1000'!D113 -> 0 | E57: ='FA-1000'!Q113 -> 0 | F57: ='FA-1000'!R113 -> 0
A58: ='FA-1000'!B115 -> 0 | B58: ='FA-1000'!D115 -> 0 | E58: ='FA-1000'!Q115 -> 0 | F58: ='FA-1000'!R115 -> 0
A59: ='FA-1000'!B117 -> 0 | B59: ='FA-1000'!D117 -> 0 | E59: ='FA-1000'!Q117 -> 0 | F59: ='FA-1000'!R117 -> 0
A60: ='FA-1000'!B119 -> 0 | B60: ='FA-1000'!D119 -> 0 | E60: ='FA-1000'!Q119 -> 0 | F60: ='FA-1000'!R119 -> 0
A61: ='FA-1000'!B121 -> 0 | B61: ='FA-1000'!D121 -> 0 | E61: ='FA-1000'!Q121 -> 0 | F61: ='FA-1000'!R121 -> 0
A62: ='FA-1000'!B123 -> 0 | B62: ='FA-1000'!D123 -> 0 | E62: ='FA-1000'!Q123 -> 0 | F62: ='FA-1000'!R123 -> 0
A63: ='FA-1000'!B125 -> 0 | B63: ='FA-1000'!D125 -> 0 | E63: ='FA-1000'!Q125 -> 0 | F63: ='FA-1000'!R125 -> 0
A64: ='FA-1000'!B127 -> 0 | B64: ='FA-1000'!D127 -> 0 | E64: ='FA-1000'!Q127 -> 0 | F64: ='FA-1000'!R127 -> 0
A65: ='FA-1000'!B129 -> 0 | B65: ='FA-1000'!D129 -> 0 | E65: ='FA-1000'!Q129 -> 0 | F65: ='FA-1000'!R129 -> 0
A66: ='FA-1000'!T164 -> 0 | B66: Additional Devices
A67: ='FA-1000'!B144 -> 0 | B67: ='FA-1000'!D144 -> 0 | E67: ='FA-1000'!Q144 -> 0 | F67: ='FA-1000'!R144 -> 0
A68: ='FA-1000'!B146 -> 0 | B68: ='FA-1000'!D146 -> 0 | E68: ='FA-1000'!Q146 -> 0 | F68: ='FA-1000'!R146 -> 0
A69: ='FA-1000'!B148 -> 0 | B69: ='FA-1000'!D148 -> 0 | E69: ='FA-1000'!Q148 -> 0 | F69: ='FA-1000'!R148 -> 0
A70: ='FA-1000'!B150 -> 0 | B70: ='FA-1000'!D150 -> 0 | E70: ='FA-1000'!Q150 -> 0 | F70: ='FA-1000'!R150 -> 0
A71: ='FA-1000'!B152 -> 0 | B71: ='FA-1000'!D152 -> 0 | E71: ='FA-1000'!Q152 -> 0 | F71: ='FA-1000'!R152 -> 0
A72: ='FA-1000'!B154 -> 0 | B72: ='FA-1000'!D154 -> 0 | E72: ='FA-1000'!Q154 -> 0 | F72: ='FA-1000'!R154 -> 0
A73: ='FA-1000'!B156 -> 0 | B73: ='FA-1000'!D156 -> 0 | E73: ='FA-1000'!Q156 -> 0 | F73: ='FA-1000'!R156 -> 0
A74: ='FA-1000'!B158 -> 0 | B74: ='FA-1000'!D158 -> 0 | E74: ='FA-1000'!Q158 -> 0 | F74: ='FA-1000'!R158 -> 0
A75: ='FA-1000'!B160 -> 0 | B75: ='FA-1000'!D160 -> 0 | E75: ='FA-1000'!Q160 -> 0 | F75: ='FA-1000'!R160 -> 0
A76: ='FA-1000'!B162 -> 0 | B76: ='FA-1000'!D162 -> 0 | E76: ='FA-1000'!Q162 -> 0 | F76: ='FA-1000'!R162 -> 0
D78: Total Standby Current in Amps | F78: ='FA-1000'!R165 -> 0
A79: ='FA-1000'!B167 -> 24 | B79: Number of Standby Hours | D79: Total Alarm Current in Amps | F79: ='FA-1000'!R167 -> 0
A80: ='FA-1000'!B169 -> 30 | B80: Alarm Period in Minutes
A81: ='FA-1000'!B171 -> 1.25 | B81: Battery Derating | C81: Battery Capacity Requirement (Ah) | F81: ='FA-1000'!R171 -> 0
A83: Mircom Technologies hereby disclaims all warranties relating to this software utility, whether expressed or implied, including without limitation any implied warranties of merchantability or fitness for a particular purpose. Mircom Technologies cannot and will not assume, accept or be liable for any special, incidental, consequential, indirect or similar claims, losses or damages for any reason whatsoever. Use of this Software Utility shall be deemed acceptance of these terms. It is the sole responsibility of the user to ascertain the accuracy and the reliability of any and all information generated or provided by this software utility and to ensure maximum current levels for control units have not been exceeded

Sheet FA-300(2) (hidden)
C1: FA-300 Battery Calculation Program
B3: Project: | C3: ='FA-300'!J4 -> 0
B4: Line 2: | C4: ='FA-300'!J6 -> 0
B5: Line 3: | C5: ='FA-300'!J8 -> 0
B6: Prepared By: | C6: ='FA-300'!J10 -> 0
D8: Total | E8: Total
A9: QTY | D9: Standby | E9: Alarm
B10: Panel Model | D10: Current | E10: Current
A11: 1 | B11: ='FA-300'!B18 -> 1 | D11: ='FA-300'!R18 -> 0 | E11: ='FA-300'!S18 -> 0
A13: Column1 | B13: Column3 | C13: Column6 | D13: Column9 | E13: Column10
A14: ='FA-300'!#REF! ->  | B14: Panel Adder Modules
A15: ='FA-300'!B22 -> 0 | B15: ='FA-300'!D22 -> RM-306 Series Series 300 6 adder Relay | D15: ='FA-300'!R22 -> 0 | E15: ='FA-300'!S22 -> 0
A16: ='FA-300'!B24 -> 0 | B16: ='FA-300'!D24 -> RM-312 Series Series 300 12 adder Relay | D16: ='FA-300'!R24 -> 0 | E16: ='FA-300'!S24 -> 0
A18: ='FA-300'!U41 -> 0 | B18: Remote Annunicator
A19: ='FA-300'!B30 -> 0 | B19: ='FA-300'!$D$30 -> RAM-300L Remote LCD Annunciator | D19: ='FA-300'!$R$30 -> 0 | E19: ='FA-300'!$S$30 -> 0
A20: ='FA-300'!B32 -> 0 | B20: ='FA-300'!$D$32 -> RAM-208 Annunciator 8 Zone LED | D20: ='FA-300'!R32 -> 0 | E20: ='FA-300'!$S$32 -> 0
A21: ='FA-300'!B34 -> 0 | B21: ='FA-300'!$D$34 -> RAM-216 Annunciator 16 Zone LED | D21: ='FA-300'!R34 -> 0 | E21: ='FA-300'!$S$34 -> 0
A22: ='FA-300'!B36 -> 0 | B22: ='FA-300'!$D$36 -> RAM-1016TZDS Main Remote Annunciator w/16 Zones Active | D22: ='FA-300'!R36 -> 0 | E22: ='FA-300'!$S$36 -> 0
A23: ='FA-300'!B38 -> 0 | B23: ='FA-300'!$D$38 -> RTI-1 Remote Trouble Indicators | D23: ='FA-300'!R38 -> 0 | E23: ='FA-300'!$S$38 -> 0
A24: ='FA-300'!B40 -> 0 | B24: ='FA-300'!$D$40 -> SRM-312W Smart Relay | D24: ='FA-300'!R40 -> 0 | E24: ='FA-300'!$S$40 -> 0
A25: ='FA-300'!U60 -> 0 | B25: 2 Wire Detectors
A26: ='FA-300'!B44 -> 0 | B26: ='FA-300'!D44 -> 2W/C2W i3 Series Photoelectric Smoke Detectors | D26: ='FA-300'!R44 -> 0 | E26: ='FA-300'!S44 -> 0
A27: ='FA-300'!B46 -> 0 | B27: ='FA-300'!D46 -> 2W/C2W i3 Series Photo/Thermal Detectors | D27: ='FA-300'!R46 -> 0 | E27: ='FA-300'!S46 -> 0
A28: ='FA-300'!B48 -> 0 | B28: ='FA-300'!D48 -> 2W/C2W i3 Series Detectors w/Sounder Base | D28: ='FA-300'!R48 -> 0 | E28: ='FA-300'!S48 -> 0
A29: ='FA-300'!B50 -> 0 | B29: ='FA-300'!D50 -> 2W/C2W i3 Series Detectors w/Sounder Base & Relay | D29: ='FA-300'!R50 -> 0 | E29: ='FA-300'!S50 -> 0
A30: ='FA-300'!#REF! ->  | B30: 4 Wire Detectors
A31: ='FA-300'!B62 -> 0 | B31: ='FA-300'!D62 -> 4W/C4W i3 Series Photoelectric Smoke Detectors | D31: ='FA-300'!R62 -> 0 | E31: ='FA-300'!S62 -> 0
A32: ='FA-300'!B64 -> 0 | B32: ='FA-300'!D64 -> 4W/C4W i3 Series Photo/Thermal Detectors | D32: ='FA-300'!R64 -> 0 | E32: ='FA-300'!S64 -> 0
A33: ='FA-300'!B66 -> 0 | B33: ='FA-300'!D66 -> 4W/C4W i3 Series Detectors w/Sounder Base | D33: ='FA-300'!R66 -> 0 | E33: ='FA-300'!S66 -> 0
A34: ='FA-300'!B68 -> 0 | B34: ='FA-300'!D68 -> 4W/C4W i3 Series Detectors w/Sounder Base & Relay | D34: ='FA-300'!R68 -> 0 | E34: ='FA-300'!S68 -> 0
A35: ='FA-300'!B70 -> 0 | B35: ='FA-300'!D70 -> CO1224(A) Carbon Monoxide Detector | D35: ='FA-300'!R70 -> 0 | E35: ='FA-300'!S70 -> 0
A36: ='FA-300'!U93 -> 0 | B36: Auxillary Power
A37: ='FA-300'!B88 -> 0 | B37: ='FA-300'!D88 -> 0 | D37: ='FA-300'!R88 -> 0 | E37: ='FA-300'!S88 -> 0
A38: ='FA-300'!B90 -> 0 | B38: ='FA-300'!D90 -> 0 | D38: ='FA-300'!R90 -> 0 | E38: ='FA-300'!S90 -> 0
A39: ='FA-300'!B92 -> 0 | B39: ='FA-300'!D92 -> 0 | D39: ='FA-300'!R92 -> 0 | E39: ='FA-300'!S92 -> 0
A40: ='FA-300'!#REF! ->  | B40: Signals
A41: ='FA-300'!B96 -> 0 | B41: ='FA-300'!D96 -> 0 | D41: ='FA-300'!R96 -> 0 | E41: ='FA-300'!S96 -> 0
A42: ='FA-300'!B98 -> 0 | B42: ='FA-300'!D98 -> 0 | D42: ='FA-300'!R98 -> 0 | E42: ='FA-300'!S98 -> 0
A43: ='FA-300'!B100 -> 0 | B43: ='FA-300'!D100 -> 0 | D43: ='FA-300'!R100 -> 0 | E43: ='FA-300'!S100 -> 0
A44: ='FA-300'!B102 -> 0 | B44: ='FA-300'!D102 -> 0 | D44: ='FA-300'!R102 -> 0 | E44: ='FA-300'!S102 -> 0
A45: ='FA-300'!B104 -> 0 | B45: ='FA-300'!D104 -> 0 | D45: ='FA-300'!R104 -> 0 | E45: ='FA-300'!S104 -> 0
A46: ='FA-300'!B106 -> 0 | B46: ='FA-300'!D106 -> 0 | D46: ='FA-300'!R106 -> 0 | E46: ='FA-300'!S106 -> 0
A47: ='FA-300'!B108 -> 0 | B47: ='FA-300'!D108 -> 0 | D47: ='FA-300'!R108 -> 0 | E47: ='FA-300'!S108 -> 0
A48: ='FA-300'!B110 -> 0 | B48: ='FA-300'!D110 -> 0 | D48: ='FA-300'!R110 -> 0 | E48: ='FA-300'!S110 -> 0
A49: ='FA-300'!B112 -> 0 | B49: ='FA-300'!D112 -> 0 | D49: ='FA-300'!R112 -> 0 | E49: ='FA-300'!S112 -> 0
A50: ='FA-300'!B114 -> 0 | B50: ='FA-300'!D114 -> 0 | D50: ='FA-300'!R114 -> 0 | E50: ='FA-300'!S114 -> 0
A51: ='FA-300'!U151 -> 0 | B51: Additional Devices
A52: ='FA-300'!B130 -> 0 | B52: ='FA-300'!D130 -> 0 | D52: ='FA-300'!R130 -> 0 | E52: ='FA-300'!S130 -> 0
A53: ='FA-300'!B132 -> 0 | B53: ='FA-300'!D132 -> 0 | D53: ='FA-300'!R132 -> 0 | E53: ='FA-300'!S132 -> 0
A54: ='FA-300'!B134 -> 0 | B54: ='FA-300'!D134 -> 0 | D54: ='FA-300'!R134 -> 0 | E54: ='FA-300'!S134 -> 0
A55: ='FA-300'!B136 -> 0 | B55: ='FA-300'!D136 -> 0 | D55: ='FA-300'!R136 -> 0 | E55: ='FA-300'!S136 -> 0
A56: ='FA-300'!B138 -> 0 | B56: ='FA-300'!D138 -> 0 | D56: ='FA-300'!R138 -> 0 | E56: ='FA-300'!S138 -> 0
A57: ='FA-300'!B140 -> 0 | B57: ='FA-300'!D140 -> 0 | D57: ='FA-300'!R140 -> 0 | E57: ='FA-300'!S140 -> 0
A58: ='FA-300'!B142 -> 0 | B58: ='FA-300'!D142 -> 0 | D58: ='FA-300'!R142 -> 0 | E58: ='FA-300'!S142 -> 0
A59: ='FA-300'!B144 -> 0 | B59: ='FA-300'!D144 -> 0 | D59: ='FA-300'!R144 -> 0 | E59: ='FA-300'!S144 -> 0
A60: ='FA-300'!B146 -> 0 | B60: ='FA-300'!D146 -> 0 | D60: ='FA-300'!R146 -> 0 | E60: ='FA-300'!S146 -> 0
A61: ='FA-300'!B148 -> 0 | B61: ='FA-300'!D148 -> 0 | D61: ='FA-300'!R148 -> 0 | E61: ='FA-300'!S148 -> 0
A62: ='FA-300'!B150 -> 0 | B62: ='FA-300'!D150 -> 0 | D62: ='FA-300'!R150 -> 0 | E62: ='FA-300'!S150 -> 0
C64: Total Standby Current in Amps | E64: ='FA-300'!S153 -> 0
A65: ='FA-300'!B155 -> 24 | B65: Number of Standby Hours | C65: Total Alarm Current in Amps | E65: ='FA-300'!S155 -> 0
A66: ='FA-300'!B157 -> 30 | B66: Alarm Period in Minutes
A67: ='FA-300'!B159 -> 1.25 | B67: Battery Derating | C67: Battery Capacity Requirement (Ah) | E67: ='FA-300'!S159 -> 0
A69: Mircom Technologies hereby disclaims all warranties relating to this software utility, whether expressed or implied, including without limitation any implied warranties of merchantability or fitness for a particular purpose. Mircom Technologies cannot and will not assume, accept or be liable for any special, incidental, consequential, indirect or similar claims, losses or damages for any reason whatsoever. Use of this Software Utility shall be deemed acceptance of these terms. It is the sole responsibility of the user to ascertain the accuracy and the reliability of any and all information generated or provided by this software utility and to ensure maximum current levels for control units have not been exceeded

Sheet FX-350(2) (hidden)
C1: FX-350 Battery Calculation Program
B3: Project: | C3: ='FX-350'!J4 -> 0
B4: Line 2: | C4: ='FX-350'!J6 -> 0
B5: Line 3: | C5: ='FX-350'!J8 -> 0
B6: Prepared By: | C6: ='FX-350'!J10 -> 0
D8: Total | E8: Total
A9: QTY | D9: Standby | E9: Alarm
B10: Panel Model | D10: Current | E10: Current
A11: 1 | B11: ='FX-350'!$B$18 -> 1 | D11: ='FX-350'!$R$18 -> 0 | E11: ='FX-350'!$S$18 -> 0
A13: Column1 | B13: Column3 | C13: Column6 | D13: Column9 | E13: Column10
A14: ='FX-350'!#REF! ->  | B14: Panel Adder Modules
A15: ='FX-350'!$B$22 -> 0 | B15: ='FX-350'!$D$22 -> ALC-252 Dual Addressable Loop Adder for FX-351 | D15: ='FX-350'!$R$22 -> 0 | E15: ='FX-350'!$S$22 -> 0
A16: ='FX-350'!$B$24 -> 0 | B16: =IF(A16<1,"","ALC-252 Dual Adressable Loop Adder Module for FX-351") ->  | D16: ='FX-350'!$R$24 -> 0 | E16: ='FX-350'!$S$24 -> 0
A17: ='FX-350'!$B$26 -> 0 | B17: ='FX-350'!$D$26 -> PR-300 Polarity Reversal & City Tie Module | D17: ='FX-350'!$R$26 -> 0 | E17: ='FX-350'!$S$26 -> 0
A18: ='FX-350'!U49 -> 0 | B18: Remote Annunicator
A19: ='FX-350'!$B$30 -> 0 | B19: ='FX-350'!$D$30 -> RAM-300LCD LCD Annunciator | D19: ='FX-350'!$R$30 -> 0 | E19: ='FX-350'!$S$30 -> 0
A20: ='FX-350'!$B$32 -> 0 | B20: ='FX-350'!$D$32 -> RAM-1016TZDS Main Remote Annunciator w/16 Zones Active | D20: ='FX-350'!$R$32 -> 0 | E20: ='FX-350'!$S$32 -> 0
A21: ='FX-350'!$B$34 -> 0 | B21: ='FX-350'!$D$34 -> RAM-1032TZDS Main Remote Annunciator w/ 32 Zones Active | D21: ='FX-350'!$R$34 -> 0 | E21: ='FX-350'!$S$34 -> 0
A22: ='FX-350'!$B$36 -> 0 | B22: ='FX-350'!$D$36 -> RAX-1048TZDS 48 Zone & Trouble LED Adder w/ 4 Zones Active | D22: ='FX-350'!$R$36 -> 0 | E22: ='FX-350'!$S$36 -> 0
A23: ='FX-350'!$B$36 -> 0 | B23: ='FX-350'!$D$38 -> RAM-208 Annunciator 8 Zone LED | D23: ='FX-350'!$R$38 -> 0 | E23: ='FX-350'!$S$38 -> 0
A24: ='FX-350'!$B$40 -> 0 | B24: ='FX-350'!$D$40 -> RAM-216 Annunciator 16 Zone LED | D24: ='FX-350'!$R$40 -> 0 | E24: ='FX-350'!$S$40 -> 0
A25: ='FX-350'!$B$42 -> 0 | B25: ='FX-350'!$D$42 -> RTI-1 Remote Trouble Indicators | D25: ='FX-350'!$R$42 -> 0 | E25: ='FX-350'!$S$42 -> 0
A26: ='FX-350'!#REF! ->  | B26: Addressable Devices
A27: ='FX-350'!$B$52 -> 0 | B27: ='FX-350'!$D$52 -> MIX-3100 Addressable Photoelectric Smoke Sensor | D27: ='FX-350'!$R$52 -> 0 | E27: ='FX-350'!$S$52 -> 0
A28: ='FX-350'!$B$54 -> 0 | B28: ='FX-350'!$D$54 -> MIX-3200 Addressable Multi-Criteria Photo &Heat Sensor | D28: ='FX-350'!$R$54 -> 0 | E28: ='FX-350'!$S$54 -> 0
A29: ='FX-350'!$B$56 -> 0 | B29: ='FX-350'!$D$56 -> MIX-3300 Addressable Heat Sensor | D29: ='FX-350'!$R$56 -> 0 | E29: ='FX-350'!$S$56 -> 0
A30: ='FX-350'!$B$58 -> 0 | B30: ='FX-350'!$D$58 -> MIX-2001R Relay Base | D30: ='FX-350'!$R$58 -> 0 | E30: ='FX-350'!S58 -> 0
A31: ='FX-350'!$B$60 -> 0 | B31: ='FX-350'!$D$60 -> MIX-2001HT Sounder Base | D31: ='FX-350'!$R$60 -> 0 | E31: ='FX-350'!S60 -> 0
A32: ='FX-350'!$B$62 -> 0 | B32: ='FX-350'!$D$62 -> MIX-DH3100 Addressable Photo Duct Detector | D32: ='FX-350'!$R$62 -> 0 | E32: ='FX-350'!S62 -> 0
A33: ='FX-350'!$B$64 -> 0 | B33: ='FX-350'!$D$64 -> MIX-DH3100R Addressable Photo Duct Detector With Relay | D33: ='FX-350'!$R$64 -> 0 | E33: ='FX-350'!S64 -> 0
A34: ='FX-350'!$B$66 -> 0 | B34: ='FX-350'!$D$66 -> MIX-101P Addressable Input Mini Module | D34: ='FX-350'!$R$66 -> 0 | E34: ='FX-350'!S66 -> 0
A35: ='FX-350'!$B$68 -> 0 | B35: ='FX-350'!$D$68 -> MIX-100P Addressable Input Module | D35: ='FX-350'!$R$68 -> 0 | E35: ='FX-350'!S68 -> 0
A36: ='FX-350'!$B$70 -> 0 | B36: ='FX-350'!$D$70 -> MIX-100R Addressable Relay Module | D36: ='FX-350'!$R$70 -> 0 | E36: ='FX-350'!S70 -> 0
A37: ='FX-350'!$B$72 -> 0 | B37: ='FX-350'!$D$72 -> MIX-100S Addressable Supervised Output Module | D37: ='FX-350'!$R$72 -> 0 | E37: ='FX-350'!S72 -> 0
A38: ='FX-350'!$B$74 -> 0 | B38: ='FX-350'!$D$74 -> MIX-100X Line Isolator Module | D38: ='FX-350'!$R$74 -> 0 | E38: ='FX-350'!S74 -> 0
A39: ='FX-350'!$B$76 -> 0 | B39: ='FX-350'!$D$76 -> 55000-820 Addressable Relay Module | D39: ='FX-350'!$R$76 -> 0 | E39: ='FX-350'!S76 -> 0
A40: ='FX-350'!$B$78 -> 0 | B40: ='FX-350'!$D$78 -> MS-401ID Addressable Manual Station | D40: ='FX-350'!$R$78 -> 0 | E40: ='FX-350'!S78 -> 0
A41: ='FX-350'!$B$80 -> 0 | B41: ='FX-350'!$D$80 -> MS-402ID Addressable Two Stage Manual Station | D41: ='FX-350'!$R$80 -> 0 | E41: ='FX-350'!S80 -> 0
A42: ='FX-350'!$B$82 -> 0 | B42: ='FX-350'!$D$82 -> MS-710ID Addressable Manual Station Dual Action Bilingual | D42: ='FX-350'!$R$82 -> 0 | E42: ='FX-350'!S82 -> 0
A43: ='FX-350'!$B$84 -> 0 | B43: ='FX-350'!$D$84 -> MS-710IDU Addressable Manual Station Dual Action | D43: ='FX-350'!$R$84 -> 0 | E43: ='FX-350'!S84 -> 0
A44: ='FX-350'!$B$86 -> 0 | B44: ='FX-350'!$D$86 -> MRTS-KAPR Remote Alarm LED, Key Operated Test/Reset | D44: ='FX-350'!$R$86 -> 0 | E44: ='FX-350'!S86 -> 0
A45: ='FX-350'!$B$88 -> 0 | B45: ='FX-350'!$D$88 -> MS-402ID Addressable Two Stage Manual Station | D45: ='FX-350'!$R$88 -> 0 | E45: ='FX-350'!S88 -> 0
A46: ='FX-350'!#REF! ->  | B46: ='FX-350'!#REF! ->  | D46: ='FX-350'!#REF! ->  | E46: ='FX-350'!#REF! -> 
A48: ='FX-350'!U98 -> 0 | B48: Auxillary Power
A49: ='FX-350'!B93 -> 0 | B49: ='FX-350'!D93 -> 0 | D49: ='FX-350'!R93 -> 0 | E49: ='FX-350'!S93 -> 0
A50: ='FX-350'!B95 -> 0 | B50: ='FX-350'!D95 -> 0 | D50: ='FX-350'!R95 -> 0 | E50: ='FX-350'!S95 -> 0
A51: ='FX-350'!B97 -> 0 | B51: ='FX-350'!D97 -> 0 | D51: ='FX-350'!R97 -> 0 | E51: ='FX-350'!S97 -> 0
A53: ='FX-350'!#REF! ->  | B53: Signals
A54: ='FX-350'!B101 -> 0 | B54: ='FX-350'!D101 -> 0 | D54: ='FX-350'!R101 -> 0 | E54: ='FX-350'!S101 -> 0
A55: ='FX-350'!B103 -> 0 | B55: ='FX-350'!D103 -> 0 | D55: ='FX-350'!R103 -> 0 | E55: ='FX-350'!S103 -> 0
A56: ='FX-350'!B105 -> 0 | B56: ='FX-350'!D105 -> 0 | D56: ='FX-350'!R105 -> 0 | E56: ='FX-350'!S105 -> 0
A57: ='FX-350'!B107 -> 0 | B57: ='FX-350'!D107 -> 0 | D57: ='FX-350'!R107 -> 0 | E57: ='FX-350'!S107 -> 0
A58: ='FX-350'!B109 -> 0 | B58: ='FX-350'!D109 -> 0 | D58: ='FX-350'!R109 -> 0 | E58: ='FX-350'!S109 -> 0
A59: ='FX-350'!B111 -> 0 | B59: ='FX-350'!D111 -> 0 | D59: ='FX-350'!R129 -> 0 | E59: ='FX-350'!S111 -> 0
A60: ='FX-350'!B113 -> 0 | B60: ='FX-350'!D113 -> 0 | E60: ='FX-350'!S113 -> 0
A61: ='FX-350'!B115 -> 0 | B61: ='FX-350'!D115 -> 0 | E61: ='FX-350'!S115 -> 0
A62: ='FX-350'!B117 -> 0 | B62: ='FX-350'!D117 -> 0 | E62: ='FX-350'!S117 -> 0
A63: ='FX-350'!B119 -> 0 | B63: ='FX-350'!D119 -> 0 | E63: ='FX-350'!S119 -> 0
A64: ='FX-350'!B121 -> 0 | B64: ='FX-350'!D121 -> 0 | E64: ='FX-350'!S121 -> 0
A65: ='FX-350'!B123 -> 0 | B65: ='FX-350'!D123 -> 0 | E65: ='FX-350'!S123 -> 0
A66: ='FX-350'!B125 -> 0 | B66: ='FX-350'!D125 -> 0 | E66: ='FX-350'!S125 -> 0
A67: ='FX-350'!B127 -> 0 | B67: ='FX-350'!D127 -> 0 | E67: ='FX-350'!S127 -> 0
A68: ='FX-350'!B129 -> 0 | B68: ='FX-350'!D129 -> 0 | E68: ='FX-350'!S129 -> 0
A70: ='FX-350'!#REF! ->  | B70: Additional Devices
A71: ='FX-350'!B144 -> 0 | B71: ='FX-350'!D144 -> 0 | D71: ='FX-350'!R144 -> 0 | E71: ='FX-350'!S144 -> 0
A72: ='FX-350'!B146 -> 0 | B72: ='FX-350'!D146 -> 0 | D72: ='FX-350'!R146 -> 0 | E72: ='FX-350'!S146 -> 0
A73: ='FX-350'!B148 -> 0 | B73: ='FX-350'!D148 -> 0 | D73: ='FX-350'!R148 -> 0 | E73: ='FX-350'!S148 -> 0
A74: ='FX-350'!B150 -> 0 | B74: ='FX-350'!D150 -> 0 | D74: ='FX-350'!R150 -> 0 | E74: ='FX-350'!S150 -> 0
A75: ='FX-350'!B152 -> 0 | B75: ='FX-350'!D152 -> 0 | D75: ='FX-350'!R152 -> 0 | E75: ='FX-350'!S152 -> 0
A76: ='FX-350'!B154 -> 0 | B76: ='FX-350'!D154 -> 0 | D76: ='FX-350'!R154 -> 0 | E76: ='FX-350'!S154 -> 0
A77: ='FX-350'!B156 -> 0 | B77: ='FX-350'!D156 -> 0 | D77: ='FX-350'!R156 -> 0 | E77: ='FX-350'!S156 -> 0
A78: ='FX-350'!B158 -> 0 | B78: ='FX-350'!D158 -> 0 | D78: ='FX-350'!R158 -> 0 | E78: ='FX-350'!S158 -> 0
A79: ='FX-350'!B160 -> 0 | B79: ='FX-350'!D160 -> 0 | D79: ='FX-350'!R160 -> 0 | E79: ='FX-350'!S160 -> 0
A80: ='FX-350'!B162 -> 0 | B80: ='FX-350'!D162 -> 0 | D80: ='FX-350'!R162 -> 0 | E80: ='FX-350'!S162 -> 0
C82: Total Standby Current in Amps | E82: ='FX-350'!S165 -> 0
A83: ='FX-350'!B167 -> 24 | B83: Number of Standby Hours | C83: Total Alarm Current in Amps | E83: ='FX-350'!S167 -> 0
A84: ='FX-350'!B169 -> 30 | B84: Alarm Period in Minutes
A85: ='FX-350'!B171 -> 1.25 | B85: Battery Derating | C85: Battery Capacity Requirement (Ah) | E85: ='FX-350'!S171 -> 0
A88: Mircom Technologies hereby disclaims all warranties relating to this software utility, whether expressed or implied, including without limitation any implied warranties of merchantability or fitness for a particular purpose. Mircom Technologies cannot and will not assume, accept or be liable for any special, incidental, consequential, indirect or similar claims, losses or damages for any reason whatsoever. Use of this Software Utility shall be deemed acceptance of these terms. It is the sole responsibility of the user to ascertain the accuracy and the reliability of any and all information generated or provided by this software utility and to ensure maximum current levels for control units have not been exceeded

Sheet FX-2000(2) (hidden)
C1: FX-2000 Battery Calculation Program
B3: Project: | C3: ='FX-2000'!J4 -> 0
B4: Line 2: | C4: ='FX-2000'!J6 -> 0
B5: Line 3: | C5: ='FX-2000'!J8 -> 0
B6: Prepared By: | C6: ='FX-2000'!J10 -> 0
D8: Total | E8: Total
A9: QTY | D9: Supv | E9: Alarm
B10: Panel Model | D10: Current | E10: Current
A11: 1 | B11: ='FX-2000'!$B$18 -> 1 | D11: ='FX-2000'!$R$18 -> 0 | E11: ='FX-2000'!$S$18 -> 0
A13: Column | B13: Column3 | C13: Column6 | D13: Column9 | E13: Column10
A14: ='FX-2000'!U40 -> 0 | B14: Panel Adder Modules
A15: ='FX-2000'!B23 -> 0 | B15: ='FX-2000'!D23 -> ALC-198S Analog Loop Module | D15: ='FX-2000'!R23 -> 0 | E15: ='FX-2000'!S23 -> 0
A16: ='FX-2000'!B25 -> 0 | B16: ='FX-2000'!D25 -> ALC-396S Dual Analog Loop Module | D16: ='FX-2000'!R25 -> 0 | E16: ='FX-2000'!S25 -> 0
A17: ='FX-2000'!B27 -> 0 | B17: ='FX-2000'!D27 -> ALC-H16 Hardwire Loop Module | D17: ='FX-2000'!R27 -> 0 | E17: ='FX-2000'!S27 -> 0
A18: ='FX-2000'!B29 -> 0 | B18: ='FX-2000'!D29 -> DM-1008A 8 Initiating Circuit Module with 4 zones active | D18: ='FX-2000'!R29 -> 0 | E18: ='FX-2000'!S29 -> 0
A19: ='FX-2000'!B31 -> 0 | B19: ='FX-2000'!D31 -> SGM-1004A 4 Indicating Circuit Module (Unloaded) | D19: ='FX-2000'!R31 -> 0 | E19: ='FX-2000'!S31 -> 0
A20: ='FX-2000'!B35 -> 0 | B20: ='FX-2000'!D35 -> RM-1008A 8 Relay Circuit Module | D20: ='FX-2000'!R35 -> 0 | E20: ='FX-2000'!S35 -> 0
A21: ='FX-2000'!B37 -> 0 | B21: ='FX-2000'!D37 -> UDACT-300A Dialer Module | D21: ='FX-2000'!R37 -> 0 | E21: ='FX-2000'!S37 -> 0
A22: ='FX-2000'!B39 -> 0 | B22: ='FX-2000'!D39 -> PR-300 Polarity Reversal & City Tie Module | D22: ='FX-2000'!R39 -> 0 | E22: ='FX-2000'!S39 -> 0
A23: ='FX-2000'!U66 -> 0 | B23: Remote Annunicators and Shared Display Modules
A24: ='FX-2000'!B43 -> 0 | B24: ='FX-2000'!D43 -> RAX-LCD Remote LCD Annunciator | D24: ='FX-2000'!R43 -> 0 | E24: ='FX-2000'!S43 -> 0
A25: ='FX-2000'!B45 -> 0 | B25: ='FX-2000'!D45 -> RAM-1016TZDS Main Remote Annunciator w/16 Zones Active | D25: ='FX-2000'!R45 -> 0 | E25: ='FX-2000'!S45 -> 0
A26: ='FX-2000'!B47 -> 0 | B26: ='FX-2000'!D47 -> RAM-1032TZDS Main Remote Annunciator w/ 32 Zones Active | D26: ='FX-2000'!R47 -> 0 | E26: ='FX-2000'!S47 -> 0
A27: ='FX-2000'!B49 -> 0 | B27: ='FX-2000'!D49 -> RAX-1048TZDS 48 Zone & Trouble LED Adder w/ 4 Zones Active | D27: ='FX-2000'!R49 -> 0 | E27: ='FX-2000'!S49 -> 0
A28: ='FX-2000'!B53 -> 0 | B28: ='FX-2000'!D53 -> IPS-4848DS 48 Programmable Input Switches Module | D28: ='FX-2000'!R53 -> 0 | E28: ='FX-2000'!S53 -> 0
A29: ='FX-2000'!B55 -> 0 | B29: ='FX-2000'!D55 -> FDX-008 / FDX-008KI HOA/Fan Damper Control Module | D29: ='FX-2000'!R55 -> 0 | E29: ='FX-2000'!S55 -> 0
A30: ='FX-2000'!B59 -> 0 | B30: ='FX-2000'!$D$59 -> RTI-1 Remote Trouble Indicators | D30: ='FX-2000'!$R$59 -> 0 | E30: ='FX-2000'!$S$59 -> 0
A31: ='FX-2000'!B63 -> 0 | B31: ='FX-2000'!$D$63 -> MGD-32 Master Graphic Board w/ 3 LEDS Active | D31: ='FX-2000'!$R$63 -> 0 | E31: ='FX-2000'!$S$63 -> 0
A32: ='FX-2000'!B65 -> 0 | B32: ='FX-2000'!$D$65 -> AGD-048 Adder Graphic Board w/ 3 LEDS Active | D32: ='FX-2000'!$R$65 -> 0 | E32: ='FX-2000'!$S$65 -> 0
A33: ='FX-2000'!U128 -> 0 | B33: Addressable Devices
A34: ='FX-2000'!B83 -> 0 | B34: ='FX-2000'!D83 -> MIX-2251AP (CLIP mode) Addressable Photo Sensors | D34: ='FX-2000'!R83 -> 0 | E34: ='FX-2000'!S83 -> 0
A35: ='FX-2000'!B85 -> 0 | B35: ='FX-2000'!D85 -> MIX-2251TAP (CLIP mode) Addressable Photo/Thermal Sensors | D35: ='FX-2000'!R85 -> 0 | E35: ='FX-2000'!S85 -> 0
A36: ='FX-2000'!B87 -> 0 | B36: ='FX-2000'!D87 -> MIX-5251AP (CLIP mode) Addressable Thermal Sensors | D36: ='FX-2000'!R87 -> 0 | E36: ='FX-2000'!S87 -> 0
A37: ='FX-2000'!B91 -> 0 | B37: ='FX-2000'!D91 -> 7251 Addressable Laser Detector | D37: ='FX-2000'!R91 -> 0 | E37: ='FX-2000'!S91 -> 0
A38: ='FX-2000'!#REF! ->  | B38: ='FX-2000'!#REF! ->  | D38: ='FX-2000'!#REF! ->  | E38: ='FX-2000'!#REF! -> 
A39: ='FX-2000'!B93 -> 0 | B39: ='FX-2000'!D93 -> B224RB Addressable Base c/w Aux Relay | D39: ='FX-2000'!R93 -> 0 | E39: ='FX-2000'!S93 -> 0
A40: ='FX-2000'!B95 -> 0 | B40: ='FX-2000'!D95 -> B224BI Addressable Base c/w Isolator | D40: ='FX-2000'!R95 -> 0 | E40: ='FX-2000'!S95 -> 0
A41: ='FX-2000'!B97 -> 0 | B41: ='FX-2000'!D97 -> B200SR Addressable Sounder Base | D41: ='FX-2000'!R97 -> 0 | E41: ='FX-2000'!S97 -> 0
A42: ='FX-2000'!#REF! ->  | B42: ='FX-2000'!#REF! ->  | D42: ='FX-2000'!#REF! ->  | E42: ='FX-2000'!#REF! -> 
A43: ='FX-2000'!B99 -> 0 | B43: ='FX-2000'!D99 -> BEAM200 Series Addressable Beam Detectors | D43: ='FX-2000'!R99 -> 0 | E43: ='FX-2000'!S99 -> 0
A44: ='FX-2000'!B107 -> 0 | B44: ='FX-2000'!D107 -> DNR Duct Detector Housing w/2251 Smoke Head (CLIP mode) | D44: ='FX-2000'!R107 -> 0 | E44: ='FX-2000'!S107 -> 0
A45: ='FX-2000'!B111 -> 0 | B45: ='FX-2000'!D111 -> MIX-M500MAP (CLIP mode) Intelligent Monitor Module | D45: ='FX-2000'!R111 -> 0 | E45: ='FX-2000'!S111 -> 0
A46: ='FX-2000'!B113 -> 0 | B46: ='FX-2000'!D113 -> MIX-M500DMAP (CLIP mode) Intelligent Dual Input Monitor Module | D46: ='FX-2000'!R113 -> 0 | E46: ='FX-2000'!S113 -> 0
A47: ='FX-2000'!B115 -> 0 | B47: ='FX-2000'!D115 -> MIX-M501MAP (CLIP mode) Intelligent Monitor Mini Module | D47: ='FX-2000'!R115 -> 0 | E47: ='FX-2000'!S115 -> 0
A48: ='FX-2000'!B117 -> 0 | B48: ='FX-2000'!D117 -> MIX-M502MAP (CLIP mode) Universal Intelligent Monitor Module | D48: ='FX-2000'!R117 -> 0 | E48: ='FX-2000'!S117 -> 0
A49: ='FX-2000'!B119 -> 0 | B49: ='FX-2000'!D119 -> MIX-M500RAP (CLIP mode) Intelligent Relay Module | D49: ='FX-2000'!R119 -> 0 | E49: ='FX-2000'!S119 -> 0
A50: ='FX-2000'!B121 -> 0 | B50: ='FX-2000'!D121 -> MIX-M500SAP (CLIP mode) Intelligent Supervised Output Module | D50: ='FX-2000'!R121 -> 0 | E50: ='FX-2000'!S121 -> 0
A51: ='FX-2000'!B123 -> 0 | B51: ='FX-2000'!D123 -> M500X Line Isolator Module | D51: ='FX-2000'!R123 -> 0 | E51: ='FX-2000'!S123 -> 0
A52: ='FX-2000'!B125 -> 0 | B52: ='FX-2000'!D125 -> IM-10 CLIP Ten Input Addressable Module | D52: ='FX-2000'!R125 -> 0 | E52: ='FX-2000'!S125 -> 0
A53: ='FX-2000'!B127 -> 0 | B53: ='FX-2000'!D127 -> CR-6 CLIP Six Addressable Relay Control Module | D53: ='FX-2000'!R127 -> 0 | E53: ='FX-2000'!S127 -> 0
A54: ='FX-2000'!U162 -> 0 | B54: Conventional 2 Wire Detectors
A55: ='FX-2000'!B147 -> 0 | B55: ='FX-2000'!$D$147 -> 2W/C2W i3 Series Photoelectric Smoke Detectors | D55: ='FX-2000'!$R$147 -> 0 | E55: ='FX-2000'!$S$147 -> 0
A56: ='FX-2000'!B149 -> 0 | B56: ='FX-2000'!$D$149 -> 2W/C2W i3 Series Photo/Thermal Detectors | D56: ='FX-2000'!$R$149 -> 0 | E56: ='FX-2000'!$S$149 -> 0
A57: ='FX-2000'!B151 -> 0 | B57: ='FX-2000'!$D$151 -> 2W/C2W i3 Series Detectors w/Sounder Base | D57: ='FX-2000'!$R$151 -> 0 | E57: ='FX-2000'!$S$151 -> 0
A58: ='FX-2000'!B153 -> 0 | B58: ='FX-2000'!$D$153 -> 2W/C2W i3 Series Detectors w/Sounder Base & Relay | D58: ='FX-2000'!$R$153 -> 0 | E58: ='FX-2000'!$S$153 -> 0
A59: ='FX-2000'!B155 -> 0 | B59: ='FX-2000'!$D$155 -> 2151(A) Photoelectric Smoke Detector | D59: ='FX-2000'!$R$155 -> 0 | E59: ='FX-2000'!$S$155 -> 0
A60: ='FX-2000'!B157 -> 0 | B60: ='FX-2000'!$D$157 -> C2W-MOD2A LoopTest Maintenance Module | D60: ='FX-2000'!$R$157 -> 0 | E60: ='FX-2000'!$S$157 -> 0
A61: ='FX-2000'!B159 -> 0 | B61: ='FX-2000'!$D$159 -> D2(A) Photoelectric Duct Detector | D61: ='FX-2000'!$R$159 -> 0 | E61: ='FX-2000'!$S$159 -> 0
A62: ='FX-2000'!#REF! ->  | B62: ='FX-2000'!#REF! ->  | D62: ='FX-2000'!#REF! ->  | E62: ='FX-2000'!#REF! -> 
A63: ='FX-2000'!#REF! ->  | B63: Conventional 4 Wire Detectors
A64: ='FX-2000'!$B$165 -> 0 | B64: ='FX-2000'!$D$165 -> 4W/C4W i3 Series Photoelectric Smoke Detectors | D64: ='FX-2000'!$R$165 -> 0 | E64: ='FX-2000'!$S$165 -> 0
A65: ='FX-2000'!$B$167 -> 0 | B65: ='FX-2000'!$D$167 -> 4W/C4W i3 Series Photo/Thermal Detectors | D65: ='FX-2000'!$R$167 -> 0 | E65: ='FX-2000'!$S$167 -> 0
A66: ='FX-2000'!$B$169 -> 0 | B66: ='FX-2000'!$D$169 -> 4W/C4W i3 Series Detectors w/Sounder Base | D66: ='FX-2000'!$R$169 -> 0 | E66: ='FX-2000'!$S$169 -> 0
A67: ='FX-2000'!$B$171 -> 0 | B67: ='FX-2000'!$D$171 -> 4W/C4W i3 Series Detectors w/Sounder Base & Relay | D67: ='FX-2000'!$R$171 -> 0 | E67: ='FX-2000'!$S$171 -> 0
A68: ='FX-2000'!$B$173 -> 0 | B68: ='FX-2000'!$D$173 -> CO1224(A) Carbon Monoxide Detector | D68: ='FX-2000'!$R$173 -> 0 | E68: ='FX-2000'!$S$173 -> 0
A69: ='FX-2000'!$B$175 -> 0 | B69: ='FX-2000'!$D$175 -> CRRS-MODA Reversing Relay | D69: ='FX-2000'!$R$175 -> 0 | E69: ='FX-2000'!$S$175 -> 0
A70: ='FX-2000'!$B$177 -> 0 | B70: ='FX-2000'!$D$177 -> B401BHA Sounder Base for 1451A or 2451A | D70: ='FX-2000'!$R$177 -> 0 | E70: ='FX-2000'!$S$177 -> 0
A71: ='FX-2000'!$B$181 -> 0 | B71: ='FX-2000'!$D$181 -> BEAM1224(A) Series Beam Detectors | D71: ='FX-2000'!$R$181 -> 0 | E71: ='FX-2000'!$S$181 -> 0
A72: ='FX-2000'!$B$183 -> 0 | B72: ='FX-2000'!$D$183 -> D4120(A) Photoelectric Duct Detector w/ Relay, 120VAC | D72: ='FX-2000'!$R$183 -> 0 | E72: ='FX-2000'!$S$183 -> 0
A73: ='FX-2000'!$B$185 -> 0 | B73: ='FX-2000'!$D$185 -> D4120(A) Photoelectric Duct Detector w/ Relay, 24VAC | D73: ='FX-2000'!$R$185 -> 0 | E73: ='FX-2000'!$S$185 -> 0
A74: ='FX-2000'!U195 -> 0 | B74: Auxillary Power
A75: ='FX-2000'!$B$190 -> 0 | B75: ='FX-2000'!D190 -> 0 | D75: ='FX-2000'!R190 -> 0 | E75: ='FX-2000'!S190 -> 0
A76: ='FX-2000'!$B$192 -> 0 | B76: ='FX-2000'!D192 -> 0 | D76: ='FX-2000'!R192 -> 0 | E76: ='FX-2000'!S192 -> 0
A77: ='FX-2000'!$B$194 -> 0 | B77: ='FX-2000'!D194 -> 0 | D77: ='FX-2000'!R194 -> 0 | E77: ='FX-2000'!S194 -> 0
A78: ='FX-2000'!#REF! ->  | B78: Signals
A79: ='FX-2000'!B198 -> 0 | B79: ='FX-2000'!D198 -> 0 | D79: ='FX-2000'!R198 -> 0 | E79: ='FX-2000'!S198 -> 0
A80: ='FX-2000'!B200 -> 0 | B80: ='FX-2000'!D200 -> 0 | D80: ='FX-2000'!R200 -> 0 | E80: ='FX-2000'!S200 -> 0
A81: ='FX-2000'!B202 -> 0 | B81: ='FX-2000'!D202 -> 0 | D81: ='FX-2000'!R202 -> 0 | E81: ='FX-2000'!S202 -> 0
A82: ='FX-2000'!B204 -> 0 | B82: ='FX-2000'!D204 -> 0 | D82: ='FX-2000'!R204 -> 0 | E82: ='FX-2000'!S204 -> 0
A83: ='FX-2000'!B206 -> 0 | B83: ='FX-2000'!D206 -> 0 | D83: ='FX-2000'!R206 -> 0 | E83: ='FX-2000'!S206 -> 0
A84: ='FX-2000'!B208 -> 0 | B84: ='FX-2000'!D208 -> 0 | D84: ='FX-2000'!R208 -> 0 | E84: ='FX-2000'!S208 -> 0
A85: ='FX-2000'!B210 -> 0 | B85: ='FX-2000'!D210 -> 0 | D85: ='FX-2000'!R210 -> 0 | E85: ='FX-2000'!S210 -> 0
A86: ='FX-2000'!B212 -> 0 | B86: ='FX-2000'!D212 -> 0 | D86: ='FX-2000'!R212 -> 0 | E86: ='FX-2000'!S212 -> 0
A87: ='FX-2000'!B214 -> 0 | B87: ='FX-2000'!D214 -> 0 | D87: ='FX-2000'!R214 -> 0 | E87: ='FX-2000'!S214 -> 0
A88: ='FX-2000'!B216 -> 0 | B88: ='FX-2000'!D216 -> 0 | D88: ='FX-2000'!R216 -> 0 | E88: ='FX-2000'!S216 -> 0
A89: ='FX-2000'!B218 -> 0 | B89: ='FX-2000'!D218 -> 0 | D89: ='FX-2000'!R218 -> 0 | E89: ='FX-2000'!S218 -> 0
A90: ='FX-2000'!B220 -> 0 | B90: ='FX-2000'!D220 -> 0 | D90: ='FX-2000'!R220 -> 0 | E90: ='FX-2000'!S220 -> 0
A91: ='FX-2000'!B222 -> 0 | B91: ='FX-2000'!D222 -> 0 | D91: ='FX-2000'!R222 -> 0 | E91: ='FX-2000'!S222 -> 0
A92: ='FX-2000'!B224 -> 0 | B92: ='FX-2000'!D224 -> 0 | D92: ='FX-2000'!R224 -> 0 | E92: ='FX-2000'!S224 -> 0
A93: ='FX-2000'!B226 -> 0 | B93: ='FX-2000'!D226 -> 0 | D93: ='FX-2000'!R226 -> 0 | E93: ='FX-2000'!S226 -> 0
A94: ='FX-2000'!B228 -> 0 | B94: ='FX-2000'!D228 -> 0 | D94: ='FX-2000'!R228 -> 0 | E94: ='FX-2000'!S228 -> 0
A95: ='FX-2000'!B230 -> 0 | B95: ='FX-2000'!D230 -> 0 | D95: ='FX-2000'!R230 -> 0 | E95: ='FX-2000'!S230 -> 0
A96: ='FX-2000'!B232 -> 0 | B96: ='FX-2000'!D232 -> 0 | D96: ='FX-2000'!R232 -> 0 | E96: ='FX-2000'!S232 -> 0
A97: ='FX-2000'!B234 -> 0 | B97: ='FX-2000'!D234 -> 0 | D97: ='FX-2000'!R234 -> 0 | E97: ='FX-2000'!S234 -> 0
A98: ='FX-2000'!B236 -> 0 | B98: ='FX-2000'!D236 -> 0 | D98: ='FX-2000'!R236 -> 0 | E98: ='FX-2000'!S236 -> 0
A99: ='FX-2000'!U271 -> 0 | B99: Additional Devices
A100: ='FX-2000'!B252 -> 0 | B100: ='FX-2000'!D252 -> 0 | D100: ='FX-2000'!R252 -> 0 | E100: ='FX-2000'!S252 -> 0
A101: ='FX-2000'!B254 -> 0 | B101: ='FX-2000'!D254 -> 0 | D101: ='FX-2000'!R254 -> 0 | E101: ='FX-2000'!S254 -> 0
A102: ='FX-2000'!B256 -> 0 | B102: ='FX-2000'!D256 -> 0 | D102: ='FX-2000'!R256 -> 0 | E102: ='FX-2000'!S256 -> 0
A103: ='FX-2000'!B258 -> 0 | B103: ='FX-2000'!D258 -> 0 | D103: ='FX-2000'!R258 -> 0 | E103: ='FX-2000'!S258 -> 0
A104: ='FX-2000'!B260 -> 0 | B104: ='FX-2000'!D260 -> 0 | D104: ='FX-2000'!R260 -> 0 | E104: ='FX-2000'!S260 -> 0
A105: ='FX-2000'!B262 -> 0 | B105: ='FX-2000'!D262 -> 0 | D105: ='FX-2000'!R262 -> 0 | E105: ='FX-2000'!S262 -> 0
A106: ='FX-2000'!B264 -> 0 | B106: ='FX-2000'!D264 -> 0 | D106: ='FX-2000'!R264 -> 0 | E106: ='FX-2000'!S264 -> 0
A107: ='FX-2000'!B266 -> 0 | B107: ='FX-2000'!D266 -> 0 | D107: ='FX-2000'!R266 -> 0 | E107: ='FX-2000'!S266 -> 0
A108: ='FX-2000'!B268 -> 0 | B108: ='FX-2000'!D268 -> 0 | D108: ='FX-2000'!R268 -> 0 | E108: ='FX-2000'!S268 -> 0
A109: ='FX-2000'!B270 -> 0 | B109: ='FX-2000'!D270 -> 0 | D109: ='FX-2000'!R270 -> 0 | E109: ='FX-2000'!S270 -> 0
C111: Total Standby Current in Amps | E111: ='FX-2000'!S273 -> 0
A112: ='FX-2000'!B275 -> 24 | B112: Number of Standby Hours | C112: Total Alarm Current in Amps | E112: ='FX-2000'!S275 -> 0
A113: ='FX-2000'!B277 -> 30 | B113: Alarm Period in Minutes
A114: ='FX-2000'!B279 -> 1.25 | B114: Battery Derating | C114: Battery Capacity Requirement (Ah) | E114: ='FX-2000'!S279 -> 0
A116: Mircom Technologies hereby disclaims all warranties relating to this software utility, whether expressed or implied, including without limitation any implied warranties of merchantability or fitness for a particular purpose. Mircom Technologies cannot and will not assume, accept or be liable for any special, incidental, consequential, indirect or similar claims, losses or damages for any reason whatsoever. Use of this Software Utility shall be deemed acceptance of these terms. It is the sole responsibility of the user to ascertain the accuracy and the reliability of any and all information generated or provided by this software utility and to ensure maximum current levels for control units have not been exceeded

Sheet FX-2000 (hidden)
F2: FX-2000 Battery Calculation Program
B4: PROJECT NAME: | E4: =Menu!X2 -> 0
B6: ADDRESS: | E6: =Menu!X4 -> 0
B8: COMPANY NAME: | E8: =Menu!X15 -> 0
B10: PREPARED BY: | E10: =Menu!X17 -> 0
N11: =Menu!H21 -> 0
D12: Important: Enter Quantities then press enter, tab, or click another cell to update calculator
B13: 1
R14: All Current in Amps
B15: 1 | R15: Standby | S15: Alarm
B16: 1 | D16: Panel Model | R16: Current | S16: Current
B18: 1 | D18: =VLOOKUP(U18,NAC!G5:J12,2) -> 0 | N18: =VLOOKUP(U18,NAC!G5:J12,3) -> 0 | P18: =VLOOKUP(U18,NAC!G5:J12,4) -> 0 | R18: =N18 -> 0 | S18: =P18 -> 0 | U18: 1 | V18: =VLOOKUP(U18,NAC!G6:K13,5) -> 
D19: =IF(OR(Z287=1),"* Comes With One (1) Onboard SLC/DCL (Expandable to 5), Four (4) NACs, 1.7A Each, 5.0A Total, Max.18 AH Batteries in Cabinet",IF(OR(Z287=2),"* Comes With One (1) Onboard SLC/DCL (Expandable to 5), Four (4) NACs, 1.7A Each, 10.0A Total, Max.18 AH Batteries in Cabinet",IF(OR(R18=0.2300004),"* NO ONBOARD SLC/DCL. Loop Controller(s) Required (Expandable to 30), Does Not Support Any Hardwired Modules, Four (4) NACs, 1.7A Each, 10.0A Total, Max.42 AH Batteries in Cabinet",IF(OR(Z287=3),"* Comes With One (1) Onboard SLC/DCL (Expandable to 5), Four (4) NACs, 1.7A Each, 10.0A Total, Max.42 AH Batteries in Cabinet","")))) ->  | V19: =VLOOKUP(U18,NAC!G6:M13,7) -> 
B20: QTY
B21: =COUNTIF(B23:B39,">0")*{1} -> 0 | D21: Panel Adder Modules | V21: =VLOOKUP(U18,NAC!G6:L13,6) -> 
D22: * Maximum One (1) UDACT or PR-300 per Panel
D23: =VLOOKUP(U23,NAC!G15:J23,2) -> ALC-198S Analog Loop Module | N23: =VLOOKUP(U23,NAC!G15:J23,3) -> 0.05 | P23: =VLOOKUP(U23,NAC!G15:J23,4) -> 0.06 | R23: =B23*N23 -> 0 | S23: =B23*P23 -> 0 | U23: 2 | V23: =B23+B25+B27+B29+B31+B35+B37+B39 -> 0
D25: =VLOOKUP(U25,NAC!G15:J23,2) -> ALC-396S Dual Analog Loop Module | N25: =VLOOKUP(U25,NAC!G15:J23,3) -> 0.05 | P25: =VLOOKUP(U25,NAC!G15:J23,4) -> 0.06 | R25: =B25*N25 -> 0 | S25: =B25*P25 -> 0 | U25: 3
D27: =VLOOKUP(U27,NAC!G15:J23,2) -> ALC-H16 Hardwire Loop Module | N27: =VLOOKUP(U27,NAC!G15:J23,3) -> 0.035 | P27: =VLOOKUP(U27,NAC!G15:J23,4) -> 0.05 | R27: =B27*N27 -> 0 | S27: =B27*P27 -> 0 | U27: 4
D29: =VLOOKUP(U29,NAC!G15:J23,2) -> DM-1008A 8 Initiating Circuit Module with 4 zones active | N29: =VLOOKUP(U29,NAC!G15:J23,3) -> 0.08 | P29: =VLOOKUP(U29,NAC!G15:J23,4) -> 0.275 | R29: =B29*N29 -> 0 | S29: =B29*P29 -> 0 | U29: 5
B31: 0 | D31: =VLOOKUP(U31,NAC!G15:J23,2) -> SGM-1004A 4 Indicating Circuit Module (Unloaded) | N31: =VLOOKUP(U31,NAC!G15:J23,3) -> 0.035 | P31: =VLOOKUP(U31,NAC!G15:J23,4) -> 0.15 | R31: =B31*N31 -> 0 | S31: =B31*P31 -> 0 | U31: 6
B33: 0 | D33: SGM1004S 4 Indicating Circuit Module w/Built-In Synchronization (Unloaded) | N33: 0.031 | P33: 0.096 | R33: =B33*N33 -> 0 | S33: =B33*P33 -> 0
D35: =VLOOKUP(U35,NAC!G15:J23,2) -> RM-1008A 8 Relay Circuit Module | N35: =VLOOKUP(U35,NAC!G15:J23,3) -> 0.025 | P35: =VLOOKUP(U35,NAC!G15:J23,4) -> 0.15 | R35: =B35*N35 -> 0 | S35: =B35*P35 -> 0 | U35: 7
D37: =VLOOKUP(U37,NAC!G15:J23,2) -> UDACT-300A Dialer Module | N37: =VLOOKUP(U37,NAC!G15:J23,3) -> 0.045 | P37: =VLOOKUP(U37,NAC!G15:J23,4) -> 0.12 | R37: =B37*N37 -> 0 | S37: =B37*P37 -> 0 | U37: 8
D39: =VLOOKUP(U39,NAC!G15:J23,2) -> PR-300 Polarity Reversal & City Tie Module | N39: =VLOOKUP(U39,NAC!G15:J23,3) -> 0.035 | P39: =VLOOKUP(U39,NAC!G15:J23,4) -> 0.3 | R39: =B39*N39 -> 0 | S39: =B39*P39 -> 0 | U39: 9
B40: =COUNTIF(B43:B65,">0")*{1} -> 0
B41: =COUNTIF(B43:B65,">0")*{1} -> 0 | D41: Remote Annunciators and Shared Display Modules
D42: =IF(OR(Z287=1),"* Annunciator Maximums: Four (4) RAX-LCD, Four (4) RAM-1016TZDS, RAM-1032TZDS or MGD-32",IF(OR(Z287=2),"* Annunciator Maximums: Four (4) RAX-LCD, Four (4) RAM-1016TZDS, RAM-1032TZDS or MGD-32",IF(OR(R18=0.2300004),"* Annunciator Maximums: Twenty Four (24) RAX-LCD, Four (4) RAM-1016TZDS, RAM-1032TZDS or MGD-32",IF(OR(Z287=3),"* Annunciator Maximums: Four (4) RAX-LCD, Four (4) RAM-1016TZDS, RAM-1032TZDS or MGD-32","")))) -> 
D43: =VLOOKUP(U43,NAC!G27:J43,2) -> RAX-LCD Remote LCD Annunciator | N43: =VLOOKUP(U43,NAC!G27:J43,3) -> 0.1 | P43: =VLOOKUP(U43,NAC!G27:J43,4) -> 0.15 | R43: =B43*N43 -> 0 | S43: =B43*P43 -> 0 | U43: 4
D45: =VLOOKUP(U45,NAC!G27:J43,2) -> RAM-1016TZDS Main Remote Annunciator w/16 Zones Active | N45: =VLOOKUP(U45,NAC!G27:J43,3) -> 0.05 | P45: =VLOOKUP(U45,NAC!G27:J43,4) -> 0.3 | R45: =B45*N45 -> 0 | S45: =B45*P45 -> 0 | U45: 2 | V45: =B45*T45 -> 0
D47: =VLOOKUP(U47,NAC!G27:J43,2) -> RAM-1032TZDS Main Remote Annunciator w/ 32 Zones Active | N47: =VLOOKUP(U47,NAC!G27:J43,3) -> 0.05 | P47: =VLOOKUP(U47,NAC!G27:J43,4) -> 0.3 | R47: =B47*N47 -> 0 | S47: =B47*P47 -> 0 | U47: 3 | V47: =B47*T47 -> 0
D49: =VLOOKUP(U49,NAC!G27:J43,2) -> RAX-1048TZDS 48 Zone & Trouble LED Adder w/ 4 Zones Active | N49: =VLOOKUP(U49,NAC!G27:J43,3) -> 0.022 | P49: =VLOOKUP(U49,NAC!G27:J43,4) -> 0.039 | R49: =B49*N49 -> 0 | S49: =B49*P49 -> 0 | U49: 5 | V49: =B49*T49 -> 0
D51: =VLOOKUP(U51,NAC!G27:J43,2) -> IPS-2424DS 24 Programmable Input Switches Module | N51: =VLOOKUP(U51,NAC!G27:J43,3) -> 0.005 | P51: =VLOOKUP(U51,NAC!G27:J43,4) -> 0.022 | R51: =B51*N51 -> 0 | S51: =B51*P51 -> 0 | U51: 6
D53: =VLOOKUP(U53,NAC!G27:J43,2) -> IPS-4848DS 48 Programmable Input Switches Module | N53: =VLOOKUP(U53,NAC!G27:J43,3) -> 0.01 | P53: =VLOOKUP(U53,NAC!G27:J43,4) -> 0.022 | R53: =B53*N53 -> 0 | S53: =B53*P53 -> 0 | U53: 14 | V53: =B53*T53 -> 0
D55: =VLOOKUP(U55,NAC!G27:J43,2) -> FDX-008 / FDX-008KI HOA/Fan Damper Control Module | N55: =VLOOKUP(U55,NAC!G27:J43,3) -> 0.015 | P55: =VLOOKUP(U55,NAC!G27:J43,4) -> 0.035 | R55: =B55*N55 -> 0 | S55: =B55*P55 -> 0 | U55: 7 | V55: =B55*T55 -> 0
D57: =VLOOKUP(U57,NAC!G27:J43,2) -> FDX-008W / FDX-008WKI HOA/Fan Damper w/White Normal Light | N57: =VLOOKUP(U57,NAC!G27:J43,3) -> 0.015 | P57: =VLOOKUP(U57,NAC!G27:J43,4) -> 0.035 | R57: =B57*N57 -> 0 | S57: =B57*P57 -> 0 | U57: 13
D59: =VLOOKUP(U59,NAC!G27:J43,2) -> RTI-1 Remote Trouble Indicators | N59: =VLOOKUP(U59,NAC!G27:J43,3) -> 0.035 | P59: =VLOOKUP(U59,NAC!G27:J43,4) -> 0.035 | R59: =B59*N59 -> 0 | S59: =B59*P59 -> 0 | U59: 10
D61: =VLOOKUP(U61,NAC!G27:J43,2) -> FDG-008 Fan Damper Graphics Control | N61: =VLOOKUP(U61,NAC!G27:J43,3) -> 0.015 | P61: =VLOOKUP(U61,NAC!G27:J43,4) -> 0.035 | R61: =B61*N61 -> 0 | S61: =B61*P61 -> 0 | U61: 12
D63: =VLOOKUP(U63,NAC!G27:J43,2) -> MGD-32 Master Graphic Board w/ 3 LEDS Active | N63: =VLOOKUP(U63,NAC!G27:J43,3) -> 0.035 | P63: =VLOOKUP(U63,NAC!G27:J43,4) -> 0.047 | R63: =B63*N63 -> 0 | S63: =B63*0.004 -> 0 | U63: 9 | V63: =B63*T63 -> 0
D65: =VLOOKUP(U65,NAC!G27:J43,2) -> AGD-048 Adder Graphic Board w/ 3 LEDS Active | N65: =VLOOKUP(U65,NAC!G27:J43,3) -> 0.035 | P65: =VLOOKUP(U65,NAC!G27:J43,4) -> 0.047 | R65: =B65*N65 -> 0 | S65: =B65*0.004 -> 0 | U65: 8 | V65: =B65*T65 -> 0
B66: =COUNTIF(B69:B143,">0")*{1} -> 0
B67: =COUNTIF(B69:B143,">0")*{1} -> 0 | D67: Intelligent Sensors & Modules
D68: *Protocol Maximums: 99 CLIP Sensors and 99 CLIP Modules per Addressable Loop
D69: MIX-2351AP (CLIP mode) Select Series Addressable Photo Sensor | N69: 0.0002 | P69: 0.0002 | R69: =B69*N69 -> 0 | S69: =B69*P69 -> 0
D71: MIX-2351RAP (CLIP mode) Select Series Add. Photo Sensor w/ Test Switch for Duct | N71: 0.0002 | P71: 0.0002 | R71: =B71*N71 -> 0 | S71: =B71*P71 -> 0
D73: MIX-2351TAP (CLIP mode) Select Series Addressable Photo/Themal Sensor | N73: 0.0002 | P73: 0.0002 | R73: =B73*N73 -> 0 | S73: =B73*P73 -> 0
D75: MIX-2351TIRAP (CLIP mode) Select Series Add. Adv. Multi-Criteria Sensor | N75: 0.0002 | P75: 0.0002 | R75: =B75*N75 -> 0 | S75: =B75*P75 -> 0
D77: MIX-5351AP (CLIP mode) Select Series Addressable Heat Sensor 135 Deg.FT | N77: 0.0002 | P77: 0.0002 | R77: =B77*N77 -> 0 | S77: =B77*P77 -> 0
D79: MIX-5351RAP (CLIP mode) Select Series Add. Heat Sensor 135 Deg. FT/RR | N79: 0.0002 | P79: 0.0002 | R79: =B79*N79 -> 0 | S79: =B79*P79 -> 0
D81: MIX-5351HAP (CLIP mode) Select Series Add. Heat Sensor 190 Deg. FT | N81: 0.0002 | P81: 0.0002 | R81: =B81*N81 -> 0 | S81: =B81*P81 -> 0
D83: =VLOOKUP(U83,NAC!G116:J151,2) -> MIX-2251AP (CLIP mode) Addressable Photo Sensors | N83: =VLOOKUP(U83,NAC!G116:J151,3) -> 0.0003 | P83: =VLOOKUP(U83,NAC!G116:J151,4) -> 0.0003 | R83: =B83*N83 -> 0 | S83: =B83*P83 -> 0 | U83: 3
D85: =VLOOKUP(U85,NAC!G116:J151,2) -> MIX-2251TAP (CLIP mode) Addressable Photo/Thermal Sensors | N85: =VLOOKUP(U85,NAC!G116:J151,3) -> 0.0003 | P85: =VLOOKUP(U85,NAC!G116:J151,4) -> 0.0003 | R85: =B85*N85 -> 0 | S85: =B85*P85 -> 0 | U85: 4
D87: =VLOOKUP(U87,NAC!G116:J151,2) -> MIX-5251AP (CLIP mode) Addressable Thermal Sensors | N87: =VLOOKUP(U87,NAC!G116:J151,3) -> 0.0003 | P87: =VLOOKUP(U87,NAC!G116:J151,4) -> 0.0003 | R87: =B87*N87 -> 0 | S87: =B87*P87 -> 0 | U87: 5
D89: 7351 Select Series High Sensitivity Photoelectric Smoke Detector | N89: 0.0004 | P89: 0.0004 | R89: =B89*N89 -> 0 | S89: =B89*P89 -> 0
D91: =VLOOKUP(U91,NAC!G116:J151,2) -> 7251 Addressable Laser Detector | N91: =VLOOKUP(U91,NAC!G116:J151,3) -> 0.00033 | P91: =VLOOKUP(U91,NAC!G116:J151,4) -> 0.00033 | R91: =B91*N91 -> 0 | S91: =B91*P91 -> 0 | U91: 2
D93: =VLOOKUP(U93,NAC!G116:J151,2) -> B224RB Addressable Base c/w Aux Relay | N93: =VLOOKUP(U93,NAC!G116:J151,3) -> 0.00017 | P93: =VLOOKUP(U93,NAC!G116:J151,4) -> 0.00017 | R93: =B93*N93 -> 0 | S93: =B93*P93 -> 0 | U93: 7
D95: =VLOOKUP(U95,NAC!G116:J151,2) -> B224BI Addressable Base c/w Isolator | N95: =VLOOKUP(U95,NAC!G116:J151,3) -> 0.00045 | P95: =VLOOKUP(U95,NAC!G116:J151,4) -> 0.00045 | R95: =B95*N95 -> 0 | S95: =B95*P95 -> 0 | U95: 8
D97: =VLOOKUP(U97,NAC!G116:J151,2) -> B200SR Addressable Sounder Base | N97: =VLOOKUP(U97,NAC!G116:J151,3) -> 0.0003 | P97: =VLOOKUP(U97,NAC!G116:J151,4) -> 0.035 | R97: =B97*N97 -> 0 | S97: =B97*P97 -> 0 | U97: 9
D99: =VLOOKUP(U99,NAC!G116:J151,2) -> BEAM200 Series Addressable Beam Detectors | N99: =VLOOKUP(U99,NAC!G116:J151,3) -> 0.002 | P99: =VLOOKUP(U99,NAC!G116:J151,4) -> 0.002 | R99: =B99*N99 -> 0 | S99: =B99*P99 -> 0 | U99: 11
D101: OSI-RI(A)-AP (CLIP mode) Intelligent Imaging Beam Smoke Detector | O101: 0.013 | P101: 0.013 | R101: =B101*O101 -> 0 | S101: =B101*P101 -> 0
D103: DNR Duct Detector Housing w/2351 Smoke Head (CLIP mode) | N103: 0.0002 | P103: 0.0002 | R103: =B103*N103 -> 0 | S103: =B103*P103 -> 0
D105: DNRW W/P Duct Detector Housing w/2351 Smoke Head (CLIP mode,UL only) | O105: 0.0002 | P105: 0.0002 | R105: =B105*O105 -> 0 | S105: =B105*P105 -> 0
D107: =VLOOKUP(U107,NAC!G116:J151,2) -> DNR Duct Detector Housing w/2251 Smoke Head (CLIP mode) | N107: =VLOOKUP(U107,NAC!G116:J151,3) -> 0.0003 | P107: =VLOOKUP(U107,NAC!G116:J151,4) -> 0.0003 | R107: =B107*N107 -> 0 | S107: =B107*P107 -> 0 | U107: 12
D109: DNRW W/P Duct Detector Housing w/2251 Smoke Head (CLIP mode,UL only) | O109: 0.0003 | P109: 0.0003 | R109: =B109*O109 -> 0 | S109: =B109*P109 -> 0
D111: =VLOOKUP(U111,NAC!G116:J151,2) -> MIX-M500MAP (CLIP mode) Intelligent Monitor Module | N111: =VLOOKUP(U111,NAC!G116:J151,3) -> 0.0004 | P111: =VLOOKUP(U111,NAC!G116:J151,4) -> 0.0004 | R111: =B111*N111 -> 0 | S111: =B111*P111 -> 0 | U111: 15
D113: =VLOOKUP(U113,NAC!G116:J151,2) -> MIX-M500DMAP (CLIP mode) Intelligent Dual Input Monitor Module | N113: =VLOOKUP(U113,NAC!G116:J151,3) -> 0.00075 | P113: =VLOOKUP(U113,NAC!G116:J151,4) -> 0.00075 | R113: =B113*N113 -> 0 | S113: =B113*P113 -> 0 | U113: 20
D115: =VLOOKUP(U115,NAC!G116:J151,2) -> MIX-M501MAP (CLIP mode) Intelligent Monitor Mini Module | N115: =VLOOKUP(U115,NAC!G116:J151,3) -> 0.0004 | P115: =VLOOKUP(U115,NAC!G116:J151,4) -> 0.0004 | R115: =B115*N115 -> 0 | S115: =B115*P115 -> 0 | U115: 16
D117: =VLOOKUP(U117,NAC!G116:J151,2) -> MIX-M502MAP (CLIP mode) Universal Intelligent Monitor Module | N117: =VLOOKUP(U117,NAC!G116:J151,3) -> 0.0115 | P117: =VLOOKUP(U117,NAC!G116:J151,4) -> 0.0115 | R117: =B117*N117 -> 0 | S117: =B117*P117 -> 0 | U117: 17
D119: =VLOOKUP(U119,NAC!G116:J151,2) -> MIX-M500RAP (CLIP mode) Intelligent Relay Module | N119: =VLOOKUP(U119,NAC!G116:J151,3) -> 0.0003 | P119: =VLOOKUP(U119,NAC!G116:J151,4) -> 0.0055 | R119: =B119*N119 -> 0 | S119: =B119*P119 -> 0 | U119: 18
D121: =VLOOKUP(U121,NAC!G116:J151,2) -> MIX-M500SAP (CLIP mode) Intelligent Supervised Output Module | N121: =VLOOKUP(U121,NAC!G116:J151,3) -> 0.0004 | P121: =VLOOKUP(U121,NAC!G116:J151,4) -> 0.0055 | R121: =B121*N121 -> 0 | S121: =B121*P121 -> 0 | U121: 19
D123: =VLOOKUP(U123,NAC!G116:J151,2) -> M500X Line Isolator Module | N123: =VLOOKUP(U123,NAC!G116:J151,3) -> 0.00045 | P123: =VLOOKUP(U123,NAC!G116:J151,4) -> 0.00045 | R123: =B123*N123 -> 0 | S123: =B123*P123 -> 0 | U123: 21
D125: =VLOOKUP(U125,NAC!G116:J151,2) -> IM-10 CLIP Ten Input Addressable Module | N125: =VLOOKUP(U125,NAC!G116:J151,3) -> 0.0035 | P125: =VLOOKUP(U125,NAC!G116:J151,4) -> 0.0035 | R125: =B125*N125 -> 0 | S125: =B125*P125 -> 0 | U125: 22
D127: =VLOOKUP(U127,NAC!G116:J151,2) -> CR-6 CLIP Six Addressable Relay Control Module | N127: =VLOOKUP(U127,NAC!G116:J151,3) -> 0.00145 | P127: =VLOOKUP(U127,NAC!G116:J151,4) -> 0.032 | R127: =B127*N127 -> 0 | S127: =B127*P127 -> 0 | U127: 24
D129: =VLOOKUP(U129,NAC!G116:J151,2) -> CZ-6 CLIP Six input Addressable Univeral Zone Module | N129: =VLOOKUP(U129,NAC!G116:J151,3) -> 0.002 | P129: =VLOOKUP(U129,NAC!G116:J151,4) -> 0.002 | R129: =B129*N129 -> 0 | S129: =B129*P129 -> 0 | U129: 23
D131: =VLOOKUP(U131,NAC!G116:J151,2) -> SC-6 CLIP Six Addressable Supervsed Output Signal Module | N131: =VLOOKUP(U131,NAC!G116:J151,3) -> 0.00225 | P131: =VLOOKUP(U131,NAC!G116:J151,4) -> 0.035 | R131: =B131*N131 -> 0 | S131: =B131*P131 -> 0 | U131: 25
D133: =VLOOKUP(U133,NAC!G116:J151,2) -> MS-400AP (CLIP mode) Intelligent Pull Stations | N133: =VLOOKUP(U133,NAC!G116:J151,3) -> 3.5e-05 | P133: =VLOOKUP(U133,NAC!G116:J151,4) -> 3.5e-05 | R133: =B133*N133 -> 0 | S133: =B133*P133 -> 0 | U133: 13
D135: =VLOOKUP(U135,NAC!G116:J151,2) -> MS-700AP (CLIP mode) Intelligent Pull Stations | N135: =VLOOKUP(U135,NAC!G116:J151,3) -> 0.0004 | P135: =VLOOKUP(U135,NAC!G116:J151,4) -> 0.0004 | R135: =B135*N135 -> 0 | S135: =B135*P135 -> 0 | U135: 14
D137: MPS-810AP(U) (CLIP mode) Addr. Single Stage Dual Action Manual Station | O137: 0.0004 | P137: 0.0004 | R137: =B137*O137 -> 0 | S137: =B137*P137 -> 0 | U137: 2
D139: MPS-802AP (CLIP mode) Addr. Two Stage Dual Action Manual Station (ULC) | O139: 0.0006 | P139: 0.0006 | R139: =B139*O139 -> 0 | S139: =B139*P139 -> 0 | U139: 2
D141: MPS-822AP (CLIP mode) Add. Two Stage Dual Act. w/Add. N.C. Switch (ULC) | O141: 0.0006 | P141: 0.0006 | R141: =B141*O141 -> 0 | S141: =B141*P141 -> 0 | U141: 2
D143: =VLOOKUP(U143,NAC!G116:J151,2) -> INX-10A NAC Power Supply (CLIP mode, Current Consumption FACP SLC) | N143: =VLOOKUP(U143,NAC!G116:J151,3) -> 0.0045 | P143: =VLOOKUP(U143,NAC!G116:J151,4) -> 0.0045 | R143: =B143*N143 -> 0 | S143: =B143*P143 -> 0 | U143: 26
B145: =COUNTIF(B147:B159,">0")*{1} -> 0 | D145: Conventional 2 Wire Smoke Detectors
B147: 0 | D147: 2W/C2W i3 Series Photoelectric Smoke Detectors | N147: 5e-05 | P147: 5e-05 | R147: =B147*N147 -> 0 | S147: =B147*P147 -> 0 | U147: 2
B149: 0 | D149: 2W/C2W i3 Series Photo/Thermal Detectors | N149: 5e-05 | P149: 5e-05 | R149: =B149*N149 -> 0 | S149: =B149*P149 -> 0 | U149: 3
B151: 0 | D151: 2W/C2W i3 Series Detectors w/Sounder Base | N151: 5e-05 | P151: 5e-05 | R151: =B151*N151 -> 0 | S151: =B151*P151 -> 0 | U151: 4
B153: 0 | D153: 2W/C2W i3 Series Detectors w/Sounder Base & Relay | N153: 5e-05 | P153: 5e-05 | R153: =B153*N153 -> 0 | S153: =B153*P153 -> 0 | U153: 5
B155: 0 | D155: 2151(A) Photoelectric Smoke Detector | N155: 8.5e-05 | P155: 8.5e-05 | R155: =B155*N155 -> 0 | S155: =B155*P155 -> 0 | U155: 6
B157: 0 | D157: =VLOOKUP(U157,NAC!O34:R44,2) -> C2W-MOD2A LoopTest Maintenance Module | N157: =VLOOKUP(U157,NAC!O34:R44,3) -> 0.03 | P157: =VLOOKUP(U157,NAC!O34:R44,4) -> 0.03 | R157: =B157*N157 -> 0 | S157: =B157*P157 -> 0 | U157: 7
B159: 0 | D159: D2(A) Photoelectric Duct Detector | N159: 0.00012 | P159: 0.00012 | R159: =B159*N159 -> 0 | S159: =B159*P159 -> 0 | U159: 8
B160: =COUNTIF(B147:B159,">0")*{1} -> 0
B161: =COUNTIF(B147:B159,">0")*{1} -> 0 | J161: =IF(Y161>0,"ASSUMES 3 INITIATING CTS. IN ALARM","") ->  | R161: =SUM(R147:R159) -> 0 | S161: =IF(Y161>0,"0.090000","") ->  | Y161: =COUNTIF(B147:B159,">0")*{1} -> 0
B162: =COUNTIF(B165:B185,">0")*{1} -> 0
B163: =COUNTIF(B165:B185,">0")*{1} -> 0 | D163: Conventional 4 Wire Detectors
B165: 0 | D165: 4W/C4W i3 Series Photoelectric Smoke Detectors | N165: 5e-05 | O165: 5e-05 | P165: 5e-05 | R165: =B165*N165 -> 0 | S165: =B165*P165 -> 0 | U165: 2
B167: 0 | D167: 4W/C4W i3 Series Photo/Thermal Detectors | N167: 5e-05 | O167: 5e-05 | P167: 5e-05 | R167: =B167*N167 -> 0 | S167: =B167*P167 -> 0 | U167: 3
B169: 0 | D169: 4W/C4W i3 Series Detectors w/Sounder Base | N169: 5e-05 | O169: 5e-05 | P169: 5e-05 | R169: =B169*N169 -> 0 | S169: =B169*P169 -> 0 | U169: 4
B171: 0 | D171: 4W/C4W i3 Series Detectors w/Sounder Base & Relay | N171: 0.0255 | O171: 0.0255 | P171: 0.0255 | R171: =B171*N171 -> 0 | S171: =B171*P171 -> 0 | U171: 5
B173: 0 | D173: =VLOOKUP(U173,NAC!BA98:BF148,2) -> CO1224(A) Carbon Monoxide Detector | O173: 0.02 | P173: 0.02 | R173: =B173*O173 -> 0 | S173: =B173*P173 -> 0 | U173: 13
B175: 0 | D175: =VLOOKUP(U175,NAC!O57:R67,2) -> CRRS-MODA Reversing Relay | N175: =VLOOKUP(U175,NAC!O57:R67,3) -> 1e-07 | P175: =VLOOKUP(U175,NAC!O57:R67,4) -> 0.025 | R175: =B175*N175 -> 0 | S175: =B175*P175 -> 0 | U175: 7
B177: 0 | D177: =VLOOKUP(U177,NAC!O57:R67,2) -> B401BHA Sounder Base for 1451A or 2451A | N177: =VLOOKUP(U177,NAC!O57:R67,3) -> 0.017 | P177: =VLOOKUP(U177,NAC!O57:R67,3) -> 0.017 | R177: =B177*N177 -> 0 | S177: =B177*P177 -> 0 | U177: 8
B179: 0 | D179: OSI-R-SS Conventional Imaging Beam Smoke Detector | N179: 0.011 | O179: 0.015 | P179: 0.011 | R179: =B179*N179 -> 0 | S179: =B179*P179 -> 0
B181: 0 | D181: =VLOOKUP(U181,NAC!BA98:BF148,2) -> BEAM1224(A) Series Beam Detectors | N181: 0.017 | O181: 0.017 | P181: 0.017 | R181: =B181*N181 -> 0 | S181: =B181*P181 -> 0 | U181: 16
B183: 0 | D183: D4120(A) Photoelectric Duct Detector w/ Relay, 120VAC | N183: 0.02 | O183: 0.02 | P183: 0.02 | R183: =B183*N183 -> 0 | S183: =B183*P183 -> 0 | U183: 10
B185: 0 | D185: D4120(A) Photoelectric Duct Detector w/ Relay, 24VAC | N185: 0.065 | O185: 0.065 | P185: 0.065 | R185: =B185*N185 -> 0 | S185: =B185*P185 -> 0 | U185: 11
B186: =COUNTIF(B190:B194,">0")*{1} -> 0
J187: Enter | M187: Enter
B188: =COUNTIF(B190:B194,">0")*{1} -> 0 | D188: Auxiliary Power | J188: Standby | M188: Alarm
B189: =COUNTIF(B190:B194,">0")*{1} -> 0 | D189: Enter Description | J189: Current | M189: Current
R190: =B190*J190 -> 0 | S190: =B190*M190 -> 0 | V190: =B190+B192+B194 -> 0
R192: =B192*J192 -> 0 | S192: =B192*M192 -> 0
R194: =B194*J194 -> 0 | S194: =B194*M194 -> 0
B195: =COUNTIF(B198:B236,">0")*{1} -> 0
B196: =COUNTIF(B198:B246,">0")*{1} -> 0 | D196: Signaling Devices - 24 FWR
D197: Select From Drop-Down Box - Check Guide for Compatibility
B198: 0 | D198: =VLOOKUP(U198,NAC!BX11:CA185,2) -> 0 | N198: =VLOOKUP(U198,NAC!BX11:CA185,3) -> 0 | P198: =VLOOKUP(U198,NAC!BX11:CA185,4) -> 0 | R198: =B198*N198 -> 0 | S198: =B198*P198 -> 0 | U198: 1 | V198: =B198+B200+B202+B204+B206+B208 -> 0
D200: =VLOOKUP(U200,NAC!BX11:CA185,2) -> 0 | N200: =VLOOKUP(U200,NAC!BX11:CA185,3) -> 0 | P200: =VLOOKUP(U200,NAC!BX11:CA185,4) -> 0 | R200: =B200*N200 -> 0 | S200: =B200*P200 -> 0 | U200: 1
D202: =VLOOKUP(U202,NAC!BX11:CA185,2) -> 0 | N202: =VLOOKUP(U202,NAC!BX11:CA185,3) -> 0 | P202: =VLOOKUP(U202,NAC!BX11:CA185,4) -> 0 | R202: =B202*N202 -> 0 | S202: =B202*P202 -> 0 | U202: 1
D204: =VLOOKUP(U204,NAC!BX11:CA185,2) -> 0 | N204: =VLOOKUP(U204,NAC!BX11:CA185,3) -> 0 | P204: =VLOOKUP(U204,NAC!BX11:CA185,4) -> 0 | R204: =B204*N204 -> 0 | S204: =B204*P204 -> 0 | U204: 1
D206: =VLOOKUP(U206,NAC!BX11:CA185,2) -> 0 | N206: =VLOOKUP(U206,NAC!BX11:CA185,3) -> 0 | P206: =VLOOKUP(U206,NAC!BX11:CA185,4) -> 0 | R206: =B206*N206 -> 0 | S206: =B206*P206 -> 0 | U206: 1
D208: =VLOOKUP(U208,NAC!BR11:BU185,2) -> 0 | N208: =VLOOKUP(U208,NAC!BX11:CA185,3) -> 0 | P208: =VLOOKUP(U208,NAC!BX11:CA185,4) -> 0 | R208: =B208*N208 -> 0 | S208: =B208*P208 -> 0 | U208: 1
D210: =VLOOKUP(U210,NAC!BR11:BU185,2) -> 0 | N210: =VLOOKUP(U210,NAC!BX11:CA185,3) -> 0 | P210: =VLOOKUP(U210,NAC!BX11:CA185,4) -> 0 | R210: =B210*N210 -> 0 | S210: =B210*P210 -> 0 | U210: 1 | V210: =B210+B212+B214+B216+B218+B220 -> 0
D212: =VLOOKUP(U212,NAC!BR11:BU185,2) -> 0 | N212: =VLOOKUP(U212,NAC!BX11:CA185,3) -> 0 | P212: =VLOOKUP(U212,NAC!BX11:CA185,4) -> 0 | R212: =B212*N212 -> 0 | S212: =B212*P212 -> 0 | U212: 1
D214: =VLOOKUP(U214,NAC!BR11:BU185,2) -> 0 | N214: =VLOOKUP(U214,NAC!BX11:CA185,3) -> 0 | P214: =VLOOKUP(U214,NAC!BX11:CA185,4) -> 0 | R214: =B214*N214 -> 0 | S214: =B214*P214 -> 0 | U214: 1
D216: =VLOOKUP(U216,NAC!BR11:BU185,2) -> 0 | N216: =VLOOKUP(U216,NAC!BX11:CA185,3) -> 0 | P216: =VLOOKUP(U216,NAC!BX11:CA185,4) -> 0 | R216: =B216*N216 -> 0 | S216: =B216*P216 -> 0 | U216: 1
D218: =VLOOKUP(U218,NAC!BR11:BU185,2) -> 0 | N218: =VLOOKUP(U218,NAC!BX11:CA185,3) -> 0 | P218: =VLOOKUP(U218,NAC!BX11:CA185,4) -> 0 | R218: =B218*N218 -> 0 | S218: =B218*P218 -> 0 | U218: 1
D220: =VLOOKUP(U220,NAC!BR11:BU185,2) -> 0 | N220: =VLOOKUP(U220,NAC!BX11:CA185,3) -> 0 | P220: =VLOOKUP(U220,NAC!BX11:CA185,4) -> 0 | R220: =B220*N220 -> 0 | S220: =B220*P220 -> 0 | U220: 1
D222: =VLOOKUP(U222,NAC!BR11:BU185,2) -> 0 | N222: =VLOOKUP(U222,NAC!BX11:CA185,3) -> 0 | P222: =VLOOKUP(U222,NAC!BX11:CA185,4) -> 0 | R222: =B222*N222 -> 0 | S222: =B222*P222 -> 0 | U222: 1 | V222: =B222+B224+B226+B228+B230+B232 -> 0
D224: =VLOOKUP(U224,NAC!BR11:BU185,2) -> 0 | N224: =VLOOKUP(U224,NAC!BX11:CA185,3) -> 0 | P224: =VLOOKUP(U224,NAC!BX11:CA185,4) -> 0 | R224: =B224*N224 -> 0 | S224: =B224*P224 -> 0 | U224: 1
D226: =VLOOKUP(U226,NAC!BR11:BU185,2) -> 0 | N226: =VLOOKUP(U226,NAC!BX11:CA185,3) -> 0 | P226: =VLOOKUP(U226,NAC!BX11:CA185,4) -> 0 | R226: =B226*N226 -> 0 | S226: =B226*P226 -> 0 | U226: 1
D228: =VLOOKUP(U228,NAC!BR11:BU185,2) -> 0 | N228: =VLOOKUP(U228,NAC!BX11:CA185,3) -> 0 | P228: =VLOOKUP(U228,NAC!BX11:CA185,4) -> 0 | R228: =B228*N228 -> 0 | S228: =B228*P228 -> 0 | U228: 1
D230: =VLOOKUP(U230,NAC!BR11:BU185,2) -> 0 | N230: =VLOOKUP(U230,NAC!BX11:CA185,3) -> 0 | P230: =VLOOKUP(U230,NAC!BX11:CA185,4) -> 0 | R230: =B230*N230 -> 0 | S230: =B230*P230 -> 0 | U230: 1
D232: =VLOOKUP(U232,NAC!BR11:BU185,2) -> 0 | N232: =VLOOKUP(U232,NAC!BX11:CA185,3) -> 0 | P232: =VLOOKUP(U232,NAC!BX11:CA185,4) -> 0 | R232: =B232*N232 -> 0 | S232: =B232*P232 -> 0 | U232: 1
D234: =VLOOKUP(U234,NAC!BR11:BU185,2) -> 0 | N234: =VLOOKUP(U234,NAC!BX11:CA185,3) -> 0 | P234: =VLOOKUP(U234,NAC!BX11:CA185,4) -> 0 | R234: =B234*N234 -> 0 | S234: =B234*P234 -> 0 | U234: 1
D236: =VLOOKUP(U236,NAC!BR11:BU185,2) -> 0 | N236: =VLOOKUP(U236,NAC!BX11:CA185,3) -> 0 | P236: =VLOOKUP(U236,NAC!BX11:CA185,4) -> 0 | R236: =B236*N236 -> 0 | S236: =B236*P236 -> 0 | U236: 1
R238: =B238*J238 -> 0 | S238: =B238*M238 -> 0
R240: =B240*J240 -> 0 | S240: =B240*M240 -> 0
R242: =B242*J242 -> 0 | S242: =B242*M242 -> 0
R244: =B244*J244 -> 0 | S244: =B244*M244 -> 0
R246: =B246*J246 -> 0 | S246: =B246*M246 -> 0
D247: =IF(OR(Z287=1),"* Indicating Circuits Must Not Exceed 5 Amps Total",IF(OR(Z287=2),"* Indicating Circuits Must Not Exceed 10 Amps Total",IF(OR(Z287=3),"* Indicating Circuits Must Not Exceed 10 Amps Total",""))) ->  | U247: =SUM(S198:S246) -> 0
B248: =COUNTIF(B252:B270,">0")*{1} -> 0
J249: Enter | M249: Enter
B250: =COUNTIF(B252:B270,">0")*{1} -> 0 | D250: Additional Devices | J250: Standby | M250: Alarm
B251: =COUNTIF(B252:B270,">0")*{1} -> 0 | D251: Enter Description | J251: Current | M251: Current
R252: =B252*J252 -> 0 | S252: =B252*M252 -> 0 | V252: =B252+B254+B256+B258+B260+B262 -> 0
R254: =B254*J254 -> 0 | S254: =B254*M254 -> 0
R256: =B256*J256 -> 0 | S256: =B256*M256 -> 0
R258: =B258*J258 -> 0 | S258: =B258*M258 -> 0
R260: =B260*J260 -> 0 | S260: =B260*M260 -> 0
R262: =B262*J262 -> 0 | S262: =B262*M262 -> 0
R264: =B264*J264 -> 0 | S264: =B264*M264 -> 0
R266: =B266*J266 -> 0 | S266: =B266*M266 -> 0
R268: =B268*J268 -> 0 | S268: =B268*M268 -> 0
J269: .
R270: =B270*J270 -> 0 | S270: =B270*M270 -> 0
B271: 1
B272: 1
B273: 1 | R273: Total Standby Current in Amps | S273: =SUM(R18:R143,R161,R165:R270) -> 0 | U273: =B275*S273 -> 0 | V273: Sup A/hr
B274: 1
B275: 24 | D275: Enter Number of Standby Hours | R275: Total Alarm Current in Amps | S275: =SUM(S18:S143,S161,S165:S270) -> 0 | U275: =B277*S275/60 -> 0 | V275: Alarm A/hr
B276: 1
B277: 30 | D277: Enter Alarm Period in Minutes | U277: =U273+U275 -> 0 | V277: Total A/hr
B278: 1
B279: 1.25 | D279: Enter Battery Derating | R279: Battery Capacity Requirement (Ah) | S279: =U277*B279 -> 0
B280: 1
B281: =COUNTIF(S279,"<26")*{1} -> 1 | J281: Recommended Mircom Batteries (x2) | S281: =IF(OR(S279=0),"",IF(OR(S279<12),"BAT-12V12A",IF(OR(S279<18),"BAT-12V18A",IF(OR(S279<26),"BAT-12V26A",IF(OR(S279>26),""))))) -> 
B283: =COUNTIF(S279,">26")*{1} -> 0 | J283: Recommended Mircom Batteries (x2) | S283: =IF(OR(S279<26),"",IF(OR(S279<33),"BAT-12V33A",IF(OR(S279<42),"BAT-12V42A",IF(OR(S279<55),"BAT-12V55A","")))) -> 
G284: =IF(OR(Z287=1),"* Battery Charging Capability: Minimum 10AH (BAT-12V12A), Maximum 24AH (BAT-12V26A)",IF(OR(Z287=2),"* Battery Charging Capability: Minimum 17AH (BAT-12V18A), Maximum 55AH (BAT-12V55A)",IF(OR(Z287=3),"* Battery Charging Capability: Minimum 17AH (BAT-12V18A), Maximum 55AH (BAT-12V55A)",""))) -> 
D285: Exceeds Battery Maximums For This Panel
D286: =IF(OR(Z287=1),"Exceeded Maximum Charging Capacity 24AH (BAT-12V26A)",IF(OR(Z287=2),"Exceeded Maximum Charging Capacity 55AH (BAT-12V55A)",IF(OR(Z287=3),"Exceeded Maximum Charging Capacity 55AH (BAT-12V55A)"))) -> FALSE
D287: Battery Exceeds Backbox, Use BC-160 Battery Cabinet | Z287: =SUM(COUNTIF(R18,{0.2300001,0.2300002,0.2300003,0.2300004," "})*{1,2,3,3,0}) -> 0
B288: -9999 | D288: Maximum AMPS For Power Supply Has Been Exceeded
B293: Mircom Technologies hereby disclaims all warranties relating to this software utility, whether expressed or implied, including without limitation any implied warranties of merchantability or fitness for a particular purpose. Mircom Technologies cannot and will not assume, accept or be liable for any special, incidental, consequential, indirect or similar claims, losses or damages for any reason whatsoever. Use of this Software Utility shall be deemed acceptance of these terms. It is the sole responsibility of the user to ascertain the accuracy and the reliability of any and all information generated or provided by this software utility and to ensure maximum current levels for control units have not been exceeded

Sheet QX-5000 (hidden)
F2: =IF(OR(D18="QX-5000 AUDIO PANEL #"),"QX-5000 Battery Calculation Program",IF(OR(D18="FX-MNS EXTERNAL AUDIO CABINET #"),"FX-MNS External Audio Cabinet Battery Calculation Program","")) -> 
B4: PROJECT NAME: | E4: =Menu!X2 -> 0
B6: ADDRESS: | E6: =Menu!X4 -> 0
B8: COMPANY NAME: | E8: =Menu!X15 -> 0
B10: PREPARED BY: | E10: =Menu!X17 -> 0
D12: Important: Enter Quantities then press enter, tab, or click another cell to update calculator.
R14: All Current in Amps
B15: 1 | R15: Standby | S15: Alarm
B16: 1 | D16: PANEL MODEL | R16: Current | S16: Current
D17: Select Model Below:
B18: 1 | H18: 1
D19: =IF(OR(D18="QX-5000 AUDIO PANEL #"),"* System Maximums: Eight (8) Audio Cabinets Interconnected, 144 Audio Zones w/Paging Controls, or, 72 Audio Zones w/both Paging & Evacuation Controls, Max.42 AH Batteries in Cabinet, 30A Power Supply Total per Cabinet",IF(OR(D18="FX-MNS EXTERNAL AUDIO CABINET #"),"* System Maximums: Three (3) Audio Expansion Cabinets If Interconnected To FX-MNS, or, Four (4) Audio Cabinets If Standalone, Max.42 AH Batteries in Cabinet, 30A Power Supply Total per Cabinet", "")) -> 
B20: QTY
B21: =COUNTIF(B23:B53,">0")*{1} -> 0 | D21: Panel Adder Modules
B22: =COUNTIF(B23:B53,">0")*{1} -> 0
D23: ANC-5000 Audio Network Controller (only include if mounting this module in this cabinet) | I23: 0.255 | J23: 0.265 | R23: =B23*I23 -> 0 | S23: =B23*J23 -> 0
D25: TNC-5000 Tel. Network Controller (only include if mounting this module in this cabinet) | I25: 0.195 | J25: 0.215 | R25: =B25*I25 -> 0 | S25: =B25*J25 -> 0
D27: =VLOOKUP(U27,NAC!G153:J169,2) -> QIF-5000B Interface | I27: =VLOOKUP(U27,NAC!G153:J169,3) -> 0.2 | J27: =VLOOKUP(U27,NAC!G153:J169,4) -> 0.2 | M27: 2 | R27: =B27*I27 -> 0 | S27: =B27*J27 -> 0 | U27: 2
D29: =VLOOKUP(U29,NAC!G153:J169,2) -> QIF-1000 Interface Module | I29: =VLOOKUP(U29,NAC!G153:J169,3) -> 0.18 | J29: =VLOOKUP(U29,NAC!G153:J169,4) -> 0.2 | M29: 3 | R29: =B29*I29 -> 0 | S29: =B29*J29 -> 0 | U29: 3
D31: =VLOOKUP(U31,NAC!G153:J169,2) -> QIF-2000 Interface Module | I31: =VLOOKUP(U31,NAC!G153:J169,3) -> 0.01 | J31: =VLOOKUP(U31,NAC!G153:J169,4) -> 0.01 | M31: 4 | R31: =B31*I31 -> 0 | S31: =B31*J31 -> 0 | U31: 4
D33: =VLOOKUP(U33,NAC!G153:J169,2) -> QAA-5415-25 / QAA-5415-70 4 Zone 15 watt Amplifier | I33: =VLOOKUP(U33,NAC!G153:J169,3) -> 0.055 | J33: =VLOOKUP(U33,NAC!G153:J169,4) -> 0.35 | M33: 5 | R33: =B33*I33 -> 0 | S33: =B33*J33 -> 0 | U33: 5
D35: =VLOOKUP(U35,NAC!G153:J169,2) -> QAA-5230-70/25 2 Zone 30 watt Amplifier | I35: =VLOOKUP(U35,NAC!G153:J169,3) -> 0.055 | J35: =VLOOKUP(U35,NAC!G153:J169,4) -> 0.35 | M35: 6 | R35: =B35*I35 -> 0 | S35: =B35*J35 -> 0 | U35: 6
D37: =VLOOKUP(U37,NAC!G153:J169,2) -> QAA-5160-70/25 1 Zone 60 watt Amplifier | I37: =VLOOKUP(U37,NAC!G153:J169,3) -> 0.055 | J37: =VLOOKUP(U37,NAC!G153:J169,4) -> 0.35 | M37: 8 | R37: =B37*I37 -> 0 | S37: =B37*J37 -> 0 | U37: 8
D39: =VLOOKUP(U39,NAC!G153:J169,2) -> QMP-5100B / QMP-5101B Master Paging Module | I39: =VLOOKUP(U39,NAC!G153:J169,3) -> 0.031 | J39: =VLOOKUP(U39,NAC!G153:J169,4) -> 0.081 | M39: 9 | R39: =B39*I39 -> 0 | S39: =B39*J39 -> 0 | U39: 9
D41: =VLOOKUP(U41,NAC!G153:J169,2) -> QMP-5100AX Paging Multiplex Module | I41: =VLOOKUP(U41,NAC!G153:J169,3) -> 0.031 | J41: =VLOOKUP(U41,NAC!G153:J169,4) -> 0.081 | M41: 10 | R41: =B41*I41 -> 0 | S41: =B41*J41 -> 0 | U41: 10
D43: =VLOOKUP(U43,NAC!G153:J169,2) -> QMP-5100MSB Microphone Splitter Board | I43: =VLOOKUP(U43,NAC!G153:J169,3) -> 0.13 | J43: =VLOOKUP(U43,NAC!G153:J169,4) -> 0.275 | M43: 11 | R43: =B43*I43 -> 0 | S43: =B43*J43 -> 0 | U43: 11
D45: =VLOOKUP(U45,NAC!G153:J169,2) -> QMT-5300A / QMT-5302 / QAMT-5302 Master Telephone Module | I45: =VLOOKUP(U45,NAC!G153:J169,3) -> 0.04 | J45: =VLOOKUP(U45,NAC!G153:J169,4) -> 0.04 | M45: 12 | R45: =B45*I45 -> 0 | S45: =B45*J45 -> 0 | U45: 12
D47: =VLOOKUP(U47,NAC!G153:J169,2) -> QAZT-5302DS Paging/Telephone 24 Zone Selector Module | I47: =VLOOKUP(U47,NAC!G153:J169,3) -> 0.026 | J47: =VLOOKUP(U47,NAC!G153:J169,4) -> 0.026 | M47: 13 | R47: =B47*I47 -> 0 | S47: =B47*J47 -> 0 | U47: 13
D49: =VLOOKUP(U49,NAC!G153:J169,2) -> QAZT-5348DS Paging/Telephone 48 Zone Selector Module | I49: =VLOOKUP(U49,NAC!G153:J169,3) -> 0.01 | J49: =VLOOKUP(U49,NAC!G153:J169,4) -> 0.022 | R49: =B49*I49 -> 0 | S49: =B49*J49 -> 0 | U49: 16
D51: =VLOOKUP(U51,NAC!G153:J169,2) -> QZT-5302 Telephone Zone Module (Hardwired) | I51: =VLOOKUP(U51,NAC!G153:J169,3) -> 0.026 | J51: =VLOOKUP(U51,NAC!G153:J169,4) -> 0.026 | M51: 14 | R51: =B51*I51 -> 0 | S51: =B51*J51 -> 0 | U51: 14
D53: =VLOOKUP(U53,NAC!G153:J169,2) -> QDV-1000 Digitized Voice Module | I53: =VLOOKUP(U53,NAC!G153:J169,3) -> 0.03 | J53: =VLOOKUP(U53,NAC!G153:J169,4) -> 0.03 | M53: 15 | R53: =B53*I53 -> 0 | S53: =B53*J53 -> 0 | U53: 15
B54: 1 | C54: =B33+B35 -> 0
B55: 1 | D55: Enter the Total Audio Power in Watts used by 15 Watt Amplifiers
B56: 1 | E56: 0 | F56: Watts | S56: =E56*0.075 -> 0
B57: 1
B58: 1 | D58: Enter the Total Audio Power in Watts used by 30 and 60 Watt Amplifiers
B59: 1 | F59: Watts | S59: =E59*0.065 -> 0
B60: =COUNTIF(B64:B82,">0")*{1} -> 0 | D60: * Cabinet Maximums: Seven (7) Amplifiers per Cabinet, 360 Watts per Cabinet
D61: EXCEEDED MAXIMUM WATTS PER CABINET | J61: Enter | M61: Enter
B62: =COUNTIF(B64:B82,">0")*{1} -> 0 | D62: Additional Devices | J62: Standby | M62: Alarm
B63: =COUNTIF(B64:B82,">0")*{1} -> 0 | D63: Enter Description | J63: Current | M63: Current
R64: =B64*J64 -> 0 | S64: =B64*M64 -> 0
R66: =B66*J66 -> 0 | S66: =B66*M66 -> 0
R68: =B68*J68 -> 0 | S68: =B68*M68 -> 0
R70: =B70*J70 -> 0 | S70: =B70*M70 -> 0
R72: =B72*J72 -> 0 | S72: =B72*M72 -> 0
R74: =B74*J74 -> 0 | S74: =B74*M74 -> 0
R76: =B76*J76 -> 0 | S76: =B76*M76 -> 0
R78: =B78*J78 -> 0 | S78: =B78*M78 -> 0
R80: =B80*J80 -> 0 | S80: =B80*M80 -> 0
R82: =B82*J82 -> 0 | S82: =B82*M82 -> 0
B83: 1
B84: 1
B85: 1 | M85: Total Standby Current in Amps | S85: =SUM(R23:R82) -> 0 | U85: =B87*S85 -> 0
B86: 1
B87: 48 | D87: Enter Number of Standby Hours | M87: Total Alarm Current in Amps | S87: =SUM(S23:S82) -> 0 | U87: =B89*S87/60 -> 0
B88: 1
B89: 15 | D89: Enter Alarm Period in Minutes | U89: =U85+U87 -> 0
B90: 1
B91: 1.25 | D91: Enter Battery Derating | J91: Battery Capacity Requirement (Ah) | S91: =U89*B91 -> 0
B92: 1
B93: =COUNTIF(S91,"<26")*{1} -> 1 | J93: Recommended Mircom Batteries (x2) | S93: =IF(OR(S91=0),"",IF(OR(S91<26),"BAT-12V26A",IF(OR(S91>26),""))) -> 
B95: =COUNTIF(S91,">26")*{1} -> 0 | J95: Recommended Mircom Batteries (x2) | S95: =IF(OR(S91<26),"",IF(OR(S91<33),"BAT-12V33A",IF(OR(S91<42),"BAT-12V42A",IF(OR(S91<55),"BAT-12V55A",IF(OR(S91<75.009),"BAT-12V75A",""))))) -> 
G96: * Battery Charging Capability: Minimum 24AH (BAT-12V26A), Maximum 65AH (BAT-12V75A)
D97: Exceeds Battery Maximums For This Panel
D98: Exceeded Maximum Charging Capacity 65AH (BAT-12V75A)
D99: Battery Exceeds Backbox, Use BC-160 Battery Cabinet
B100: -9999 | D100: Maximum AMPS For Power Supply Has Been Exceeded
B104: Mircom Technologies hereby disclaims all warranties relating to this software utility, whether expressed or implied, including without limitation any implied warranties of merchantability or fitness for a particular purpose. Mircom Technologies cannot and will not assume, accept or be liable for any special, incidental, consequential, indirect or similar claims, losses or damages for any reason whatsoever. Use of this Software Utility shall be deemed acceptance of these terms. It is the sole responsibility of the user to ascertain the accuracy and the reliability of any and all information generated or provided by this software utility and to ensure maximum current levels for control units have not been exceeded

Sheet QX-5000(2) (hidden)
C1: QX-5000 Battery Calculation Program
B3: Project: | C3: ='QX-5000'!H4 -> 0
B4: Line 2: | C4: ='QX-5000'!H6 -> 0
B5: Line 3: | C5: ='QX-5000'!H8 -> 0
B6: Prepared By: | C6: ='QX-5000'!H10 -> 0
D8: Standby | E8: Alarm
D9: Current | E9: Current
A10: QTY | B10: Panel Adder Modules
A11: Column1 | B11: Column3 | C11: Column6 | D11: Column9 | E11: Column10
A12: ='QX-5000'!B27 -> 0 | B12: ='QX-5000'!D27 -> QIF-5000B Interface | D12: ='QX-5000'!K27 -> 0 | E12: ='QX-5000'!L27 -> 0
A13: ='QX-5000'!B29 -> 0 | B13: ='QX-5000'!D29 -> QIF-1000 Interface Module | D13: ='QX-5000'!K29 -> 0 | E13: ='QX-5000'!L29 -> 0
A14: ='QX-5000'!B31 -> 0 | B14: ='QX-5000'!D31 -> QIF-2000 Interface Module | D14: ='QX-5000'!K31 -> 0 | E14: ='QX-5000'!L31 -> 0
A15: ='QX-5000'!B33 -> 0 | B15: ='QX-5000'!D33 -> QAA-5415-25 / QAA-5415-70 4 Zone 15 watt Amplifier | D15: ='QX-5000'!K33 -> 0 | E15: ='QX-5000'!L33 -> 0
A16: ='QX-5000'!B35 -> 0 | B16: ='QX-5000'!D35 -> QAA-5230-70/25 2 Zone 30 watt Amplifier | D16: ='QX-5000'!K35 -> 0 | E16: ='QX-5000'!L35 -> 0
A17: ='QX-5000'!B37 -> 0 | B17: ='QX-5000'!D37 -> QAA-5160-70/25 1 Zone 60 watt Amplifier | D17: ='QX-5000'!K37 -> 0 | E17: ='QX-5000'!L37 -> 0
A18: ='QX-5000'!B39 -> 0 | B18: ='QX-5000'!D39 -> QMP-5100B / QMP-5101B Master Paging Module | D18: ='QX-5000'!K39 -> 0 | E18: ='QX-5000'!L39 -> 0
A19: ='QX-5000'!B41 -> 0 | B19: ='QX-5000'!D41 -> QMP-5100AX Paging Multiplex Module | D19: ='QX-5000'!K41 -> 0 | E19: ='QX-5000'!L41 -> 0
A20: ='QX-5000'!B43 -> 0 | B20: ='QX-5000'!D43 -> QMP-5100MSB Microphone Splitter Board | D20: ='QX-5000'!K43 -> 0 | E20: ='QX-5000'!L43 -> 0
A21: ='QX-5000'!B45 -> 0 | B21: ='QX-5000'!D45 -> QMT-5300A / QMT-5302 / QAMT-5302 Master Telephone Module | D21: ='QX-5000'!K45 -> 0 | E21: ='QX-5000'!L45 -> 0
A22: ='QX-5000'!B47 -> 0 | B22: ='QX-5000'!D47 -> QAZT-5302DS Paging/Telephone 24 Zone Selector Module | D22: ='QX-5000'!K47 -> 0 | E22: ='QX-5000'!L47 -> 0
A23: ='QX-5000'!B51 -> 0 | B23: ='QX-5000'!D51 -> QZT-5302 Telephone Zone Module (Hardwired) | D23: ='QX-5000'!K51 -> 0 | E23: ='QX-5000'!L51 -> 0
A24: ='QX-5000'!B53 -> 0 | B24: ='QX-5000'!D53 -> QDV-1000 Digitized Voice Module | D24: ='QX-5000'!K53 -> 0 | E24: ='QX-5000'!L53 -> 0
A25: ='QX-5000'!#REF! ->  | B25: ='QX-5000'!#REF! ->  | D25: ='QX-5000'!#REF! ->  | E25: ='QX-5000'!#REF! -> 
A26: ='QX-5000'!#REF! ->  | B26: ='QX-5000'!#REF! ->  | D26: ='QX-5000'!#REF! ->  | E26: ='QX-5000'!#REF! -> 
A27: ='QX-5000'!#REF! ->  | B27: ='QX-5000'!#REF! ->  | D27: ='QX-5000'!#REF! ->  | E27: ='QX-5000'!#REF! -> 
B29: Total Audio Power in Watts used by 30 and 60 Watt Amplifiers | E29: ='QX-5000'!L56 -> 0
B30: ='QX-5000'!E56 -> 0 | C30: Watts
B31: Total Audio Power in Watts used by 15 Watt Amplifiers | E31: ='QX-5000'!L59 -> 0
B32: ='QX-5000'!E59 -> 0 | C32: Watts
B34: Additional Devices
A35: ='QX-5000'!B64 -> 0 | B35: ='QX-5000'!D64 -> 0 | D35: ='QX-5000'!K64 -> 0 | E35: ='QX-5000'!L64 -> 0
A36: ='QX-5000'!B66 -> 0 | B36: ='QX-5000'!D66 -> 0 | D36: ='QX-5000'!K66 -> 0 | E36: ='QX-5000'!L66 -> 0
A37: ='QX-5000'!B68 -> 0 | B37: ='QX-5000'!D68 -> 0 | D37: ='QX-5000'!K68 -> 0 | E37: ='QX-5000'!L68 -> 0
A38: ='QX-5000'!B70 -> 0 | B38: ='QX-5000'!D70 -> 0 | D38: ='QX-5000'!K70 -> 0 | E38: ='QX-5000'!L70 -> 0
A39: ='QX-5000'!B72 -> 0 | B39: ='QX-5000'!D72 -> 0 | D39: ='QX-5000'!K72 -> 0 | E39: ='QX-5000'!L72 -> 0
A40: ='QX-5000'!B74 -> 0 | B40: ='QX-5000'!D74 -> 0 | D40: ='QX-5000'!K74 -> 0 | E40: ='QX-5000'!L74 -> 0
A41: ='QX-5000'!B76 -> 0 | B41: ='QX-5000'!D76 -> 0 | D41: ='QX-5000'!K76 -> 0 | E41: ='QX-5000'!L76 -> 0
A42: ='QX-5000'!B78 -> 0 | B42: ='QX-5000'!D78 -> 0 | D42: ='QX-5000'!K78 -> 0 | E42: ='QX-5000'!L78 -> 0
A43: ='QX-5000'!B80 -> 0 | B43: ='QX-5000'!D80 -> 0 | D43: ='QX-5000'!K80 -> 0 | E43: ='QX-5000'!L80 -> 0
A44: ='QX-5000'!B82 -> 0 | B44: ='QX-5000'!D82 -> 0 | D44: ='QX-5000'!K82 -> 0 | E44: ='QX-5000'!L82 -> 0
C46: Total Standby Current in Amps | E46: ='QX-5000'!L85 -> 0
A47: ='QX-5000'!B87 -> 48 | B47: Number of Standby Hours | C47: Total Alarm Current in Amps | E47: ='QX-5000'!L87 -> 0
A48: ='QX-5000'!B89 -> 15 | B48: Alarm Period in Minutes
A49: ='QX-5000'!B91 -> 1.25 | B49: Battery Derating | C49: Battery Capacity Requirement (Ah) | E49: ='QX-5000'!L91 -> 0
A51: Mircom Technologies hereby disclaims all warranties relating to this software utility, whether expressed or implied, including without limitation any implied warranties of merchantability or fitness for a particular purpose. Mircom Technologies cannot and will not assume, accept or be liable for any special, incidental, consequential, indirect or similar claims, losses or damages for any reason whatsoever. Use of this Software Utility shall be deemed acceptance of these terms. It is the sole responsibility of the user to ascertain the accuracy and the reliability of any and all information generated or provided by this software utility and to ensure maximum current levels for control units have not been exceeded

Sheet QX-5000 #2 (hidden)
F2: =IF(OR(D18="QX-5000 AUDIO PANEL #"),"QX-5000 Battery Calculation Program",IF(OR(D18="FX-MNS EXTERNAL AUDIO CABINET #"),"FX-MNS External Audio Cabinet Battery Calculation Program","")) -> 
B4: PROJECT NAME: | E4: =Menu!X2 -> 0
B6: ADDRESS: | E6: =Menu!X4 -> 0
B8: COMPANY NAME: | E8: =Menu!X15 -> 0
B10: PREPARED BY: | E10: =Menu!X17 -> 0
D12: Important: Enter Quantities then press enter, tab, or click another cell to update calculator.
R14: All Current in Amps
B15: 1 | R15: Standby | S15: Alarm
B16: 1 | D16: PANEL MODEL | R16: Current | S16: Current
D17: Select Model Below:
B18: 1 | H18: 2
D19: =IF(OR(D18="QX-5000 AUDIO PANEL #"),"* System Maximums: Eight (8) Audio Cabinets Interconnected, 144 Audio Zones w/Paging Controls, or, 72 Audio Zones w/both Paging & Evacuation Controls, Max.42 AH Batteries in Cabinet, 30A Power Supply Total per Cabinet",IF(OR(D18="FX-MNS EXTERNAL AUDIO CABINET #"),"* System Maximums: Three (3) Audio Expansion Cabinets If Interconnected To FX-MNS, or, Four (4) Audio Cabinets If Standalone, Max.42 AH Batteries in Cabinet, 30A Power Supply Total per Cabinet", "")) -> 
B20: QTY
B21: =COUNTIF(B23:B53,">0")*{1} -> 0 | D21: Panel Adder Modules
B22: =COUNTIF(B23:B53,">0")*{1} -> 0
D23: ANC-5000 Audio Network Controller (only include if mounting this module in this cabinet) | I23: 0.255 | J23: 0.265 | R23: =B23*I23 -> 0 | S23: =B23*J23 -> 0
D25: TNC-5000 Tel. Network Controller (only include if mounting this module in this cabinet) | I25: 0.195 | J25: 0.215 | R25: =B25*I25 -> 0 | S25: =B25*J25 -> 0
D27: =VLOOKUP(U27,NAC!G153:J169,2) -> QIF-5000B Interface | I27: =VLOOKUP(U27,NAC!G153:J169,3) -> 0.2 | J27: =VLOOKUP(U27,NAC!G153:J169,4) -> 0.2 | M27: 2 | R27: =B27*I27 -> 0 | S27: =B27*J27 -> 0 | U27: 2
D29: =VLOOKUP(U29,NAC!G153:J169,2) -> QIF-1000 Interface Module | I29: =VLOOKUP(U29,NAC!G153:J169,3) -> 0.18 | J29: =VLOOKUP(U29,NAC!G153:J169,4) -> 0.2 | M29: 3 | R29: =B29*I29 -> 0 | S29: =B29*J29 -> 0 | U29: 3
D31: =VLOOKUP(U31,NAC!G153:J169,2) -> QIF-2000 Interface Module | I31: =VLOOKUP(U31,NAC!G153:J169,3) -> 0.01 | J31: =VLOOKUP(U31,NAC!G153:J169,4) -> 0.01 | M31: 4 | R31: =B31*I31 -> 0 | S31: =B31*J31 -> 0 | U31: 4
D33: =VLOOKUP(U33,NAC!G153:J169,2) -> QAA-5415-25 / QAA-5415-70 4 Zone 15 watt Amplifier | I33: =VLOOKUP(U33,NAC!G153:J169,3) -> 0.055 | J33: =VLOOKUP(U33,NAC!G153:J169,4) -> 0.35 | M33: 5 | R33: =B33*I33 -> 0 | S33: =B33*J33 -> 0 | U33: 5
D35: =VLOOKUP(U35,NAC!G153:J169,2) -> QAA-5230-70/25 2 Zone 30 watt Amplifier | I35: =VLOOKUP(U35,NAC!G153:J169,3) -> 0.055 | J35: =VLOOKUP(U35,NAC!G153:J169,4) -> 0.35 | M35: 6 | R35: =B35*I35 -> 0 | S35: =B35*J35 -> 0 | U35: 6
D37: =VLOOKUP(U37,NAC!G153:J169,2) -> QAA-5160-70/25 1 Zone 60 watt Amplifier | I37: =VLOOKUP(U37,NAC!G153:J169,3) -> 0.055 | J37: =VLOOKUP(U37,NAC!G153:J169,4) -> 0.35 | M37: 8 | R37: =B37*I37 -> 0 | S37: =B37*J37 -> 0 | U37: 8
D39: =VLOOKUP(U39,NAC!G153:J169,2) -> QMP-5100B / QMP-5101B Master Paging Module | I39: =VLOOKUP(U39,NAC!G153:J169,3) -> 0.031 | J39: =VLOOKUP(U39,NAC!G153:J169,4) -> 0.081 | M39: 9 | R39: =B39*I39 -> 0 | S39: =B39*J39 -> 0 | U39: 9
D41: =VLOOKUP(U41,NAC!G153:J169,2) -> QMP-5100AX Paging Multiplex Module | I41: =VLOOKUP(U41,NAC!G153:J169,3) -> 0.031 | J41: =VLOOKUP(U41,NAC!G153:J169,4) -> 0.081 | M41: 10 | R41: =B41*I41 -> 0 | S41: =B41*J41 -> 0 | U41: 10
D43: =VLOOKUP(U43,NAC!G153:J169,2) -> QMP-5100MSB Microphone Splitter Board | I43: =VLOOKUP(U43,NAC!G153:J169,3) -> 0.13 | J43: =VLOOKUP(U43,NAC!G153:J169,4) -> 0.275 | M43: 11 | R43: =B43*I43 -> 0 | S43: =B43*J43 -> 0 | U43: 11
D45: =VLOOKUP(U45,NAC!G153:J169,2) -> QMT-5300A / QMT-5302 / QAMT-5302 Master Telephone Module | I45: =VLOOKUP(U45,NAC!G153:J169,3) -> 0.04 | J45: =VLOOKUP(U45,NAC!G153:J169,4) -> 0.04 | M45: 12 | R45: =B45*I45 -> 0 | S45: =B45*J45 -> 0 | U45: 12
D47: =VLOOKUP(U47,NAC!G153:J169,2) -> QAZT-5302DS Paging/Telephone 24 Zone Selector Module | I47: =VLOOKUP(U47,NAC!G153:J169,3) -> 0.026 | J47: =VLOOKUP(U47,NAC!G153:J169,4) -> 0.026 | M47: 13 | R47: =B47*I47 -> 0 | S47: =B47*J47 -> 0 | U47: 13
D49: =VLOOKUP(U49,NAC!G153:J169,2) -> QAZT-5348DS Paging/Telephone 48 Zone Selector Module | I49: =VLOOKUP(U49,NAC!G153:J169,3) -> 0.01 | J49: =VLOOKUP(U49,NAC!G153:J169,4) -> 0.022 | R49: =B49*I49 -> 0 | S49: =B49*J49 -> 0 | U49: 16
D51: =VLOOKUP(U51,NAC!G153:J169,2) -> QZT-5302 Telephone Zone Module (Hardwired) | I51: =VLOOKUP(U51,NAC!G153:J169,3) -> 0.026 | J51: =VLOOKUP(U51,NAC!G153:J169,4) -> 0.026 | M51: 14 | R51: =B51*I51 -> 0 | S51: =B51*J51 -> 0 | U51: 14
D53: =VLOOKUP(U53,NAC!G153:J169,2) -> QDV-1000 Digitized Voice Module | I53: =VLOOKUP(U53,NAC!G153:J169,3) -> 0.03 | J53: =VLOOKUP(U53,NAC!G153:J169,4) -> 0.03 | M53: 15 | R53: =B53*I53 -> 0 | S53: =B53*J53 -> 0 | U53: 15
B54: 1 | C54: =B33+B35 -> 0
B55: 1 | D55: Enter the Total Audio Power in Watts used by 15 Watt Amplifiers
B56: 1 | F56: Watts | S56: =E56*0.075 -> 0
B57: 1
B58: 1 | D58: Enter the Total Audio Power in Watts used by 30 and 60 Watt Amplifiers
B59: 1 | F59: Watts | S59: =E59*0.065 -> 0
B60: =COUNTIF(B64:B82,">0")*{1} -> 0 | D60: * Cabinet Maximums: Seven (7) Amplifiers per Cabinet, 360 Watts per Cabinet
D61: EXCEEDED MAXIMUM WATTS PER CABINET | J61: Enter | M61: Enter
B62: =COUNTIF(B64:B82,">0")*{1} -> 0 | D62: Additional Devices | J62: Standby | M62: Alarm
B63: =COUNTIF(B64:B82,">0")*{1} -> 0 | D63: Enter Description | J63: Current | M63: Current
R64: =B64*J64 -> 0 | S64: =B64*M64 -> 0
R66: =B66*J66 -> 0 | S66: =B66*M66 -> 0
R68: =B68*J68 -> 0 | S68: =B68*M68 -> 0
R70: =B70*J70 -> 0 | S70: =B70*M70 -> 0
R72: =B72*J72 -> 0 | S72: =B72*M72 -> 0
R74: =B74*J74 -> 0 | S74: =B74*M74 -> 0
R76: =B76*J76 -> 0 | S76: =B76*M76 -> 0
R78: =B78*J78 -> 0 | S78: =B78*M78 -> 0
R80: =B80*J80 -> 0 | S80: =B80*M80 -> 0
R82: =B82*J82 -> 0 | S82: =B82*M82 -> 0
B83: 1
B84: 1
B85: 1 | M85: Total Standby Current in Amps | S85: =SUM(R23:R82) -> 0 | U85: =B87*S85 -> 0
B86: 1
B87: 48 | D87: Enter Number of Standby Hours | M87: Total Alarm Current in Amps | S87: =SUM(S23:S82) -> 0 | U87: =B89*S87/60 -> 0
B88: 1
B89: 15 | D89: Enter Alarm Period in Minutes | U89: =U85+U87 -> 0
B90: 1
B91: 1.25 | D91: Enter Battery Derating | J91: Battery Capacity Requirement (Ah) | S91: =U89*B91 -> 0
B92: 1
B93: =COUNTIF(S91,"<26")*{1} -> 1 | J93: Recommended Mircom Batteries (x2) | S93: =IF(OR(S91=0),"",IF(OR(S91<26),"BAT-12V26A",IF(OR(S91>26),""))) -> 
B95: =COUNTIF(S91,">26")*{1} -> 0 | J95: Recommended Mircom Batteries (x2) | S95: =IF(OR(S91<26),"",IF(OR(S91<33),"BAT-12V33A",IF(OR(S91<42),"BAT-12V42A",IF(OR(S91<55),"BAT-12V55A",IF(OR(S91<75.009),"BAT-12V75A",""))))) -> 
G96: * Battery Charging Capability: Minimum 24AH (BAT-12V26A), Maximum 65AH (BAT-12V75A)
D97: Exceeds Battery Maximums For This Panel
D98: Exceeded Maximum Charging Capacity 65AH (BAT-12V75A)
D99: Battery Exceeds Backbox, Use BC-160 Battery Cabinet
B100: -9999 | D100: Maximum AMPS For Power Supply Has Been Exceeded
B104: Mircom Technologies hereby disclaims all warranties relating to this software utility, whether expressed or implied, including without limitation any implied warranties of merchantability or fitness for a particular purpose. Mircom Technologies cannot and will not assume, accept or be liable for any special, incidental, consequential, indirect or similar claims, losses or damages for any reason whatsoever. Use of this Software Utility shall be deemed acceptance of these terms. It is the sole responsibility of the user to ascertain the accuracy and the reliability of any and all information generated or provided by this software utility and to ensure maximum current levels for control units have not been exceeded

Sheet QX-5000 #3 (hidden)
F2: =IF(OR(D18="QX-5000 AUDIO PANEL #"),"QX-5000 Battery Calculation Program",IF(OR(D18="FX-MNS EXTERNAL AUDIO CABINET #"),"FX-MNS External Audio Cabinet Battery Calculation Program","")) -> 
B4: PROJECT NAME: | E4: =Menu!X2 -> 0
B6: ADDRESS: | E6: =Menu!X4 -> 0
B8: COMPANY NAME: | E8: =Menu!X15 -> 0
B10: PREPARED BY: | E10: =Menu!X17 -> 0
D12: Important: Enter Quantities then press enter, tab, or click another cell to update calculator.
R14: All Current in Amps
B15: 1 | R15: Standby | S15: Alarm
B16: 1 | D16: PANEL MODEL | R16: Current | S16: Current
D17: Select Model Below:
B18: 1 | H18: 3
D19: =IF(OR(D18="QX-5000 AUDIO PANEL #"),"* System Maximums: Eight (8) Audio Cabinets Interconnected, 144 Audio Zones w/Paging Controls, or, 72 Audio Zones w/both Paging & Evacuation Controls, Max.42 AH Batteries in Cabinet, 30A Power Supply Total per Cabinet",IF(OR(D18="FX-MNS EXTERNAL AUDIO CABINET #"),"* System Maximums: Three (3) Audio Expansion Cabinets If Interconnected To FX-MNS, or, Four (4) Audio Cabinets If Standalone, Max.42 AH Batteries in Cabinet, 30A Power Supply Total per Cabinet", "")) -> 
B20: QTY
B21: =COUNTIF(B23:B53,">0")*{1} -> 0 | D21: Panel Adder Modules
B22: =COUNTIF(B23:B53,">0")*{1} -> 0
D23: ANC-5000 Audio Network Controller (only include if mounting this module in this cabinet) | I23: 0.255 | J23: 0.265 | R23: =B23*I23 -> 0 | S23: =B23*J23 -> 0
D25: TNC-5000 Tel. Network Controller (only include if mounting this module in this cabinet) | I25: 0.195 | J25: 0.215 | R25: =B25*I25 -> 0 | S25: =B25*J25 -> 0
D27: =VLOOKUP(U27,NAC!G153:J169,2) -> QIF-5000B Interface | I27: =VLOOKUP(U27,NAC!G153:J169,3) -> 0.2 | J27: =VLOOKUP(U27,NAC!G153:J169,4) -> 0.2 | M27: 2 | R27: =B27*I27 -> 0 | S27: =B27*J27 -> 0 | U27: 2
D29: =VLOOKUP(U29,NAC!G153:J169,2) -> QIF-1000 Interface Module | I29: =VLOOKUP(U29,NAC!G153:J169,3) -> 0.18 | J29: =VLOOKUP(U29,NAC!G153:J169,4) -> 0.2 | M29: 3 | R29: =B29*I29 -> 0 | S29: =B29*J29 -> 0 | U29: 3
D31: =VLOOKUP(U31,NAC!G153:J169,2) -> QIF-2000 Interface Module | I31: =VLOOKUP(U31,NAC!G153:J169,3) -> 0.01 | J31: =VLOOKUP(U31,NAC!G153:J169,4) -> 0.01 | M31: 4 | R31: =B31*I31 -> 0 | S31: =B31*J31 -> 0 | U31: 4
D33: =VLOOKUP(U33,NAC!G153:J169,2) -> QAA-5415-25 / QAA-5415-70 4 Zone 15 watt Amplifier | I33: =VLOOKUP(U33,NAC!G153:J169,3) -> 0.055 | J33: =VLOOKUP(U33,NAC!G153:J169,4) -> 0.35 | M33: 5 | R33: =B33*I33 -> 0 | S33: =B33*J33 -> 0 | U33: 5
D35: =VLOOKUP(U35,NAC!G153:J169,2) -> QAA-5230-70/25 2 Zone 30 watt Amplifier | I35: =VLOOKUP(U35,NAC!G153:J169,3) -> 0.055 | J35: =VLOOKUP(U35,NAC!G153:J169,4) -> 0.35 | M35: 6 | R35: =B35*I35 -> 0 | S35: =B35*J35 -> 0 | U35: 6
D37: =VLOOKUP(U37,NAC!G153:J169,2) -> QAA-5160-70/25 1 Zone 60 watt Amplifier | I37: =VLOOKUP(U37,NAC!G153:J169,3) -> 0.055 | J37: =VLOOKUP(U37,NAC!G153:J169,4) -> 0.35 | M37: 8 | R37: =B37*I37 -> 0 | S37: =B37*J37 -> 0 | U37: 8
D39: =VLOOKUP(U39,NAC!G153:J169,2) -> QMP-5100B / QMP-5101B Master Paging Module | I39: =VLOOKUP(U39,NAC!G153:J169,3) -> 0.031 | J39: =VLOOKUP(U39,NAC!G153:J169,4) -> 0.081 | M39: 9 | R39: =B39*I39 -> 0 | S39: =B39*J39 -> 0 | U39: 9
D41: =VLOOKUP(U41,NAC!G153:J169,2) -> QMP-5100AX Paging Multiplex Module | I41: =VLOOKUP(U41,NAC!G153:J169,3) -> 0.031 | J41: =VLOOKUP(U41,NAC!G153:J169,4) -> 0.081 | M41: 10 | R41: =B41*I41 -> 0 | S41: =B41*J41 -> 0 | U41: 10
D43: =VLOOKUP(U43,NAC!G153:J169,2) -> QMP-5100MSB Microphone Splitter Board | I43: =VLOOKUP(U43,NAC!G153:J169,3) -> 0.13 | J43: =VLOOKUP(U43,NAC!G153:J169,4) -> 0.275 | M43: 11 | R43: =B43*I43 -> 0 | S43: =B43*J43 -> 0 | U43: 11
D45: =VLOOKUP(U45,NAC!G153:J169,2) -> QMT-5300A / QMT-5302 / QAMT-5302 Master Telephone Module | I45: =VLOOKUP(U45,NAC!G153:J169,3) -> 0.04 | J45: =VLOOKUP(U45,NAC!G153:J169,4) -> 0.04 | M45: 12 | R45: =B45*I45 -> 0 | S45: =B45*J45 -> 0 | U45: 12
D47: =VLOOKUP(U47,NAC!G153:J169,2) -> QAZT-5302DS Paging/Telephone 24 Zone Selector Module | I47: =VLOOKUP(U47,NAC!G153:J169,3) -> 0.026 | J47: =VLOOKUP(U47,NAC!G153:J169,4) -> 0.026 | M47: 13 | R47: =B47*I47 -> 0 | S47: =B47*J47 -> 0 | U47: 13
D49: =VLOOKUP(U49,NAC!G153:J169,2) -> QAZT-5348DS Paging/Telephone 48 Zone Selector Module | I49: =VLOOKUP(U49,NAC!G153:J169,3) -> 0.01 | J49: =VLOOKUP(U49,NAC!G153:J169,4) -> 0.022 | R49: =B49*I49 -> 0 | S49: =B49*J49 -> 0 | U49: 16
D51: =VLOOKUP(U51,NAC!G153:J169,2) -> QZT-5302 Telephone Zone Module (Hardwired) | I51: =VLOOKUP(U51,NAC!G153:J169,3) -> 0.026 | J51: =VLOOKUP(U51,NAC!G153:J169,4) -> 0.026 | M51: 14 | R51: =B51*I51 -> 0 | S51: =B51*J51 -> 0 | U51: 14
D53: =VLOOKUP(U53,NAC!G153:J169,2) -> QDV-1000 Digitized Voice Module | I53: =VLOOKUP(U53,NAC!G153:J169,3) -> 0.03 | J53: =VLOOKUP(U53,NAC!G153:J169,4) -> 0.03 | M53: 15 | R53: =B53*I53 -> 0 | S53: =B53*J53 -> 0 | U53: 15
B54: 1 | C54: =B33+B35 -> 0
B55: 1 | D55: Enter the Total Audio Power in Watts used by 15 Watt Amplifiers
B56: 1 | F56: Watts | S56: =E56*0.075 -> 0
B57: 1
B58: 1 | D58: Enter the Total Audio Power in Watts used by 30 and 60 Watt Amplifiers
B59: 1 | F59: Watts | S59: =E59*0.065 -> 0
B60: =COUNTIF(B64:B82,">0")*{1} -> 0 | D60: * Cabinet Maximums: Seven (7) Amplifiers per Cabinet, 360 Watts per Cabinet
D61: EXCEEDED MAXIMUM WATTS PER CABINET | J61: Enter | M61: Enter
B62: =COUNTIF(B64:B82,">0")*{1} -> 0 | D62: Additional Devices | J62: Standby | M62: Alarm
B63: =COUNTIF(B64:B82,">0")*{1} -> 0 | D63: Enter Description | J63: Current | M63: Current
R64: =B64*J64 -> 0 | S64: =B64*M64 -> 0
R66: =B66*J66 -> 0 | S66: =B66*M66 -> 0
R68: =B68*J68 -> 0 | S68: =B68*M68 -> 0
R70: =B70*J70 -> 0 | S70: =B70*M70 -> 0
R72: =B72*J72 -> 0 | S72: =B72*M72 -> 0
R74: =B74*J74 -> 0 | S74: =B74*M74 -> 0
R76: =B76*J76 -> 0 | S76: =B76*M76 -> 0
R78: =B78*J78 -> 0 | S78: =B78*M78 -> 0
R80: =B80*J80 -> 0 | S80: =B80*M80 -> 0
R82: =B82*J82 -> 0 | S82: =B82*M82 -> 0
B83: 1
B84: 1
B85: 1 | M85: Total Standby Current in Amps | S85: =SUM(R23:R82) -> 0 | U85: =B87*S85 -> 0
B86: 1
B87: 48 | D87: Enter Number of Standby Hours | M87: Total Alarm Current in Amps | S87: =SUM(S23:S82) -> 0 | U87: =B89*S87/60 -> 0
B88: 1
B89: 15 | D89: Enter Alarm Period in Minutes | U89: =U85+U87 -> 0
B90: 1
B91: 1.25 | D91: Enter Battery Derating | J91: Battery Capacity Requirement (Ah) | S91: =U89*B91 -> 0
B92: 1
B93: =COUNTIF(S91,"<26")*{1} -> 1 | J93: Recommended Mircom Batteries (x2) | S93: =IF(OR(S91=0),"",IF(OR(S91<26),"BAT-12V26A",IF(OR(S91>26),""))) -> 
B95: =COUNTIF(S91,">26")*{1} -> 0 | J95: Recommended Mircom Batteries (x2) | S95: =IF(OR(S91<26),"",IF(OR(S91<33),"BAT-12V33A",IF(OR(S91<42),"BAT-12V42A",IF(OR(S91<55),"BAT-12V55A",IF(OR(S91<75.009),"BAT-12V75A",""))))) -> 
G96: * Battery Charging Capability: Minimum 24AH (BAT-12V26A), Maximum 65AH (BAT-12V75A)
D97: Exceeds Battery Maximums For This Panel
D98: Exceeded Maximum Charging Capacity 65AH (BAT-12V75A)
D99: Battery Exceeds Backbox, Use BC-160 Battery Cabinet
B100: -9999 | D100: Maximum AMPS For Power Supply Has Been Exceeded
B104: Mircom Technologies hereby disclaims all warranties relating to this software utility, whether expressed or implied, including without limitation any implied warranties of merchantability or fitness for a particular purpose. Mircom Technologies cannot and will not assume, accept or be liable for any special, incidental, consequential, indirect or similar claims, losses or damages for any reason whatsoever. Use of this Software Utility shall be deemed acceptance of these terms. It is the sole responsibility of the user to ascertain the accuracy and the reliability of any and all information generated or provided by this software utility and to ensure maximum current levels for control units have not been exceeded

Sheet QX-5000 #4 (hidden)
F2: =IF(OR(D18="QX-5000 AUDIO PANEL #"),"QX-5000 Battery Calculation Program",IF(OR(D18="FX-MNS EXTERNAL AUDIO CABINET #"),"FX-MNS External Audio Cabinet Battery Calculation Program","")) -> 
B4: PROJECT NAME: | E4: =Menu!X2 -> 0
B6: ADDRESS: | E6: =Menu!X4 -> 0
B8: COMPANY NAME: | E8: =Menu!X15 -> 0
B10: PREPARED BY: | E10: =Menu!X17 -> 0
D12: Important: Enter Quantities then press enter, tab, or click another cell to update calculator.
R14: All Current in Amps
B15: 1 | R15: Standby | S15: Alarm
B16: 1 | D16: PANEL MODEL | R16: Current | S16: Current
D17: Select Model Below:
B18: 1 | H18: 4
D19: =IF(OR(D18="QX-5000 AUDIO PANEL #"),"* System Maximums: Eight (8) Audio Cabinets Interconnected, 144 Audio Zones w/Paging Controls, or, 72 Audio Zones w/both Paging & Evacuation Controls, Max.42 AH Batteries in Cabinet, 30A Power Supply Total per Cabinet",IF(OR(D18="FX-MNS EXTERNAL AUDIO CABINET #"),"* System Maximums: Three (3) Audio Expansion Cabinets If Interconnected To FX-MNS, or, Four (4) Audio Cabinets If Standalone, Max.42 AH Batteries in Cabinet, 30A Power Supply Total per Cabinet", "")) -> 
B20: QTY
B21: =COUNTIF(B23:B53,">0")*{1} -> 0 | D21: Panel Adder Modules
B22: =COUNTIF(B23:B53,">0")*{1} -> 0
D23: ANC-5000 Audio Network Controller (only include if mounting this module in this cabinet) | I23: 0.255 | J23: 0.265 | R23: =B23*I23 -> 0 | S23: =B23*J23 -> 0
D25: TNC-5000 Tel. Network Controller (only include if mounting this module in this cabinet) | I25: 0.195 | J25: 0.215 | R25: =B25*I25 -> 0 | S25: =B25*J25 -> 0
D27: =VLOOKUP(U27,NAC!G153:J169,2) -> QIF-5000B Interface | I27: =VLOOKUP(U27,NAC!G153:J169,3) -> 0.2 | J27: =VLOOKUP(U27,NAC!G153:J169,4) -> 0.2 | M27: 2 | R27: =B27*I27 -> 0 | S27: =B27*J27 -> 0 | U27: 2
D29: =VLOOKUP(U29,NAC!G153:J169,2) -> QIF-1000 Interface Module | I29: =VLOOKUP(U29,NAC!G153:J169,3) -> 0.18 | J29: =VLOOKUP(U29,NAC!G153:J169,4) -> 0.2 | M29: 3 | R29: =B29*I29 -> 0 | S29: =B29*J29 -> 0 | U29: 3
D31: =VLOOKUP(U31,NAC!G153:J169,2) -> QIF-2000 Interface Module | I31: =VLOOKUP(U31,NAC!G153:J169,3) -> 0.01 | J31: =VLOOKUP(U31,NAC!G153:J169,4) -> 0.01 | M31: 4 | R31: =B31*I31 -> 0 | S31: =B31*J31 -> 0 | U31: 4
D33: =VLOOKUP(U33,NAC!G153:J169,2) -> QAA-5415-25 / QAA-5415-70 4 Zone 15 watt Amplifier | I33: =VLOOKUP(U33,NAC!G153:J169,3) -> 0.055 | J33: =VLOOKUP(U33,NAC!G153:J169,4) -> 0.35 | M33: 5 | R33: =B33*I33 -> 0 | S33: =B33*J33 -> 0 | U33: 5
D35: =VLOOKUP(U35,NAC!G153:J169,2) -> QAA-5230-70/25 2 Zone 30 watt Amplifier | I35: =VLOOKUP(U35,NAC!G153:J169,3) -> 0.055 | J35: =VLOOKUP(U35,NAC!G153:J169,4) -> 0.35 | M35: 6 | R35: =B35*I35 -> 0 | S35: =B35*J35 -> 0 | U35: 6
D37: =VLOOKUP(U37,NAC!G153:J169,2) -> QAA-5160-70/25 1 Zone 60 watt Amplifier | I37: =VLOOKUP(U37,NAC!G153:J169,3) -> 0.055 | J37: =VLOOKUP(U37,NAC!G153:J169,4) -> 0.35 | M37: 8 | R37: =B37*I37 -> 0 | S37: =B37*J37 -> 0 | U37: 8
D39: =VLOOKUP(U39,NAC!G153:J169,2) -> QMP-5100B / QMP-5101B Master Paging Module | I39: =VLOOKUP(U39,NAC!G153:J169,3) -> 0.031 | J39: =VLOOKUP(U39,NAC!G153:J169,4) -> 0.081 | M39: 9 | R39: =B39*I39 -> 0 | S39: =B39*J39 -> 0 | U39: 9
D41: =VLOOKUP(U41,NAC!G153:J169,2) -> QMP-5100AX Paging Multiplex Module | I41: =VLOOKUP(U41,NAC!G153:J169,3) -> 0.031 | J41: =VLOOKUP(U41,NAC!G153:J169,4) -> 0.081 | M41: 10 | R41: =B41*I41 -> 0 | S41: =B41*J41 -> 0 | U41: 10
D43: =VLOOKUP(U43,NAC!G153:J169,2) -> QMP-5100MSB Microphone Splitter Board | I43: =VLOOKUP(U43,NAC!G153:J169,3) -> 0.13 | J43: =VLOOKUP(U43,NAC!G153:J169,4) -> 0.275 | M43: 11 | R43: =B43*I43 -> 0 | S43: =B43*J43 -> 0 | U43: 11
D45: =VLOOKUP(U45,NAC!G153:J169,2) -> QMT-5300A / QMT-5302 / QAMT-5302 Master Telephone Module | I45: =VLOOKUP(U45,NAC!G153:J169,3) -> 0.04 | J45: =VLOOKUP(U45,NAC!G153:J169,4) -> 0.04 | M45: 12 | R45: =B45*I45 -> 0 | S45: =B45*J45 -> 0 | U45: 12
D47: =VLOOKUP(U47,NAC!G153:J169,2) -> QAZT-5302DS Paging/Telephone 24 Zone Selector Module | I47: =VLOOKUP(U47,NAC!G153:J169,3) -> 0.026 | J47: =VLOOKUP(U47,NAC!G153:J169,4) -> 0.026 | M47: 13 | R47: =B47*I47 -> 0 | S47: =B47*J47 -> 0 | U47: 13
D49: =VLOOKUP(U49,NAC!G153:J169,2) -> QAZT-5348DS Paging/Telephone 48 Zone Selector Module | I49: =VLOOKUP(U49,NAC!G153:J169,3) -> 0.01 | J49: =VLOOKUP(U49,NAC!G153:J169,4) -> 0.022 | R49: =B49*I49 -> 0 | S49: =B49*J49 -> 0 | U49: 16
D51: =VLOOKUP(U51,NAC!G153:J169,2) -> QZT-5302 Telephone Zone Module (Hardwired) | I51: =VLOOKUP(U51,NAC!G153:J169,3) -> 0.026 | J51: =VLOOKUP(U51,NAC!G153:J169,4) -> 0.026 | M51: 14 | R51: =B51*I51 -> 0 | S51: =B51*J51 -> 0 | U51: 14
D53: =VLOOKUP(U53,NAC!G153:J169,2) -> QDV-1000 Digitized Voice Module | I53: =VLOOKUP(U53,NAC!G153:J169,3) -> 0.03 | J53: =VLOOKUP(U53,NAC!G153:J169,4) -> 0.03 | M53: 15 | R53: =B53*I53 -> 0 | S53: =B53*J53 -> 0 | U53: 15
B54: 1 | C54: =B33+B35 -> 0
B55: 1 | D55: Enter the Total Audio Power in Watts used by 15 Watt Amplifiers
B56: 1 | F56: Watts | S56: =E56*0.075 -> 0
B57: 1
B58: 1 | D58: Enter the Total Audio Power in Watts used by 30 and 60 Watt Amplifiers
B59: 1 | F59: Watts | S59: =E59*0.065 -> 0
B60: =COUNTIF(B64:B82,">0")*{1} -> 0 | D60: * Cabinet Maximums: Seven (7) Amplifiers per Cabinet, 360 Watts per Cabinet
D61: EXCEEDED MAXIMUM WATTS PER CABINET | J61: Enter | M61: Enter
B62: =COUNTIF(B64:B82,">0")*{1} -> 0 | D62: Additional Devices | J62: Standby | M62: Alarm
B63: =COUNTIF(B64:B82,">0")*{1} -> 0 | D63: Enter Description | J63: Current | M63: Current
R64: =B64*J64 -> 0 | S64: =B64*M64 -> 0
R66: =B66*J66 -> 0 | S66: =B66*M66 -> 0
R68: =B68*J68 -> 0 | S68: =B68*M68 -> 0
R70: =B70*J70 -> 0 | S70: =B70*M70 -> 0
R72: =B72*J72 -> 0 | S72: =B72*M72 -> 0
R74: =B74*J74 -> 0 | S74: =B74*M74 -> 0
R76: =B76*J76 -> 0 | S76: =B76*M76 -> 0
R78: =B78*J78 -> 0 | S78: =B78*M78 -> 0
R80: =B80*J80 -> 0 | S80: =B80*M80 -> 0
R82: =B82*J82 -> 0 | S82: =B82*M82 -> 0
B83: 1
B84: 1
B85: 1 | M85: Total Standby Current in Amps | S85: =SUM(R23:R82) -> 0 | U85: =B87*S85 -> 0
B86: 1
B87: 48 | D87: Enter Number of Standby Hours | M87: Total Alarm Current in Amps | S87: =SUM(S23:S82) -> 0 | U87: =B89*S87/60 -> 0
B88: 1
B89: 15 | D89: Enter Alarm Period in Minutes | U89: =U85+U87 -> 0
B90: 1
B91: 1.25 | D91: Enter Battery Derating | J91: Battery Capacity Requirement (Ah) | S91: =U89*B91 -> 0
B92: 1
B93: =COUNTIF(S91,"<26")*{1} -> 1 | J93: Recommended Mircom Batteries (x2) | S93: =IF(OR(S91=0),"",IF(OR(S91<26),"BAT-12V26A",IF(OR(S91>26),""))) -> 
B95: =COUNTIF(S91,">26")*{1} -> 0 | J95: Recommended Mircom Batteries (x2) | S95: =IF(OR(S91<26),"",IF(OR(S91<33),"BAT-12V33A",IF(OR(S91<42),"BAT-12V42A",IF(OR(S91<55),"BAT-12V55A",IF(OR(S91<75.009),"BAT-12V75A",""))))) -> 
G96: * Battery Charging Capability: Minimum 24AH (BAT-12V26A), Maximum 65AH (BAT-12V75A)
D97: Exceeds Battery Maximums For This Panel
D98: Exceeded Maximum Charging Capacity 65AH (BAT-12V75A)
D99: Battery Exceeds Backbox, Use BC-160 Battery Cabinet
B100: -9999 | D100: Maximum AMPS For Power Supply Has Been Exceeded
B104: Mircom Technologies hereby disclaims all warranties relating to this software utility, whether expressed or implied, including without limitation any implied warranties of merchantability or fitness for a particular purpose. Mircom Technologies cannot and will not assume, accept or be liable for any special, incidental, consequential, indirect or similar claims, losses or damages for any reason whatsoever. Use of this Software Utility shall be deemed acceptance of these terms. It is the sole responsibility of the user to ascertain the accuracy and the reliability of any and all information generated or provided by this software utility and to ensure maximum current levels for control units have not been exceeded

Sheet QX-5000 #5 (hidden)
F2: =IF(OR(D18="QX-5000 AUDIO PANEL #"),"QX-5000 Battery Calculation Program",IF(OR(D18="FX-MNS EXTERNAL AUDIO CABINET #"),"FX-MNS External Audio Cabinet Battery Calculation Program","")) -> 
B4: PROJECT NAME: | E4: =Menu!X2 -> 0
B6: ADDRESS: | E6: =Menu!X4 -> 0
B8: COMPANY NAME: | E8: =Menu!X15 -> 0
B10: PREPARED BY: | E10: =Menu!X17 -> 0
D12: Important: Enter Quantities then press enter, tab, or click another cell to update calculator.
R14: All Current in Amps
B15: 1 | R15: Standby | S15: Alarm
B16: 1 | D16: PANEL MODEL | R16: Current | S16: Current
D17: Select Model Below:
B18: 1 | H18: 5
D19: =IF(OR(D18="QX-5000 AUDIO PANEL #"),"* System Maximums: Eight (8) Audio Cabinets Interconnected, 144 Audio Zones w/Paging Controls, or, 72 Audio Zones w/both Paging & Evacuation Controls, Max.42 AH Batteries in Cabinet, 30A Power Supply Total per Cabinet",IF(OR(D18="FX-MNS EXTERNAL AUDIO CABINET #"),"* System Maximums: Three (3) Audio Expansion Cabinets If Interconnected To FX-MNS, or, Four (4) Audio Cabinets If Standalone, Max.42 AH Batteries in Cabinet, 30A Power Supply Total per Cabinet", "")) -> 
B20: QTY
B21: =COUNTIF(B23:B53,">0")*{1} -> 0 | D21: Panel Adder Modules
B22: =COUNTIF(B23:B53,">0")*{1} -> 0
D23: ANC-5000 Audio Network Controller (only include if mounting this module in this cabinet) | I23: 0.255 | J23: 0.265 | R23: =B23*I23 -> 0 | S23: =B23*J23 -> 0
D25: TNC-5000 Tel. Network Controller (only include if mounting this module in this cabinet) | I25: 0.195 | J25: 0.215 | R25: =B25*I25 -> 0 | S25: =B25*J25 -> 0
D27: =VLOOKUP(U27,NAC!G153:J169,2) -> QIF-5000B Interface | I27: =VLOOKUP(U27,NAC!G153:J169,3) -> 0.2 | J27: =VLOOKUP(U27,NAC!G153:J169,4) -> 0.2 | M27: 2 | R27: =B27*I27 -> 0 | S27: =B27*J27 -> 0 | U27: 2
D29: =VLOOKUP(U29,NAC!G153:J169,2) -> QIF-1000 Interface Module | I29: =VLOOKUP(U29,NAC!G153:J169,3) -> 0.18 | J29: =VLOOKUP(U29,NAC!G153:J169,4) -> 0.2 | M29: 3 | R29: =B29*I29 -> 0 | S29: =B29*J29 -> 0 | U29: 3
D31: =VLOOKUP(U31,NAC!G153:J169,2) -> QIF-2000 Interface Module | I31: =VLOOKUP(U31,NAC!G153:J169,3) -> 0.01 | J31: =VLOOKUP(U31,NAC!G153:J169,4) -> 0.01 | M31: 4 | R31: =B31*I31 -> 0 | S31: =B31*J31 -> 0 | U31: 4
D33: =VLOOKUP(U33,NAC!G153:J169,2) -> QAA-5415-25 / QAA-5415-70 4 Zone 15 watt Amplifier | I33: =VLOOKUP(U33,NAC!G153:J169,3) -> 0.055 | J33: =VLOOKUP(U33,NAC!G153:J169,4) -> 0.35 | M33: 5 | R33: =B33*I33 -> 0 | S33: =B33*J33 -> 0 | U33: 5
D35: =VLOOKUP(U35,NAC!G153:J169,2) -> QAA-5230-70/25 2 Zone 30 watt Amplifier | I35: =VLOOKUP(U35,NAC!G153:J169,3) -> 0.055 | J35: =VLOOKUP(U35,NAC!G153:J169,4) -> 0.35 | M35: 6 | R35: =B35*I35 -> 0 | S35: =B35*J35 -> 0 | U35: 6
D37: =VLOOKUP(U37,NAC!G153:J169,2) -> QAA-5160-70/25 1 Zone 60 watt Amplifier | I37: =VLOOKUP(U37,NAC!G153:J169,3) -> 0.055 | J37: =VLOOKUP(U37,NAC!G153:J169,4) -> 0.35 | M37: 8 | R37: =B37*I37 -> 0 | S37: =B37*J37 -> 0 | U37: 8
D39: =VLOOKUP(U39,NAC!G153:J169,2) -> QMP-5100B / QMP-5101B Master Paging Module | I39: =VLOOKUP(U39,NAC!G153:J169,3) -> 0.031 | J39: =VLOOKUP(U39,NAC!G153:J169,4) -> 0.081 | M39: 9 | R39: =B39*I39 -> 0 | S39: =B39*J39 -> 0 | U39: 9
D41: =VLOOKUP(U41,NAC!G153:J169,2) -> QMP-5100AX Paging Multiplex Module | I41: =VLOOKUP(U41,NAC!G153:J169,3) -> 0.031 | J41: =VLOOKUP(U41,NAC!G153:J169,4) -> 0.081 | M41: 10 | R41: =B41*I41 -> 0 | S41: =B41*J41 -> 0 | U41: 10
D43: =VLOOKUP(U43,NAC!G153:J169,2) -> QMP-5100MSB Microphone Splitter Board | I43: =VLOOKUP(U43,NAC!G153:J169,3) -> 0.13 | J43: =VLOOKUP(U43,NAC!G153:J169,4) -> 0.275 | M43: 11 | R43: =B43*I43 -> 0 | S43: =B43*J43 -> 0 | U43: 11
D45: =VLOOKUP(U45,NAC!G153:J169,2) -> QMT-5300A / QMT-5302 / QAMT-5302 Master Telephone Module | I45: =VLOOKUP(U45,NAC!G153:J169,3) -> 0.04 | J45: =VLOOKUP(U45,NAC!G153:J169,4) -> 0.04 | M45: 12 | R45: =B45*I45 -> 0 | S45: =B45*J45 -> 0 | U45: 12
D47: =VLOOKUP(U47,NAC!G153:J169,2) -> QAZT-5302DS Paging/Telephone 24 Zone Selector Module | I47: =VLOOKUP(U47,NAC!G153:J169,3) -> 0.026 | J47: =VLOOKUP(U47,NAC!G153:J169,4) -> 0.026 | M47: 13 | R47: =B47*I47 -> 0 | S47: =B47*J47 -> 0 | U47: 13
D49: =VLOOKUP(U49,NAC!G153:J169,2) -> QAZT-5348DS Paging/Telephone 48 Zone Selector Module | I49: =VLOOKUP(U49,NAC!G153:J169,3) -> 0.01 | J49: =VLOOKUP(U49,NAC!G153:J169,4) -> 0.022 | R49: =B49*I49 -> 0 | S49: =B49*J49 -> 0 | U49: 16
D51: =VLOOKUP(U51,NAC!G153:J169,2) -> QZT-5302 Telephone Zone Module (Hardwired) | I51: =VLOOKUP(U51,NAC!G153:J169,3) -> 0.026 | J51: =VLOOKUP(U51,NAC!G153:J169,4) -> 0.026 | M51: 14 | R51: =B51*I51 -> 0 | S51: =B51*J51 -> 0 | U51: 14
D53: =VLOOKUP(U53,NAC!G153:J169,2) -> QDV-1000 Digitized Voice Module | I53: =VLOOKUP(U53,NAC!G153:J169,3) -> 0.03 | J53: =VLOOKUP(U53,NAC!G153:J169,4) -> 0.03 | M53: 15 | R53: =B53*I53 -> 0 | S53: =B53*J53 -> 0 | U53: 15
B54: 1 | C54: =B33+B35 -> 0
B55: 1 | D55: Enter the Total Audio Power in Watts used by 15 Watt Amplifiers
B56: 1 | F56: Watts | S56: =E56*0.075 -> 0
B57: 1
B58: 1 | D58: Enter the Total Audio Power in Watts used by 30 and 60 Watt Amplifiers
B59: 1 | F59: Watts | S59: =E59*0.065 -> 0
B60: =COUNTIF(B64:B82,">0")*{1} -> 0 | D60: * Cabinet Maximums: Seven (7) Amplifiers per Cabinet, 360 Watts per Cabinet
D61: EXCEEDED MAXIMUM WATTS PER CABINET | J61: Enter | M61: Enter
B62: =COUNTIF(B64:B82,">0")*{1} -> 0 | D62: Additional Devices | J62: Standby | M62: Alarm
B63: =COUNTIF(B64:B82,">0")*{1} -> 0 | D63: Enter Description | J63: Current | M63: Current
R64: =B64*J64 -> 0 | S64: =B64*M64 -> 0
R66: =B66*J66 -> 0 | S66: =B66*M66 -> 0
R68: =B68*J68 -> 0 | S68: =B68*M68 -> 0
R70: =B70*J70 -> 0 | S70: =B70*M70 -> 0
R72: =B72*J72 -> 0 | S72: =B72*M72 -> 0
R74: =B74*J74 -> 0 | S74: =B74*M74 -> 0
R76: =B76*J76 -> 0 | S76: =B76*M76 -> 0
R78: =B78*J78 -> 0 | S78: =B78*M78 -> 0
R80: =B80*J80 -> 0 | S80: =B80*M80 -> 0
R82: =B82*J82 -> 0 | S82: =B82*M82 -> 0
B83: 1
B84: 1
B85: 1 | M85: Total Standby Current in Amps | S85: =SUM(R23:R82) -> 0 | U85: =B87*S85 -> 0
B86: 1
B87: 48 | D87: Enter Number of Standby Hours | M87: Total Alarm Current in Amps | S87: =SUM(S23:S82) -> 0 | U87: =B89*S87/60 -> 0
B88: 1
B89: 15 | D89: Enter Alarm Period in Minutes | U89: =U85+U87 -> 0
B90: 1
B91: 1.25 | D91: Enter Battery Derating | J91: Battery Capacity Requirement (Ah) | S91: =U89*B91 -> 0
B92: 1
B93: =COUNTIF(S91,"<26")*{1} -> 1 | J93: Recommended Mircom Batteries (x2) | S93: =IF(OR(S91=0),"",IF(OR(S91<26),"BAT-12V26A",IF(OR(S91>26),""))) -> 
B95: =COUNTIF(S91,">26")*{1} -> 0 | J95: Recommended Mircom Batteries (x2) | S95: =IF(OR(S91<26),"",IF(OR(S91<33),"BAT-12V33A",IF(OR(S91<42),"BAT-12V42A",IF(OR(S91<55),"BAT-12V55A",IF(OR(S91<75.009),"BAT-12V75A",""))))) -> 
G96: * Battery Charging Capability: Minimum 24AH (BAT-12V26A), Maximum 65AH (BAT-12V75A)
D97: Exceeds Battery Maximums For This Panel
D98: Exceeded Maximum Charging Capacity 65AH (BAT-12V75A)
D99: Battery Exceeds Backbox, Use BC-160 Battery Cabinet
B100: -9999 | D100: Maximum AMPS For Power Supply Has Been Exceeded
B104: Mircom Technologies hereby disclaims all warranties relating to this software utility, whether expressed or implied, including without limitation any implied warranties of merchantability or fitness for a particular purpose. Mircom Technologies cannot and will not assume, accept or be liable for any special, incidental, consequential, indirect or similar claims, losses or damages for any reason whatsoever. Use of this Software Utility shall be deemed acceptance of these terms. It is the sole responsibility of the user to ascertain the accuracy and the reliability of any and all information generated or provided by this software utility and to ensure maximum current levels for control units have not been exceeded

Sheet QX-5000 #6 (hidden)
F2: =IF(OR(D18="QX-5000 AUDIO PANEL #"),"QX-5000 Battery Calculation Program",IF(OR(D18="FX-MNS EXTERNAL AUDIO CABINET #"),"FX-MNS External Audio Cabinet Battery Calculation Program","")) -> 
B4: PROJECT NAME: | E4: =Menu!X2 -> 0
B6: ADDRESS: | E6: =Menu!X4 -> 0
B8: COMPANY NAME: | E8: =Menu!X15 -> 0
B10: PREPARED BY: | E10: =Menu!X17 -> 0
D12: Important: Enter Quantities then press enter, tab, or click another cell to update calculator.
R14: All Current in Amps
B15: 1 | R15: Standby | S15: Alarm
B16: 1 | D16: PANEL MODEL | R16: Current | S16: Current
D17: Select Model Below:
B18: 1 | H18: 6
D19: =IF(OR(D18="QX-5000 AUDIO PANEL #"),"* System Maximums: Eight (8) Audio Cabinets Interconnected, 144 Audio Zones w/Paging Controls, or, 72 Audio Zones w/both Paging & Evacuation Controls, Max.42 AH Batteries in Cabinet, 30A Power Supply Total per Cabinet",IF(OR(D18="FX-MNS EXTERNAL AUDIO CABINET #"),"* System Maximums: Three (3) Audio Expansion Cabinets If Interconnected To FX-MNS, or, Four (4) Audio Cabinets If Standalone, Max.42 AH Batteries in Cabinet, 30A Power Supply Total per Cabinet", "")) -> 
B20: QTY
B21: =COUNTIF(B23:B53,">0")*{1} -> 0 | D21: Panel Adder Modules
B22: =COUNTIF(B23:B53,">0")*{1} -> 0
D23: ANC-5000 Audio Network Controller (only include if mounting this module in this cabinet) | I23: 0.255 | J23: 0.265 | R23: =B23*I23 -> 0 | S23: =B23*J23 -> 0
D25: TNC-5000 Tel. Network Controller (only include if mounting this module in this cabinet) | I25: 0.195 | J25: 0.215 | R25: =B25*I25 -> 0 | S25: =B25*J25 -> 0
D27: =VLOOKUP(U27,NAC!G153:J169,2) -> QIF-5000B Interface | I27: =VLOOKUP(U27,NAC!G153:J169,3) -> 0.2 | J27: =VLOOKUP(U27,NAC!G153:J169,4) -> 0.2 | M27: 2 | R27: =B27*I27 -> 0 | S27: =B27*J27 -> 0 | U27: 2
D29: =VLOOKUP(U29,NAC!G153:J169,2) -> QIF-1000 Interface Module | I29: =VLOOKUP(U29,NAC!G153:J169,3) -> 0.18 | J29: =VLOOKUP(U29,NAC!G153:J169,4) -> 0.2 | M29: 3 | R29: =B29*I29 -> 0 | S29: =B29*J29 -> 0 | U29: 3
D31: =VLOOKUP(U31,NAC!G153:J169,2) -> QIF-2000 Interface Module | I31: =VLOOKUP(U31,NAC!G153:J169,3) -> 0.01 | J31: =VLOOKUP(U31,NAC!G153:J169,4) -> 0.01 | M31: 4 | R31: =B31*I31 -> 0 | S31: =B31*J31 -> 0 | U31: 4
D33: =VLOOKUP(U33,NAC!G153:J169,2) -> QAA-5415-25 / QAA-5415-70 4 Zone 15 watt Amplifier | I33: =VLOOKUP(U33,NAC!G153:J169,3) -> 0.055 | J33: =VLOOKUP(U33,NAC!G153:J169,4) -> 0.35 | M33: 5 | R33: =B33*I33 -> 0 | S33: =B33*J33 -> 0 | U33: 5
D35: =VLOOKUP(U35,NAC!G153:J169,2) -> QAA-5230-70/25 2 Zone 30 watt Amplifier | I35: =VLOOKUP(U35,NAC!G153:J169,3) -> 0.055 | J35: =VLOOKUP(U35,NAC!G153:J169,4) -> 0.35 | M35: 6 | R35: =B35*I35 -> 0 | S35: =B35*J35 -> 0 | U35: 6
D37: =VLOOKUP(U37,NAC!G153:J169,2) -> QAA-5160-70/25 1 Zone 60 watt Amplifier | I37: =VLOOKUP(U37,NAC!G153:J169,3) -> 0.055 | J37: =VLOOKUP(U37,NAC!G153:J169,4) -> 0.35 | M37: 8 | R37: =B37*I37 -> 0 | S37: =B37*J37 -> 0 | U37: 8
D39: =VLOOKUP(U39,NAC!G153:J169,2) -> QMP-5100B / QMP-5101B Master Paging Module | I39: =VLOOKUP(U39,NAC!G153:J169,3) -> 0.031 | J39: =VLOOKUP(U39,NAC!G153:J169,4) -> 0.081 | M39: 9 | R39: =B39*I39 -> 0 | S39: =B39*J39 -> 0 | U39: 9
D41: =VLOOKUP(U41,NAC!G153:J169,2) -> QMP-5100AX Paging Multiplex Module | I41: =VLOOKUP(U41,NAC!G153:J169,3) -> 0.031 | J41: =VLOOKUP(U41,NAC!G153:J169,4) -> 0.081 | M41: 10 | R41: =B41*I41 -> 0 | S41: =B41*J41 -> 0 | U41: 10
D43: =VLOOKUP(U43,NAC!G153:J169,2) -> QMP-5100MSB Microphone Splitter Board | I43: =VLOOKUP(U43,NAC!G153:J169,3) -> 0.13 | J43: =VLOOKUP(U43,NAC!G153:J169,4) -> 0.275 | M43: 11 | R43: =B43*I43 -> 0 | S43: =B43*J43 -> 0 | U43: 11
D45: =VLOOKUP(U45,NAC!G153:J169,2) -> QMT-5300A / QMT-5302 / QAMT-5302 Master Telephone Module | I45: =VLOOKUP(U45,NAC!G153:J169,3) -> 0.04 | J45: =VLOOKUP(U45,NAC!G153:J169,4) -> 0.04 | M45: 12 | R45: =B45*I45 -> 0 | S45: =B45*J45 -> 0 | U45: 12
D47: =VLOOKUP(U47,NAC!G153:J169,2) -> QAZT-5302DS Paging/Telephone 24 Zone Selector Module | I47: =VLOOKUP(U47,NAC!G153:J169,3) -> 0.026 | J47: =VLOOKUP(U47,NAC!G153:J169,4) -> 0.026 | M47: 13 | R47: =B47*I47 -> 0 | S47: =B47*J47 -> 0 | U47: 13
D49: =VLOOKUP(U49,NAC!G153:J169,2) -> QAZT-5348DS Paging/Telephone 48 Zone Selector Module | I49: =VLOOKUP(U49,NAC!G153:J169,3) -> 0.01 | J49: =VLOOKUP(U49,NAC!G153:J169,4) -> 0.022 | R49: =B49*I49 -> 0 | S49: =B49*J49 -> 0 | U49: 16
D51: =VLOOKUP(U51,NAC!G153:J169,2) -> QZT-5302 Telephone Zone Module (Hardwired) | I51: =VLOOKUP(U51,NAC!G153:J169,3) -> 0.026 | J51: =VLOOKUP(U51,NAC!G153:J169,4) -> 0.026 | M51: 14 | R51: =B51*I51 -> 0 | S51: =B51*J51 -> 0 | U51: 14
D53: =VLOOKUP(U53,NAC!G153:J169,2) -> QDV-1000 Digitized Voice Module | I53: =VLOOKUP(U53,NAC!G153:J169,3) -> 0.03 | J53: =VLOOKUP(U53,NAC!G153:J169,4) -> 0.03 | M53: 15 | R53: =B53*I53 -> 0 | S53: =B53*J53 -> 0 | U53: 15
B54: 1 | C54: =B33+B35 -> 0
B55: 1 | D55: Enter the Total Audio Power in Watts used by 15 Watt Amplifiers
B56: 1 | F56: Watts | S56: =E56*0.075 -> 0
B57: 1
B58: 1 | D58: Enter the Total Audio Power in Watts used by 30 and 60 Watt Amplifiers
B59: 1 | F59: Watts | S59: =E59*0.065 -> 0
B60: =COUNTIF(B64:B82,">0")*{1} -> 0 | D60: * Cabinet Maximums: Seven (7) Amplifiers per Cabinet, 360 Watts per Cabinet
D61: EXCEEDED MAXIMUM WATTS PER CABINET | J61: Enter | M61: Enter
B62: =COUNTIF(B64:B82,">0")*{1} -> 0 | D62: Additional Devices | J62: Standby | M62: Alarm
B63: =COUNTIF(B64:B82,">0")*{1} -> 0 | D63: Enter Description | J63: Current | M63: Current
R64: =B64*J64 -> 0 | S64: =B64*M64 -> 0
R66: =B66*J66 -> 0 | S66: =B66*M66 -> 0
R68: =B68*J68 -> 0 | S68: =B68*M68 -> 0
R70: =B70*J70 -> 0 | S70: =B70*M70 -> 0
R72: =B72*J72 -> 0 | S72: =B72*M72 -> 0
R74: =B74*J74 -> 0 | S74: =B74*M74 -> 0
R76: =B76*J76 -> 0 | S76: =B76*M76 -> 0
R78: =B78*J78 -> 0 | S78: =B78*M78 -> 0
R80: =B80*J80 -> 0 | S80: =B80*M80 -> 0
R82: =B82*J82 -> 0 | S82: =B82*M82 -> 0
B83: 1
B84: 1
B85: 1 | M85: Total Standby Current in Amps | S85: =SUM(R23:R82) -> 0 | U85: =B87*S85 -> 0
B86: 1
B87: 48 | D87: Enter Number of Standby Hours | M87: Total Alarm Current in Amps | S87: =SUM(S23:S82) -> 0 | U87: =B89*S87/60 -> 0
B88: 1
B89: 15 | D89: Enter Alarm Period in Minutes | U89: =U85+U87 -> 0
B90: 1
B91: 1.25 | D91: Enter Battery Derating | J91: Battery Capacity Requirement (Ah) | S91: =U89*B91 -> 0
B92: 1
B93: =COUNTIF(S91,"<26")*{1} -> 1 | J93: Recommended Mircom Batteries (x2) | S93: =IF(OR(S91=0),"",IF(OR(S91<26),"BAT-12V26A",IF(OR(S91>26),""))) -> 
B95: =COUNTIF(S91,">26")*{1} -> 0 | J95: Recommended Mircom Batteries (x2) | S95: =IF(OR(S91<26),"",IF(OR(S91<33),"BAT-12V33A",IF(OR(S91<42),"BAT-12V42A",IF(OR(S91<55),"BAT-12V55A",IF(OR(S91<75.009),"BAT-12V75A",""))))) -> 
G96: * Battery Charging Capability: Minimum 24AH (BAT-12V26A), Maximum 65AH (BAT-12V75A)
D97: Exceeds Battery Maximums For This Panel
D98: Exceeded Maximum Charging Capacity 65AH (BAT-12V75A)
D99: Battery Exceeds Backbox, Use BC-160 Battery Cabinet
B100: -9999 | D100: Maximum AMPS For Power Supply Has Been Exceeded
B104: Mircom Technologies hereby disclaims all warranties relating to this software utility, whether expressed or implied, including without limitation any implied warranties of merchantability or fitness for a particular purpose. Mircom Technologies cannot and will not assume, accept or be liable for any special, incidental, consequential, indirect or similar claims, losses or damages for any reason whatsoever. Use of this Software Utility shall be deemed acceptance of these terms. It is the sole responsibility of the user to ascertain the accuracy and the reliability of any and all information generated or provided by this software utility and to ensure maximum current levels for control units have not been exceeded

Sheet QX-5000 #7 (hidden)
F2: =IF(OR(D18="QX-5000 AUDIO PANEL #"),"QX-5000 Battery Calculation Program",IF(OR(D18="FX-MNS EXTERNAL AUDIO CABINET #"),"FX-MNS External Audio Cabinet Battery Calculation Program","")) -> 
B4: PROJECT NAME: | E4: =Menu!X2 -> 0
B6: ADDRESS: | E6: =Menu!X4 -> 0
B8: COMPANY NAME: | E8: =Menu!X15 -> 0
B10: PREPARED BY: | E10: =Menu!X17 -> 0
D12: Important: Enter Quantities then press enter, tab, or click another cell to update calculator.
R14: All Current in Amps
B15: 1 | R15: Standby | S15: Alarm
B16: 1 | D16: PANEL MODEL | R16: Current | S16: Current
D17: Select Model Below:
B18: 1 | H18: 7
D19: =IF(OR(D18="QX-5000 AUDIO PANEL #"),"* System Maximums: Eight (8) Audio Cabinets Interconnected, 144 Audio Zones w/Paging Controls, or, 72 Audio Zones w/both Paging & Evacuation Controls, Max.42 AH Batteries in Cabinet, 30A Power Supply Total per Cabinet",IF(OR(D18="FX-MNS EXTERNAL AUDIO CABINET #"),"* System Maximums: Three (3) Audio Expansion Cabinets If Interconnected To FX-MNS, or, Four (4) Audio Cabinets If Standalone, Max.42 AH Batteries in Cabinet, 30A Power Supply Total per Cabinet", "")) -> 
B20: QTY
B21: =COUNTIF(B23:B53,">0")*{1} -> 0 | D21: Panel Adder Modules
B22: =COUNTIF(B23:B53,">0")*{1} -> 0
D23: ANC-5000 Audio Network Controller (only include if mounting this module in this cabinet) | I23: 0.255 | J23: 0.265 | R23: =B23*I23 -> 0 | S23: =B23*J23 -> 0
D25: TNC-5000 Tel. Network Controller (only include if mounting this module in this cabinet) | I25: 0.195 | J25: 0.215 | R25: =B25*I25 -> 0 | S25: =B25*J25 -> 0
D27: =VLOOKUP(U27,NAC!G153:J169,2) -> QIF-5000B Interface | I27: =VLOOKUP(U27,NAC!G153:J169,3) -> 0.2 | J27: =VLOOKUP(U27,NAC!G153:J169,4) -> 0.2 | M27: 2 | R27: =B27*I27 -> 0 | S27: =B27*J27 -> 0 | U27: 2
D29: =VLOOKUP(U29,NAC!G153:J169,2) -> QIF-1000 Interface Module | I29: =VLOOKUP(U29,NAC!G153:J169,3) -> 0.18 | J29: =VLOOKUP(U29,NAC!G153:J169,4) -> 0.2 | M29: 3 | R29: =B29*I29 -> 0 | S29: =B29*J29 -> 0 | U29: 3
D31: =VLOOKUP(U31,NAC!G153:J169,2) -> QIF-2000 Interface Module | I31: =VLOOKUP(U31,NAC!G153:J169,3) -> 0.01 | J31: =VLOOKUP(U31,NAC!G153:J169,4) -> 0.01 | M31: 4 | R31: =B31*I31 -> 0 | S31: =B31*J31 -> 0 | U31: 4
D33: =VLOOKUP(U33,NAC!G153:J169,2) -> QAA-5415-25 / QAA-5415-70 4 Zone 15 watt Amplifier | I33: =VLOOKUP(U33,NAC!G153:J169,3) -> 0.055 | J33: =VLOOKUP(U33,NAC!G153:J169,4) -> 0.35 | M33: 5 | R33: =B33*I33 -> 0 | S33: =B33*J33 -> 0 | U33: 5
D35: =VLOOKUP(U35,NAC!G153:J169,2) -> QAA-5230-70/25 2 Zone 30 watt Amplifier | I35: =VLOOKUP(U35,NAC!G153:J169,3) -> 0.055 | J35: =VLOOKUP(U35,NAC!G153:J169,4) -> 0.35 | M35: 6 | R35: =B35*I35 -> 0 | S35: =B35*J35 -> 0 | U35: 6
D37: =VLOOKUP(U37,NAC!G153:J169,2) -> QAA-5160-70/25 1 Zone 60 watt Amplifier | I37: =VLOOKUP(U37,NAC!G153:J169,3) -> 0.055 | J37: =VLOOKUP(U37,NAC!G153:J169,4) -> 0.35 | M37: 8 | R37: =B37*I37 -> 0 | S37: =B37*J37 -> 0 | U37: 8
D39: =VLOOKUP(U39,NAC!G153:J169,2) -> QMP-5100B / QMP-5101B Master Paging Module | I39: =VLOOKUP(U39,NAC!G153:J169,3) -> 0.031 | J39: =VLOOKUP(U39,NAC!G153:J169,4) -> 0.081 | M39: 9 | R39: =B39*I39 -> 0 | S39: =B39*J39 -> 0 | U39: 9
D41: =VLOOKUP(U41,NAC!G153:J169,2) -> QMP-5100AX Paging Multiplex Module | I41: =VLOOKUP(U41,NAC!G153:J169,3) -> 0.031 | J41: =VLOOKUP(U41,NAC!G153:J169,4) -> 0.081 | M41: 10 | R41: =B41*I41 -> 0 | S41: =B41*J41 -> 0 | U41: 10
D43: =VLOOKUP(U43,NAC!G153:J169,2) -> QMP-5100MSB Microphone Splitter Board | I43: =VLOOKUP(U43,NAC!G153:J169,3) -> 0.13 | J43: =VLOOKUP(U43,NAC!G153:J169,4) -> 0.275 | M43: 11 | R43: =B43*I43 -> 0 | S43: =B43*J43 -> 0 | U43: 11
D45: =VLOOKUP(U45,NAC!G153:J169,2) -> QMT-5300A / QMT-5302 / QAMT-5302 Master Telephone Module | I45: =VLOOKUP(U45,NAC!G153:J169,3) -> 0.04 | J45: =VLOOKUP(U45,NAC!G153:J169,4) -> 0.04 | M45: 12 | R45: =B45*I45 -> 0 | S45: =B45*J45 -> 0 | U45: 12
D47: =VLOOKUP(U47,NAC!G153:J169,2) -> QAZT-5302DS Paging/Telephone 24 Zone Selector Module | I47: =VLOOKUP(U47,NAC!G153:J169,3) -> 0.026 | J47: =VLOOKUP(U47,NAC!G153:J169,4) -> 0.026 | M47: 13 | R47: =B47*I47 -> 0 | S47: =B47*J47 -> 0 | U47: 13
D49: =VLOOKUP(U49,NAC!G153:J169,2) -> QAZT-5348DS Paging/Telephone 48 Zone Selector Module | I49: =VLOOKUP(U49,NAC!G153:J169,3) -> 0.01 | J49: =VLOOKUP(U49,NAC!G153:J169,4) -> 0.022 | R49: =B49*I49 -> 0 | S49: =B49*J49 -> 0 | U49: 16
D51: =VLOOKUP(U51,NAC!G153:J169,2) -> QZT-5302 Telephone Zone Module (Hardwired) | I51: =VLOOKUP(U51,NAC!G153:J169,3) -> 0.026 | J51: =VLOOKUP(U51,NAC!G153:J169,4) -> 0.026 | M51: 14 | R51: =B51*I51 -> 0 | S51: =B51*J51 -> 0 | U51: 14
D53: =VLOOKUP(U53,NAC!G153:J169,2) -> QDV-1000 Digitized Voice Module | I53: =VLOOKUP(U53,NAC!G153:J169,3) -> 0.03 | J53: =VLOOKUP(U53,NAC!G153:J169,4) -> 0.03 | M53: 15 | R53: =B53*I53 -> 0 | S53: =B53*J53 -> 0 | U53: 15
B54: 1 | C54: =B33+B35 -> 0
B55: 1 | D55: Enter the Total Audio Power in Watts used by 15 Watt Amplifiers
B56: 1 | F56: Watts | S56: =E56*0.075 -> 0
B57: 1
B58: 1 | D58: Enter the Total Audio Power in Watts used by 30 and 60 Watt Amplifiers
B59: 1 | F59: Watts | S59: =E59*0.065 -> 0
B60: =COUNTIF(B64:B82,">0")*{1} -> 0 | D60: * Cabinet Maximums: Seven (7) Amplifiers per Cabinet, 360 Watts per Cabinet
D61: EXCEEDED MAXIMUM WATTS PER CABINET | J61: Enter | M61: Enter
B62: =COUNTIF(B64:B82,">0")*{1} -> 0 | D62: Additional Devices | J62: Standby | M62: Alarm
B63: =COUNTIF(B64:B82,">0")*{1} -> 0 | D63: Enter Description | J63: Current | M63: Current
R64: =B64*J64 -> 0 | S64: =B64*M64 -> 0
R66: =B66*J66 -> 0 | S66: =B66*M66 -> 0
R68: =B68*J68 -> 0 | S68: =B68*M68 -> 0
R70: =B70*J70 -> 0 | S70: =B70*M70 -> 0
R72: =B72*J72 -> 0 | S72: =B72*M72 -> 0
R74: =B74*J74 -> 0 | S74: =B74*M74 -> 0
R76: =B76*J76 -> 0 | S76: =B76*M76 -> 0
R78: =B78*J78 -> 0 | S78: =B78*M78 -> 0
R80: =B80*J80 -> 0 | S80: =B80*M80 -> 0
R82: =B82*J82 -> 0 | S82: =B82*M82 -> 0
B83: 1
B84: 1
B85: 1 | M85: Total Standby Current in Amps | S85: =SUM(R23:R82) -> 0 | U85: =B87*S85 -> 0
B86: 1
B87: 48 | D87: Enter Number of Standby Hours | M87: Total Alarm Current in Amps | S87: =SUM(S23:S82) -> 0 | U87: =B89*S87/60 -> 0
B88: 1
B89: 15 | D89: Enter Alarm Period in Minutes | U89: =U85+U87 -> 0
B90: 1
B91: 1.25 | D91: Enter Battery Derating | J91: Battery Capacity Requirement (Ah) | S91: =U89*B91 -> 0
B92: 1
B93: =COUNTIF(S91,"<26")*{1} -> 1 | J93: Recommended Mircom Batteries (x2) | S93: =IF(OR(S91=0),"",IF(OR(S91<26),"BAT-12V26A",IF(OR(S91>26),""))) -> 
B95: =COUNTIF(S91,">26")*{1} -> 0 | J95: Recommended Mircom Batteries (x2) | S95: =IF(OR(S91<26),"",IF(OR(S91<33),"BAT-12V33A",IF(OR(S91<42),"BAT-12V42A",IF(OR(S91<55),"BAT-12V55A",IF(OR(S91<75.009),"BAT-12V75A",""))))) -> 
G96: * Battery Charging Capability: Minimum 24AH (BAT-12V26A), Maximum 65AH (BAT-12V75A)
D97: Exceeds Battery Maximums For This Panel
D98: Exceeded Maximum Charging Capacity 65AH (BAT-12V75A)
D99: Battery Exceeds Backbox, Use BC-160 Battery Cabinet
B100: -9999 | D100: Maximum AMPS For Power Supply Has Been Exceeded
B104: Mircom Technologies hereby disclaims all warranties relating to this software utility, whether expressed or implied, including without limitation any implied warranties of merchantability or fitness for a particular purpose. Mircom Technologies cannot and will not assume, accept or be liable for any special, incidental, consequential, indirect or similar claims, losses or damages for any reason whatsoever. Use of this Software Utility shall be deemed acceptance of these terms. It is the sole responsibility of the user to ascertain the accuracy and the reliability of any and all information generated or provided by this software utility and to ensure maximum current levels for control units have not been exceeded

Sheet QX-5000 #8 (hidden)
F2: =IF(OR(D18="QX-5000 AUDIO PANEL #"),"QX-5000 Battery Calculation Program",IF(OR(D18="FX-MNS EXTERNAL AUDIO CABINET #"),"FX-MNS External Audio Cabinet Battery Calculation Program","")) -> 
B4: PROJECT NAME: | E4: =Menu!X2 -> 0
B6: ADDRESS: | E6: =Menu!X4 -> 0
B8: COMPANY NAME: | E8: =Menu!X15 -> 0
B10: PREPARED BY: | E10: =Menu!X17 -> 0
D12: Important: Enter Quantities then press enter, tab, or click another cell to update calculator.
R14: All Current in Amps
B15: 1 | R15: Standby | S15: Alarm
B16: 1 | D16: PANEL MODEL | R16: Current | S16: Current
D17: Select Model Below:
B18: 1 | H18: 8
D19: =IF(OR(D18="QX-5000 AUDIO PANEL #"),"* System Maximums: Eight (8) Audio Cabinets Interconnected, 144 Audio Zones w/Paging Controls, or, 72 Audio Zones w/both Paging & Evacuation Controls, Max.42 AH Batteries in Cabinet, 30A Power Supply Total per Cabinet",IF(OR(D18="FX-MNS EXTERNAL AUDIO CABINET #"),"* System Maximums: Three (3) Audio Expansion Cabinets If Interconnected To FX-MNS, or, Four (4) Audio Cabinets If Standalone, Max.42 AH Batteries in Cabinet, 30A Power Supply Total per Cabinet", "")) -> 
B20: QTY
B21: =COUNTIF(B23:B53,">0")*{1} -> 0 | D21: Panel Adder Modules
B22: =COUNTIF(B23:B53,">0")*{1} -> 0
D23: ANC-5000 Audio Network Controller (only include if mounting this module in this cabinet) | I23: 0.255 | J23: 0.265 | R23: =B23*I23 -> 0 | S23: =B23*J23 -> 0
D25: TNC-5000 Tel. Network Controller (only include if mounting this module in this cabinet) | I25: 0.195 | J25: 0.215 | R25: =B25*I25 -> 0 | S25: =B25*J25 -> 0
D27: =VLOOKUP(U27,NAC!G153:J169,2) -> QIF-5000B Interface | I27: =VLOOKUP(U27,NAC!G153:J169,3) -> 0.2 | J27: =VLOOKUP(U27,NAC!G153:J169,4) -> 0.2 | M27: 2 | R27: =B27*I27 -> 0 | S27: =B27*J27 -> 0 | U27: 2
D29: =VLOOKUP(U29,NAC!G153:J169,2) -> QIF-1000 Interface Module | I29: =VLOOKUP(U29,NAC!G153:J169,3) -> 0.18 | J29: =VLOOKUP(U29,NAC!G153:J169,4) -> 0.2 | M29: 3 | R29: =B29*I29 -> 0 | S29: =B29*J29 -> 0 | U29: 3
D31: =VLOOKUP(U31,NAC!G153:J169,2) -> QIF-2000 Interface Module | I31: =VLOOKUP(U31,NAC!G153:J169,3) -> 0.01 | J31: =VLOOKUP(U31,NAC!G153:J169,4) -> 0.01 | M31: 4 | R31: =B31*I31 -> 0 | S31: =B31*J31 -> 0 | U31: 4
D33: =VLOOKUP(U33,NAC!G153:J169,2) -> QAA-5415-25 / QAA-5415-70 4 Zone 15 watt Amplifier | I33: =VLOOKUP(U33,NAC!G153:J169,3) -> 0.055 | J33: =VLOOKUP(U33,NAC!G153:J169,4) -> 0.35 | M33: 5 | R33: =B33*I33 -> 0 | S33: =B33*J33 -> 0 | U33: 5
D35: =VLOOKUP(U35,NAC!G153:J169,2) -> QAA-5230-70/25 2 Zone 30 watt Amplifier | I35: =VLOOKUP(U35,NAC!G153:J169,3) -> 0.055 | J35: =VLOOKUP(U35,NAC!G153:J169,4) -> 0.35 | M35: 6 | R35: =B35*I35 -> 0 | S35: =B35*J35 -> 0 | U35: 6
D37: =VLOOKUP(U37,NAC!G153:J169,2) -> QAA-5160-70/25 1 Zone 60 watt Amplifier | I37: =VLOOKUP(U37,NAC!G153:J169,3) -> 0.055 | J37: =VLOOKUP(U37,NAC!G153:J169,4) -> 0.35 | M37: 8 | R37: =B37*I37 -> 0 | S37: =B37*J37 -> 0 | U37: 8
D39: =VLOOKUP(U39,NAC!G153:J169,2) -> QMP-5100B / QMP-5101B Master Paging Module | I39: =VLOOKUP(U39,NAC!G153:J169,3) -> 0.031 | J39: =VLOOKUP(U39,NAC!G153:J169,4) -> 0.081 | M39: 9 | R39: =B39*I39 -> 0 | S39: =B39*J39 -> 0 | U39: 9
D41: =VLOOKUP(U41,NAC!G153:J169,2) -> QMP-5100AX Paging Multiplex Module | I41: =VLOOKUP(U41,NAC!G153:J169,3) -> 0.031 | J41: =VLOOKUP(U41,NAC!G153:J169,4) -> 0.081 | M41: 10 | R41: =B41*I41 -> 0 | S41: =B41*J41 -> 0 | U41: 10
D43: =VLOOKUP(U43,NAC!G153:J169,2) -> QMP-5100MSB Microphone Splitter Board | I43: =VLOOKUP(U43,NAC!G153:J169,3) -> 0.13 | J43: =VLOOKUP(U43,NAC!G153:J169,4) -> 0.275 | M43: 11 | R43: =B43*I43 -> 0 | S43: =B43*J43 -> 0 | U43: 11
D45: =VLOOKUP(U45,NAC!G153:J169,2) -> QMT-5300A / QMT-5302 / QAMT-5302 Master Telephone Module | I45: =VLOOKUP(U45,NAC!G153:J169,3) -> 0.04 | J45: =VLOOKUP(U45,NAC!G153:J169,4) -> 0.04 | M45: 12 | R45: =B45*I45 -> 0 | S45: =B45*J45 -> 0 | U45: 12
D47: =VLOOKUP(U47,NAC!G153:J169,2) -> QAZT-5302DS Paging/Telephone 24 Zone Selector Module | I47: =VLOOKUP(U47,NAC!G153:J169,3) -> 0.026 | J47: =VLOOKUP(U47,NAC!G153:J169,4) -> 0.026 | M47: 13 | R47: =B47*I47 -> 0 | S47: =B47*J47 -> 0 | U47: 13
D49: =VLOOKUP(U49,NAC!G153:J169,2) -> QAZT-5348DS Paging/Telephone 48 Zone Selector Module | I49: =VLOOKUP(U49,NAC!G153:J169,3) -> 0.01 | J49: =VLOOKUP(U49,NAC!G153:J169,4) -> 0.022 | R49: =B49*I49 -> 0 | S49: =B49*J49 -> 0 | U49: 16
D51: =VLOOKUP(U51,NAC!G153:J169,2) -> QZT-5302 Telephone Zone Module (Hardwired) | I51: =VLOOKUP(U51,NAC!G153:J169,3) -> 0.026 | J51: =VLOOKUP(U51,NAC!G153:J169,4) -> 0.026 | M51: 14 | R51: =B51*I51 -> 0 | S51: =B51*J51 -> 0 | U51: 14
D53: =VLOOKUP(U53,NAC!G153:J169,2) -> QDV-1000 Digitized Voice Module | I53: =VLOOKUP(U53,NAC!G153:J169,3) -> 0.03 | J53: =VLOOKUP(U53,NAC!G153:J169,4) -> 0.03 | M53: 15 | R53: =B53*I53 -> 0 | S53: =B53*J53 -> 0 | U53: 15
B54: 1 | C54: =B33+B35 -> 0
B55: 1 | D55: Enter the Total Audio Power in Watts used by 15 Watt Amplifiers
B56: 1 | F56: Watts | S56: =E56*0.075 -> 0
B57: 1
B58: 1 | D58: Enter the Total Audio Power in Watts used by 30 and 60 Watt Amplifiers
B59: 1 | F59: Watts | S59: =E59*0.065 -> 0
B60: =COUNTIF(B64:B82,">0")*{1} -> 0 | D60: * Cabinet Maximums: Seven (7) Amplifiers per Cabinet, 360 Watts per Cabinet
D61: EXCEEDED MAXIMUM WATTS PER CABINET | J61: Enter | M61: Enter
B62: =COUNTIF(B64:B82,">0")*{1} -> 0 | D62: Additional Devices | J62: Standby | M62: Alarm
B63: =COUNTIF(B64:B82,">0")*{1} -> 0 | D63: Enter Description | J63: Current | M63: Current
R64: =B64*J64 -> 0 | S64: =B64*M64 -> 0
R66: =B66*J66 -> 0 | S66: =B66*M66 -> 0
R68: =B68*J68 -> 0 | S68: =B68*M68 -> 0
R70: =B70*J70 -> 0 | S70: =B70*M70 -> 0
R72: =B72*J72 -> 0 | S72: =B72*M72 -> 0
R74: =B74*J74 -> 0 | S74: =B74*M74 -> 0
R76: =B76*J76 -> 0 | S76: =B76*M76 -> 0
R78: =B78*J78 -> 0 | S78: =B78*M78 -> 0
R80: =B80*J80 -> 0 | S80: =B80*M80 -> 0
R82: =B82*J82 -> 0 | S82: =B82*M82 -> 0
B83: 1
B84: 1
B85: 1 | M85: Total Standby Current in Amps | S85: =SUM(R23:R82) -> 0 | U85: =B87*S85 -> 0
B86: 1
B87: 48 | D87: Enter Number of Standby Hours | M87: Total Alarm Current in Amps | S87: =SUM(S23:S82) -> 0 | U87: =B89*S87/60 -> 0
B88: 1
B89: 15 | D89: Enter Alarm Period in Minutes | U89: =U85+U87 -> 0
B90: 1
B91: 1.25 | D91: Enter Battery Derating | J91: Battery Capacity Requirement (Ah) | S91: =U89*B91 -> 0
B92: 1
B93: =COUNTIF(S91,"<26")*{1} -> 1 | J93: Recommended Mircom Batteries (x2) | S93: =IF(OR(S91=0),"",IF(OR(S91<26),"BAT-12V26A",IF(OR(S91>26),""))) -> 
B95: =COUNTIF(S91,">26")*{1} -> 0 | J95: Recommended Mircom Batteries (x2) | S95: =IF(OR(S91<26),"",IF(OR(S91<33),"BAT-12V33A",IF(OR(S91<42),"BAT-12V42A",IF(OR(S91<55),"BAT-12V55A",IF(OR(S91<75.009),"BAT-12V75A",""))))) -> 
G96: * Battery Charging Capability: Minimum 24AH (BAT-12V26A), Maximum 65AH (BAT-12V75A)
D97: Exceeds Battery Maximums For This Panel
D98: Exceeded Maximum Charging Capacity 65AH (BAT-12V75A)
D99: Battery Exceeds Backbox, Use BC-160 Battery Cabinet
B100: -9999 | D100: Maximum AMPS For Power Supply Has Been Exceeded
B104: Mircom Technologies hereby disclaims all warranties relating to this software utility, whether expressed or implied, including without limitation any implied warranties of merchantability or fitness for a particular purpose. Mircom Technologies cannot and will not assume, accept or be liable for any special, incidental, consequential, indirect or similar claims, losses or damages for any reason whatsoever. Use of this Software Utility shall be deemed acceptance of these terms. It is the sole responsibility of the user to ascertain the accuracy and the reliability of any and all information generated or provided by this software utility and to ensure maximum current levels for control units have not been exceeded

Sheet FX-3318 (hidden)
F2: FX-3318 Battery Calculation Program
B4: PROJECT NAME: | E4: =Menu!X2 -> 0
B6: ADDRESS: | E6: =Menu!X4 -> 0
B8: COMPANY NAME: | E8: =Menu!X15 -> 0
B10: PREPARED BY: | E10: =Menu!X17 -> 0
D12: Important: Enter Quantities then press enter, tab, or click another cell to update calculator.
B13: 1 | R13: All Current in Amps
B14: 1
B15: 1 | Q15: AUX. CURRENT | R15: Standby | S15: Alarm
B16: 1 | D16: Panel Model | R16: Current | S16: Current
B18: 1 | D18: =VLOOKUP(U18,NAC!BH22:BL23,2) -> FX-3318 Addressable Panel w/Dialer (6 amps) (UL) | O18: =VLOOKUP(U18,NAC!BH22:BL23,4) -> 0.225 | P18: =VLOOKUP(U18,NAC!BH22:BL23,5) -> 0.43 | Q18: =VLOOKUP(U18,NAC!BH22:BL23,6) ->  | R18: =O18 -> 0.225 | S18: =P18 -> 0.43 | U18: 2
D19: * Panel is UL Listed Only. Comes With One (1) Onboard SLC/DCL, Four (4) NACs, 1.5A Each, 5.0A Total. Cabinet Fits Up To 18AH Battery
B20: QTY
B21: =COUNTIF(B23:B23,">0")*{1} -> 0 | D21: Panel Adder Modules
D22: *Maximum One (1) PR-300 Module per Panel
D23: =VLOOKUP(U23,NAC!BH19:BL21,2) -> PR-300 Polarity Reversal & City Tie Module | O23: =VLOOKUP(U23,NAC!BH19:BL21,4) -> 0.05 | P23: =VLOOKUP(U23,NAC!BH19:BL21,5) -> 0.3 | R23: =B23*O23 -> 0 | S23: =B23*P23 -> 0 | U23: 3
B24: =COUNTIF(B27:B39,">0")*{1} -> 0 | C24: =IF(B23<2,"","Warning Only One PR-300 Module Can Be Installed") -> 
B25: =COUNTIF(B27:B39,">0")*{1} -> 0 | D25: Remote Annunciators & Adder Modules
D26: *Maximum Seven (7) Annunciators per Panel
D27: =VLOOKUP(U27,NAC!BH25:BL32,2) -> RAM-3318-LCD Remote Annunciator | O27: 0.07 | P27: =VLOOKUP(U27,NAC!BH25:BL32,5) -> 0.1 | Q27: =B27*M27 -> 0 | R27: =B27*O27 -> 0 | S27: =B27*P27 -> 0 | U27: 2
D29: =VLOOKUP(U29,NAC!BH25:BL32,2) -> RAX-LCD-LITE Remote Annunciator | O29: 0.065 | P29: =VLOOKUP(U29,NAC!BH25:BL32,5) -> 0.08 | Q29: =B29*M29 -> 0 | R29: =B29*O29 -> 0 | S29: =B29*P29 -> 0 | U29: 3
D31: =VLOOKUP(U31,NAC!BH25:BL32,2) -> RAM-1016TZDS Main Remote Annunciator w/ 16 Zones Active | O31: 0.05 | P31: =VLOOKUP(U31,NAC!BH25:BL32,5) -> 0.15 | Q31: =B31*M31 -> 0 | R31: =B31*O31 -> 0 | S31: =B31*P31 -> 0 | U31: 4
D33: =VLOOKUP(U33,NAC!BH25:BL32,2) -> RAM-1032TZDS Main Remote Annunciator w/ 32 Zones Active | O33: 0.05 | P33: =VLOOKUP(U33,NAC!BH25:BL32,5) -> 0.3 | Q33: =B33*M33 -> 0 | R33: =B33*O33 -> 0 | S33: =B33*P33 -> 0 | U33: 5
D35: =VLOOKUP(U35,NAC!BH25:BL32,2) -> RTI-1 Remote Trouble Indicator | O35: =VLOOKUP(U35,NAC!BH25:BL32,4) -> 0 | P35: =VLOOKUP(U35,NAC!BH25:BL32,5) -> 0.03 | Q35: =B35*M35 -> 0 | R35: =B35*O35 -> 0 | S35: =B35*P35 -> 0 | U35: 6
D37: =VLOOKUP(U37,NAC!BH25:BL32,2) -> MGD-32 Master Graphic Driver w/ 3 LEDS Active | O37: 0.035 | P37: =VLOOKUP(U37,NAC!BH25:BL32,5) -> 0.047 | Q37: =B37*M37 -> 0 | R37: =B37*O37 -> 0 | S37: =B37*P37 -> 0 | U37: 7
D39: =VLOOKUP(U39,NAC!BH25:BL32,2) -> AGD-048 Adder Graphic Driver Board w/ 3 LEDS Active | O39: 0.035 | P39: =VLOOKUP(U39,NAC!BH25:BL32,5) -> 0.047 | Q39: =B39*M39 -> 0 | R39: =B39*O39 -> 0 | S39: =B39*P39 -> 0 | U39: 8
B40: =COUNTIF(B43:B77,">0")*{1} -> 0
B41: =COUNTIF(B43:B77,">0")*{1} -> 0 | D41: Intelligent Sensors
D42: * Protocol Maximums: 159 AP Sensors, or, 99 CLIP Sensors per Addressable Loop, or Combination of Both
D43: MIX-2351AP Select Series Addressable Photo Sensor | N43: 0.0002 | P43: 0.0002 | R43: =B43*N43 -> 0 | S43: =B43*P43 -> 0
D45: MIX-2351RAP Select Series Add. Photo Sensor w/ Test Switch for Duct | N45: 0.0002 | P45: 0.0002 | R45: =B45*N45 -> 0 | S45: =B45*P45 -> 0
D47: MIX-2351TAP Select Series Addressable Photo/Themal Sensor | N47: 0.0002 | P47: 0.0002 | R47: =B47*N47 -> 0 | S47: =B47*P47 -> 0
D49: MIX-2351TIRAP Select Series Add. Adv. Multi-Criteria Sensor | N49: 0.0002 | P49: 0.0002 | R49: =B49*N49 -> 0 | S49: =B49*P49 -> 0
D51: MIX-5351AP Select Series Addressable Heat Sensor 135 Deg.FT | N51: 0.0002 | P51: 0.0002 | R51: =B51*N51 -> 0 | S51: =B51*P51 -> 0
D53: MIX-5351RAP Select Series Add. Heat Sensor 135 Deg. FT/RR | N53: 0.0002 | P53: 0.0002 | R53: =B53*N53 -> 0 | S53: =B53*P53 -> 0
D55: MIX-5351HAP Select Series Add. Heat Sensor 190 Deg. FT | N55: 0.0002 | P55: 0.0002 | R55: =B55*N55 -> 0 | S55: =B55*P55 -> 0
D57: =VLOOKUP(U57,NAC!AG65:AJ105,2) -> MIX-2251AP Advanced Protocol Photo Smoke Detector | O57: =VLOOKUP(U57,NAC!AG65:AJ105,3) -> 0.0003 | P57: =VLOOKUP(U57,NAC!AG65:AJ105,4) -> 0.0003 | R57: =B57*O57 -> 0 | S57: =B57*P57 -> 0 | U57: 2
D59: =VLOOKUP(U59,NAC!AG65:AJ105,2) -> MIX-2251TAP Advanced Protocol Photo Heat Detector | O59: =VLOOKUP(U59,NAC!AG65:AJ105,3) -> 0.0003 | P59: =VLOOKUP(U59,NAC!AG65:AJ105,4) -> 0.0003 | R59: =B59*O59 -> 0 | S59: =B59*P59 -> 0 | U59: 3
D61: =VLOOKUP(U61,NAC!AG65:AJ105,2) -> MIX-2251TMAP Advanced Protocol Acclimate Detector | O61: =VLOOKUP(U61,NAC!AG65:AJ105,3) -> 0.0003 | P61: =VLOOKUP(U61,NAC!AG65:AJ105,4) -> 0.0003 | R61: =B61*O61 -> 0 | S61: =B61*P61 -> 0 | U61: 4
D63: =VLOOKUP(U63,NAC!AG65:AJ105,2) -> MIX-5251AP Advanced Protocol Heat Detector | O63: =VLOOKUP(U63,NAC!AG65:AJ105,3) -> 0.0003 | P63: =VLOOKUP(U63,NAC!AG65:AJ105,4) -> 0.0003 | R63: =B63*O63 -> 0 | S63: =B63*P63 -> 0 | U63: 5
D65: =VLOOKUP(U65,NAC!AG65:AJ105,2) -> MIX-5251RAP Advanced Protocol Rate of Rise Heat Detector | O65: =VLOOKUP(U65,NAC!AG65:AJ105,3) -> 0.0003 | P65: =VLOOKUP(U65,NAC!AG65:AJ105,4) -> 0.0003 | R65: =B65*O65 -> 0 | S65: =B65*P65 -> 0 | U65: 6
D67: =VLOOKUP(U67,NAC!AG65:AJ105,2) -> MIX-5251HAP Advanced Protocol High Temperature Heat Detector | O67: =VLOOKUP(U67,NAC!AG65:AJ105,3) -> 0.0003 | P67: =VLOOKUP(U67,NAC!AG65:AJ105,4) -> 0.0003 | R67: =B67*O67 -> 0 | S67: =B67*P67 -> 0 | U67: 7
D69: MIX-FC351AP Select Series Adressable Fire/CO Sensor | N69: 0.0002 | O69: 0.0002 | P69: 0.0002 | R69: =B69*O69 -> 0 | S69: =B69*P69 -> 0
D71: =VLOOKUP(U71,NAC!AG65:AJ105,2) -> MIX-COSAP Advanced Protocol Fire/CO Detector | O71: =VLOOKUP(U71,NAC!AG65:AJ105,3) -> 0.0003 | P71: =VLOOKUP(U71,NAC!AG65:AJ105,4) -> 0.0003 | R71: =B71*O71 -> 0 | S71: =B71*P71 -> 0 | U71: 8
D73: OSI-RI-AP Intelligent Imaging Beam Smoke Detector | O73: 0.013 | P73: 0.013 | R73: =B73*O73 -> 0 | S73: =B73*P73 -> 0
D75: 7351 Select Series High Sensitivity Photoelectric Smoke Detector (CLIP mode) | N75: 0.0004 | P75: 0.0004 | R75: =B75*N75 -> 0 | S75: =B75*P75 -> 0
D77: =VLOOKUP(U77,NAC!AG65:AJ105,2) -> 7251 Pinnacle Low Profile Laser Smoke Detector (CLIP mode) | O77: =VLOOKUP(U77,NAC!AG65:AJ105,4) -> 0.00033 | P77: 0.00033 | R77: =B77*O77 -> 0 | S77: =B77*P77 -> 0 | U77: 10
B78: =COUNTIF(B81:B93,">0")*{1} -> 1
B79: =COUNTIF(B81:B93,">0")*{1} -> 1 | D79: Intelligent Modules
D80: * Protocol Maximums: 159 AP Modules, or, 99 CLIP Modules per Addressable Loop, or Combination of Both
D81: =VLOOKUP(U81,NAC!AG65:AJ105,2) -> MS-710AP Advanced Protocol Intelligent Manual Station | O81: =VLOOKUP(U81,NAC!AG65:AJ105,3) -> 0.0004 | P81: =VLOOKUP(U81,NAC!AG65:AJ105,4) -> 0.0004 | R81: =B81*O81 -> 0 | S81: =B81*P81 -> 0 | U81: 26
D83: =VLOOKUP(U83,NAC!AG65:AJ105,2) -> MIX-M500MAP Advanced Protocol Monitor Module | O83: =VLOOKUP(U83,NAC!AG65:AJ105,3) -> 0.0004 | P83: =VLOOKUP(U83,NAC!AG65:AJ105,4) -> 0.0004 | R83: =B83*O83 -> 0 | S83: =B83*P83 -> 0 | U83: 27
D85: =VLOOKUP(U85,NAC!AG65:AJ105,2) -> MIX-M500DMAP AP Dual Input Monitor Module latching | O85: =VLOOKUP(U85,NAC!AG65:AJ105,3) -> 0.00075 | P85: =VLOOKUP(U85,NAC!AG65:AJ105,4) -> 0.0064 | R85: =B85*O85 -> 0 | S85: =B85*P85 -> 0 | U85: 28
B86: 1
D87: =VLOOKUP(U87,NAC!AG65:AJ105,2) -> MIX-M500DMAP AP Dual Input Monitor Module non-latching | O87: =VLOOKUP(U87,NAC!AG65:AJ105,3) -> 0.00075 | P87: =VLOOKUP(U87,NAC!AG65:AJ105,4) -> 0.00075 | R87: =B87*O87 -> 0 | S87: =B87*P87 -> 0 | U87: 29
D89: =VLOOKUP(U89,NAC!AG65:AJ105,2) -> MIX-M501MAP Advanced Protocol Mini Monitor Module | O89: =VLOOKUP(U89,NAC!AG65:AJ105,3) -> 0.0004 | P89: =VLOOKUP(U89,NAC!AG65:AJ105,4) -> 0.0004 | R89: =B89*O89 -> 0 | S89: =B89*P89 -> 0 | U89: 30
D91: =VLOOKUP(U91,NAC!AG65:AJ105,2) -> MIX-M502MAP Advanced Protocol Conventional Zone Module | O91: =VLOOKUP(U91,NAC!AG65:AJ105,3) -> 0.0004 | P91: =VLOOKUP(U91,NAC!AG65:AJ105,4) -> 0.0004 | R91: =B91*O91 -> 0 | S91: =B91*P91 -> 0 | U91: 31
D93: =VLOOKUP(U93,NAC!AG65:AJ105,2) -> MIX-M500RAP Advanced Protocol Relay Control Module | O93: =VLOOKUP(U93,NAC!AG65:AJ105,3) -> 0.0003 | P93: =VLOOKUP(U93,NAC!AG65:AJ105,4) -> 0.0003 | R93: =B93*O93 -> 0 | S93: =B93*P93 -> 0 | U93: 32
B95: =COUNTIF(B98:B106,">0")*{1} -> 0
B96: =COUNTIF(B98:B106,">0")*{1} -> 0 | D96: Intelligent Manual Stations
D97: * Protocol Maximums: 159 AP Modules, or, 99 CLIP Modules per Addressable Loop, or Combination of Both
D98: =VLOOKUP(U98,NAC!AG145:AJ161,2) -> MS-401AP(U) Addressable Single Stage Manual Station | O98: =VLOOKUP(U98,NAC!AG145:AJ161,3) -> 0.0004 | P98: =VLOOKUP(U98,NAC!AG145:AJ161,4) -> 0.0004 | R98: =B98*O98 -> 0 | S98: =B98*P98 -> 0 | U98: 2
D100: =VLOOKUP(U100,NAC!AG145:AJ161,2) -> MS-710AP(U) Addressable Single Stage Dual Action Station w/ Key Reset | O100: =VLOOKUP(U100,NAC!AG145:AJ161,3) -> 0.0004 | P100: =VLOOKUP(U100,NAC!AG145:AJ161,4) -> 0.0004 | R100: =B100*O100 -> 0 | S100: =B100*P100 -> 0 | U100: 6
D102: MPS-810AP(U) Addressable Single Stage Dual Action Manual Station | O102: 0.0004 | P102: 0.0004 | R102: =B102*O102 -> 0 | S102: =B102*P102 -> 0 | U102: 2
D104: MPS-802AP Addressable Two Stage Dual Action Manual Station (ULC) | O104: 0.0006 | P104: 0.0006 | R104: =B104*O104 -> 0 | S104: =B104*P104 -> 0 | U104: 2
D106: MPS-822AP Add. Two Stage Dual Action Station w/Add. N.C. Switch (ULC) | O106: 0.0006 | P106: 0.0006 | R106: =B106*O106 -> 0 | S106: =B106*P106 -> 0 | U106: 2
B107: =COUNTIF(B110:B120,">0")*{1} -> 0 | V107: Total
B108: =COUNTIF(B110:B120,">0")*{1} -> 0 | D108: Ancillary Modules
D109: * Protocol Maximums: 159 AP Modules, or, 99 CLIP Modules per Addressable Loop, or Combination of Both. M500X does not use an Address
D110: M500X Fault Isolator Module | O110: =VLOOKUP(U110,NAC!BA55:BE60,4) -> 0.00045 | P110: =VLOOKUP(U110,NAC!BA55:BE60,5) -> 0.00045 | R110: =B110*O110 -> 0 | S110: =B110*P110 -> 0 | U110: 5
D112: IM-10 Ten Input Module (CLIP mode) | O112: =VLOOKUP(U112,NAC!BA55:BE60,4) -> 0.0035 | P112: 0.0035 | R112: =B112*O112 -> 0 | S112: =B112*P112 -> 0 | U112: 4
D114: CR-6 Six Relay Control Module (CLIP mode) | O114: =VLOOKUP(U114,NAC!BA55:BE60,4) -> 0.00145 | P114: 0.00145 | R114: =B114*O114 -> 0 | S114: =B114*P114 -> 0 | U114: 2
D116: CZ-6 Six Conventional Zone Inerface Module (CLIP mode) | O116: =VLOOKUP(U116,NAC!BA55:BE60,4) -> 0.002 | P116: 0.002 | R116: =B116*O116 -> 0 | S116: =B116*P116 -> 0 | U116: 3
D118: SC-6 Six Supervised Control Module (CLIP mode) | O118: =VLOOKUP(U118,NAC!BA55:BE60,4) -> 0.00225 | P118: 0.00225 | R118: =B118*O118 -> 0 | S118: =B118*P118 -> 0 | U118: 6
D120: =VLOOKUP(U120,NAC!BA55:BE61,2) -> INX-10A NAC Power Supply (CLIP mode, Current Consumption FACP SLC) | O120: =VLOOKUP(U120,NAC!BA55:BE61,4) -> 0.0045 | P120: 0.0045 | R120: =B120*O120 -> 0 | S120: =B120*P120 -> 0 | U120: 7
B121: =COUNTIF(B124:B142,">0")*{1} -> 0 | V121: Total
B122: =COUNTIF(B124:B142,">0")*{1} -> 0 | D122: Bases & Housings
D124: =VLOOKUP(U124,NAC!AG65:AJ105,2) -> B224RB Addressable Base c/w Aux Relay | O124: =VLOOKUP(U124,NAC!AG65:AJ105,3) -> 0.00017 | P124: 0.00017 | R124: =B124*O124 -> 0 | S124: =B124*P124 -> 0 | U124: 16
D126: =VLOOKUP(U126,NAC!AG65:AJ105,2) -> B224BI Base c/w Isolator | O126: =VLOOKUP(U126,NAC!AG65:AJ105,3) -> 0.00045 | P126: 0.00045 | R126: =B126*O126 -> 0 | S126: =B126*P126 -> 0 | U126: 17
D128: =VLOOKUP(U128,NAC!AG65:AJ105,2) -> B200SR Sounder Base | O128: =VLOOKUP(U128,NAC!AG65:AJ105,3) -> 0.0005 | P128: 0.0005 | R128: =B128*O128 -> 0 | S128: =B128*P128 -> 0 | U128: 18
D130: =VLOOKUP(U130,NAC!AG65:AJ105,2) -> B200SR-LF Sounder Base (UL) | O130: =VLOOKUP(U130,NAC!AG65:AJ105,3) -> 0.001 | P130: 0.001 | R130: =B130*O130 -> 0 | S130: =B130*P130 -> 0 | U130: 19
D132: =VLOOKUP(U132,NAC!AG65:AJ105,2) -> APB200/APB200COA Address. Sounder Base (High) - SLC CURRENT / LOCAL ALARM | O132: =VLOOKUP(U132,NAC!AG65:AJ105,3) -> 0.0003 | P132: 0.0005 | R132: =B132*O132 -> 0 | S132: =B132*P132 -> 0 | U132: 20
D134: =VLOOKUP(U134,NAC!AG65:AJ105,2) -> APB200-LF Address. Sounder Base (High, UL) - SLC CURRENT / LOCAL ALARM | O134: =VLOOKUP(U134,NAC!AG65:AJ105,3) -> 0.0003 | P134: 0.00055 | R134: =B134*O134 -> 0 | S134: =B134*P134 -> 0 | U134: 21
D136: DNR Duct Detector Housing w/2351 Smoke Head | O136: 0.0002 | P136: 0.0002 | R136: =B136*O136 -> 0 | S136: =B136*P136 -> 0
D138: DNRW Watertight Duct Detector Housing w/2351 Smoke Head, (UL only) | O138: 0.0002 | P138: 0.0002 | R138: =B138*O138 -> 0 | S138: =B138*P138 -> 0
D140: DNR Duct Detector Housing w/2251 Smoke Head | O140: =VLOOKUP(U140,NAC!BA64:BE72,4) -> 0.0003 | P140: 0.0003 | R140: =B140*O140 -> 0 | S140: =B140*P140 -> 0 | U140: 8
D142: =VLOOKUP(U142,NAC!BA64:BE72,2) -> DNRW Watertight Duct Detector Housing w/2251 Smoke Head, (UL only) | O142: =VLOOKUP(U142,NAC!BA64:BE72,4) -> 0.0003 | P142: 0.0003 | R142: =B142*O142 -> 0 | S142: =B142*P142 -> 0 | U142: 9
B143: =COUNTIF(B146:B156,">0")*{1} -> 0 | V143: Total
B144: =COUNTIF(B146:B156,">0")*{1} -> 0 | D144: Conventional 2 Wire Smoke Detectors
D145: * Must connect to an intelligent addressable module
D146: 2W i3 Series Photoelectric Smoke Detectors | O146: =VLOOKUP(U146,NAC!AO135:AR203,3) -> 5e-05 | P146: =VLOOKUP(U146,NAC!AO135:AR203,4) -> 5e-05 | R146: =B146*O146 -> 0 | S146: =B146*P146 -> 0 | U146: 2
D148: 2W i3 Series Photo/Thermal Detectors | O148: =VLOOKUP(U148,NAC!AO135:AR203,3) -> 5e-05 | P148: =VLOOKUP(U148,NAC!AO135:AR203,4) -> 5e-05 | R148: =B148*O148 -> 0 | S148: =B148*P148 -> 0 | U148: 3
D150: 2W i3 Series Detectors w/Sounder Base | O150: =VLOOKUP(U150,NAC!AO135:AR203,3) -> 5e-05 | P150: =VLOOKUP(U150,NAC!AO135:AR203,4) -> 5e-05 | R150: =B150*O150 -> 0 | S150: =B150*P150 -> 0 | U150: 4
D152: 2W i3 Series Detectors w/Sounder Base & Relay | O152: =VLOOKUP(U152,NAC!AO135:AR203,3) -> 5e-05 | P152: =VLOOKUP(U152,NAC!AO135:AR203,4) -> 5e-05 | R152: =B152*O152 -> 0 | S152: =B152*P152 -> 0 | U152: 5
D154: 2151 Photoelectric Smoke Detector | O154: =VLOOKUP(U154,NAC!AO135:AR203,3) -> 8.5e-05 | P154: =VLOOKUP(U154,NAC!AO135:AR203,4) -> 8.5e-05 | R154: =B154*O154 -> 0 | S154: =B154*P154 -> 0 | U154: 6
D156: D2 Photoelectric Duct Detector | O156: =VLOOKUP(U156,NAC!AO135:AR203,3) -> 0.00012 | P156: =VLOOKUP(U156,NAC!AO135:AR203,4) -> 0.00012 | R156: =B156*O156 -> 0 | S156: =B156*P156 -> 0 | U156: 8
B157: =COUNTIF(B146:B156,">0")*{1} -> 0
B158: =COUNTIF(B146:B156,">0")*{1} -> 0 | J158: =IF(U158>0,"ASSUMES 3 INITIATING CTS. IN ALARM","") ->  | S158: =IF(U158>0,"0.090000","") ->  | U158: =SUM(R146:R156) -> 0
B159: =COUNTIF(B162:B178,">0")*{1} -> 0
B160: =COUNTIF(B162:B178,">0")*{1} -> 0 | D160: Conventional 4 Wire Detectors
D161: * Must connect to an intelligent addressable module
D162: 4W i3 Series Photoelectric Smoke Detectors | O162: =VLOOKUP(U162,NAC!AO245:AR261,3) -> 0.0005 | P162: =VLOOKUP(U162,NAC!AO245:AR261,4) -> 0.0005 | R162: =B162*O162 -> 0 | S162: =B162*P162 -> 0 | U162: 2
D164: 4W i3 Series Photo/Thermal Detectors | O164: =VLOOKUP(U164,NAC!AO245:AR261,3) -> 0.0005 | P164: =VLOOKUP(U164,NAC!AO245:AR261,4) -> 0.0005 | R164: =B164*O164 -> 0 | S164: =B164*P164 -> 0 | U164: 3
D166: 4W i3 Series Detectors w/Sounder Base | O166: =VLOOKUP(U166,NAC!AO245:AR261,3) -> 0.0005 | P166: =VLOOKUP(U166,NAC!AO245:AR261,4) -> 0.0005 | R166: =B166*O166 -> 0 | S166: =B166*P166 -> 0 | U166: 4
D168: 4W i3 Series Detectors w/Sounder Base & Relay | O168: =VLOOKUP(U168,NAC!AO245:AR261,3) -> 0.0255 | P168: =VLOOKUP(U168,NAC!AO245:AR261,4) -> 0.0255 | R168: =B168*O168 -> 0 | S168: =B168*P168 -> 0 | U168: 5
D170: =VLOOKUP(U170,NAC!AO245:AR261,2) -> CO1224 Carbon Monoxide Detector | O170: =VLOOKUP(U170,NAC!AO245:AR261,3) -> 0.02 | P170: =VLOOKUP(U170,NAC!AO245:AR261,4) -> 0.02 | R170: =B170*O170 -> 0 | S170: =B170*P170 -> 0 | U170: 6
D172: OSI-R-SS Conventional Imaging Beam Smoke Detector | O172: 0.011 | P172: 0.011 | R172: =B172*O172 -> 0 | S172: =B172*P172 -> 0
D174: =VLOOKUP(U174,NAC!AO245:AR261,2) -> BEAM1224 Series Beam Detectors | O174: =VLOOKUP(U174,NAC!AO245:AR261,3) -> 0.017 | P174: =VLOOKUP(U174,NAC!AO245:AR261,4) -> 0.017 | R174: =B174*O174 -> 0 | S174: =B174*P174 -> 0 | U174: 9
D176: D4120 Photoelectric Duct Detector w/ Relay, 120VAC | O176: =VLOOKUP(U176,NAC!AO245:AR261,3) -> 0.02 | P176: =VLOOKUP(U176,NAC!AO245:AR261,4) -> 0.02 | R176: =B176*O176 -> 0 | S176: =B176*P176 -> 0 | U176: 10
D178: D4120 Photoelectric Duct Detector w/ Relay, 24VAC | O178: =VLOOKUP(U178,NAC!AO245:AR261,3) -> 0.065 | P178: =VLOOKUP(U178,NAC!AO245:AR261,4) -> 0.065 | R178: =B178*O178 -> 0 | S178: =B178*P178 -> 0 | U178: 11
B179: =COUNTIF(B182:B220,">0")*{1} -> 0
B180: =COUNTIF(B182:B230,">0")*{1} -> 0 | D180: Signaling Devices - 24 FWR
D181: Select From Drop-Down Box - Check Guide for Compatibility
B182: 0 | D182: =VLOOKUP(U182,NAC!BR11:BU172,2) -> 0 | O182: =VLOOKUP(U182,NAC!BR11:BU172,3) -> 0 | P182: =VLOOKUP(U182,NAC!BR11:BU172,4) -> 0 | R182: =B182*O182 -> 0 | S182: =B182*P182 -> 0 | U182: 1
D184: =VLOOKUP(U184,NAC!BR11:BU172,2) -> 0 | O184: =VLOOKUP(U184,NAC!BR11:BU172,3) -> 0 | P184: =VLOOKUP(U184,NAC!BR11:BU172,4) -> 0 | R184: =B184*O184 -> 0 | S184: =B184*P184 -> 0 | U184: 1
D186: =VLOOKUP(U186,NAC!BR11:BU172,2) -> 0 | O186: =VLOOKUP(U186,NAC!BR11:BU172,3) -> 0 | P186: =VLOOKUP(U186,NAC!BR11:BU172,4) -> 0 | R186: =B186*O186 -> 0 | S186: =B186*P186 -> 0 | U186: 1
D188: =VLOOKUP(U188,NAC!BR11:BU172,2) -> 0 | O188: =VLOOKUP(U188,NAC!BR11:BU172,3) -> 0 | P188: =VLOOKUP(U188,NAC!BR11:BU172,4) -> 0 | R188: =B188*O188 -> 0 | S188: =B188*P188 -> 0 | U188: 1
V189: Total
D190: =VLOOKUP(U190,NAC!BR11:BU172,2) -> 0 | O190: =VLOOKUP(U190,NAC!BR11:BU172,3) -> 0 | P190: =VLOOKUP(U190,NAC!BR11:BU172,4) -> 0 | R190: =B190*O190 -> 0 | S190: =B190*P190 -> 0 | U190: 1
D192: =VLOOKUP(U192,NAC!BR11:BU172,2) -> 0 | O192: =VLOOKUP(U192,NAC!BR11:BU172,3) -> 0 | P192: =VLOOKUP(U192,NAC!BR11:BU172,4) -> 0 | R192: =B192*O192 -> 0 | S192: =B192*P192 -> 0 | U192: 1
D194: =VLOOKUP(U194,NAC!BR11:BU172,2) -> 0 | O194: =VLOOKUP(U194,NAC!BR11:BU172,3) -> 0 | P194: =VLOOKUP(U194,NAC!BR11:BU172,4) -> 0 | R194: =B194*O194 -> 0 | S194: =B194*P194 -> 0 | U194: 1
D196: =VLOOKUP(U196,NAC!BR11:BU172,2) -> 0 | O196: =VLOOKUP(U196,NAC!BR11:BU172,3) -> 0 | P196: =VLOOKUP(U196,NAC!BR11:BU172,4) -> 0 | R196: =B196*O196 -> 0 | S196: =B196*P196 -> 0 | U196: 1
D198: =VLOOKUP(U198,NAC!BR11:BU172,2) -> 0 | O198: =VLOOKUP(U198,NAC!BR11:BU172,3) -> 0 | P198: =VLOOKUP(U198,NAC!BR11:BU172,4) -> 0 | R198: =B198*O198 -> 0 | S198: =B198*P198 -> 0 | U198: 1
D200: =VLOOKUP(U200,NAC!BR11:BU172,2) -> 0 | O200: =VLOOKUP(U200,NAC!BR11:BU172,3) -> 0 | P200: =VLOOKUP(U200,NAC!BR11:BU172,4) -> 0 | R200: =B200*O200 -> 0 | S200: =B200*P200 -> 0 | U200: 1
D202: =VLOOKUP(U202,NAC!BR11:BU172,2) -> 0 | O202: =VLOOKUP(U202,NAC!BR11:BU172,3) -> 0 | P202: =VLOOKUP(U202,NAC!BR11:BU172,4) -> 0 | R202: =B202*O202 -> 0 | S202: =B202*P202 -> 0 | U202: 1
D204: =VLOOKUP(U204,NAC!BR11:BU172,2) -> 0 | O204: =VLOOKUP(U204,NAC!BR11:BU172,3) -> 0 | P204: =VLOOKUP(U204,NAC!BR11:BU172,4) -> 0 | R204: =B204*O204 -> 0 | S204: =B204*P204 -> 0 | U204: 1
D206: =VLOOKUP(U206,NAC!BR11:BU172,2) -> 0 | O206: =VLOOKUP(U206,NAC!BR11:BU172,3) -> 0 | P206: =VLOOKUP(U206,NAC!BR11:BU172,4) -> 0 | R206: =B206*O206 -> 0 | S206: =B206*P206 -> 0 | U206: 1
D208: =VLOOKUP(U208,NAC!BR11:BU172,2) -> 0 | O208: =VLOOKUP(U208,NAC!BR11:BU172,3) -> 0 | P208: =VLOOKUP(U208,NAC!BR11:BU172,4) -> 0 | R208: =B208*O208 -> 0 | S208: =B208*P208 -> 0 | U208: 1
D210: =VLOOKUP(U210,NAC!BR11:BU172,2) -> 0 | O210: =VLOOKUP(U210,NAC!BR11:BU172,3) -> 0 | P210: =VLOOKUP(U210,NAC!BR11:BU172,4) -> 0 | R210: =B210*O210 -> 0 | S210: =B210*P210 -> 0 | U210: 1
D212: =VLOOKUP(U212,NAC!BR11:BU172,2) -> 0 | O212: =VLOOKUP(U212,NAC!BR11:BU172,3) -> 0 | P212: =VLOOKUP(U212,NAC!BR11:BU172,4) -> 0 | R212: =B212*O212 -> 0 | S212: =B212*P212 -> 0 | U212: 1
D214: =VLOOKUP(U214,NAC!BR11:BU172,2) -> 0 | O214: =VLOOKUP(U214,NAC!BR11:BU172,3) -> 0 | P214: =VLOOKUP(U214,NAC!BR11:BU172,4) -> 0 | R214: =B214*O214 -> 0 | S214: =B214*P214 -> 0 | U214: 1
D216: =VLOOKUP(U216,NAC!BR11:BU172,2) -> 0 | O216: =VLOOKUP(U216,NAC!BR11:BU172,3) -> 0 | P216: =VLOOKUP(U216,NAC!BR11:BU172,4) -> 0 | R216: =B216*O216 -> 0 | S216: =B216*P216 -> 0 | U216: 1
D218: =VLOOKUP(U218,NAC!BR11:BU172,2) -> 0 | O218: =VLOOKUP(U218,NAC!BR11:BU172,3) -> 0 | P218: =VLOOKUP(U218,NAC!BR11:BU172,4) -> 0 | R218: =B218*O218 -> 0 | S218: =B218*P218 -> 0 | U218: 1
D220: =VLOOKUP(U220,NAC!BR11:BU172,2) -> 0 | O220: =VLOOKUP(U220,NAC!BR11:BU172,3) -> 0 | P220: =VLOOKUP(U220,NAC!BR11:BU172,4) -> 0 | R220: =B220*O220 -> 0 | S220: =B220*P220 -> 0 | U220: 1
R222: =B222*J222 -> 0 | S222: =B222*M222 -> 0
R224: =B224*J224 -> 0 | S224: =B224*M224 -> 0
R226: =B226*J226 -> 0 | S226: =B226*M226 -> 0
R228: =B228*J228 -> 0 | S228: =B228*M228 -> 0
R230: =B230*J230 -> 0 | S230: =B230*M230 -> 0
D231: * Indicating Circuits Must Not Exceed 5 Amps Total | U231: =SUM(S182:S230) -> 0
B232: =COUNTIF(B235:B237,">0")*{1} -> 0
B233: =COUNTIF(B235:B237,">0")*{1} -> 0 | D233: Aux. Power
D235: =VLOOKUP(U235,NAC!BH34:BL36,2) -> FX-3318 Aux Supply1 500 mA, 24VDC Regulated | P235: =VLOOKUP(U235,NAC!BH34:BL36,3) -> 0.5 | Q235: =VLOOKUP(U235,NAC!BH34:BL36,3) -> 0.5 | R235: =B235*P235 -> 0 | S235: =B235*Q235 -> 0 | U235: 2
D237: =VLOOKUP(U237,NAC!BH34:BL36,2) -> FX-3318 Aux Supply2 300 mA, 24VDC Regulated | P237: =VLOOKUP(U237,NAC!BH34:BL36,3) -> 0.3 | Q237: =VLOOKUP(U237,NAC!BH34:BL36,3) -> 0.3 | R237: =B237*P237 -> 0 | S237: =B237*Q237 -> 0 | U237: 3
B238: =COUNTIF(B242:B260,">0")*{1} -> 0 | V238: Total
J239: Enter | M239: Enter
B240: =COUNTIF(B242:B260,">0")*{1} -> 0 | D240: Additional Devices | J240: Standby | M240: Alarm
B241: =COUNTIF(B242:B260,">0")*{1} -> 0 | D241: Description | J241: Current | M241: Current
R242: =B242*J242 -> 0 | S242: =B242*M242 -> 0
R244: =B244*J244 -> 0 | S244: =B244*M244 -> 0
R246: =B246*J246 -> 0 | S246: =B246*M246 -> 0
R248: =B248*J248 -> 0 | S248: =B248*M248 -> 0
R250: =B250*J250 -> 0 | S250: =B250*M250 -> 0
R252: =B252*J252 -> 0 | S252: =B252*M252 -> 0
R254: =B254*J254 -> 0 | S254: =B254*M254 -> 0
R256: =B256*J256 -> 0 | S256: =B256*M256 -> 0
R258: =B258*J258 -> 0 | S258: =B258*M258 -> 0
R260: =B260*J260 -> 0 | S260: =B260*M260 -> 0
B261: 1
B263: 1 | E263: Total Standby Current in Amps | S263: =SUM(R18:R260) -> 0.225 | U263: =B265*S263 -> 5.4
B264: 1
B265: 24 | D265: Enter Number of Standby Hours | H265: Total Alarm Current in Amps | S265: =SUM(S158:S260,S18:S142) -> 0.43 | U265: =B267*S265/60 -> 0.215
B266: 1
B267: 30 | D267: Enter Alarm Period in Minutes | U267: =U263+U265 -> 5.615
B268: 1
B269: 1.25 | D269: Enter Battery Derating | R269: Battery Capacity Requirement (Ah) | S269: =U267*B269 -> 7.01875
B270: 1
B271: =COUNTIF(S269,"<26")*{1} -> 1 | H271: Recommended Mircom Batteries (x2) | S271: =IF(OR(S269=0),"",IF(OR(S269<5),"BAT-12V5A",IF(OR(S269<7),"BAT-12V7A",IF(OR(S269<12),"BAT-12V12A",IF(OR(S269<18.0009),"BAT-12V18A",IF(OR(S269<26),"BAT-12V26A",IF(OR(S269>26),""))))))) -> BAT-12V12A
G272: * Battery Charging Capability: Minimum 10AH (BAT-12V12A), Maximum 24AH (BAT-12V26A)
D273: Exceeds Maximum Total Alarm Current of 5 Amps
D274: Exceeds Battery Maximums For This Panel
D275: Exceeded Maximum 24Ah Charging Capacity (26AH Battery)
D276: Battery Exceeds Backbox, Use BC-160 Battery Cabinet
B277: -9999 | D277: Maximum AMPS For Power Supply Has Been Exceeded
A281: Mircom Technologies hereby disclaims all warranties relating to this software utility, whether expressed or implied, including without limitation any implied warranties of merchantability or fitness for a particular purpose. Mircom Technologies cannot and will not assume, accept or be liable for any special, incidental, consequential, indirect or similar claims, losses or damages for any reason whatsoever. Use of this Software Utility shall be deemed acceptance of these terms. It is the sole responsibility of the user to ascertain the accuracy and the reliability of any and all information generated or provided by this software utility and to ensure maximum current levels for control units have not been exceeded

Sheet INX-10A (2) (hidden)
D1: INX-10A Battery Calculation Program
D3: Project: | E3: ='INX-10A'!H4 -> 0
D4: Line 2: | E4: ='INX-10A'!H6 -> 0
D5: Line 3: | E5: ='INX-10A'!H8 -> 0
D6: Prepared By: | E6: ='INX-10A'!H10 -> 0
A9: QTY | G9: Total Standby Current | H9: Total Alarm Current
A10: Column1 | B10: Column2 | C10: Column3 | D10: Column4 | E10: Column5 | F10: Column6 | G10: Column7 | H10: Column8
A11: 1 | C11: ='INX-10A'!C18 -> 0 | G11: ='INX-10A'!Q18 -> 0 | H11: ='INX-10A'!R18 -> 0.2
A12: =IF(SUM(I13:I34)>=1,1,"") ->  | B12: Column6 | C12: NAC Circuit 1 | D12: Column7 | E12: Column2 | G12: Column4 | H12: Column5
A13: =IF(I14,1,0) -> 0
A14: =IF(I14,1,0) -> 0 | C14: Signals | I14: =SUM(A15:A20) -> 0
A15: ='INX-10A'!B27 -> 0 | C15: ='INX-10A'!D27 -> 0 | G15: ='INX-10A'!Q27 -> 0 | H15: ='INX-10A'!R27 -> 0
A16: ='INX-10A'!B29 -> 0 | C16: ='INX-10A'!D29 -> 0 | G16: ='INX-10A'!Q29 -> 0 | H16: ='INX-10A'!R29 -> 0
A17: ='INX-10A'!B31 -> 0 | C17: ='INX-10A'!D31 -> 0 | G17: ='INX-10A'!Q31 -> 0 | H17: ='INX-10A'!R31 -> 0
A18: ='INX-10A'!B33 -> 0 | C18: ='INX-10A'!D33 -> 0 | G18: ='INX-10A'!Q33 -> 0 | H18: ='INX-10A'!R33 -> 0
A19: ='INX-10A'!B35 -> 0 | C19: ='INX-10A'!D35 -> 0 | G19: ='INX-10A'!Q35 -> 0 | H19: ='INX-10A'!R35 -> 0
A20: ='INX-10A'!B37 -> 0 | C20: ='INX-10A'!D37 -> 0 | G20: ='INX-10A'!Q37 -> 0 | H20: ='INX-10A'!R37 -> 0
A21: =IF(I14,1,0) -> 0
A22: =IF(I22,1,0) -> 0 | C22: Remote Annunciators | I22: =SUM(A23:A26) -> 0
A23: ='INX-10A'!B47 -> 0 | C23: ='INX-10A'!D47 -> RAM-1016TZDS Main Remote Annunciator w/16 Zones Active | G23: ='INX-10A'!Q47 -> 0 | H23: ='INX-10A'!R47 -> 0
A24: ='INX-10A'!B49 -> 0 | C24: ='INX-10A'!D49 -> RAM-1032TZDS Main Remote Annunciator w/ 32 Zones Active | G24: ='INX-10A'!Q49 -> 0 | H24: ='INX-10A'!R49 -> 0
A25: ='INX-10A'!B51 -> 0 | C25: ='INX-10A'!D51 -> RAX-1048TZDS 48 Zone & Trouble LED Adder w/ 4 Zones Active | G25: ='INX-10A'!Q51 -> 0 | H25: ='INX-10A'!R51 -> 0
A26: ='INX-10A'!B53 -> 0 | C26: ='INX-10A'!D53 -> RAM-300LCD LCD Annunciator | G26: ='INX-10A'!Q53 -> 0 | H26: ='INX-10A'!R53 -> 0
A27: =IF(I22,1,0) -> 0
A28: =IF(I28,1,0) -> 0 | C28: Additional Devices | I28: =SUM(A29:A34) -> 0
A29: ='INX-10A'!B72 -> 0 | C29: ='INX-10A'!D72 -> 0 | G29: ='INX-10A'!Q72 -> 0 | H29: ='INX-10A'!R72 -> 0
A30: ='INX-10A'!B74 -> 0 | C30: ='INX-10A'!D74 -> 0 | G30: ='INX-10A'!Q74 -> 0 | H30: ='INX-10A'!R74 -> 0
A31: ='INX-10A'!B76 -> 0 | C31: ='INX-10A'!D76 -> 0 | G31: ='INX-10A'!Q76 -> 0 | H31: ='INX-10A'!R76 -> 0
A32: ='INX-10A'!B78 -> 0 | C32: ='INX-10A'!D78 -> 0 | G32: ='INX-10A'!Q78 -> 0 | H32: ='INX-10A'!R78 -> 0
A33: ='INX-10A'!B80 -> 0 | C33: ='INX-10A'!D80 -> 0 | G33: ='INX-10A'!Q80 -> 0 | H33: ='INX-10A'!R80 -> 0
A34: ='INX-10A'!B82 -> 0 | C34: ='INX-10A'!D82 -> 0 | G34: ='INX-10A'!Q82 -> 0 | H34: ='INX-10A'!R82 -> 0
A35: =IF(I28,1,0) -> 0
A36: =IF(SUM(I14:I36)>=1,1,"") ->  | C36: Total Current for NAC Circuit 1 | G36: ='INX-10A'!Q84 -> 0 | H36: ='INX-10A'!R84 -> 0
A37: =IF(H36<2.5,"",1) ->  | C37: =IF(H36<2.5,"","Warning Maximum Circuit Current Exceeded") -> 
A38: =IF(A12=1,1,0) -> 0 | C38: =IF(H37<2.5,"","Warning Maximum Circuit Current Exceeded") -> 
A39: =IF(SUM(A40:A63)>=1,1,"") ->  | C39: NAC Circuit 2
A40: =IF(I41,1,0) -> 0
A41: =IF(I41,1,0) -> 0 | C41: Signals | I41: =SUM(A42:A47) -> 0
A42: ='INX-10A'!B90 -> 0 | C42: ='INX-10A'!D90 -> 0 | G42: ='INX-10A'!Q90 -> 0 | H42: ='INX-10A'!R90 -> 0
A43: ='INX-10A'!B92 -> 0 | C43: ='INX-10A'!D92 -> 0 | G43: ='INX-10A'!Q92 -> 0 | H43: ='INX-10A'!R92 -> 0
A44: ='INX-10A'!B94 -> 0 | C44: ='INX-10A'!D94 -> 0 | G44: ='INX-10A'!Q94 -> 0 | H44: ='INX-10A'!R94 -> 0
A45: ='INX-10A'!B96 -> 0 | C45: ='INX-10A'!D96 -> 0 | G45: ='INX-10A'!Q96 -> 0 | H45: ='INX-10A'!R96 -> 0
A46: ='INX-10A'!B98 -> 0 | C46: ='INX-10A'!D98 -> 0 | G46: ='INX-10A'!Q98 -> 0 | H46: ='INX-10A'!R98 -> 0
A47: ='INX-10A'!B100 -> 0 | C47: ='INX-10A'!D100 -> 0 | G47: ='INX-10A'!Q100 -> 0 | H47: ='INX-10A'!R100 -> 0
A48: =IF(I49,1,0) -> 0
A49: =IF(I49,1,0) -> 0 | C49: Remote Annunciators | I49: =SUM(A50:A53) -> 0
A50: ='INX-10A'!B110 -> 0 | C50: ='INX-10A'!D110 -> RAM-1016TZDS Main Remote Annunciator w/16 Zones Active | G50: ='INX-10A'!Q110 -> 0 | H50: ='INX-10A'!R110 -> 0
A51: ='INX-10A'!B112 -> 0 | C51: ='INX-10A'!D112 -> RAM-1032TZDS Main Remote Annunciator w/ 32 Zones Active | G51: ='INX-10A'!Q112 -> 0 | H51: ='INX-10A'!R112 -> 0
A52: ='INX-10A'!B114 -> 0 | C52: ='INX-10A'!D114 -> RAX-1048TZDS 48 Zone & Trouble LED Adder w/ 4 Zones Active | G52: ='INX-10A'!Q114 -> 0 | H52: ='INX-10A'!R114 -> 0
A53: ='INX-10A'!B116 -> 0 | C53: ='INX-10A'!D116 -> RAM-300LCD LCD Annunciator | G53: ='INX-10A'!Q116 -> 0 | H53: ='INX-10A'!R116 -> 0
A54: =IF(I49,1,0) -> 0
A55: =IF(I55,1,0) -> 0 | C55: Additional Devices | I55: =SUM(A56:A61) -> 0
A56: ='INX-10A'!B135 -> 0 | C56: ='INX-10A'!D135 -> 0 | G56: ='INX-10A'!Q135 -> 0 | H56: ='INX-10A'!R135 -> 0
A57: ='INX-10A'!B137 -> 0 | C57: ='INX-10A'!D137 -> 0 | G57: ='INX-10A'!Q137 -> 0 | H57: ='INX-10A'!R137 -> 0
A58: ='INX-10A'!B139 -> 0 | C58: ='INX-10A'!D139 -> 0 | G58: ='INX-10A'!Q139 -> 0 | H58: ='INX-10A'!R139 -> 0
A59: ='INX-10A'!B141 -> 0 | C59: ='INX-10A'!D141 -> 0 | G59: ='INX-10A'!Q141 -> 0 | H59: ='INX-10A'!R141 -> 0
A60: ='INX-10A'!B143 -> 0 | C60: ='INX-10A'!D143 -> 0 | G60: ='INX-10A'!Q143 -> 0 | H60: ='INX-10A'!R143 -> 0
A61: ='INX-10A'!B145 -> 0 | C61: ='INX-10A'!D145 -> 0 | G61: ='INX-10A'!Q145 -> 0 | H61: ='INX-10A'!R145 -> 0
A62: =IF(I55,1,0) -> 0
A63: =IF(SUM(I41:I63)>=1,1,"") ->  | C63: Total Current for NAC Circuit 2 | G63: ='INX-10A'!Q147 -> 0 | H63: ='INX-10A'!R147 -> 0
A64: =IF(H63<2.5,"",1) ->  | C64: =IF(H63<2.5,"","Warning Maximum Circuit Current Exceeded") -> 
A65: =IF(A39=1,1,0) -> 0 | C65: =IF(H64<2.5,"","Warning Maximum Circuit Current Exceeded") -> 
A66: =IF(SUM(A67:A90)>=1,1,"") -> 1 | C66: NAC Circuit 3
A67: =IF(I68,1,0) -> 0
A68: =IF(I68,1,0) -> 0 | C68: Signals | I68: =SUM(A69:A74) -> 0
A69: ='INX-10A'!B153 -> 0 | C69: ='INX-10A'!D153 -> 0 | G69: ='INX-10A'!Q153 -> 0 | H69: ='INX-10A'!R153 -> 0
A70: ='INX-10A'!B155 -> 0 | C70: ='INX-10A'!D155 -> 0 | G70: ='INX-10A'!Q155 -> 0 | H70: ='INX-10A'!R155 -> 0
A71: ='INX-10A'!B157 -> 0 | C71: ='INX-10A'!D157 -> 0 | G71: ='INX-10A'!Q157 -> 0 | H71: ='INX-10A'!R157 -> 0
A72: ='INX-10A'!B159 -> 0 | C72: ='INX-10A'!D159 -> 0 | G72: ='INX-10A'!Q159 -> 0 | H72: ='INX-10A'!R159 -> 0
A73: ='INX-10A'!B161 -> 0 | C73: ='INX-10A'!D161 -> 0 | G73: ='INX-10A'!Q161 -> 0 | H73: ='INX-10A'!R161 -> 0
A74: ='INX-10A'!B163 -> 0 | C74: ='INX-10A'!D163 -> 0 | G74: ='INX-10A'!Q163 -> 0 | H74: ='INX-10A'!R163 -> 0
A75: =IF(I76,1,0) -> 1
A76: =IF(I76,1,0) -> 1 | C76: Remote Annunciators | I76: =SUM(A77:A82) -> 1
A77: ='INX-10A'!B174 -> 0 | C77: ='INX-10A'!D174 -> 0 | G77: ='INX-10A'!Q174 -> 0 | H77: ='INX-10A'!R174 -> 0
A78: ='INX-10A'!B176 -> 0 | C78: ='INX-10A'!D176 -> 0 | G78: ='INX-10A'!Q176 -> 0 | H78: ='INX-10A'!R176 -> 0
A79: ='INX-10A'!B178 -> 0 | C79: ='INX-10A'!D178 -> 0 | G79: ='INX-10A'!Q178 -> 0 | H79: ='INX-10A'!R178 -> 0
A80: ='INX-10A'!B180 -> 1 | C80: ='INX-10A'!D180 -> 0 | G80: ='INX-10A'!Q180 -> 0 | H80: ='INX-10A'!R180 -> 0
A81: =IF(I82,1,0) -> 0
A82: =IF(I82,1,0) -> 0 | C82: Additional Devices | I82: =SUM(A83:A88) -> 0
A83: ='INX-10A'!B198 -> 0 | C83: ='INX-10A'!D198 -> 0 | G83: ='INX-10A'!Q198 -> 0 | H83: ='INX-10A'!R198 -> 0
A84: ='INX-10A'!B200 -> 0 | C84: ='INX-10A'!D200 -> 0 | G84: ='INX-10A'!Q200 -> 0 | H84: ='INX-10A'!R200 -> 0
A85: ='INX-10A'!B202 -> 0 | C85: ='INX-10A'!D202 -> 0 | G85: ='INX-10A'!Q202 -> 0 | H85: ='INX-10A'!R202 -> 0
A86: ='INX-10A'!B204 -> 0 | C86: ='INX-10A'!D204 -> 0 | G86: ='INX-10A'!Q204 -> 0 | H86: ='INX-10A'!R204 -> 0
A87: ='INX-10A'!B206 -> 0 | C87: ='INX-10A'!D206 -> 0 | G87: ='INX-10A'!Q206 -> 0 | H87: ='INX-10A'!R206 -> 0
A88: ='INX-10A'!B208 -> 0 | C88: ='INX-10A'!D208 -> 0 | G88: ='INX-10A'!Q208 -> 0 | H88: ='INX-10A'!R208 -> 0
A89: =IF(I82,1,0) -> 0
A90: =IF(SUM(I68:I90)>=1,1,"") -> 1 | C90: Total Current for NAC Circuit 3 | G90: ='INX-10A'!Q210 -> 0 | H90: ='INX-10A'!R210 -> 0
A91: =IF(A66=1,1,0) -> 1 | C91: =IF(H90<2.5,"","Warning Maximum Circuit Current Exceeded") -> 
A92: =IF(A66=1,1,0) -> 1
A93: =IF(SUM(A94:A117)>=1,1,"") ->  | C93: NAC Circuit 4
A94: =IF(I95,1,0) -> 0
A95: =IF(I95,1,0) -> 0 | C95: Signals | I95: =SUM(A96:A101) -> 0
A96: ='INX-10A'!B216 -> 0 | C96: ='INX-10A'!D216 -> 0 | G96: ='INX-10A'!Q216 -> 0 | H96: ='INX-10A'!R216 -> 0
A97: ='INX-10A'!B218 -> 0 | C97: ='INX-10A'!D218 -> 0 | G97: ='INX-10A'!Q218 -> 0 | H97: ='INX-10A'!R218 -> 0
A98: ='INX-10A'!B220 -> 0 | C98: ='INX-10A'!D220 -> 0 | G98: ='INX-10A'!Q220 -> 0 | H98: ='INX-10A'!R220 -> 0
A99: ='INX-10A'!B222 -> 0 | C99: ='INX-10A'!D222 -> 0 | G99: ='INX-10A'!Q222 -> 0 | H99: ='INX-10A'!R222 -> 0
A100: ='INX-10A'!B224 -> 0 | C100: ='INX-10A'!D224 -> 0 | G100: ='INX-10A'!Q224 -> 0 | H100: ='INX-10A'!R224 -> 0
A101: ='INX-10A'!B226 -> 0 | C101: ='INX-10A'!D226 -> 0 | G101: ='INX-10A'!Q226 -> 0 | H101: ='INX-10A'!R226 -> 0
A102: =IF(I103,1,0) -> 0
A103: =IF(SUM(A104:A107)>=1,"1","") ->  | C103: Remote Annunciators | I103: =SUM(A104:A109) -> 0
A104: ='INX-10A'!B236 -> 0 | C104: ='INX-10A'!D236 -> RAM-1016TZDS Main Remote Annunciator w/16 Zones Active | G104: ='INX-10A'!Q236 -> 0 | H104: ='INX-10A'!R236 -> 0
A105: ='INX-10A'!B238 -> 0 | C105: ='INX-10A'!D238 -> RAM-1032TZDS Main Remote Annunciator w/ 32 Zones Active | G105: ='INX-10A'!Q238 -> 0 | H105: ='INX-10A'!R238 -> 0
A106: ='INX-10A'!B240 -> 0 | C106: ='INX-10A'!D240 -> RAX-1048TZDS 48 Zone & Trouble LED Adder w/ 4 Zones Active | G106: ='INX-10A'!Q240 -> 0 | H106: ='INX-10A'!R240 -> 0
A107: ='INX-10A'!B242 -> 0 | C107: ='INX-10A'!D242 -> RAM-300LCD LCD Annunciator | G107: ='INX-10A'!Q242 -> 0 | H107: ='INX-10A'!R242 -> 0
A108: =IF(I109,1,0) -> 0
A109: =IF(I109,1,0) -> 0 | C109: 4 Wire Detectors Supply | I109: =SUM(A110:A112) -> 0
A110: ='INX-10A'!B260 -> 0 | C110: ='INX-10A'!D260 -> C4W i3 Series Photoelectric Detectors | G110: ='INX-10A'!Q260 -> 0 | H110: ='INX-10A'!R260 -> 0
A111: ='INX-10A'!B262 -> 0 | C111: ='INX-10A'!D262 -> C4W i3 Series Photo/ Thermal Detectors | G111: ='INX-10A'!Q262 -> 0 | H111: ='INX-10A'!R262 -> 0
A112: ='INX-10A'!B264 -> 0 | C112: ='INX-10A'!D264 -> C4W i3 Series Photo/ Thermal w/Sounder Base | G112: ='INX-10A'!Q264 -> 0 | H112: ='INX-10A'!R264 -> 0
A113: ='INX-10A'!B266 -> 0 | C113: ='INX-10A'!D266 -> C4W i3 Series Photo/ Thermal w/Sounder Base & Relay | G113: ='INX-10A'!Q266 -> 0 | H113: ='INX-10A'!R266 -> 0
A114: =IF(I109,1,0) -> 0
A115: =IF(I115,1,0) -> 0 | C115: Additional Devices | I115: =SUM(A116:A121) -> 0
A116: ='INX-10A'!B283 -> 0 | C116: ='INX-10A'!D283 -> 0 | G116: ='INX-10A'!Q283 -> 0 | H116: ='INX-10A'!R283 -> 0
A117: ='INX-10A'!B285 -> 0 | C117: ='INX-10A'!D285 -> 0 | G117: ='INX-10A'!Q285 -> 0 | H117: ='INX-10A'!R285 -> 0
A118: ='INX-10A'!B287 -> 0 | C118: ='INX-10A'!D287 -> 0 | G118: ='INX-10A'!Q287 -> 0 | H118: ='INX-10A'!R287 -> 0
A119: ='INX-10A'!B289 -> 0 | C119: ='INX-10A'!D289 -> 0 | G119: ='INX-10A'!Q289 -> 0 | H119: ='INX-10A'!R289 -> 0
A120: ='INX-10A'!B291 -> 0 | C120: ='INX-10A'!D291 -> 0 | G120: ='INX-10A'!Q291 -> 0 | H120: ='INX-10A'!R291 -> 0
A121: ='INX-10A'!B293 -> 0 | C121: ='INX-10A'!D293 -> 0 | G121: ='INX-10A'!Q293 -> 0 | H121: ='INX-10A'!R293 -> 0
A122: =IF(I115,1,0) -> 0
A123: =IF(SUM(I95:I123)>=1,1,"") ->  | C123: Total Current for NAC Circuit 4
A124: =IF(A93=1,1,0) -> 0 | C124: =IF(H124<2.5,"","Warning Maximum Circuit Current Exceeded") ->  | G124: ='INX-10A'!Q295 -> 0 | H124: ='INX-10A'!R295 -> 0
A125: =IF(A93=1,1,0) -> 0
A126: =IF(SUM(A127:A150)>=1,1,"") ->  | C126: NAC Circuit 5
A127: =IF(I128,1,0) -> 0
A128: =IF(I128,1,0) -> 0 | C128: Signals | I128: =SUM(A129:A134) -> 0
A129: ='INX-10A'!B301 -> 0 | C129: ='INX-10A'!D301 -> 0 | G129: ='INX-10A'!Q301 -> 0 | H129: ='INX-10A'!R301 -> 0
A130: ='INX-10A'!B303 -> 0 | C130: ='INX-10A'!D303 -> 0 | G130: ='INX-10A'!Q303 -> 0 | H130: ='INX-10A'!R303 -> 0
A131: ='INX-10A'!B305 -> 0 | C131: ='INX-10A'!D305 -> 0 | G131: ='INX-10A'!Q305 -> 0 | H131: ='INX-10A'!R305 -> 0
A132: ='INX-10A'!B307 -> 0 | C132: ='INX-10A'!D307 -> 0 | G132: ='INX-10A'!Q307 -> 0 | H132: ='INX-10A'!R307 -> 0
A133: ='INX-10A'!B309 -> 0 | C133: ='INX-10A'!D309 -> 0 | G133: ='INX-10A'!Q309 -> 0 | H133: ='INX-10A'!R309 -> 0
A134: ='INX-10A'!B311 -> 0 | C134: ='INX-10A'!D311 -> 0 | G134: ='INX-10A'!Q311 -> 0 | H134: ='INX-10A'!R311 -> 0
A135: =IF(I136,1,0) -> 0
A136: =IF(SUM(A137:A140)>=1,"1","") ->  | C136: Remote Annunciators | I136: =SUM(A137:A142) -> 0
A137: ='INX-10A'!B321 -> 0 | C137: ='INX-10A'!D321 -> RAM-1016TZDS Main Remote Annunciator w/16 Zones Active | G137: ='INX-10A'!Q321 -> 0 | H137: ='INX-10A'!R321 -> 0
A138: ='INX-10A'!B323 -> 0 | C138: ='INX-10A'!D323 -> RAM-1032TZDS Main Remote Annunciator w/ 32 Zones Active | G138: ='INX-10A'!Q323 -> 0 | H138: ='INX-10A'!R323 -> 0
A139: ='INX-10A'!B325 -> 0 | C139: ='INX-10A'!D325 -> RAX-1048TZDS 48 Zone & Trouble LED Adder w/ 4 Zones Active | G139: ='INX-10A'!Q325 -> 0 | H139: ='INX-10A'!R325 -> 0
A140: ='INX-10A'!B327 -> 0 | C140: ='INX-10A'!D327 -> RAM-300LCD LCD Annunciator | G140: ='INX-10A'!Q327 -> 0 | H140: ='INX-10A'!R327 -> 0
A141: =IF(I142,1,0) -> 0
A142: =IF(I142,1,0) -> 0 | C142: 4 Wire Detectors Supply | I142: =SUM(A143:A145) -> 0
A143: ='INX-10A'!B347 -> 0 | C143: ='INX-10A'!D347 -> C4W i3 Series Photoelectric Detectors | G143: ='INX-10A'!Q347 -> 0 | H143: ='INX-10A'!R347 -> 0
A144: ='INX-10A'!B349 -> 0 | C144: ='INX-10A'!D349 -> C4W i3 Series Photo/ Thermal Detectors | G144: ='INX-10A'!Q349 -> 0 | H144: ='INX-10A'!R349 -> 0
A145: ='INX-10A'!B351 -> 0 | C145: ='INX-10A'!D351 -> C4W i3 Series Photo/ Thermal w/Sounder Base | G145: ='INX-10A'!Q351 -> 0 | H145: ='INX-10A'!R351 -> 0
A146: ='INX-10A'!B353 -> 0 | C146: ='INX-10A'!D353 -> C4W i3 Series Photo/ Thermal w/Sounder Base & Relay | G146: ='INX-10A'!Q353 -> 0 | H146: ='INX-10A'!R353 -> 0
A147: =IF(I142,1,0) -> 0
A148: =IF(I148,1,0) -> 0 | C148: Additional Devices | I148: =SUM(A149:A154) -> 0
A149: ='INX-10A'!B370 -> 0 | C149: ='INX-10A'!D370 -> 0 | G149: ='INX-10A'!Q370 -> 0 | H149: ='INX-10A'!R370 -> 0
A150: ='INX-10A'!B372 -> 0 | C150: ='INX-10A'!D372 -> 0 | G150: ='INX-10A'!Q372 -> 0 | H150: ='INX-10A'!R372 -> 0
A151: ='INX-10A'!B374 -> 0 | C151: ='INX-10A'!D374 -> 0 | G151: ='INX-10A'!Q374 -> 0 | H151: ='INX-10A'!R374 -> 0
A152: ='INX-10A'!B376 -> 0 | C152: ='INX-10A'!D376 -> 0 | G152: ='INX-10A'!Q376 -> 0 | H152: ='INX-10A'!R376 -> 0
A153: ='INX-10A'!B378 -> 0 | C153: ='INX-10A'!D378 -> 0 | G153: ='INX-10A'!Q378 -> 0 | H153: ='INX-10A'!R378 -> 0
A154: ='INX-10A'!B380 -> 0 | C154: ='INX-10A'!D380 -> 0 | G154: ='INX-10A'!Q380 -> 0 | H154: ='INX-10A'!R380 -> 0
A155: =IF(I148,1,0) -> 0
A156: =IF(SUM(I128:I156)>=1,1,"") ->  | C156: Total Current for NAC Circuit 5 | G156: ='INX-10A'!Q382 -> 0 | H156: ='INX-10A'!R382 -> 0
A157: =IF(H156<2.5,"",1) ->  | C157: =IF(H156<2.5,"","Warning Maximum Circuit Current Exceeded") -> 
A158: =IF(A126=1,1,0) -> 0
A159: =IF(SUM(A160:A161)>=1,1,"") ->  | C159: Auxiliary Power | I159: =SUM(A160:A161) -> 0
A160: ='INX-10A'!B387 -> 0 | C160: ='INX-10A'!D387 -> 0 | G160: ='INX-10A'!Q387 -> 0 | H160: ='INX-10A'!R387 -> 0
A161: ='INX-10A'!B389 -> 0 | C161: ='INX-10A'!D389 -> 0 | G161: ='INX-10A'!Q389 -> 0 | H161: ='INX-10A'!R389 -> 0
A162: ='INX-10A'!B391 -> 0 | C162: ='INX-10A'!D391 -> 0 | G162: ='INX-10A'!Q391 -> 0 | H162: ='INX-10A'!R391 -> 0
A163: =IF(I159,1,0) -> 0 | C163: Total Auxiliary Power Supply | G163: ='INX-10A'!Q393 -> 0 | H163: ='INX-10A'!R393 -> 0
A164: =IF(H163<2.5,"","1") ->  | C164: =IF(H163<1.7,"","Warning Maximum Circuit Current Exceeded") -> 
F167: Total Standby Current in Amps | H167: ='INX-10A'!R397 -> 0
A168: ='INX-10A'!B399 -> 24 | C168: Number of Standby Hours | F168: Total Alarm Current in Amps | H168: ='INX-10A'!R399 -> 0
A169: ='INX-10A'!B401 -> 30 | C169: Alarm Period in Minutes
A170: ='INX-10A'!B403 -> 1.25 | C170: Battery Derating | D170: Battery Capacity Requirement (Ah) | H170: ='INX-10A'!R403 -> 0
A173: Mircom Technologies hereby disclaims all warranties relating to this software utility, whether expressed or implied, including without limitation any implied warranties of merchantability or fitness for a particular purpose. Mircom Technologies cannot and will not assume, accept or be liable for any special, incidental, consequential, indirect or similar claims, losses or damages for any reason whatsoever. Use of this Software Utility shall be deemed acceptance of these terms. It is the sole responsibility of the user to ascertain the accuracy and the reliability of any and all information generated or provided by this software utility and to ensure maximum current levels for control units have not been exceeded

Sheet FX-3500 (hidden)
F2: FX-3500 Battery Calculation Program
B4: PROJECT NAME: | E4: =Menu!X2 -> 0
B6: ADDRESS: | E6: =Menu!X4 -> 0
B8: COMPANY NAME: | E8: =Menu!X15 -> 0
B10: PREPARED BY: | E10: =Menu!X17 -> 0
D12: Important: Enter Quantities then press enter, tab, or click another cell to update calculator.
R13: All Current in Amps
B15: 1 | Q15: AUX. CURRENT | R15: Standby | S15: Alarm
B16: 1 | D16: Panel Model | R16: Current | S16: Current
D17: Select panel model in drop-down
B18: 1 | D18: =VLOOKUP(U18,NAC!BH4:BL6,2) -> 0 | O18: =VLOOKUP(U18,NAC!BH4:BM5,4) -> 0 | P18: =VLOOKUP(U18,NAC!BH4:BM5,5) -> 0 | Q18: =VLOOKUP(U18,NAC!BH4:BM5,6) -> 0 | R18: =O18 -> 0 | S18: =P18 -> 0 | U18: 1
D19: * Comes With One (1) Onboard SLC/DCL (Expandable to 3), Four (4) NACs, 1.5A Each, 6.0A Total. Cabinet Fits Up To 18AH Battery
B20: QTY
B21: =COUNTIF(B23:B25,">0")*{1} -> 0 | D21: Panel Adder Modules
D22: *Maximum One (1) Dual Loop Adder and One (1) PR-300 Module per Panel
B23: 0 | D23: =VLOOKUP(U23,NAC!BH19:BL21,2) -> ALC-636 636 Point Dual Loop Adder | O23: =VLOOKUP(U23,NAC!BH19:BL21,4) -> 0.12 | P23: =VLOOKUP(U23,NAC!BH19:BL21,5) -> 0.2 | R23: =B23*O23 -> 0 | S23: =B23*P23 -> 0 | U23: 2
D25: =VLOOKUP(U25,NAC!BH19:BL21,2) -> PR-300 Polarity Reversal & City Tie Module | O25: =VLOOKUP(U25,NAC!BH19:BL21,4) -> 0.05 | P25: =VLOOKUP(U25,NAC!BH19:BL21,5) -> 0.3 | R25: =B25*O25 -> 0 | S25: =B25*P25 -> 0 | U25: 3
B26: =COUNTIF(B29:B43,">0")*{1} -> 0 | C26: =IF(B25<2,"","Warning Only One PR-300 Module Can Be Installed") -> 
B27: =COUNTIF(B29:B47,">0")*{1} -> 0 | D27: Remote Annunciators & Adder Modules
D28: *Maximum Seven (7) Annunciators per Panel
D29: =VLOOKUP(U29,NAC!BH10:BL18,2) -> RAM-3500-LCD Remote Annunciator | O29: =VLOOKUP(U29,NAC!BH10:BL18,4) -> 0.07 | P29: =VLOOKUP(U29,NAC!BH10:BL18,5) -> 0.1 | Q29: =B29*M29 -> 0 | R29: =B29*O29 -> 0 | S29: =B29*P29 -> 0 | U29: 4 | W29: =VLOOKUP(U29,NAC!BH10:BM18,6) -> 7
D31: =VLOOKUP(U31,NAC!BH10:BL18,2) -> RAX-LCD-LITE Remote Annunciator | O31: =VLOOKUP(U31,NAC!BH10:BL18,4) -> 0.065 | P31: =VLOOKUP(U31,NAC!BH10:BL18,5) -> 0.08 | Q31: =B31*M31 -> 0 | R31: =B31*O31 -> 0 | S31: =B31*P31 -> 0 | U31: 5 | W31: =VLOOKUP(U31,NAC!BH10:BM18,6) -> 7
D33: =VLOOKUP(U33,NAC!BH10:BL18,2) -> RAM-1016TZDS Main Remote Annunciator w/16 Zones Active | O33: =VLOOKUP(U33,NAC!BH10:BL18,4) -> 0.05 | P33: =VLOOKUP(U33,NAC!BH10:BL18,5) -> 0.3 | Q33: =B33*M33 -> 0 | R33: =B33*O33 -> 0 | S33: =B33*P33 -> 0 | U33: 2 | W33: =VLOOKUP(U33,NAC!BH10:BM18,6) -> 7
D35: =VLOOKUP(U35,NAC!BH10:BL18,2) -> RAM-1032TZDS Main Remote Annunciator w/ 32 Zones Active | O35: =VLOOKUP(U35,NAC!BH10:BL18,4) -> 0.05 | P35: =VLOOKUP(U35,NAC!BH10:BL18,5) -> 0.3 | Q35: =B35*M35 -> 0 | R35: =B35*O35 -> 0 | S35: =B35*P35 -> 0 | U35: 3 | W35: =VLOOKUP(U35,NAC!BH10:BM18,6) -> 7
D37: =VLOOKUP(U37,NAC!BH10:BL18,2) -> RAX-1048TZDS 48 Zone & Trouble LED Adder w/ 4 Zones Active | O37: =VLOOKUP(U37,NAC!BH10:BL18,4) -> 0.022 | P37: =VLOOKUP(U37,NAC!BH10:BL18,5) -> 0.039 | Q37: =B37*M37 -> 0 | R37: =B37*O37 -> 0 | S37: =B37*P37 -> 0 | U37: 6 | W37: =VLOOKUP(U37,NAC!BH10:BM18,6) -> 99
D39: =VLOOKUP(U39,NAC!BH10:BL18,2) -> MGD-32 Master Graphic Driver w/ 3 LEDS Active | O39: =VLOOKUP(U39,NAC!BH10:BL18,4) -> 0.035 | P39: =VLOOKUP(U39,NAC!BH10:BL18,5) -> 0.047 | Q39: =B39*M39 -> 0 | R39: =B39*O39 -> 0 | S39: =B39*P39 -> 0 | U39: 8 | W39: =VLOOKUP(U39,NAC!BH10:BM18,6) -> 1
D41: =VLOOKUP(U41,NAC!BH10:BL18,2) -> AGD-048 Adder Graphic Driver Board w/ 3 LEDS Active | O41: =VLOOKUP(U41,NAC!BH10:BL18,4) -> 0.035 | P41: =VLOOKUP(U41,NAC!BH10:BL18,5) -> 0.047 | Q41: =B41*M41 -> 0 | R41: =B41*O41 -> 0 | S41: =B41*P41 -> 0 | U41: 7 | W41: =VLOOKUP(U41,NAC!BH10:BM18,6) -> 3
D43: =VLOOKUP(U43,NAC!BH10:BL18,2) -> RTI-1 Remote Trouble Indicator | O43: =VLOOKUP(U43,NAC!BH10:BL18,4) -> 0.035 | P43: =VLOOKUP(U43,NAC!BH10:BL18,5) -> 0.035 | Q43: =B43*M43 -> 0 | R43: =B43*O43 -> 0 | S43: =B43*P43 -> 0 | U43: 9 | W43: =VLOOKUP(U43,NAC!BH10:BM18,6) -> 99
D45: =VLOOKUP(U45,NAC!AV13:AY23,2) -> IPS-2424DS 24 Programmable Input Switches Module | O45: =VLOOKUP(U45,NAC!AV13:AY23,3) -> 0.005 | P45: =VLOOKUP(U45,NAC!AV13:AY23,4) -> 0.022 | R45: =B45*O45 -> 0 | S45: =B45*P45 -> 0 | U45: 10
V46: Total
D47: =VLOOKUP(U47,NAC!AV13:AY24,2) -> IPS-4848DS 48 Programmable Input Switches Module | O47: =VLOOKUP(U47,NAC!AV13:AY24,3) -> 0.01 | P47: =VLOOKUP(U47,NAC!AV13:AY24,4) -> 0.022 | R47: =B47*O47 -> 0 | S47: =B47*P47 -> 0 | U47: 12
B48: =COUNTIF(B51:B81,">0")*{1} -> 0
B49: =COUNTIF(B51:B81,">0")*{1} -> 0 | D49: Intelligent Sensors
D50: * Protocol Maximums: 159 AP Sensors, or, 99 CLIP Sensors per Addressable Loop, or Combination of Both
B51: 0 | D51: MIX-2351AP(A) Select Series Addressable Photo Sensor | N51: 0.0002 | P51: 0.0002 | R51: =B51*N51 -> 0 | S51: =B51*P51 -> 0
D53: MIX-2351RAP(A) Select Series Add. Photo Sensor w/ Test Switch for Duct | N53: 0.0002 | P53: 0.0002 | R53: =B53*N53 -> 0 | S53: =B53*P53 -> 0
D55: MIX-2351TAP(A) Select Series Addressable Photo/Themal Sensor | N55: 0.0002 | P55: 0.0002 | R55: =B55*N55 -> 0 | S55: =B55*P55 -> 0
D57: MIX-2351TIRAP(A) Select Series Add. Adv. Multi-Criteria Sensor | N57: 0.0002 | P57: 0.0002 | R57: =B57*N57 -> 0 | S57: =B57*P57 -> 0
D59: MIX-5351AP(A) Select Series Addressable Heat Sensor 135 Deg.FT | N59: 0.0002 | P59: 0.0002 | R59: =B59*N59 -> 0 | S59: =B59*P59 -> 0
D61: MIX-5351RAP(A) Select Series Add. Heat Sensor 135 Deg. FT/RR | N61: 0.0002 | P61: 0.0002 | R61: =B61*N61 -> 0 | S61: =B61*P61 -> 0
B63: 0 | D63: MIX-5351HAP(A) Select Series Add. Heat Sensor 190 Deg. FT | N63: 0.0002 | P63: 0.0002 | R63: =B63*N63 -> 0 | S63: =B63*P63 -> 0
D65: =VLOOKUP(U65,NAC!BA28:BE35,2) -> MIX-2251AP(A) Advanced Protocol Photo Smoke Detector | O65: =VLOOKUP(U65,NAC!BA28:BE35,4) -> 0.0003 | P65: =VLOOKUP(U65,NAC!BA28:BE35,5) -> 0.0065 | R65: =B65*O65 -> 0 | S65: =B65*P65 -> 0 | U65: 2 | W65: =VLOOKUP(U65,NAC!BA28:BF35,6) -> 0
D67: =VLOOKUP(U67,NAC!BA28:BE35,2) -> MIX-2251TAP(A) Advanced Protocol Photo Heat Detector | O67: =VLOOKUP(U67,NAC!BA28:BE35,4) -> 0.0003 | P67: =VLOOKUP(U67,NAC!BA28:BE35,5) -> 0.005 | R67: =B67*O67 -> 0 | S67: =B67*P67 -> 0 | U67: 3 | W67: =VLOOKUP(U67,NAC!BA28:BF35,6) -> 0
D69: =VLOOKUP(U69,NAC!BA28:BE35,2) -> MIX-2251TMAP(A) Advanced Protocol Acclimate Detector | O69: =VLOOKUP(U69,NAC!BA28:BE35,4) -> 0.0003 | P69: =VLOOKUP(U69,NAC!BA28:BE35,5) -> 0.005 | R69: =B69*O69 -> 0 | S69: =B69*P69 -> 0 | U69: 4 | W69: =VLOOKUP(U69,NAC!BA28:BF35,6) -> 0
D71: =VLOOKUP(U71,NAC!BA28:BE35,2) -> MIX-5251AP(A) Advanced Protocol Heat Detector | O71: =VLOOKUP(U71,NAC!BA28:BE35,4) -> 0.0003 | P71: =VLOOKUP(U71,NAC!BA28:BE35,5) -> 0.0065 | R71: =B71*O71 -> 0 | S71: =B71*P71 -> 0 | U71: 5 | W71: =VLOOKUP(U71,NAC!BA28:BF35,6) -> 0
D73: =VLOOKUP(U73,NAC!BA28:BE35,2) -> MIX-5251HAP(A) Advanced Protocol High Temperature Heat Detector | O73: =VLOOKUP(U73,NAC!BA28:BE35,4) -> 0.0003 | P73: =VLOOKUP(U73,NAC!BA28:BE35,5) -> 0.0065 | R73: =B73*O73 -> 0 | S73: =B73*P73 -> 0 | U73: 6 | W73: =VLOOKUP(U73,NAC!BA28:BF35,6) -> 0
D75: =VLOOKUP(U75,NAC!BA28:BE35,2) -> MIX-5251RAP(A) Advanced Protocol Rate of Rise Heat Detector | O75: =VLOOKUP(U75,NAC!BA28:BE35,4) -> 0.0003 | P75: =VLOOKUP(U75,NAC!BA28:BE35,5) -> 0.0065 | R75: =B75*O75 -> 0 | S75: =B75*P75 -> 0 | U75: 7 | W75: =VLOOKUP(U75,NAC!BA28:BF35,6) -> 0
D77: OSI-RI(A)-AP Intelligent Imaging Beam Smoke Detector | O77: 0.013 | P77: 0.013 | R77: =B77*O77 -> 0 | S77: =B77*P77 -> 0
D79: 7351(A) Select Series High Sensitivity Photoelectric Smoke Detector | N79: 0.0004 | P79: 0.0004 | R79: =B79*N79 -> 0 | S79: =B79*P79 -> 0
D81: =VLOOKUP(U81,NAC!BA28:BE35,2) -> 7251(A) Intelligent Low Profile Laser Smoke Detector in CLIP mode | O81: =VLOOKUP(U81,NAC!BA28:BE35,4) -> 0.00033 | P81: =VLOOKUP(U81,NAC!BA28:BE35,5) -> 0.0065 | R81: =B81*O81 -> 0 | S81: =B81*P81 -> 0 | U81: 8 | W81: =VLOOKUP(U81,NAC!BA28:BF35,6) -> 0
B83: 0 | D83: MIX-FC351AP(A) Select Series Adressable Fire/CO Sensor | N83: 0.0002 | O83: 0.0002 | P83: 0.0002 | R83: =B83*O83 -> 0 | S83: =B83*P83 -> 0
B84: =COUNTIF(B87:B97,">0")*{1} -> 0
B85: =COUNTIF(B87:B97,">0")*{1} -> 0 | D85: Intelligent Modules
D86: * Protocol Maximums: 159 AP Modules, or, 99 CLIP Modules per Addressable Loop, or Combination of Both
B87: 0 | D87: =VLOOKUP(U87,NAC!BA39:BE44,2) -> MIX-M500MAP(A) Advanced Protocol Monitor Module | O87: =VLOOKUP(U87,NAC!BA39:BE44,4) -> 0.0004 | P87: =VLOOKUP(U87,NAC!BA39:BE44,5) -> 0.005 | R87: =B87*O87 -> 0 | S87: =B87*P87 -> 0 | U87: 2 | W87: =VLOOKUP(U87,NAC!BA39:BF44,6) -> 0
B89: 0 | D89: MIX-M500DMAP(A) AP Dual Input Monitor Module latching | O89: =VLOOKUP(U89,NAC!AG65:AJ105,3) -> 0.0004 | P89: =VLOOKUP(U89,NAC!AG65:AJ105,4) -> 0.0004 | R89: =B89*O89 -> 0 | S89: =B89*P89 -> 0 | U89: 27
B91: 0 | D91: =VLOOKUP(U91,NAC!BA39:BE44,2) -> MIX-M500RAP(A) Advanced Protocol Relay Control Module | O91: =VLOOKUP(U91,NAC!BA39:BE44,4) -> 0.0003 | P91: =VLOOKUP(U91,NAC!BA39:BE44,5) -> 0.0065 | R91: =B91*O91 -> 0 | S91: =B91*P91 -> 0 | U91: 3 | W91: =VLOOKUP(U91,NAC!BA39:BF44,6) -> 0
D93: =VLOOKUP(U93,NAC!BA39:BE44,2) -> MIX-M500SAP(A) Advanced Protocol Supervised Control Module | O93: =VLOOKUP(U93,NAC!BA39:BE44,4) -> 0.0004 | P93: =VLOOKUP(U93,NAC!BA39:BE44,5) -> 0.0065 | R93: =B93*O93 -> 0 | S93: =B93*P93 -> 0 | U93: 4 | W93: =VLOOKUP(U93,NAC!BA39:BF44,6) -> 0
D95: =VLOOKUP(U95,NAC!BA39:BE44,2) -> MIX-M501MAP(A) Advanced Protocol Mini Monitor Module | O95: =VLOOKUP(U95,NAC!BA39:BE44,4) -> 0.0004 | P95: =VLOOKUP(U95,NAC!BA39:BE44,5) -> 0.006 | R95: =B95*O95 -> 0 | S95: =B95*P95 -> 0 | U95: 5 | W95: =VLOOKUP(U95,NAC!BA39:BF44,6) -> 0
D97: =VLOOKUP(U97,NAC!BA39:BE44,2) -> MIX-M502MAP(A) Advanced Protocol Conventional Zone Module | O97: =VLOOKUP(U97,NAC!BA39:BE44,4) -> 0.0004 | P97: =VLOOKUP(U97,NAC!BA39:BE44,5) -> 0.0052 | R97: =B97*O97 -> 0 | S97: =B97*P97 -> 0 | U97: 6 | W97: =VLOOKUP(U97,NAC!BA39:BF44,6) -> 0
B98: =COUNTIF(B101:B115,">0")*{1} -> 0
B99: =COUNTIF(B101:B115,">0")*{1} -> 0 | D99: Intelligent Manual Stations
D100: * Protocol Maximums: 159 AP Modules, or, 99 CLIP Modules per Addressable Loop, or Combination of Both
D101: =VLOOKUP(U101,NAC!AG145:AJ161,2) -> MS-401AP(U) Addressable Single Stage Manual Station | O101: =VLOOKUP(U101,NAC!AG145:AJ161,3) -> 0.0004 | P101: =VLOOKUP(U101,NAC!AG145:AJ161,4) -> 0.0004 | R101: =B101*O101 -> 0 | S101: =B101*P101 -> 0 | U101: 2
D103: =VLOOKUP(U103,NAC!AG145:AJ161,2) -> MS-402AP Addressable Two Stage Manual Station (ULC) | O103: =VLOOKUP(U103,NAC!AG145:AJ161,3) -> 0.0006 | P103: =VLOOKUP(U103,NAC!AG145:AJ161,4) -> 0.0006 | R103: =B103*O103 -> 0 | S103: =B103*P103 -> 0 | U103: 3
D105: =VLOOKUP(U105,NAC!AG145:AJ161,2) -> MS-407AP Addressable Single Stage Manual Station w/ Add. N.C. Switch (ULC) | O105: =VLOOKUP(U105,NAC!AG145:AJ161,3) -> 0.0006 | P105: =VLOOKUP(U105,NAC!AG145:AJ161,4) -> 0.0006 | R105: =B105*O105 -> 0 | S105: =B105*P105 -> 0 | U105: 4
D107: =VLOOKUP(U107,NAC!AG145:AJ161,2) -> MS-710AP(U) Addressable Single Stage Dual Action Station w/ Key Reset | O107: =VLOOKUP(U107,NAC!AG145:AJ161,3) -> 0.0004 | P107: =VLOOKUP(U107,NAC!AG145:AJ161,4) -> 0.0004 | R107: =B107*O107 -> 0 | S107: =B107*P107 -> 0 | U107: 6
D109: =VLOOKUP(U109,NAC!AG149:AJ165,2) -> MS-702AP Addressable Two Stage Dual Action Station w/ Key Reset (ULC) | O109: =VLOOKUP(U109,NAC!AG149:AJ165,3) -> 0.0006 | P109: =VLOOKUP(U109,NAC!AG149:AJ165,4) -> 0.0006 | R109: =B109*O109 -> 0 | S109: =B109*P109 -> 0 | U109: 5
D111: MPS-810AP(U) Addressable Single Stage Dual Action Manual Station | O111: 0.0004 | P111: 0.0004 | R111: =B111*O111 -> 0 | S111: =B111*P111 -> 0 | U111: 2
D113: MPS-802AP Addressable Two Stage Dual Action Manual Station (ULC) | O113: 0.0006 | P113: 0.0006 | R113: =B113*O113 -> 0 | S113: =B113*P113 -> 0 | U113: 2
D115: MPS-822AP Add. Two Stage Dual Action Station w/Add. N.C. Switch (ULC) | O115: 0.0006 | P115: 0.0006 | R115: =B115*O115 -> 0 | S115: =B115*P115 -> 0 | U115: 2
B116: =COUNTIF(B119:B129,">0")*{1} -> 0 | V116: Total
B117: =COUNTIF(B119:B129,">0")*{1} -> 0 | D117: Ancillary Modules
D118: * Protocol Maximums: 159 AP Modules, or, 99 CLIP Modules per Addressable Loop, or Combination of Both. M500X does not use an Address
D119: =VLOOKUP(U119,NAC!BA55:BE60,2) -> M500X(A) Fault Isolator Module | O119: =VLOOKUP(U119,NAC!BA55:BE60,4) -> 0.00045 | P119: =VLOOKUP(U119,NAC!BA55:BE60,5) -> 0.00045 | R119: =B119*O119 -> 0 | S119: =B119*P119 -> 0 | U119: 5
D121: =VLOOKUP(U121,NAC!BA55:BE60,2) -> IM-10(A) Ten Input Monitor Module (CLIP mode) | O121: =VLOOKUP(U121,NAC!BA55:BE60,4) -> 0.0035 | P121: =VLOOKUP(U121,NAC!BA55:BE60,5) -> 0.06 | R121: =B121*O121 -> 0 | S121: =B121*P121 -> 0 | U121: 4
D123: =VLOOKUP(U123,NAC!BA55:BE60,2) -> CR-6(A) Six Relay Control Module (CLIP mode) | O123: =VLOOKUP(U123,NAC!BA55:BE60,4) -> 0.00145 | P123: =VLOOKUP(U123,NAC!BA55:BE60,5) -> 0.032 | R123: =B123*O123 -> 0 | S123: =B123*P123 -> 0 | U123: 2
D125: =VLOOKUP(U125,NAC!BA55:BE60,2) -> CZ-6(A) Six Conventional Zone Interface Module (CLIP mode) | O125: =VLOOKUP(U125,NAC!BA55:BE60,4) -> 0.002 | P125: =VLOOKUP(U125,NAC!BA55:BE60,5) -> 0.04 | R125: =B125*O125 -> 0 | S125: =B125*P125 -> 0 | U125: 3
D127: =VLOOKUP(U127,NAC!BA55:BE60,2) -> SC-6(A) Six Supervised Control Module (CLIP mode) | O127: =VLOOKUP(U127,NAC!BA55:BE60,4) -> 0.00225 | P127: =VLOOKUP(U127,NAC!BA55:BE60,5) -> 0.035 | R127: =B127*O127 -> 0 | S127: =B127*P127 -> 0 | U127: 6
D129: =VLOOKUP(U129,NAC!BA55:BE61,2) -> INX-10A NAC Power Supply (CLIP mode, Current Consumption FACP SLC) | O129: =VLOOKUP(U129,NAC!BA55:BE61,4) -> 0.0045 | P129: =VLOOKUP(U129,NAC!BA55:BE61,5) -> 0.045 | R129: =B129*O129 -> 0 | S129: =B129*P129 -> 0 | U129: 7
B130: =COUNTIF(B133:B155,">0")*{1} -> 0 | V130: Total
B131: =COUNTIF(B133:B155,">0")*{1} -> 0 | D131: Bases
D133: =VLOOKUP(U133,NAC!BA64:BE72,2) -> B224BI(A) Intelligent Isolator Base | O133: =VLOOKUP(U133,NAC!BA64:BE72,4) -> 0.00045 | P133: =VLOOKUP(U133,NAC!BA64:BE72,5) -> 0.00045 | R133: =B133*O133 -> 0 | S133: =B133*P133 -> 0 | U133: 3
D135: =VLOOKUP(U135,NAC!BA64:BE72,2) -> B224RB(A) Intelligent Relay Base | O135: =VLOOKUP(U135,NAC!BA64:BE72,4) -> 0.00017 | P135: =VLOOKUP(U135,NAC!BA64:BE72,5) -> 0.00017 | R135: =B135*O135 -> 0 | S135: =B135*P135 -> 0 | U135: 4
D137: =VLOOKUP(U137,NAC!BA64:BE72,2) -> B501BH(A) Intelligent Sounder Base | O137: =VLOOKUP(U137,NAC!BA64:BE72,4) -> 0.001 | P137: =VLOOKUP(U137,NAC!BA64:BE72,5) -> 0.001 | R137: =B137*O137 -> 0 | S137: =B137*P137 -> 0 | U137: 6
D139: =VLOOKUP(U139,NAC!BA64:BE72,2) -> B501BHT(A) Intelligent Temporal Tone Sounder Base | O139: =VLOOKUP(U139,NAC!BA64:BE72,4) -> 0.001 | P139: =VLOOKUP(U139,NAC!BA64:BE72,5) -> 0.001 | R139: =B139*O139 -> 0 | S139: =B139*P139 -> 0 | U139: 7
D141: B200SR(A) Sounder Base | O141: =VLOOKUP(U141,NAC!AG10:AJ50,3) -> 0 | P141: =VLOOKUP(U141,NAC!AG10:AJ50,4) -> 0 | R141: =B141*O141 -> 0 | S141: =B141*P141 -> 0 | U141: 18
V142: Total
D143: =VLOOKUP(U143,NAC!AG65:AJ105,2) -> B200SR-LF Sounder Base (UL) | O143: =VLOOKUP(U143,NAC!AG65:AJ105,3) -> 0.001 | P143: =VLOOKUP(U143,NAC!AG65:AJ105,4) -> 0.001 | R143: =B143*O143 -> 0 | S143: =B143*P143 -> 0 | U143: 19
D145: APB200 / APB200COA Addressable Sounder Base | O145: =VLOOKUP(U145,NAC!AG10:AJ50,3) -> 0 | P145: =VLOOKUP(U145,NAC!AG10:AJ50,4) -> 0 | R145: =B145*O145 -> 0 | S145: =B145*P145 -> 0 | U145: 20
B147: 0 | D147: =VLOOKUP(U147,NAC!AG65:AJ105,2) -> APB200-LF Address. Sounder Base (High, UL) - SLC CURRENT / LOCAL ALARM | O147: =VLOOKUP(U147,NAC!AG65:AJ105,3) -> 0.0003 | P147: =VLOOKUP(U147,NAC!AG65:AJ105,4) -> 0.0003 | R147: =B147*O147 -> 0 | S147: =B147*P147 -> 0 | U147: 21
D149: DNR(A) Duct Dectector Housing w/2351 Smoke Head | O149: 0.0002 | P149: 0.0002 | R149: =B149*O149 -> 0 | S149: =B149*P149 -> 0
D151: DNRW Watertight Duct Detector Housing w/2351 Smoke Head, (UL only) | O151: 0.0002 | P151: 0.0002 | R151: =B151*O151 -> 0 | S151: =B151*P151 -> 0
D153: =VLOOKUP(U153,NAC!BA64:BE72,2) -> DNR(A) Duct Detector Housing w/2251 Smoke Head | O153: =VLOOKUP(U153,NAC!BA64:BE72,4) -> 0.0003 | P153: =VLOOKUP(U153,NAC!BA64:BE72,5) -> 0.0003 | R153: =B153*O153 -> 0 | S153: =B153*P153 -> 0 | U153: 8
D155: =VLOOKUP(U155,NAC!BA64:BE72,2) -> DNRW Watertight Duct Detector Housing w/2251 Smoke Head, (UL only) | O155: =VLOOKUP(U155,NAC!BA64:BE72,4) -> 0.0003 | P155: =VLOOKUP(U155,NAC!BA64:BE72,5) -> 0.0003 | R155: =B155*O155 -> 0 | S155: =B155*P155 -> 0 | U155: 9
B156: =COUNTIF(B159:B171,">0")*{1} -> 0 | V156: Total
B157: =COUNTIF(B159:B171,">0")*{1} -> 0 | D157: Two-Wire Smoke Detectors
D158: *Must connect to an intelligent addressable module
D159: =VLOOKUP(U159,NAC!BA98:BF148,2) -> 2W/C2W i3 Series Smoke Detectors | O159: =VLOOKUP(U159,NAC!BA98:BF148,4) -> 5e-05 | P159: =VLOOKUP(U159,NAC!BA98:BF148,4) -> 5e-05 | R159: =B159*O159 -> 0 | S159: =B159*P159 -> 0 | U159: 2
D161: =VLOOKUP(U161,NAC!BA98:BF148,2) -> 2W/C2W i3 Series Photo/Thermal Detectors | O161: =VLOOKUP(U161,NAC!BA98:BF148,4) -> 5e-05 | P161: =VLOOKUP(U161,NAC!BA98:BF148,4) -> 5e-05 | R161: =B161*O161 -> 0 | S161: =B161*P161 -> 0 | U161: 3
D163: =VLOOKUP(U163,NAC!BA98:BF148,2) -> 2W/C2W i3 Series Detectors w/Sounder Base | O163: =VLOOKUP(U163,NAC!BA98:BF148,4) -> 5e-05 | P163: =VLOOKUP(U163,NAC!BA98:BF148,4) -> 5e-05 | R163: =B163*O163 -> 0 | S163: =B163*P163 -> 0 | U163: 4
D165: =VLOOKUP(U165,NAC!BA98:BF148,2) -> 2W/C2W i3 Series Detectors w/Sounder Base & Relay | O165: =VLOOKUP(U165,NAC!BA98:BF148,4) -> 5e-05 | P165: =VLOOKUP(U165,NAC!BA98:BF148,4) -> 5e-05 | R165: =B165*O165 -> 0 | S165: =B165*P165 -> 0 | U165: 5
D167: =VLOOKUP(U167,NAC!BA98:BF148,2) -> 2151A/2151TA Smoke Detectors | O167: =VLOOKUP(U167,NAC!BA98:BF148,4) -> 8.5e-05 | P167: =VLOOKUP(U167,NAC!BA98:BF148,4) -> 8.5e-05 | R167: =B167*O167 -> 0 | S167: =B167*P167 -> 0 | U167: 6
D169: =VLOOKUP(U169,NAC!BA98:BF148,2) -> C2W-MOD2A LoopTest Maintenance Module | O169: =VLOOKUP(U169,NAC!BA98:BF148,4) -> 0.03 | P169: =VLOOKUP(U169,NAC!BA98:BF148,4) -> 0.03 | R169: =B169*O169 -> 0 | S169: =B169*P169 -> 0 | U169: 7
D171: =VLOOKUP(U171,NAC!BA98:BF148,2) -> D2(A) Photoelectric Duct Detector | O171: =VLOOKUP(U171,NAC!BA98:BF148,4) -> 0.00012 | P171: =VLOOKUP(U171,NAC!BA98:BF148,4) -> 0.00012 | R171: =B171*O171 -> 0 | S171: =B171*P171 -> 0 | U171: 8
B172: =COUNTIF(B159:B171,">0")*{1} -> 0
B173: =COUNTIF(B159:B171,">0")*{1} -> 0 | J173: =IF(U173>0,"ASSUMES 3 INITIATING CTS. IN ALARM","") ->  | S173: =IF(U173>0,"0.090000","") ->  | U173: =SUM(R159:R171) -> 0
B174: =COUNTIF(B177:B193,">0")*{1} -> 0
B175: =COUNTIF(B177:B193,">0")*{1} -> 0 | D175: Four-Wire Smoke Detectors
D176: *Must connect to an intelligent addressable module
D177: =VLOOKUP(U177,NAC!BA98:BF148,2) -> 4W/C4W i3 Series Photoelectric Detectors | O177: =VLOOKUP(U177,NAC!BA98:BF148,4) -> 0.0005 | P177: =VLOOKUP(U177,NAC!BA98:BF148,4) -> 0.0005 | R177: =B177*O177 -> 0 | S177: =B177*P177 -> 0 | U177: 9
D179: =VLOOKUP(U179,NAC!BA98:BF148,2) -> 4W/C4W i3 Series Photo/ Thermal Detectors | O179: =VLOOKUP(U179,NAC!BA98:BF148,4) -> 0.0005 | P179: =VLOOKUP(U179,NAC!BA98:BF148,4) -> 0.0005 | R179: =B179*O179 -> 0 | S179: =B179*P179 -> 0 | U179: 10
U180: 7
D181: =VLOOKUP(U181,NAC!BA98:BF148,2) -> 4W/C4W i3 Series Photo/ Thermal w/Sounder Base | O181: =VLOOKUP(U181,NAC!BA98:BF148,4) -> 0.0005 | P181: =VLOOKUP(U181,NAC!BA98:BF148,4) -> 0.0005 | R181: =B181*O181 -> 0 | S181: =B181*P181 -> 0 | U181: 11
D183: =VLOOKUP(U183,NAC!BA98:BF148,2) -> 4W/C4W i3 Series Photo/ Thermal w/Sounder Base & Relay | O183: =VLOOKUP(U183,NAC!BA98:BF148,4) -> 0.0255 | P183: =VLOOKUP(U183,NAC!BA98:BF148,4) -> 0.0255 | R183: =B183*O183 -> 0 | S183: =B183*P183 -> 0 | U183: 12
D185: =VLOOKUP(U185,NAC!BA98:BF148,2) -> CO1224(A) Carbon Monoxide Detector | O185: =VLOOKUP(U185,NAC!BA98:BF148,4) -> 0.02 | P185: =VLOOKUP(U185,NAC!BA98:BF148,4) -> 0.02 | R185: =B185*O185 -> 0 | S185: =B185*P185 -> 0 | U185: 13
D187: OSI-R-SS Conventional Imaging Beam Smoke Detector | O187: 0.011 | P187: 0.011 | R187: =B187*O187 -> 0 | S187: =B187*P187 -> 0
D189: =VLOOKUP(U189,NAC!BA98:BF148,2) -> BEAM1224(A) Series Beam Detectors | O189: =VLOOKUP(U189,NAC!BA98:BF148,4) -> 0.017 | P189: =VLOOKUP(U189,NAC!BA98:BF148,4) -> 0.017 | R189: =B189*O189 -> 0 | S189: =B189*P189 -> 0 | U189: 16
D191: =VLOOKUP(U191,NAC!BA98:BF148,2) -> D4120(A) Photoelectric Duct Detector w/Relay, 120VAC | O191: =VLOOKUP(U191,NAC!BA98:BF148,4) -> 0.02 | P191: =VLOOKUP(U191,NAC!BA98:BF148,4) -> 0.02 | R191: =B191*O191 -> 0 | S191: =B191*P191 -> 0 | U191: 17
U192: 7
D193: =VLOOKUP(U193,NAC!BA98:BF148,2) -> D4120(A) Photoelectric Duct Detector w/Relay, 24VAC | O193: =VLOOKUP(U193,NAC!BA98:BF148,4) -> 0.065 | P193: =VLOOKUP(U193,NAC!BA98:BF148,4) -> 0.065 | R193: =B193*O193 -> 0 | S193: =B193*P193 -> 0 | U193: 18
B194: =COUNTIF(B197:B245,">0")*{1} -> 0
B195: =COUNTIF(B197:B245,">0")*{1} -> 0 | D195: Signaling Devices - 24 FWR
D196: Select From Drop-Down Box - Check Guide for Compatibility
B197: 0 | D197: =VLOOKUP(U197,NAC!BR11:BU172,2) -> 0 | O197: =VLOOKUP(U197,NAC!BR11:BU172,3) -> 0 | P197: =VLOOKUP(U197,NAC!BR11:BU172,4) -> 0 | R197: =B197*O197 -> 0 | S197: =B197*P197 -> 0 | U197: 1
D199: =VLOOKUP(U199,NAC!BR11:BU172,2) -> 0 | O199: =VLOOKUP(U199,NAC!BR11:BU172,3) -> 0 | P199: =VLOOKUP(U199,NAC!BR11:BU172,4) -> 0 | R199: =B199*O199 -> 0 | S199: =B199*P199 -> 0 | U199: 1
D201: =VLOOKUP(U201,NAC!BR11:BU172,2) -> 0 | O201: =VLOOKUP(U201,NAC!BR11:BU172,3) -> 0 | P201: =VLOOKUP(U201,NAC!BR11:BU172,4) -> 0 | R201: =B201*O201 -> 0 | S201: =B201*P201 -> 0 | U201: 1
D203: =VLOOKUP(U203,NAC!BR11:BU172,2) -> 0 | O203: =VLOOKUP(U203,NAC!BR11:BU172,3) -> 0 | P203: =VLOOKUP(U203,NAC!BR11:BU172,4) -> 0 | R203: =B203*O203 -> 0 | S203: =B203*P203 -> 0 | U203: 1
V204: Total
D205: =VLOOKUP(U205,NAC!BR11:BU172,2) -> 0 | O205: =VLOOKUP(U205,NAC!BR11:BU172,3) -> 0 | P205: =VLOOKUP(U205,NAC!BR11:BU172,4) -> 0 | R205: =B205*O205 -> 0 | S205: =B205*P205 -> 0 | U205: 1
D207: =VLOOKUP(U207,NAC!BR11:BU172,2) -> 0 | O207: =VLOOKUP(U207,NAC!BR11:BU172,3) -> 0 | P207: =VLOOKUP(U207,NAC!BR11:BU172,4) -> 0 | R207: =B207*O207 -> 0 | S207: =B207*P207 -> 0 | U207: 1
D209: =VLOOKUP(U209,NAC!BR11:BU172,2) -> 0 | O209: =VLOOKUP(U209,NAC!BR11:BU172,3) -> 0 | P209: =VLOOKUP(U209,NAC!BR11:BU172,4) -> 0 | R209: =B209*O209 -> 0 | S209: =B209*P209 -> 0 | U209: 1
D211: =VLOOKUP(U211,NAC!BR11:BU172,2) -> 0 | O211: =VLOOKUP(U211,NAC!BR11:BU172,3) -> 0 | P211: =VLOOKUP(U211,NAC!BR11:BU172,4) -> 0 | R211: =B211*O211 -> 0 | S211: =B211*P211 -> 0 | U211: 1
D213: =VLOOKUP(U213,NAC!BR11:BU172,2) -> 0 | O213: =VLOOKUP(U213,NAC!BR11:BU172,3) -> 0 | P213: =VLOOKUP(U213,NAC!BR11:BU172,4) -> 0 | R213: =B213*O213 -> 0 | S213: =B213*P213 -> 0 | U213: 1
D215: =VLOOKUP(U215,NAC!BR11:BU172,2) -> 0 | O215: =VLOOKUP(U215,NAC!BR11:BU172,3) -> 0 | P215: =VLOOKUP(U215,NAC!BR11:BU172,4) -> 0 | R215: =B215*O215 -> 0 | S215: =B215*P215 -> 0 | U215: 1
D217: =VLOOKUP(U217,NAC!BR11:BU172,2) -> 0 | O217: =VLOOKUP(U217,NAC!BR11:BU172,3) -> 0 | P217: =VLOOKUP(U217,NAC!BR11:BU172,4) -> 0 | R217: =B217*O217 -> 0 | S217: =B217*P217 -> 0 | U217: 1
D219: =VLOOKUP(U219,NAC!BR11:BU172,2) -> 0 | O219: =VLOOKUP(U219,NAC!BR11:BU172,3) -> 0 | P219: =VLOOKUP(U219,NAC!BR11:BU172,4) -> 0 | R219: =B219*O219 -> 0 | S219: =B219*P219 -> 0 | U219: 1
D221: =VLOOKUP(U221,NAC!BR11:BU172,2) -> 0 | O221: =VLOOKUP(U221,NAC!BR11:BU172,3) -> 0 | P221: =VLOOKUP(U221,NAC!BR11:BU172,4) -> 0 | R221: =B221*O221 -> 0 | S221: =B221*P221 -> 0 | U221: 1
D223: =VLOOKUP(U223,NAC!BR11:BU172,2) -> 0 | O223: =VLOOKUP(U223,NAC!BR11:BU172,3) -> 0 | P223: =VLOOKUP(U223,NAC!BR11:BU172,4) -> 0 | R223: =B223*O223 -> 0 | S223: =B223*P223 -> 0 | U223: 1
D225: =VLOOKUP(U225,NAC!BR11:BU172,2) -> 0 | O225: =VLOOKUP(U225,NAC!BR11:BU172,3) -> 0 | P225: =VLOOKUP(U225,NAC!BR11:BU172,4) -> 0 | R225: =B225*O225 -> 0 | S225: =B225*P225 -> 0 | U225: 1
D227: =VLOOKUP(U227,NAC!BR11:BU172,2) -> 0 | O227: =VLOOKUP(U227,NAC!BR11:BU172,3) -> 0 | P227: =VLOOKUP(U227,NAC!BR11:BU172,4) -> 0 | R227: =B227*O227 -> 0 | S227: =B227*P227 -> 0 | U227: 1
D229: =VLOOKUP(U229,NAC!BR11:BU172,2) -> 0 | O229: =VLOOKUP(U229,NAC!BR11:BU172,3) -> 0 | P229: =VLOOKUP(U229,NAC!BR11:BU172,4) -> 0 | R229: =B229*O229 -> 0 | S229: =B229*P229 -> 0 | U229: 1
D231: =VLOOKUP(U231,NAC!BR11:BU172,2) -> 0 | O231: =VLOOKUP(U231,NAC!BR11:BU172,3) -> 0 | P231: =VLOOKUP(U231,NAC!BR11:BU172,4) -> 0 | R231: =B231*O231 -> 0 | S231: =B231*P231 -> 0 | U231: 1
D233: =VLOOKUP(U233,NAC!BR11:BU172,2) -> 0 | O233: =VLOOKUP(U233,NAC!BR11:BU172,3) -> 0 | P233: =VLOOKUP(U233,NAC!BR11:BU172,4) -> 0 | R233: =B233*O233 -> 0 | S233: =B233*P233 -> 0 | U233: 1
D235: =VLOOKUP(U235,NAC!BR11:BU172,2) -> 0 | O235: =VLOOKUP(U235,NAC!BR11:BU172,3) -> 0 | P235: =VLOOKUP(U235,NAC!BR11:BU172,4) -> 0 | R235: =B235*O235 -> 0 | S235: =B235*P235 -> 0 | U235: 1
R237: =B237*J237 -> 0 | S237: =B237*M237 -> 0
R239: =B239*J239 -> 0 | S239: =B239*M239 -> 0
R241: =B241*J241 -> 0 | S241: =B241*M241 -> 0
R243: =B243*J243 -> 0 | S243: =B243*M243 -> 0
R245: =B245*J245 -> 0 | S245: =B245*M245 -> 0
B246: 1 | D246: * Indicating Circuits Must Not Exceed 6 Amps Total | U246: =SUM(S197:S245) -> 0 | V246: Total
B248: =COUNTIF(B250:B252,">0")*{1} -> 0 | D248: Aux. Power
D250: =VLOOKUP(U250,NAC!BH7:BL9,2) -> FX-3500 Aux Supply1 500 mA | P250: =VLOOKUP(U250,NAC!BH7:BL9,3) -> 0.5 | Q250: =VLOOKUP(U250,NAC!BH7:BL9,3) -> 0.5 | R250: =B250*P250 -> 0 | S250: =B250*Q250 -> 0 | U250: 2
D252: =VLOOKUP(U252,NAC!BH7:BL9,2) -> FX-3500 Aux Supply2 300 mA | P252: =VLOOKUP(U252,NAC!BH7:BL9,3) -> 0.3 | Q252: =VLOOKUP(U252,NAC!BH7:BL9,3) -> 0.3 | R252: =B252*P252 -> 0 | S252: =B252*Q252 -> 0 | U252: 3
B254: 1 | V254: Total
J255: Enter | M255: Enter
B256: =COUNTIF(B258:B276,">0")*{1} -> 0 | D256: Additional Devices | J256: Standby | M256: Alarm
B257: =COUNTIF(B258:B276,">0")*{1} -> 0 | D257: Description | J257: Current | M257: Current
R258: =B258*J258 -> 0 | S258: =B258*M258 -> 0
R260: =B260*J260 -> 0 | S260: =B260*M260 -> 0
R262: =B262*J262 -> 0 | S262: =B262*M262 -> 0
R264: =B264*J264 -> 0 | S264: =B264*M264 -> 0
R266: =B266*J266 -> 0 | S266: =B266*M266 -> 0
R268: =B268*J268 -> 0 | S268: =B268*M268 -> 0
R270: =B270*J270 -> 0 | S270: =B270*M270 -> 0
R272: =B272*J272 -> 0 | S272: =B272*M272 -> 0
R274: =B274*J274 -> 0 | S274: =B274*M274 -> 0
R276: =B276*J276 -> 0 | S276: =B276*M276 -> 0
B277: 1 | U277: =B258+B260+B262+B264+B266+B268+B270+B272+B274+B276 -> 0
B279: 1 | E279: Total Standby Current in Amps | S279: =SUM(R18:R276) -> 0 | U279: =B281*S279 -> 0
B280: 1
B281: 24 | D281: Enter Number of Standby Hours | H281: Total Alarm Current in Amps | S281: =SUM(S173:S276,S18:S155) -> 0 | U281: =B283*S281/60 -> 0
B282: 1
B283: 30 | D283: Enter Alarm Period in Minutes | U283: =U279+U281 -> 0
B284: 1
B285: 1.25 | D285: Enter Battery Derating | R285: Battery Capacity Requirement (Ah) | S285: =U283*B285 -> 0
B286: 1
B287: =COUNTIF(S285,"<26")*{1} -> 1 | H287: Recommended Mircom Batteries (x2) | S287: =IF(OR(S285=0),"",IF(OR(S285<12),"BAT-12V12A",IF(OR(S285<18.0009),"BAT-12V18A",IF(OR(S285<26),"BAT-12V26A",IF(OR(S285>26),""))))) -> 
B289: =COUNTIF(S285,">26")*{1} -> 0 | H289: Recommended Mircom Batteries (x2) | S289: =IF(OR(S285<26),"",IF(OR(S285<33),"BAT-12V33A",IF(OR(S285<42.009),"BAT-12V42A",""))) -> 
F290: * Battery Charging Capability: Minimum 10AH (BAT-12V12A), Maximum 40AH (BAT-12V42A)
D291: Exceeds Battery Maximums For This Panel
D292: Maximum 42Ah Charging Capacity
D293: Battery Exceeds Backbox, Use BC-160 Battery Cabinet
B294: -9999 | D294: Maximum AMPS For Power Supply Has Been Exceeded
A298: Mircom Technologies hereby disclaims all warranties relating to this software utility, whether expressed or implied, including without limitation any implied warranties of merchantability or fitness for a particular purpose. Mircom Technologies cannot and will not assume, accept or be liable for any special, incidental, consequential, indirect or similar claims, losses or damages for any reason whatsoever. Use of this Software Utility shall be deemed acceptance of these terms. It is the sole responsibility of the user to ascertain the accuracy and the reliability of any and all information generated or provided by this software utility and to ensure maximum current levels for control units have not been exceeded

Sheet FX-3500(2) (hidden)
D1: FX-3500 Battery Calculation Program
C3: Project: | D3: ='FX-3500'!J4 -> 0
C4: Line2: | D4: ='FX-3500'!J6 -> 0
C5: Line 3: | D5: ='FX-3500'!J8 -> 0
C6: Prepared By: | D6: ='FX-3500'!J10 -> 0
F8: Total | G8: Total
A9: QTY | F9: Standby | G9: Alarm
C10: Panel Model | F10: Current | G10: Current
A11: 1 | C11: ='FX-3500'!$B$18 -> 1 | F11: ='FX-3500'!$R$18 -> 0 | G11: ='FX-3500'!$S$18 -> 0
A13: Column1 | B13: Column2 | C13: Column3 | D13: Column6 | E13: Column4 | F13: Column9 | G13: Column10
A14: ='FX-3500'!#REF! ->  | C14: Panel Adder Modules
A15: ='FX-3500'!B23 -> 0 | C15: ='FX-3500'!D23 -> ALC-636 636 Point Dual Loop Adder | F15: ='FX-3500'!$R$23 -> 0 | G15: ='FX-3500'!$S$23 -> 0
A16: ='FX-3500'!B25 -> 0 | C16: ='FX-3500'!D25 -> PR-300 Polarity Reversal & City Tie Module | F16: ='FX-3500'!$R$25 -> 0 | G16: ='FX-3500'!$S$25 -> 0
A18: ='FX-3500'!U48 -> 0 | C18: Remote Annunicator
A19: ='FX-3500'!B29 -> 0 | C19: ='FX-3500'!$D$29 -> RAM-3500-LCD Remote Annunciator | F19: ='FX-3500'!$R$29 -> 0 | G19: ='FX-3500'!$S$29 -> 0
A20: ='FX-3500'!$B$31 -> 0 | C20: ='FX-3500'!$D$31 -> RAX-LCD-LITE Remote Annunciator | F20: ='FX-3500'!$R$31 -> 0 | G20: ='FX-3500'!$S$31 -> 0
A21: ='FX-3500'!$B$33 -> 0 | C21: ='FX-3500'!$D$33 -> RAM-1016TZDS Main Remote Annunciator w/16 Zones Active | F21: ='FX-3500'!$R$33 -> 0 | G21: ='FX-3500'!$S$33 -> 0
A22: ='FX-3500'!$B$35 -> 0 | C22: ='FX-3500'!$D$35 -> RAM-1032TZDS Main Remote Annunciator w/ 32 Zones Active | F22: ='FX-3500'!$R$35 -> 0 | G22: ='FX-3500'!$S$35 -> 0
A23: ='FX-3500'!$B$37 -> 0 | C23: ='FX-3500'!$D$37 -> RAX-1048TZDS 48 Zone & Trouble LED Adder w/ 4 Zones Active | F23: ='FX-3500'!$R$37 -> 0 | G23: ='FX-3500'!$S$37 -> 0
A24: ='FX-3500'!$B$39 -> 0 | C24: ='FX-3500'!$D$39 -> MGD-32 Master Graphic Driver w/ 3 LEDS Active | F24: ='FX-3500'!$R$39 -> 0 | G24: ='FX-3500'!$S$39 -> 0
A25: ='FX-3500'!$B$41 -> 0 | C25: ='FX-3500'!$D$41 -> AGD-048 Adder Graphic Driver Board w/ 3 LEDS Active | F25: ='FX-3500'!$R$41 -> 0 | G25: ='FX-3500'!$S$41 -> 0
A26: ='FX-3500'!$B$43 -> 0 | C26: ='FX-3500'!$D$43 -> RTI-1 Remote Trouble Indicator | F26: ='FX-3500'!$R$43 -> 0 | G26: ='FX-3500'!$S$43 -> 0
C28: ULI
A30: ='FX-3500'!#REF! ->  | C30: Intelligent Addressable Devices
A31: ='FX-3500'!$B$65 -> 0 | C31: ='FX-3500'!$D$65 -> MIX-2251AP(A) Advanced Protocol Photo Smoke Detector | F31: ='FX-3500'!$R$65 -> 0 | G31: ='FX-3500'!$S$65 -> 0
A32: ='FX-3500'!$B$67 -> 0 | C32: ='FX-3500'!$D$67 -> MIX-2251TAP(A) Advanced Protocol Photo Heat Detector | F32: ='FX-3500'!$R$67 -> 0 | G32: ='FX-3500'!$S$67 -> 0
A33: ='FX-3500'!$B$69 -> 0 | C33: ='FX-3500'!$D$69 -> MIX-2251TMAP(A) Advanced Protocol Acclimate Detector | F33: ='FX-3500'!$R$69 -> 0 | G33: ='FX-3500'!$S$69 -> 0
A34: ='FX-3500'!$B$71 -> 0 | C34: ='FX-3500'!$D$71 -> MIX-5251AP(A) Advanced Protocol Heat Detector | F34: ='FX-3500'!$R$71 -> 0 | G34: ='FX-3500'!$S$71 -> 0
A35: ='FX-3500'!$B$73 -> 0 | C35: ='FX-3500'!$D$73 -> MIX-5251HAP(A) Advanced Protocol High Temperature Heat Detector | F35: ='FX-3500'!$R$73 -> 0 | G35: ='FX-3500'!$S$73 -> 0
A36: ='FX-3500'!$B$75 -> 0 | C36: ='FX-3500'!$D$75 -> MIX-5251RAP(A) Advanced Protocol Rate of Rise Heat Detector | F36: ='FX-3500'!$R$75 -> 0 | G36: ='FX-3500'!$S$75 -> 0
A37: ='FX-3500'!$B$81 -> 0 | C37: ='FX-3500'!$D$81 -> 7251(A) Intelligent Low Profile Laser Smoke Detector in CLIP mode | F37: ='FX-3500'!$R$81 -> 0 | G37: ='FX-3500'!$S$81 -> 0
A40: ='FX-3500'!#REF! ->  | C40: Intelligent Addressable Modules
A41: ='FX-3500'!$B$87 -> 0 | C41: ='FX-3500'!$D$87 -> MIX-M500MAP(A) Advanced Protocol Monitor Module | F41: ='FX-3500'!$R$87 -> 0 | G41: ='FX-3500'!$S$87 -> 0
A42: ='FX-3500'!$B$91 -> 0 | C42: ='FX-3500'!$D$91 -> MIX-M500RAP(A) Advanced Protocol Relay Control Module | F42: ='FX-3500'!$R$91 -> 0 | G42: ='FX-3500'!$S$91 -> 0
A43: ='FX-3500'!$B$93 -> 0 | C43: ='FX-3500'!$D$93 -> MIX-M500SAP(A) Advanced Protocol Supervised Control Module | F43: ='FX-3500'!$R$93 -> 0 | G43: ='FX-3500'!$S$93 -> 0
A44: ='FX-3500'!$B$95 -> 0 | C44: ='FX-3500'!$D$95 -> MIX-M501MAP(A) Advanced Protocol Mini Monitor Module | F44: ='FX-3500'!$R$95 -> 0 | G44: ='FX-3500'!$S$95 -> 0
A45: ='FX-3500'!$B$97 -> 0 | C45: ='FX-3500'!$D$97 -> MIX-M502MAP(A) Advanced Protocol Conventional Zone Module | F45: ='FX-3500'!$R$97 -> 0 | G45: ='FX-3500'!$S$97 -> 0
A46: ='FX-3500'!#REF! ->  | C46: ='FX-3500'!#REF! ->  | F46: ='FX-3500'!#REF! ->  | G46: ='FX-3500'!#REF! -> 
A49: ='FX-3500'!U116 -> 0 | C49: Intelligent Addressable Manual Stations
A50: ='FX-3500'!$B$101 -> 0 | C50: ='FX-3500'!$D$101 -> MS-401AP(U) Addressable Single Stage Manual Station | F50: ='FX-3500'!$R$101 -> 0 | G50: ='FX-3500'!$S$101 -> 0
A51: ='FX-3500'!$B$103 -> 0 | C51: ='FX-3500'!$D$103 -> MS-402AP Addressable Two Stage Manual Station (ULC) | F51: ='FX-3500'!$R$103 -> 0 | G51: ='FX-3500'!$S$103 -> 0
A52: ='FX-3500'!$B$105 -> 0 | C52: ='FX-3500'!$D$105 -> MS-407AP Addressable Single Stage Manual Station w/ Add. N.C. Switch (ULC) | F52: ='FX-3500'!$R$105 -> 0 | G52: ='FX-3500'!$S$105 -> 0
A55: ='FX-3500'!U130 -> 0 | C55: Ancillary Modules
A56: ='FX-3500'!$B$119 -> 0 | C56: ='FX-3500'!$D$119 -> M500X(A) Fault Isolator Module | F56: ='FX-3500'!$R$119 -> 0 | G56: ='FX-3500'!$S$119 -> 0
A57: ='FX-3500'!$B$121 -> 0 | C57: ='FX-3500'!$D$121 -> IM-10(A) Ten Input Monitor Module (CLIP mode) | F57: ='FX-3500'!$R$121 -> 0 | G57: ='FX-3500'!$S$121 -> 0
A58: ='FX-3500'!$B$123 -> 0 | C58: ='FX-3500'!$D$123 -> CR-6(A) Six Relay Control Module (CLIP mode) | F58: ='FX-3500'!$R$123 -> 0 | G58: ='FX-3500'!$S$123 -> 0
A59: ='FX-3500'!$B$125 -> 0 | C59: ='FX-3500'!$D$125 -> CZ-6(A) Six Conventional Zone Interface Module (CLIP mode) | F59: ='FX-3500'!$R$125 -> 0 | G59: ='FX-3500'!$S$125 -> 0
A60: ='FX-3500'!$B$127 -> 0 | C60: ='FX-3500'!$D$127 -> SC-6(A) Six Supervised Control Module (CLIP mode) | F60: ='FX-3500'!$R$127 -> 0 | G60: ='FX-3500'!$S$127 -> 0
A63: ='FX-3500'!U156 -> 0 | C63: Bases
A64: ='FX-3500'!#REF! ->  | C64: ='FX-3500'!#REF! ->  | F64: ='FX-3500'!#REF! ->  | G64: ='FX-3500'!#REF! -> 
A65: ='FX-3500'!$B$133 -> 0 | C65: ='FX-3500'!$D$133 -> B224BI(A) Intelligent Isolator Base | F65: ='FX-3500'!$R$133 -> 0 | G65: ='FX-3500'!$S$133 -> 0
A66: ='FX-3500'!$B$135 -> 0 | C66: ='FX-3500'!$D$135 -> B224RB(A) Intelligent Relay Base | F66: ='FX-3500'!$R$135 -> 0 | G66: ='FX-3500'!$S$135 -> 0
A67: ='FX-3500'!#REF! ->  | C67: ='FX-3500'!#REF! ->  | F67: ='FX-3500'!#REF! ->  | G67: ='FX-3500'!#REF! -> 
A68: ='FX-3500'!$B$137 -> 0 | C68: ='FX-3500'!$D$137 -> B501BH(A) Intelligent Sounder Base | F68: ='FX-3500'!$R$137 -> 0 | G68: ='FX-3500'!$S$137 -> 0
A69: ='FX-3500'!$B$139 -> 0 | C69: ='FX-3500'!$D$139 -> B501BHT(A) Intelligent Temporal Tone Sounder Base | F69: ='FX-3500'!$R$139 -> 0 | G69: ='FX-3500'!$S$139 -> 0
A70: ='FX-3500'!$B$153 -> 0 | C70: ='FX-3500'!$D$153 -> DNR(A) Duct Detector Housing w/2251 Smoke Head | F70: ='FX-3500'!$R$153 -> 0 | G70: ='FX-3500'!$S$153 -> 0
A71: ='FX-3500'!$B$155 -> 0 | C71: ='FX-3500'!$D$155 -> DNRW Watertight Duct Detector Housing w/2251 Smoke Head, (UL only) | F71: ='FX-3500'!$R$155 -> 0 | G71: ='FX-3500'!$S$155 -> 0
A74: ='FX-3500'!#REF! ->  | C74: Two-Wire & Four-Wire Smoke Detectors
A75: ='FX-3500'!$B$159 -> 0 | C75: ='FX-3500'!$D$159 -> 2W/C2W i3 Series Smoke Detectors | F75: ='FX-3500'!$R$159 -> 0 | G75: ='FX-3500'!$S$159 -> 0
A76: ='FX-3500'!$B$161 -> 0 | C76: ='FX-3500'!$D$161 -> 2W/C2W i3 Series Photo/Thermal Detectors | F76: ='FX-3500'!$R$161 -> 0 | G76: ='FX-3500'!$S$161 -> 0
A77: ='FX-3500'!$B$163 -> 0 | C77: ='FX-3500'!$D$163 -> 2W/C2W i3 Series Detectors w/Sounder Base | F77: ='FX-3500'!$R$163 -> 0 | G77: ='FX-3500'!$S$163 -> 0
A78: ='FX-3500'!$B$165 -> 0 | C78: ='FX-3500'!$D$165 -> 2W/C2W i3 Series Detectors w/Sounder Base & Relay | F78: ='FX-3500'!$R$165 -> 0 | G78: ='FX-3500'!$S$165 -> 0
A79: ='FX-3500'!$B$167 -> 0 | C79: ='FX-3500'!$D$167 -> 2151A/2151TA Smoke Detectors | F79: ='FX-3500'!$R$167 -> 0 | G79: ='FX-3500'!$S$167 -> 0
A80: ='FX-3500'!$B$169 -> 0 | C80: ='FX-3500'!$D$169 -> C2W-MOD2A LoopTest Maintenance Module | F80: ='FX-3500'!$R$169 -> 0 | G80: ='FX-3500'!$S$169 -> 0
A81: ='FX-3500'!$B$171 -> 0 | C81: ='FX-3500'!$D$171 -> D2(A) Photoelectric Duct Detector | F81: ='FX-3500'!$R$171 -> 0 | G81: ='FX-3500'!$S$171 -> 0
A82: ='FX-3500'!$B$177 -> 0 | C82: ='FX-3500'!$D$177 -> 4W/C4W i3 Series Photoelectric Detectors | F82: ='FX-3500'!$R$177 -> 0 | G82: ='FX-3500'!$S$177 -> 0
A83: ='FX-3500'!$B$179 -> 0 | C83: ='FX-3500'!$D$179 -> 4W/C4W i3 Series Photo/ Thermal Detectors | F83: ='FX-3500'!$R$179 -> 0 | G83: ='FX-3500'!$S$179 -> 0
A84: ='FX-3500'!$B$181 -> 0 | C84: ='FX-3500'!$D$181 -> 4W/C4W i3 Series Photo/ Thermal w/Sounder Base | F84: ='FX-3500'!$R$181 -> 0 | G84: ='FX-3500'!$S$181 -> 0
A85: ='FX-3500'!$B$183 -> 0 | C85: ='FX-3500'!$D$183 -> 4W/C4W i3 Series Photo/ Thermal w/Sounder Base & Relay | F85: ='FX-3500'!$R$183 -> 0 | G85: ='FX-3500'!$S$183 -> 0
A86: ='FX-3500'!$B$185 -> 0 | C86: ='FX-3500'!$D$185 -> CO1224(A) Carbon Monoxide Detector | F86: ='FX-3500'!$R$185 -> 0 | G86: ='FX-3500'!$S$185 -> 0
A87: ='FX-3500'!#REF! ->  | C87: ='FX-3500'!#REF! ->  | F87: ='FX-3500'!#REF! ->  | G87: ='FX-3500'!#REF! -> 
A88: ='FX-3500'!#REF! ->  | C88: ='FX-3500'!#REF! ->  | F88: ='FX-3500'!#REF! ->  | G88: ='FX-3500'!#REF! -> 
A89: ='FX-3500'!$B$189 -> 0 | C89: ='FX-3500'!$D$189 -> BEAM1224(A) Series Beam Detectors | F89: ='FX-3500'!$R$189 -> 0 | G89: ='FX-3500'!$S$189 -> 0
A90: ='FX-3500'!$B$191 -> 0 | C90: ='FX-3500'!$D$191 -> D4120(A) Photoelectric Duct Detector w/Relay, 120VAC | F90: ='FX-3500'!$R$191 -> 0 | G90: ='FX-3500'!$S$191 -> 0
A91: ='FX-3500'!$B$193 -> 0 | C91: ='FX-3500'!$D$193 -> D4120(A) Photoelectric Duct Detector w/Relay, 24VAC | F91: ='FX-3500'!$R$193 -> 0 | G91: ='FX-3500'!$S$193 -> 0
A94: ='FX-3500'!U246 -> 0 | C94: Signals
A95: ='FX-3500'!$B$197 -> 0 | C95: ='FX-3500'!$D$197 -> 0 | F95: ='FX-3500'!$R$197 -> 0 | G95: ='FX-3500'!$S$197 -> 0
A96: ='FX-3500'!$B$199 -> 0 | C96: ='FX-3500'!$D$199 -> 0 | F96: ='FX-3500'!$R$199 -> 0 | G96: ='FX-3500'!$S$199 -> 0
A97: ='FX-3500'!$B$201 -> 0 | C97: ='FX-3500'!$D$201 -> 0 | F97: ='FX-3500'!$R$201 -> 0 | G97: ='FX-3500'!$S$201 -> 0
A98: ='FX-3500'!$B$203 -> 0 | C98: ='FX-3500'!$D$203 -> 0 | F98: ='FX-3500'!$R$203 -> 0 | G98: ='FX-3500'!$S$203 -> 0
A99: ='FX-3500'!$B$205 -> 0 | C99: ='FX-3500'!$D$205 -> 0 | F99: ='FX-3500'!$R$205 -> 0 | G99: ='FX-3500'!$S$205 -> 0
A100: ='FX-3500'!$B$207 -> 0 | C100: ='FX-3500'!$D$207 -> 0 | F100: ='FX-3500'!$R$207 -> 0 | G100: ='FX-3500'!$S$207 -> 0
A101: ='FX-3500'!$B$209 -> 0 | C101: ='FX-3500'!$D$209 -> 0 | F101: ='FX-3500'!$R$209 -> 0 | G101: ='FX-3500'!$S$209 -> 0
A102: ='FX-3500'!$B$211 -> 0 | C102: ='FX-3500'!$D$211 -> 0 | F102: ='FX-3500'!$R$211 -> 0 | G102: ='FX-3500'!$S$211 -> 0
A103: ='FX-3500'!$B$213 -> 0 | C103: ='FX-3500'!$D$213 -> 0 | F103: ='FX-3500'!$R$213 -> 0 | G103: ='FX-3500'!$S$213 -> 0
A104: ='FX-3500'!$B$215 -> 0 | C104: ='FX-3500'!$D$215 -> 0 | F104: ='FX-3500'!$R$215 -> 0 | G104: ='FX-3500'!$S$215 -> 0
A105: ='FX-3500'!$B$217 -> 0 | C105: ='FX-3500'!$D$217 -> 0 | F105: ='FX-3500'!$R$217 -> 0 | G105: ='FX-3500'!$S$217 -> 0
A106: ='FX-3500'!$B$219 -> 0 | C106: ='FX-3500'!$D$219 -> 0 | F106: ='FX-3500'!$R$219 -> 0 | G106: ='FX-3500'!$S$219 -> 0
A107: ='FX-3500'!$B$221 -> 0 | C107: ='FX-3500'!$D$221 -> 0 | F107: ='FX-3500'!$R$221 -> 0 | G107: ='FX-3500'!$S$221 -> 0
A108: ='FX-3500'!$B$223 -> 0 | C108: ='FX-3500'!$D$223 -> 0 | F108: ='FX-3500'!$R$223 -> 0 | G108: ='FX-3500'!$S$223 -> 0
A109: ='FX-3500'!$B$225 -> 0 | C109: ='FX-3500'!$D$225 -> 0 | F109: ='FX-3500'!$R$225 -> 0 | G109: ='FX-3500'!$S$225 -> 0
A110: ='FX-3500'!$B$227 -> 0 | C110: ='FX-3500'!$D$227 -> 0 | F110: ='FX-3500'!$R$227 -> 0 | G110: ='FX-3500'!$S$227 -> 0
A111: ='FX-3500'!$B$229 -> 0 | C111: ='FX-3500'!$D$229 -> 0 | F111: ='FX-3500'!$R$229 -> 0 | G111: ='FX-3500'!$S$229 -> 0
A112: ='FX-3500'!$B$231 -> 0 | C112: ='FX-3500'!$D$231 -> 0 | F112: ='FX-3500'!$R$231 -> 0 | G112: ='FX-3500'!$S$231 -> 0
A113: ='FX-3500'!$B$233 -> 0 | C113: ='FX-3500'!$D$233 -> 0 | F113: ='FX-3500'!$R$233 -> 0 | G113: ='FX-3500'!$S$233 -> 0
A114: ='FX-3500'!$B$235 -> 0 | C114: ='FX-3500'!$D$235 -> 0 | F114: ='FX-3500'!$R$235 -> 0 | G114: ='FX-3500'!$S$235 -> 0
A117: ='FX-3500'!U254 -> 0 | C117: Auxillary Power
A118: ='FX-3500'!$B$250 -> 0 | C118: ='FX-3500'!$D$250 -> FX-3500 Aux Supply1 500 mA | F118: ='FX-3500'!$R$250 -> 0 | G118: ='FX-3500'!$S$250 -> 0
A119: ='FX-3500'!$B$252 -> 0 | C119: ='FX-3500'!$D$252 -> FX-3500 Aux Supply2 300 mA | F119: ='FX-3500'!$R$252 -> 0 | G119: ='FX-3500'!$S$252 -> 0
A122: ='FX-3500'!U277 -> 0 | C122: Additional Devices
A123: ='FX-3500'!$B$258 -> 0 | C123: ='FX-3500'!$D$258 -> 0 | F123: ='FX-3500'!$R$258 -> 0 | G123: ='FX-3500'!$S$258 -> 0
A124: ='FX-3500'!$B$260 -> 0 | C124: ='FX-3500'!$D$260 -> 0 | F124: ='FX-3500'!$R$260 -> 0 | G124: ='FX-3500'!$S$260 -> 0
A125: ='FX-3500'!$B$262 -> 0 | C125: ='FX-3500'!$D$262 -> 0 | F125: ='FX-3500'!$R$262 -> 0 | G125: ='FX-3500'!$S$262 -> 0
A126: ='FX-3500'!$B$264 -> 0 | C126: ='FX-3500'!$D$264 -> 0 | F126: ='FX-3500'!$R$264 -> 0 | G126: ='FX-3500'!$S$264 -> 0
A127: ='FX-3500'!$B$266 -> 0 | C127: ='FX-3500'!$D$266 -> 0 | F127: ='FX-3500'!$R$266 -> 0 | G127: ='FX-3500'!$S$266 -> 0
A128: ='FX-3500'!$B$268 -> 0 | C128: ='FX-3500'!$D$268 -> 0 | F128: ='FX-3500'!$R$268 -> 0 | G128: ='FX-3500'!$S$268 -> 0
A129: ='FX-3500'!$B$270 -> 0 | C129: ='FX-3500'!$D$270 -> 0 | F129: ='FX-3500'!$R$270 -> 0 | G129: ='FX-3500'!$S$270 -> 0
A130: ='FX-3500'!$B$272 -> 0 | C130: ='FX-3500'!$D$272 -> 0 | F130: ='FX-3500'!$R$272 -> 0 | G130: ='FX-3500'!$S$272 -> 0
A131: ='FX-3500'!$B$274 -> 0 | C131: ='FX-3500'!$D$274 -> 0 | F131: ='FX-3500'!$R$274 -> 0 | G131: ='FX-3500'!$S$274 -> 0
A132: ='FX-3500'!$B$276 -> 0 | C132: ='FX-3500'!$D$276 -> 0 | F132: ='FX-3500'!$R$276 -> 0 | G132: ='FX-3500'!$S$276 -> 0
E135: Total Standby Current in Amps | G135: ='FX-3500'!$S$279 -> 0
A136: ='FX-3500'!$B$281 -> 24 | C136: Number of Standby Hours | E136: Total Alarm Current in Amps | G136: ='FX-3500'!$S$281 -> 0
A137: ='FX-3500'!$B$283 -> 30 | C137: Alarm Period in Minutes
A138: ='FX-3500'!$B$285 -> 1.25 | C138: Battery Derating | D138: Battery Capacity Requirement (Ah) | G138: ='FX-3500'!$S$285 -> 0
A141: Mircom Technologies hereby disclaims all warranties relating to this software utility, whether expressed or implied, including without limitation any implied warranties of merchantability or fitness for a particular purpose. Mircom Technologies cannot and will not assume, accept or be liable for any special, incidental, consequential, indirect or similar claims, losses or damages for any reason whatsoever. Use of this Software Utility shall be deemed acceptance of these terms. It is the sole responsibility of the user to ascertain the accuracy and the reliability of any and all information generated or provided by this software utility and to ensure maximum current levels for control units have not been exceeded

Sheet FX-400 (hidden)
F2: FX-400 Battery Calculation Program
B4: PROJECT NAME: | E4: =Menu!X2 -> 0
B6: ADDRESS: | E6: =Menu!X4 -> 0
B8: COMPANY NAME: | E8: =Menu!X15 -> 0
B10: PREPARED BY: | E10: =Menu!X17 -> 0
D12: Important: Enter Quantities then press enter, tab, or click another cell to update calculator.
B13: 1 | R13: All Current in Amps
B14: 1
B15: 1 | Q15: AUX. CURRENT | R15: Standby | S15: Alarm
B16: 1 | D16: Panel Model | R16: Current | S16: Current
B17: 1
B18: 1 | D18: FX-400 Addressable Panel w/Dialer (6 amps) (UL) | O18: =VLOOKUP(U18,NAC!BH22:BL23,4) -> 0.225 | P18: =VLOOKUP(U18,NAC!BH22:BL23,5) -> 0.43 | Q18: =VLOOKUP(U18,NAC!BH22:BL23,6) ->  | R18: =O18 -> 0.225 | S18: =P18 -> 0.43 | U18: 2
D19: * Panel is UL listed only. Comes With One (1) Onboard SLC/DCL, Four (4) NACs, 1.5A Each, 5.0A Total. Cabinet Fits Up To 18AH Battery
B20: QTY
B21: =COUNTIF(B23:B23,">0")*{1} -> 0 | D21: Panel Adder Modules
D22: *Maximum One (1) PR-300 Module per Panel
D23: =VLOOKUP(U23,NAC!BH19:BL21,2) -> PR-300 Polarity Reversal & City Tie Module | O23: =VLOOKUP(U23,NAC!BH19:BL21,4) -> 0.05 | P23: =VLOOKUP(U23,NAC!BH19:BL21,5) -> 0.3 | R23: =B23*O23 -> 0 | S23: =B23*P23 -> 0 | U23: 3
B24: =COUNTIF(B27:B39,">0")*{1} -> 0 | C24: =IF(B23<2,"","Warning Only One PR-300 Module Can Be Installed") -> 
B25: =COUNTIF(B27:B39,">0")*{1} -> 0 | D25: Remote Annunciators & Adder Modules
D26: *Maximum Seven (7) Annunciators per Panel
D27: =VLOOKUP(U27,NAC!BH25:BL32,2) -> RAM-3318-LCD Remote Annunciator | O27: =VLOOKUP(U27,NAC!BH25:BL32,4) -> 0.07 | P27: =VLOOKUP(U27,NAC!BH25:BL32,5) -> 0.1 | Q27: =B27*M27 -> 0 | R27: =B27*O27 -> 0 | S27: =B27*P27 -> 0 | U27: 2
D29: =VLOOKUP(U29,NAC!BH25:BL32,2) -> RAX-LCD-LITE Remote Annunciator | O29: =VLOOKUP(U29,NAC!BH25:BL32,4) -> 0.065 | P29: =VLOOKUP(U29,NAC!BH25:BL32,5) -> 0.08 | Q29: =B29*M29 -> 0 | R29: =B29*O29 -> 0 | S29: =B29*P29 -> 0 | U29: 3
D31: =VLOOKUP(U31,NAC!BH25:BL32,2) -> RAM-1032TZDS Main Remote Annunciator w/ 32 Zones Active | O31: =VLOOKUP(U31,NAC!BH25:BL32,4) -> 0.05 | P31: =VLOOKUP(U31,NAC!BH25:BL32,5) -> 0.3 | Q31: =B31*M31 -> 0 | R31: =B31*O31 -> 0 | S31: =B31*P31 -> 0 | U31: 5
D33: =VLOOKUP(U33,NAC!BH25:BL33,2) -> SRM-312W / SRM-312R Smart Relay Module w/ 3 LEDS Active | O33: =VLOOKUP(U33,NAC!BH25:BL33,4) -> 0.03 | P33: =VLOOKUP(U33,NAC!BH25:BL33,5) -> 0.09 | Q33: =B33*M33 -> 0 | R33: =B33*O33 -> 0 | S33: =B33*P33 -> 0 | U33: 9
D35: =VLOOKUP(U35,NAC!BH25:BL32,2) -> RTI-1 Remote Trouble Indicator | O35: =VLOOKUP(U35,NAC!BH25:BL32,4) -> 0 | P35: =VLOOKUP(U35,NAC!BH25:BL32,5) -> 0.03 | Q35: =B35*M35 -> 0 | R35: =B35*O35 -> 0 | S35: =B35*P35 -> 0 | U35: 6
D37: =VLOOKUP(U37,NAC!BH27:BL34,2) -> MGD-32 Master Graphic Driver w/ 3 LEDS Active | O37: =VLOOKUP(U37,NAC!BH27:BL34,4) -> 0.035 | P37: =VLOOKUP(U37,NAC!BH27:BL34,5) -> 0.047 | Q37: =B37*M37 -> 0 | R37: =B37*O37 -> 0 | S37: =B37*P37 -> 0 | U37: 7
D39: =VLOOKUP(U39,NAC!BH29:BL36,2) -> MGD-32 Master Graphic Driver w/ 3 LEDS Active | O39: =VLOOKUP(U39,NAC!BH29:BL36,4) -> 0.035 | P39: =VLOOKUP(U39,NAC!BH29:BL36,5) -> 0.047 | Q39: =B39*M39 -> 0 | R39: =B39*O39 -> 0 | S39: =B39*P39 -> 0 | U39: 7
B40: =COUNTIF(B43:B63,">0")*{1} -> 0
B41: =COUNTIF(B43:B63,">0")*{1} -> 0 | D41: Intelligent Sensors
D42: * Protocol Maximums: 240 Sensors and/or Modules per Addressable Loop
B43: 0 | D43: MIX-4010 Intelligent Addressable Photoelectric Smoke Sensor | N43: 0.00016 | P43: 0.00016 | R43: =B43*N43 -> 0 | S43: =B43*P43 -> 0
D45: MIX-4010-ISO Intelligent Addressable Photoelectric Smoke Sensor w/ Isolator | N45: 0.00016 | P45: 0.00016 | R45: =B45*N45 -> 0 | S45: =B45*P45 -> 0
D47: MIX-4020 Intelligent Addressable Multi-Sensor, Photo/Themal | N47: 0.00016 | P47: 0.00016 | R47: =B47*N47 -> 0 | S47: =B47*P47 -> 0
D49: MIX-4020-ISO Intelligent Addressable Multi-Sensor, Photo/Themal w/ Isolator | N49: 0.00016 | P49: 0.00016 | R49: =B49*N49 -> 0 | S49: =B49*P49 -> 0
B51: 0 | D51: MIX-4030 Intelligent Addressable Heat Sensor (Tri-Mode) | N51: 0.00016 | P51: 0.00016 | R51: =B51*N51 -> 0 | S51: =B51*P51 -> 0
B53: 0 | D53: MIX-4030-ISO Intelligent Addressable Heat Sensor, Tri-Mode, w/ Isolator | N53: 0.00016 | P53: 0.00016 | R53: =B53*N53 -> 0 | S53: =B53*P53 -> 0
D55: MIX-4011 Intelligent Addressable Photoelectric Smoke Sensor (UL268 7th Ed) | N55: 0.00016 | P55: 0.00016 | R55: =B55*N55 -> 0 | S55: =B55*P55 -> 0
D57: MIX-4011-ISO Intelligent Add. Photo Smoke Sensor (UL268 7th Ed) w/Isolator | N57: 0.00016 | P57: 0.00016 | R57: =B57*N57 -> 0 | S57: =B57*P57 -> 0
D59: MIX-4021 Intelligent Addressable Multi-Sensor, Photo/Themal (UL268 7th Ed) | N59: 0.00016 | P59: 0.00016 | R59: =B59*N59 -> 0 | S59: =B59*P59 -> 0
D61: MIX-4021-ISO Intelligent Add. Multi-Sensor, Photo/Themal (UL268 7th Ed) w/Isolator | N61: 0.00016 | P61: 0.00016 | R61: =B61*N61 -> 0 | S61: =B61*P61 -> 0
B62: =COUNTIF(B67:B77,">0")*{1} -> 0
B63: 0 | D63: MIX-4010-DUCT Intelligent Addressable Photoelectric Duct Smoke Detector | N63: 0.00016 | P63: 0.00016 | R63: =B63*N63 -> 0 | S63: =B63*P63 -> 0
B64: =COUNTIF(B67:B83,">0")*{1} -> 0
B65: =COUNTIF(B67:B83,">0")*{1} -> 0 | D65: Intelligent Modules
D66: * Protocol Maximums: 240 Sensors and/or Modules per Addressable Loop
B67: 0 | D67: MIX-4040 Dual Input Monitoring Module | O67: 0.002 | P67: 0.002 | R67: =B67*O67 -> 0 | S67: =B67*P67 -> 0 | U67: 2
B69: 0 | D69: MIX-4041 Mini Dual Input Monitoring Module | O69: 0.002 | P69: 0.002 | R69: =B69*O69 -> 0 | S69: =B69*P69 -> 0 | U69: 3
B71: 0 | D71: MIX-4042 Addressable Conventional Zone / 4-20mA Module | O71: 0.0016 | P71: 0.0016 | R71: =B71*O71 -> 0 | S71: =B71*P71 -> 0 | U71: 4
B73: 0 | D73: MIX-4045 Dual Relay | O73: 0.0015 | P73: 0.0015 | R73: =B73*O73 -> 0 | S73: =B73*P73 -> 0 | U73: 5
B75: 0 | D75: MIX-4046 Supervised Output / Fire Phone Module (Dual Pupose) | O75: 0.0018 | P75: 0.0018 | R75: =B75*O75 -> 0 | S75: =B75*P75 -> 0 | U75: 6
B77: 0 | D77: MIX-4070 Short Circuit Isolator Module | O77: 0.0006 | P77: 0.0006 | R77: =B77*O77 -> 0 | S77: =B77*P77 -> 0
B78: =COUNTIF(B87:B89,">0")*{1} -> 0
B79: 0 | D79: MIX-4040-M Multi Input Monitor Module (6 Class A / 12 Class B) | O79: 0.004 | P79: 0.004 | R79: =B79*O79 -> 0 | S79: =B79*P79 -> 0
B81: 0 | D81: MIX-4045-M Multi Relay Module (8 Form C SPDT) | N81: 0.0019 | O81: 0.0019 | P81: 0.0019 | R81: =B81*O81 -> 0 | S81: =B81*P81 -> 0
B83: 0 | D83: MIX-4070-M Multi Isolator Module (8 Isolator Sections) | O83: 0.00448 | P83: 0.00448 | R83: =B83*O83 -> 0 | S83: =B83*P83 -> 0
B85: =COUNTIF(B87:B89,">0")*{1} -> 0 | D85: Intelligent Bases - MIX-4000 (MGC, Requires MP Firmware)
D86: * Protocol Maximums: 240 Sensors and/or Modules per Addressable Loop
B87: 0 | D87: MIX-4003-S Sounder Base - SLC CURRENT / LOCAL ALARM | N87: 0.00156 | O87: 0.00156 | P87: 0.00156 | R87: =B87*O87 -> 0 | S87: =B87*P87 -> 0 | U87: 2
B89: 0 | D89: MIX-4003-LF Low Frequency Sounder Base - SLC CURRENT / LOCAL ALARM | N89: 0.00156 | O89: 0.00156 | P89: 0.00156 | R89: =B89*O89 -> 0 | S89: =B89*P89 -> 0 | U89: 3
D90: * Sounder Bases used for General Alarm should be included here and also Added in the NAC or INX-10A Section
B91: 0 | D91: MIX-4003-R Relay Base | N91: 0.00116 | O91: 0.00116 | P91: 0.00116 | R91: =B91*O91 -> 0 | S91: =B91*P91 -> 0
B93: =COUNTIF(B95:B105,">0")*{1} -> 0 | D93: Intelligent Manual Stations
D94: * Protocol Maximums: 240 Sensors and/or Modules per Addressable Loop
D95: MS-401MPU Intelligent Single Stage Manaul Station | O95: 0.002 | P95: 0.002 | R95: =B95*O95 -> 0 | S95: =B95*P95 -> 0 | U95: 4
D97: MS-407MPU Intelligent Single Stage Manaul Station w/ Additional N.C. Switch | O97: 0.002 | P97: 0.002 | R97: =B97*O97 -> 0 | S97: =B97*P97 -> 0 | U97: 2
D99: MS-710MPU Intelligent Single Stage Dual-Action Manual Station w/ Key Reset | O99: 0.002 | P99: 0.002 | R99: =B99*O99 -> 0 | S99: =B99*P99 -> 0 | U99: 3
D101: MPS-810MP(U) Addressable Single Stage Dual Action Manual Station | O101: 0.002 | P101: 0.002 | Q101: 0.002 | R101: =B101*O101 -> 0 | S101: =B101*P101 -> 0
D103: MPS-802MP Addressable Two Stage Dual Action Manual Station (ULC) | O103: 0.002 | P103: 0.002 | Q103: 0.002 | R103: =B103*O103 -> 0 | S103: =B103*P103 -> 0 | U103: 2
D105: MPS-822MP Add. Two Stage Dual Action Station w/Add. N.C. Switch (ULC) | O105: 0.002 | P105: 0.002 | Q105: 0.002 | R105: =B105*O105 -> 0 | S105: =B105*P105 -> 0 | U105: 2
B106: =COUNTIF(B109:B119,">0")*{1} -> 0 | V106: Total
B107: =COUNTIF(B109:B119,">0")*{1} -> 0 | D107: Conventional 2 Wire Smoke Detectors
D108: * Must connect to an intelligent addressable module
D109: 2W i3 Series Photoelectric Smoke Detectors | O109: 5e-05 | P109: 5e-05 | R109: =B109*O109 -> 0 | S109: =B109*P109 -> 0 | U109: 2
D111: 2W i3 Series Photo/Thermal Detectors | O111: 5e-05 | P111: 5e-05 | R111: =B111*O111 -> 0 | S111: =B111*P111 -> 0 | U111: 3
D113: 2W i3 Series Detectors w/Sounder Base | O113: 5e-05 | P113: 5e-05 | R113: =B113*O113 -> 0 | S113: =B113*P113 -> 0 | U113: 4
D115: 2W i3 Series Detectors w/Sounder Base & Relay | O115: 5e-05 | P115: 5e-05 | R115: =B115*O115 -> 0 | S115: =B115*P115 -> 0 | U115: 5
D117: 2151 Photoelectric Smoke Detector | O117: 8.5e-05 | P117: 8.5e-05 | R117: =B117*O117 -> 0 | S117: =B117*P117 -> 0 | U117: 6
D119: D2 Photoelectric Duct Detector | O119: 0.00012 | P119: 0.00012 | R119: =B119*O119 -> 0 | S119: =B119*P119 -> 0 | U119: 8
B120: =COUNTIF(B109:B119,">0")*{1} -> 0
B121: =COUNTIF(B109:B119,">0")*{1} -> 0 | J121: =IF(U121>0,"ASSUMES 3 INITIATING CTS. IN ALARM","") ->  | S121: =IF(U121>0,"0.090000","") ->  | U121: =SUM(R109:R119) -> 0
B122: =COUNTIF(B125:B141,">0")*{1} -> 0
B123: =COUNTIF(B125:B141,">0")*{1} -> 0 | D123: Conventional 4 Wire Detectors
D124: * Must connect to an intelligent addressable module
D125: 4W i3 Series Photoelectric Smoke Detectors | O125: 5e-05 | P125: 5e-05 | R125: =B125*O125 -> 0 | S125: =B125*P125 -> 0 | U125: 9
D127: 4W i3 Series Photo/Thermal Detectors | O127: 5e-05 | P127: 5e-05 | R127: =B127*O127 -> 0 | S127: =B127*P127 -> 0 | U127: 10
U128: 7
D129: 4W i3 Series Detectors w/Sounder Base | O129: 5e-05 | P129: 5e-05 | R129: =B129*O129 -> 0 | S129: =B129*P129 -> 0 | U129: 11
D131: 4W i3 Series Detectors w/Sounder Base & Relay | O131: 0.0255 | P131: 0.0255 | R131: =B131*O131 -> 0 | S131: =B131*P131 -> 0 | U131: 12
D133: =VLOOKUP(U133,NAC!AO245:AR261,2) -> CO1224 Carbon Monoxide Detector | O133: 0.02 | P133: 0.02 | R133: =B133*O133 -> 0 | S133: =B133*P133 -> 0 | U133: 6
D135: OSI-R-SS Conventional Imaging Beam Smoke Detector | O135: 0.011 | P135: 0.011 | R135: =B135*O135 -> 0 | S135: =B135*P135 -> 0
D137: =VLOOKUP(U137,NAC!AO245:AR261,2) -> BEAM1224 Series Beam Detectors | O137: 0.017 | P137: 0.017 | R137: =B137*O137 -> 0 | S137: =B137*P137 -> 0 | U137: 9
D139: D4120 Photoelectric Duct Detector w/ Relay, 120VAC | O139: 0.02 | P139: 0.02 | R139: =B139*O139 -> 0 | S139: =B139*P139 -> 0 | U139: 17
U140: 7
D141: D4120 Photoelectric Duct Detector w/ Relay, 24VAC | O141: 0.065 | P141: 0.065 | R141: =B141*O141 -> 0 | S141: =B141*P141 -> 0 | U141: 18
B142: =COUNTIF(B145:B183,">0")*{1} -> 0
B143: =COUNTIF(B145:B193,">0")*{1} -> 0 | D143: Signaling Devices - 24 FWR
D144: Select From Drop-Down Box - Check Guide for Compatibility
B145: 0 | D145: =VLOOKUP(U145,NAC!BR11:BU172,2) -> 0 | O145: =VLOOKUP(U145,NAC!BR11:BU172,3) -> 0 | P145: =VLOOKUP(U145,NAC!BR11:BU172,4) -> 0 | R145: =B145*O145 -> 0 | S145: =B145*P145 -> 0 | U145: 1
B147: 0 | D147: =VLOOKUP(U147,NAC!BR11:BU172,2) -> 0 | O147: =VLOOKUP(U147,NAC!BR11:BU172,3) -> 0 | P147: =VLOOKUP(U147,NAC!BR11:BU172,4) -> 0 | R147: =B147*O147 -> 0 | S147: =B147*P147 -> 0 | U147: 1
D149: =VLOOKUP(U149,NAC!BR11:BU172,2) -> 0 | O149: =VLOOKUP(U149,NAC!BR11:BU172,3) -> 0 | P149: =VLOOKUP(U149,NAC!BR11:BU172,4) -> 0 | R149: =B149*O149 -> 0 | S149: =B149*P149 -> 0 | U149: 1
D151: =VLOOKUP(U151,NAC!BR11:BU172,2) -> 0 | O151: =VLOOKUP(U151,NAC!BR11:BU172,3) -> 0 | P151: =VLOOKUP(U151,NAC!BR11:BU172,4) -> 0 | R151: =B151*O151 -> 0 | S151: =B151*P151 -> 0 | U151: 1
V152: Total
D153: =VLOOKUP(U153,NAC!BR11:BU172,2) -> 0 | O153: =VLOOKUP(U153,NAC!BR11:BU172,3) -> 0 | P153: =VLOOKUP(U153,NAC!BR11:BU172,4) -> 0 | R153: =B153*O153 -> 0 | S153: =B153*P153 -> 0 | U153: 1
D155: =VLOOKUP(U155,NAC!BR11:BU172,2) -> 0 | O155: =VLOOKUP(U155,NAC!BR11:BU172,3) -> 0 | P155: =VLOOKUP(U155,NAC!BR11:BU172,4) -> 0 | R155: =B155*O155 -> 0 | S155: =B155*P155 -> 0 | U155: 1
D157: =VLOOKUP(U157,NAC!BR11:BU172,2) -> 0 | O157: =VLOOKUP(U157,NAC!BR11:BU172,3) -> 0 | P157: =VLOOKUP(U157,NAC!BR11:BU172,4) -> 0 | R157: =B157*O157 -> 0 | S157: =B157*P157 -> 0 | U157: 1
D159: =VLOOKUP(U159,NAC!BR11:BU172,2) -> 0 | O159: =VLOOKUP(U159,NAC!BR11:BU172,3) -> 0 | P159: =VLOOKUP(U159,NAC!BR11:BU172,4) -> 0 | R159: =B159*O159 -> 0 | S159: =B159*P159 -> 0 | U159: 1
D161: =VLOOKUP(U161,NAC!BR11:BU172,2) -> 0 | O161: =VLOOKUP(U161,NAC!BR11:BU172,3) -> 0 | P161: =VLOOKUP(U161,NAC!BR11:BU172,4) -> 0 | R161: =B161*O161 -> 0 | S161: =B161*P161 -> 0 | U161: 1
D163: =VLOOKUP(U163,NAC!BR11:BU172,2) -> 0 | O163: =VLOOKUP(U163,NAC!BR11:BU172,3) -> 0 | P163: =VLOOKUP(U163,NAC!BR11:BU172,4) -> 0 | R163: =B163*O163 -> 0 | S163: =B163*P163 -> 0 | U163: 1
D165: =VLOOKUP(U165,NAC!BR11:BU172,2) -> 0 | O165: =VLOOKUP(U165,NAC!BR11:BU172,3) -> 0 | P165: =VLOOKUP(U165,NAC!BR11:BU172,4) -> 0 | R165: =B165*O165 -> 0 | S165: =B165*P165 -> 0 | U165: 1
D167: =VLOOKUP(U167,NAC!BR11:BU172,2) -> 0 | O167: =VLOOKUP(U167,NAC!BR11:BU172,3) -> 0 | P167: =VLOOKUP(U167,NAC!BR11:BU172,4) -> 0 | R167: =B167*O167 -> 0 | S167: =B167*P167 -> 0 | U167: 1
D169: =VLOOKUP(U169,NAC!BR11:BU172,2) -> 0 | O169: =VLOOKUP(U169,NAC!BR11:BU172,3) -> 0 | P169: =VLOOKUP(U169,NAC!BR11:BU172,4) -> 0 | R169: =B169*O169 -> 0 | S169: =B169*P169 -> 0 | U169: 1
D171: =VLOOKUP(U171,NAC!BR11:BU172,2) -> 0 | O171: =VLOOKUP(U171,NAC!BR11:BU172,3) -> 0 | P171: =VLOOKUP(U171,NAC!BR11:BU172,4) -> 0 | R171: =B171*O171 -> 0 | S171: =B171*P171 -> 0 | U171: 1
D173: =VLOOKUP(U173,NAC!BR11:BU172,2) -> 0 | O173: =VLOOKUP(U173,NAC!BR11:BU172,3) -> 0 | P173: =VLOOKUP(U173,NAC!BR11:BU172,4) -> 0 | R173: =B173*O173 -> 0 | S173: =B173*P173 -> 0 | U173: 1
D175: =VLOOKUP(U175,NAC!BR11:BU172,2) -> 0 | O175: =VLOOKUP(U175,NAC!BR11:BU172,3) -> 0 | P175: =VLOOKUP(U175,NAC!BR11:BU172,4) -> 0 | R175: =B175*O175 -> 0 | S175: =B175*P175 -> 0 | U175: 1
D177: =VLOOKUP(U177,NAC!BR11:BU172,2) -> 0 | O177: =VLOOKUP(U177,NAC!BR11:BU172,3) -> 0 | P177: =VLOOKUP(U177,NAC!BR11:BU172,4) -> 0 | R177: =B177*O177 -> 0 | S177: =B177*P177 -> 0 | U177: 1
D179: =VLOOKUP(U179,NAC!BR11:BU172,2) -> 0 | O179: =VLOOKUP(U179,NAC!BR11:BU172,3) -> 0 | P179: =VLOOKUP(U179,NAC!BR11:BU172,4) -> 0 | R179: =B179*O179 -> 0 | S179: =B179*P179 -> 0 | U179: 1
D181: =VLOOKUP(U181,NAC!BR11:BU172,2) -> 0 | O181: =VLOOKUP(U181,NAC!BR11:BU172,3) -> 0 | P181: =VLOOKUP(U181,NAC!BR11:BU172,4) -> 0 | R181: =B181*O181 -> 0 | S181: =B181*P181 -> 0 | U181: 1
D183: =VLOOKUP(U183,NAC!BR11:BU172,2) -> 0 | O183: =VLOOKUP(U183,NAC!BR11:BU172,3) -> 0 | P183: =VLOOKUP(U183,NAC!BR11:BU172,4) -> 0 | R183: =B183*O183 -> 0 | S183: =B183*P183 -> 0 | U183: 1
R185: =B185*J185 -> 0 | S185: =B185*M185 -> 0
R187: =B187*J187 -> 0 | S187: =B187*M187 -> 0
R189: =B189*J189 -> 0 | S189: =B189*M189 -> 0
R191: =B191*J191 -> 0 | S191: =B191*M191 -> 0
R193: =B193*J193 -> 0 | S193: =B193*M193 -> 0
D194: * Indicating Circuits Must Not Exceed 5 Amps Total | U194: =SUM(S145:S193) -> 0
B195: =COUNTIF(B198:B200,">0")*{1} -> 0
B196: =COUNTIF(B198:B200,">0")*{1} -> 0 | D196: Aux. Power
D198: FX-400 Aux Supply 1 500 mA, 24VDC Regulated | P198: =VLOOKUP(U198,NAC!BH34:BL36,3) -> 0.5 | Q198: =VLOOKUP(U198,NAC!BH34:BL36,3) -> 0.5 | R198: =B198*P198 -> 0 | S198: =B198*Q198 -> 0 | U198: 2
D200: FX-400 Aux Supply 2 300 mA, 24VDC Regulated (use to power MIX-4042) | P200: =VLOOKUP(U200,NAC!BH34:BL36,3) -> 0.3 | Q200: =VLOOKUP(U200,NAC!BH34:BL36,3) -> 0.3 | R200: =B200*P200 -> 0 | S200: =B200*Q200 -> 0 | U200: 3
B201: =COUNTIF(B205:B223,">0")*{1} -> 0 | V201: Total
J202: Enter | M202: Enter
B203: =COUNTIF(B205:B223,">0")*{1} -> 0 | D203: Additional Devices | J203: Standby | M203: Alarm
B204: =COUNTIF(B205:B223,">0")*{1} -> 0 | D204: Description | J204: Current | M204: Current
R205: =B205*J205 -> 0 | S205: =B205*M205 -> 0
R207: =B207*J207 -> 0 | S207: =B207*M207 -> 0
R209: =B209*J209 -> 0 | S209: =B209*M209 -> 0
R211: =B211*J211 -> 0 | S211: =B211*M211 -> 0
R213: =B213*J213 -> 0 | S213: =B213*M213 -> 0
R215: =B215*J215 -> 0 | S215: =B215*M215 -> 0
R217: =B217*J217 -> 0 | S217: =B217*M217 -> 0
R219: =B219*J219 -> 0 | S219: =B219*M219 -> 0
R221: =B221*J221 -> 0 | S221: =B221*M221 -> 0
R223: =B223*J223 -> 0 | S223: =B223*M223 -> 0
B224: 1
B226: 1 | E226: Total Standby Current in Amps | S226: =SUM(R18:R223) -> 0.225 | U226: =B228*S226 -> 5.4
B227: 1
B228: 24 | D228: Enter Number of Standby Hours | H228: Total Alarm Current in Amps | S228: =SUM(S121:S223,S18:S105) -> 0.43 | U228: =B230*S228/60 -> 0.215
B229: 1
B230: 30 | D230: Enter Alarm Period in Minutes | U230: =U226+U228 -> 5.615
B231: 1
B232: 1.25 | D232: Enter Battery Derating | R232: Battery Capacity Requirement (Ah) | S232: =U230*B232 -> 7.01875
B233: 1
B234: =COUNTIF(S232,"<26")*{1} -> 1 | H234: Recommended Mircom Batteries (x2) | S234: =IF(OR(S232=0),"",IF(OR(S232<5),"BAT-12V5A",IF(OR(S232<7),"BAT-12V7A",IF(OR(S232<12),"BAT-12V12A",IF(OR(S232<18.0009),"BAT-12V18A",IF(OR(S232<26),"BAT-12V26A",IF(OR(S232>26),""))))))) -> BAT-12V12A
G235: * Battery Charging Capability: Minimum 10AH (BAT-12V12A), Maximum 24AH (BAT-12V26A)
B236: 1
B237: =COUNTIF(F239,"YES")*{1} -> 0
B238: =COUNTIF(F239,"YES")*{1} -> 0
D239: PRINT CALCULATION FOR UPS - NYC | F239: NO | M239: *Use Drop-Down | S239: *Use Drop-Down | U239: Watts | V239: Efficiency | W239: VAC | Y239: Amps
B240: =COUNTIF(F239,"YES")*{1} -> 0 | H240: Calculation for UPS: | M240: Three Phase VA Rating | R240: Watts /Power Factor | S240: 120 VAC | V240: 0.75 | W240: =IF(S240="120 VAC", "120","240") -> 120 | Z240: 120 VAC
B241: =COUNTIF(F239,"YES")*{1} -> 0 | F241: AC Current Draw in Amps | I241: =B228 -> 24 | J241: Hours Standby: | M241: =IF(M240="Three Phase VA Rating",V245,U245) -> 1198 | R241: =V241 -> 691.2 | S241: =W241 -> 5.76 | U241: =SUM(Y241*W240*0.8) -> 518.4 | V241: =SUM(U241/V240) -> 691.2 | W241: =SUM(V241/W240) -> 5.76 | Y241: =U226 -> 5.4 | Z241: 240 VAC
B242: =COUNTIF(F239,"YES")*{1} -> 0 | F242: AC Current Draw in Amps | I242: =B230 -> 30 | J242: Minutes Alarm: | M242: =IF(M240="Three Phase VA Rating",V246,U246) -> 5 | R242: =V242 -> 2.752 | S242: =W242 -> 0.02293333333 | U242: =SUM(Y242*W240*0.08) -> 2.064 | V242: =SUM(U242/V240) -> 2.752 | W242: =SUM(V242/W240) -> 0.02293333333 | Y242: =U228 -> 0.215
B243: =COUNTIF(F239,"YES")*{1} -> 0 | H243: TOTAL VA REQUIRED: | M243: =SUM(M241:M242) -> 1203 | R243: =IF(S240="120 VAC", "Calculated at 24V @ 120VAC","Calculated at 24V @ 240VAC") -> Calculated at 24V @ 120VAC | Z243: NO
U244: single phase | V244: three phase | Z244: YES
U245: =ROUNDUP(W240*S241,0) -> 692 | V245: =ROUNDUP(W240*S241*1.732,0) -> 1198
D246: Exceeds Maximum Total Alarm Current of 5 Amps | U246: =ROUNDUP(W240*S242,0) -> 3 | V246: =ROUNDUP(W240*S242*1.732,0) -> 5 | Z246: Single Phase VA Rating
D247: Exceeds Battery Maximums For This Panel | U247: =SUM(U245:U246) -> 695 | V247: =SUM(V245:V246) -> 1203 | Z247: Three Phase VA Rating
D248: Battery Exceeds Backbox, Use BC-160 Battery Cabinet
D249: Battery Exceeds Backbox, Use BC-160 Battery Cabinet
B250: -9999 | D250: Maximum AMPS For Power Supply Has Been Exceeded
A254: Mircom Technologies hereby disclaims all warranties relating to this software utility, whether expressed or implied, including without limitation any implied warranties of merchantability or fitness for a particular purpose. Mircom Technologies cannot and will not assume, accept or be liable for any special, incidental, consequential, indirect or similar claims, losses or damages for any reason whatsoever. Use of this Software Utility shall be deemed acceptance of these terms. It is the sole responsibility of the user to ascertain the accuracy and the reliability of any and all information generated or provided by this software utility and to ensure maximum current levels for control units have not been exceeded

Sheet FX-401 (hidden)
F2: FX-401 Battery Calculation Program
B4: PROJECT NAME: | E4: =Menu!X2 -> 0
B6: ADDRESS: | E6: =Menu!X4 -> 0
B8: COMPANY NAME: | E8: =Menu!X15 -> 0
B10: PREPARED BY: | E10: =Menu!X17 -> 0
D12: Important: Enter Quantities then press enter, tab, or click another cell to update calculator.
B13: 1 | R13: All Current in Amps
B14: 1
B15: 1 | Q15: AUX. CURRENT | R15: Standby | S15: Alarm
B16: 1 | D16: Panel Model | R16: Current | S16: Current
B17: 1
B18: 1 | D18: FX-401 Addressable Panel w/Dialer (10 amps) | O18: 0.39 | P18: 0.63 | Q18: =VLOOKUP(U18,NAC!BH22:BL23,6) ->  | R18: =O18 -> 0.39 | S18: =P18 -> 0.63 | U18: 2
D19: * Comes with One (1) Onboard SLC/DCL (Expandable to 3), Four (4) NACs, 1.5A Each, 6.0A Total. Cabinet Fits Up To 18AH Battery
B20: QTY
B21: =COUNTIF(B23:B25,">0")*{1} -> 0 | D21: Panel Adder Modules
D22: *Maximum One (1) Dual Loop Adder and One (1) PR-300 Module per Panel
D23: ALC-480 480 Point Dual Loop Adder | O23: 0.12 | P23: 0.2 | R23: =B23*O23 -> 0 | S23: =B23*P23 -> 0
D25: =VLOOKUP(U25,NAC!BH19:BL21,2) -> PR-300 Polarity Reversal & City Tie Module | O25: =VLOOKUP(U25,NAC!BH19:BL21,4) -> 0.05 | P25: =VLOOKUP(U25,NAC!BH19:BL21,5) -> 0.3 | R25: =B25*O25 -> 0 | S25: =B25*P25 -> 0 | U25: 3
B26: =COUNTIF(B29:B47,">0")*{1} -> 0 | C26: =IF(B25<2,"","Warning Only One PR-300 Module Can Be Installed") -> 
B27: =COUNTIF(B29:B47,">0")*{1} -> 0 | D27: Remote Annunciators & Adder Modules
D28: *Maximum Seven (7) Annunciators per Panel
D29: =VLOOKUP(U29,NAC!BH25:BL32,2) -> RAM-3318-LCD Remote Annunciator | O29: =VLOOKUP(U29,NAC!BH25:BL32,4) -> 0.07 | P29: =VLOOKUP(U29,NAC!BH25:BL32,5) -> 0.1 | Q29: =B29*M29 -> 0 | R29: =B29*O29 -> 0 | S29: =B29*P29 -> 0 | U29: 2
D31: =VLOOKUP(U31,NAC!BH25:BL32,2) -> RAX-LCD-LITE Remote Annunciator | O31: =VLOOKUP(U31,NAC!BH25:BL32,4) -> 0.065 | P31: =VLOOKUP(U31,NAC!BH25:BL32,5) -> 0.08 | Q31: =B31*M31 -> 0 | R31: =B31*O31 -> 0 | S31: =B31*P31 -> 0 | U31: 3
D33: =VLOOKUP(U33,NAC!BH25:BL32,2) -> RAM-1032TZDS Main Remote Annunciator w/ 32 Zones Active | O33: =VLOOKUP(U33,NAC!BH25:BL32,4) -> 0.05 | P33: =VLOOKUP(U33,NAC!BH25:BL32,5) -> 0.3 | Q33: =B33*M33 -> 0 | R33: =B33*O33 -> 0 | S33: =B33*P33 -> 0 | U33: 5
D35: =VLOOKUP(U35,NAC!BH10:BL18,2) -> RAX-1048TZDS 48 Zone & Trouble LED Adder w/ 4 Zones Active | O35: =VLOOKUP(U35,NAC!BH10:BL18,4) -> 0.022 | P35: =VLOOKUP(U35,NAC!BH10:BL18,5) -> 0.039 | Q35: =B35*M35 -> 0 | R35: =B35*O35 -> 0 | S35: =B35*P35 -> 0 | U35: 6
D37: =VLOOKUP(U37,NAC!AV13:AY24,2) -> IPS-2424DS 24 Programmable Input Switches Module | O37: =VLOOKUP(U37,NAC!AV13:AY24,3) -> 0.005 | P37: =VLOOKUP(U37,NAC!AV13:AY24,4) -> 0.022 | Q37: =B37*M37 -> 0 | R37: =B37*O37 -> 0 | S37: =B37*P37 -> 0 | U37: 10
D39: =VLOOKUP(U39,NAC!AV13:AY24,2) -> IPS-4848DS 48 Programmable Input Switches Module | O39: =VLOOKUP(U39,NAC!AV13:AY24,3) -> 0.01 | P39: =VLOOKUP(U39,NAC!AV13:AY24,4) -> 0.022 | Q39: =B39*M39 -> 0 | R39: =B39*O39 -> 0 | S39: =B39*P39 -> 0 | U39: 12
D41: =VLOOKUP(U41,NAC!BH25:BL33,2) -> SRM-312W / SRM-312R Smart Relay Module w/ 3 LEDS Active | O41: =VLOOKUP(U41,NAC!BH25:BL33,4) -> 0.03 | P41: =VLOOKUP(U41,NAC!BH25:BL33,5) -> 0.09 | Q41: =B41*M41 -> 0 | R41: =B41*O41 -> 0 | S41: =B41*P41 -> 0 | U41: 9
D43: =VLOOKUP(U43,NAC!BH25:BL32,2) -> RTI-1 Remote Trouble Indicator | O43: =VLOOKUP(U43,NAC!BH25:BL32,4) -> 0 | P43: =VLOOKUP(U43,NAC!BH25:BL32,5) -> 0.03 | Q43: =B43*M43 -> 0 | R43: =B43*O43 -> 0 | S43: =B43*P43 -> 0 | U43: 6
D45: =VLOOKUP(U45,NAC!BH27:BL34,2) -> MGD-32 Master Graphic Driver w/ 3 LEDS Active | O45: =VLOOKUP(U45,NAC!BH27:BL34,4) -> 0.035 | P45: =VLOOKUP(U45,NAC!BH27:BL34,5) -> 0.047 | Q45: =B45*M45 -> 0 | R45: =B45*O45 -> 0 | S45: =B45*P45 -> 0 | U45: 7
D47: =VLOOKUP(U47,NAC!BH29:BL36,2) -> AGD-048 Adder Graphic Driver Board w/ 3 LEDS Active | O47: =VLOOKUP(U47,NAC!BH29:BL36,4) -> 0.035 | P47: =VLOOKUP(U47,NAC!BH29:BL36,5) -> 0.047 | Q47: =B47*M47 -> 0 | R47: =B47*O47 -> 0 | S47: =B47*P47 -> 0 | U47: 8
B48: =COUNTIF(B51:B71,">0")*{1} -> 0
B49: =COUNTIF(B51:B71,">0")*{1} -> 0 | D49: Intelligent Sensors
D50: * Protocol Maximums: 240 Sensors and/or Modules per Addressable Loop
D51: MIX-4010 Intelligent Addressable Photoelectric Smoke Sensor | N51: 0.00016 | P51: 0.00016 | R51: =B51*N51 -> 0 | S51: =B51*P51 -> 0
D53: MIX-4010-ISO Intelligent Addressable Photoelectric Smoke Sensor w/ Isolator | N53: 0.00016 | P53: 0.00016 | R53: =B53*N53 -> 0 | S53: =B53*P53 -> 0
D55: MIX-4020 Intelligent Addressable Multi-Sensor, Photo/Themal | N55: 0.00016 | P55: 0.00016 | R55: =B55*N55 -> 0 | S55: =B55*P55 -> 0
D57: MIX-4020-ISO Intelligent Addressable Multi-Sensor, Photo/Themal w/ Isolator | N57: 0.00016 | P57: 0.00016 | R57: =B57*N57 -> 0 | S57: =B57*P57 -> 0
D59: MIX-4030 Intelligent Addressable Heat Sensor (Tri-Mode) | N59: 0.00016 | P59: 0.00016 | R59: =B59*N59 -> 0 | S59: =B59*P59 -> 0
D61: MIX-4030-ISO Intelligent Addressable Heat Sensor, Tri-Mode, w/ Isolator | N61: 0.00016 | P61: 0.00016 | R61: =B61*N61 -> 0 | S61: =B61*P61 -> 0
D63: MIX-4011 Intelligent Addressable Photoelectric Smoke Sensor (UL268 7th Ed) | N63: 0.00016 | P63: 0.00016 | R63: =B63*N63 -> 0 | S63: =B63*P63 -> 0
D65: MIX-4011-ISO Intelligent Add. Photo Smoke Sensor (UL268 7th Ed) w/Isolator | N65: 0.00016 | P65: 0.00016 | R65: =B65*N65 -> 0 | S65: =B65*P65 -> 0
D67: MIX-4021 Intelligent Addressable Multi-Sensor, Photo/Themal (UL268 7th Ed) | N67: 0.00016 | P67: 0.00016 | R67: =B67*N67 -> 0 | S67: =B67*P67 -> 0
D69: MIX-4021-ISO Intelligent Add. Multi-Sensor, Photo/Themal (UL268 7th Ed) w/Isolator | N69: 0.00016 | P69: 0.00016 | R69: =B69*N69 -> 0 | S69: =B69*P69 -> 0
B70: =COUNTIF(B75:B85,">0")*{1} -> 0
B71: 0 | D71: MIX-4010-DUCT Intelligent Addressable Photoelectric Duct Smoke Detector | N71: 0.00016 | P71: 0.00016 | R71: =B71*N71 -> 0 | S71: =B71*P71 -> 0
B72: =COUNTIF(B75:B91,">0")*{1} -> 0
B73: =COUNTIF(B75:B91,">0")*{1} -> 0 | D73: Intelligent Modules
D74: * Protocol Maximums: 240 Sensors and/or Modules per Addressable Loop
D75: MIX-4040 Dual Input Monitoring Module | O75: 0.002 | P75: 0.002 | R75: =B75*O75 -> 0 | S75: =B75*P75 -> 0 | U75: 2
D77: MIX-4041 Mini Dual Input Monitoring Module | O77: 0.002 | P77: 0.002 | R77: =B77*O77 -> 0 | S77: =B77*P77 -> 0 | U77: 3
D79: MIX-4042 Addressable Conventional Zone / 4-20mA Module | O79: 0.0016 | P79: 0.0016 | R79: =B79*O79 -> 0 | S79: =B79*P79 -> 0 | U79: 4
D81: MIX-4045 Dual Relay | O81: 0.0015 | P81: 0.0015 | R81: =B81*O81 -> 0 | S81: =B81*P81 -> 0 | U81: 5
D83: MIX-4046 Supervised Output / Fire Phone Module (Dual Pupose) | O83: 0.0018 | P83: 0.0018 | R83: =B83*O83 -> 0 | S83: =B83*P83 -> 0 | U83: 6
D85: MIX-4070 Short Circuit Isolator Module | O85: 0.0006 | P85: 0.0006 | R85: =B85*O85 -> 0 | S85: =B85*P85 -> 0
B86: =COUNTIF(B95:B97,">0")*{1} -> 0
B87: 0 | D87: MIX-4040-M Multi Input Monitor Module (6 Class A / 12 Class B) | O87: 0.004 | P87: 0.004 | R87: =B87*O87 -> 0 | S87: =B87*P87 -> 0
B89: 0 | D89: MIX-4045-M Multi Relay Module (8 Form C SPDT) | N89: 0.0019 | O89: 0.0019 | P89: 0.0019 | R89: =B89*O89 -> 0 | S89: =B89*P89 -> 0
B91: 0 | D91: MIX-4070-M Multi Isolator Module (8 Isolator Sections) | O91: 0.00448 | P91: 0.00448 | R91: =B91*O91 -> 0 | S91: =B91*P91 -> 0
B93: =COUNTIF(B95:B97,">0")*{1} -> 0 | D93: Intelligent Bases - MIX-4000 (MGC, Requires MP Firmware)
D94: * Protocol Maximums: 240 Sensors and/or Modules per Addressable Loop
B95: 0 | D95: MIX-4003-S Sounder Base - SLC CURRENT / LOCAL ALARM | N95: 0.00156 | O95: 0.00156 | P95: 0.00156 | R95: =B95*O95 -> 0 | S95: =B95*P95 -> 0 | U95: 2
B97: 0 | D97: MIX-4003-LF Low Frequency Sounder Base - SLC CURRENT / LOCAL ALARM | N97: 0.00156 | O97: 0.00156 | P97: 0.00156 | R97: =B97*O97 -> 0 | S97: =B97*P97 -> 0 | U97: 3
D98: * Sounder Bases used for General Alarm should be included here and also Added in the NAC or INX-10A Section
B99: 0 | D99: MIX-4003-R Relay Base | N99: 0.00116 | O99: 0.00116 | P99: 0.00116 | R99: =B99*O99 -> 0 | S99: =B99*P99 -> 0
B101: =COUNTIF(B103:B117,">0")*{1} -> 0 | D101: Intelligent Manual Stations
D102: * Protocol Maximums: 240 Sensors and/or Modules per Addressable Loop
D103: MS-401MP(U) Intelligent Single Stage Manual Station | O103: 0.002 | P103: 0.002 | R103: =B103*O103 -> 0 | S103: =B103*P103 -> 0 | U103: 4
D105: MS-402MP Intelligent Two Stage Manual Station (ULC) | O105: 0.002 | P105: 0.002 | R105: =B105*O105 -> 0 | S105: =B105*P105 -> 0 | U105: 4
D107: MS-407MP(U) Intelligent Single Stage Manual Station w/ Additional N.C. Switch | O107: 0.002 | P107: 0.002 | R107: =B107*O107 -> 0 | S107: =B107*P107 -> 0 | U107: 2
D109: MS-710MP(U) Intelligent Single Stage Dual-Action Manual Station w/ Key Reset | O109: 0.002 | P109: 0.002 | R109: =B109*O109 -> 0 | S109: =B109*P109 -> 0 | U109: 3
V110: Total
D111: MS-702MP Intelligent Two Stage Dual-Action Manual Station w/ Key Reset (ULC) | O111: 0.002 | P111: 0.002 | R111: =B111*O111 -> 0 | S111: =B111*P111 -> 0 | U111: 3
D113: MPS-810MP(U) Addressable Single Stage Dual Action Manual Station | O113: 0.002 | P113: 0.002 | Q113: 0.002 | R113: =B113*O113 -> 0 | S113: =B113*P113 -> 0 | U113: 2
D115: MPS-802MP Addressable Two Stage Dual Action Manual Station (ULC) | O115: 0.002 | P115: 0.002 | Q115: 0.002 | R115: =B115*O115 -> 0 | S115: =B115*P115 -> 0 | U115: 2
D117: MPS-822MP Add. Two Stage Dual Action Station w/Add. N.C. Switch (ULC) | O117: 0.002 | P117: 0.002 | Q117: 0.002 | R117: =B117*O117 -> 0 | S117: =B117*P117 -> 0 | U117: 2
B118: =COUNTIF(B121:B131,">0")*{1} -> 0 | V118: Total
B119: =COUNTIF(B121:B131,">0")*{1} -> 0 | D119: Conventional 2 Wire Smoke Detectors
D120: * Must connect to an intelligent addressable module
D121: 2W/C2W i3 Series Photoelectric Smoke Detectors | O121: 5e-05 | P121: 5e-05 | R121: =B121*O121 -> 0 | S121: =B121*P121 -> 0 | U121: 2
D123: 2W/C2W i3 Series Photo/Thermal Detectors | O123: 5e-05 | P123: 5e-05 | R123: =B123*O123 -> 0 | S123: =B123*P123 -> 0 | U123: 3
D125: 2W/C2W i3 Series Detectors w/Sounder Base | O125: 5e-05 | P125: 5e-05 | R125: =B125*O125 -> 0 | S125: =B125*P125 -> 0 | U125: 4
D127: 2W/C2W i3 Series Detectors w/Sounder Base & Relay | O127: 5e-05 | P127: 5e-05 | R127: =B127*O127 -> 0 | S127: =B127*P127 -> 0 | U127: 5
D129: 2151(A) Photoelectric Smoke Detector | O129: 8.5e-05 | P129: 8.5e-05 | R129: =B129*O129 -> 0 | S129: =B129*P129 -> 0 | U129: 6
D131: D2(A) Photoelectric Duct Detector | O131: 0.00012 | P131: 0.00012 | R131: =B131*O131 -> 0 | S131: =B131*P131 -> 0 | U131: 8
B132: =COUNTIF(B121:B131,">0")*{1} -> 0
B133: =COUNTIF(B121:B131,">0")*{1} -> 0 | J133: =IF(U133>0,"ASSUMES 3 INITIATING CTS. IN ALARM","") ->  | S133: =IF(U133>0,"0.090000","") ->  | U133: =SUM(R121:R131) -> 0
B134: =COUNTIF(B137:B153,">0")*{1} -> 0
B135: =COUNTIF(B137:B153,">0")*{1} -> 0 | D135: Conventional 4 Wire Detectors
D136: * Must connect to an intelligent addressable module
B137: 0 | D137: 4W/C4W i3 Series Photoelectric Smoke Detectors | O137: 5e-05 | P137: 5e-05 | R137: =B137*O137 -> 0 | S137: =B137*P137 -> 0 | U137: 9
B139: 0 | D139: 4W/C4W i3 Series Photo/Thermal Detectors | O139: 5e-05 | P139: 5e-05 | R139: =B139*O139 -> 0 | S139: =B139*P139 -> 0 | U139: 10
U140: 7
B141: 0 | D141: 4W/C4W i3 Series Detectors w/Sounder Base | O141: 5e-05 | P141: 5e-05 | R141: =B141*O141 -> 0 | S141: =B141*P141 -> 0 | U141: 11
B143: 0 | D143: 4W/C4W i3 Series Detectors w/Sounder Base & Relay | O143: 0.0255 | P143: 0.0255 | R143: =B143*O143 -> 0 | S143: =B143*P143 -> 0 | U143: 12
B145: 0 | D145: =VLOOKUP(U145,NAC!BA98:BF148,2) -> CO1224(A) Carbon Monoxide Detector | O145: 0.02 | P145: 0.02 | R145: =B145*O145 -> 0 | S145: =B145*P145 -> 0 | U145: 13
B147: 0 | D147: OSI-R-SS Conventional Imaging Beam Smoke Detector | O147: 0.011 | P147: 0.011 | R147: =B147*O147 -> 0 | S147: =B147*P147 -> 0
B149: 0 | D149: =VLOOKUP(U149,NAC!BA98:BF148,2) -> BEAM1224(A) Series Beam Detectors | O149: 0.017 | P149: 0.017 | R149: =B149*O149 -> 0 | S149: =B149*P149 -> 0 | U149: 16
B151: 0 | D151: D4120(A) Photoelectric Duct Detector w/ Relay, 120VAC | O151: 0.02 | P151: 0.02 | R151: =B151*O151 -> 0 | S151: =B151*P151 -> 0 | U151: 17
U152: 7
B153: 0 | D153: D4120(A) Photoelectric Duct Detector w/ Relay, 24VAC | O153: 0.065 | P153: 0.065 | R153: =B153*O153 -> 0 | S153: =B153*P153 -> 0 | U153: 18
B154: =COUNTIF(B157:B195,">0")*{1} -> 0
B155: =COUNTIF(B157:B205,">0")*{1} -> 0 | D155: Signaling Devices - 24 FWR
D156: Select From Drop-Down Box - Check Guide for Compatibility
B157: 0 | D157: =VLOOKUP(U157,NAC!BR11:BU172,2) -> 0 | O157: =VLOOKUP(U157,NAC!BR11:BU172,3) -> 0 | P157: =VLOOKUP(U157,NAC!BR11:BU172,4) -> 0 | R157: =B157*O157 -> 0 | S157: =B157*P157 -> 0 | U157: 1
D159: =VLOOKUP(U159,NAC!BR11:BU172,2) -> 0 | O159: =VLOOKUP(U159,NAC!BR11:BU172,3) -> 0 | P159: =VLOOKUP(U159,NAC!BR11:BU172,4) -> 0 | R159: =B159*O159 -> 0 | S159: =B159*P159 -> 0 | U159: 1
D161: =VLOOKUP(U161,NAC!BR11:BU172,2) -> 0 | O161: =VLOOKUP(U161,NAC!BR11:BU172,3) -> 0 | P161: =VLOOKUP(U161,NAC!BR11:BU172,4) -> 0 | R161: =B161*O161 -> 0 | S161: =B161*P161 -> 0 | U161: 1
D163: =VLOOKUP(U163,NAC!BR11:BU172,2) -> 0 | O163: =VLOOKUP(U163,NAC!BR11:BU172,3) -> 0 | P163: =VLOOKUP(U163,NAC!BR11:BU172,4) -> 0 | R163: =B163*O163 -> 0 | S163: =B163*P163 -> 0 | U163: 1
V164: Total
D165: =VLOOKUP(U165,NAC!BR11:BU172,2) -> 0 | O165: =VLOOKUP(U165,NAC!BR11:BU172,3) -> 0 | P165: =VLOOKUP(U165,NAC!BR11:BU172,4) -> 0 | R165: =B165*O165 -> 0 | S165: =B165*P165 -> 0 | U165: 1
D167: =VLOOKUP(U167,NAC!BR11:BU172,2) -> 0 | O167: =VLOOKUP(U167,NAC!BR11:BU172,3) -> 0 | P167: =VLOOKUP(U167,NAC!BR11:BU172,4) -> 0 | R167: =B167*O167 -> 0 | S167: =B167*P167 -> 0 | U167: 1
D169: =VLOOKUP(U169,NAC!BR11:BU172,2) -> 0 | O169: =VLOOKUP(U169,NAC!BR11:BU172,3) -> 0 | P169: =VLOOKUP(U169,NAC!BR11:BU172,4) -> 0 | R169: =B169*O169 -> 0 | S169: =B169*P169 -> 0 | U169: 1
D171: =VLOOKUP(U171,NAC!BR11:BU172,2) -> 0 | O171: =VLOOKUP(U171,NAC!BR11:BU172,3) -> 0 | P171: =VLOOKUP(U171,NAC!BR11:BU172,4) -> 0 | R171: =B171*O171 -> 0 | S171: =B171*P171 -> 0 | U171: 1
D173: =VLOOKUP(U173,NAC!BR11:BU172,2) -> 0 | O173: =VLOOKUP(U173,NAC!BR11:BU172,3) -> 0 | P173: =VLOOKUP(U173,NAC!BR11:BU172,4) -> 0 | R173: =B173*O173 -> 0 | S173: =B173*P173 -> 0 | U173: 1
D175: =VLOOKUP(U175,NAC!BR11:BU172,2) -> 0 | O175: =VLOOKUP(U175,NAC!BR11:BU172,3) -> 0 | P175: =VLOOKUP(U175,NAC!BR11:BU172,4) -> 0 | R175: =B175*O175 -> 0 | S175: =B175*P175 -> 0 | U175: 1
D177: =VLOOKUP(U177,NAC!BR11:BU172,2) -> 0 | O177: =VLOOKUP(U177,NAC!BR11:BU172,3) -> 0 | P177: =VLOOKUP(U177,NAC!BR11:BU172,4) -> 0 | R177: =B177*O177 -> 0 | S177: =B177*P177 -> 0 | U177: 1
D179: =VLOOKUP(U179,NAC!BR11:BU172,2) -> 0 | O179: =VLOOKUP(U179,NAC!BR11:BU172,3) -> 0 | P179: =VLOOKUP(U179,NAC!BR11:BU172,4) -> 0 | R179: =B179*O179 -> 0 | S179: =B179*P179 -> 0 | U179: 1
D181: =VLOOKUP(U181,NAC!BR11:BU172,2) -> 0 | O181: =VLOOKUP(U181,NAC!BR11:BU172,3) -> 0 | P181: =VLOOKUP(U181,NAC!BR11:BU172,4) -> 0 | R181: =B181*O181 -> 0 | S181: =B181*P181 -> 0 | U181: 1
D183: =VLOOKUP(U183,NAC!BR11:BU172,2) -> 0 | O183: =VLOOKUP(U183,NAC!BR11:BU172,3) -> 0 | P183: =VLOOKUP(U183,NAC!BR11:BU172,4) -> 0 | R183: =B183*O183 -> 0 | S183: =B183*P183 -> 0 | U183: 1
D185: =VLOOKUP(U185,NAC!BR11:BU172,2) -> 0 | O185: =VLOOKUP(U185,NAC!BR11:BU172,3) -> 0 | P185: =VLOOKUP(U185,NAC!BR11:BU172,4) -> 0 | R185: =B185*O185 -> 0 | S185: =B185*P185 -> 0 | U185: 1
D187: =VLOOKUP(U187,NAC!BR11:BU172,2) -> 0 | O187: =VLOOKUP(U187,NAC!BR11:BU172,3) -> 0 | P187: =VLOOKUP(U187,NAC!BR11:BU172,4) -> 0 | R187: =B187*O187 -> 0 | S187: =B187*P187 -> 0 | U187: 1
D189: =VLOOKUP(U189,NAC!BR11:BU172,2) -> 0 | O189: =VLOOKUP(U189,NAC!BR11:BU172,3) -> 0 | P189: =VLOOKUP(U189,NAC!BR11:BU172,4) -> 0 | R189: =B189*O189 -> 0 | S189: =B189*P189 -> 0 | U189: 1
D191: =VLOOKUP(U191,NAC!BR11:BU172,2) -> 0 | O191: =VLOOKUP(U191,NAC!BR11:BU172,3) -> 0 | P191: =VLOOKUP(U191,NAC!BR11:BU172,4) -> 0 | R191: =B191*O191 -> 0 | S191: =B191*P191 -> 0 | U191: 1
D193: =VLOOKUP(U193,NAC!BR11:BU172,2) -> 0 | O193: =VLOOKUP(U193,NAC!BR11:BU172,3) -> 0 | P193: =VLOOKUP(U193,NAC!BR11:BU172,4) -> 0 | R193: =B193*O193 -> 0 | S193: =B193*P193 -> 0 | U193: 1
D195: =VLOOKUP(U195,NAC!BR11:BU172,2) -> 0 | O195: =VLOOKUP(U195,NAC!BR11:BU172,3) -> 0 | P195: =VLOOKUP(U195,NAC!BR11:BU172,4) -> 0 | R195: =B195*O195 -> 0 | S195: =B195*P195 -> 0 | U195: 1
R197: =B197*J197 -> 0 | S197: =B197*M197 -> 0
R199: =B199*J199 -> 0 | S199: =B199*M199 -> 0
R201: =B201*J201 -> 0 | S201: =B201*M201 -> 0
R203: =B203*J203 -> 0 | S203: =B203*M203 -> 0
R205: =B205*J205 -> 0 | S205: =B205*M205 -> 0
D206: * Indicating Circuits Must Not Exceed 6 Amps Total | U206: =SUM(S157:S205) -> 0
B207: =COUNTIF(B210:B212,">0")*{1} -> 0
B208: =COUNTIF(B210:B212,">0")*{1} -> 0 | D208: Aux. Power
D210: FX-401 Aux Supply 1 500 mA, 24VDC Regulated | P210: =VLOOKUP(U210,NAC!BH34:BL36,3) -> 0.5 | Q210: =VLOOKUP(U210,NAC!BH34:BL36,3) -> 0.5 | R210: =B210*P210 -> 0 | S210: =B210*Q210 -> 0 | U210: 2
D212: FX-401 Aux Supply 2 300 mA, 24VDC Regulated (use to power MIX-4042) | P212: =VLOOKUP(U212,NAC!BH34:BL36,3) -> 0.3 | Q212: =VLOOKUP(U212,NAC!BH34:BL36,3) -> 0.3 | R212: =B212*P212 -> 0 | S212: =B212*Q212 -> 0 | U212: 3
B213: =COUNTIF(B217:B235,">0")*{1} -> 0 | V213: Total
J214: Enter | M214: Enter
B215: =COUNTIF(B217:B235,">0")*{1} -> 0 | D215: Additional Devices | J215: Standby | M215: Alarm
B216: =COUNTIF(B217:B235,">0")*{1} -> 0 | D216: Description | J216: Current | M216: Current
R217: =B217*J217 -> 0 | S217: =B217*M217 -> 0
R219: =B219*J219 -> 0 | S219: =B219*M219 -> 0
R221: =B221*J221 -> 0 | S221: =B221*M221 -> 0
R223: =B223*J223 -> 0 | S223: =B223*M223 -> 0
R225: =B225*J225 -> 0 | S225: =B225*M225 -> 0
R227: =B227*J227 -> 0 | S227: =B227*M227 -> 0
R229: =B229*J229 -> 0 | S229: =B229*M229 -> 0
R231: =B231*J231 -> 0 | S231: =B231*M231 -> 0
R233: =B233*J233 -> 0 | S233: =B233*M233 -> 0
R235: =B235*J235 -> 0 | S235: =B235*M235 -> 0
B236: 1
B238: 1 | E238: Total Standby Current in Amps | S238: =SUM(R18:R235) -> 0.39 | U238: =B240*S238 -> 9.36
B239: 1
B240: 24 | D240: Enter Number of Standby Hours | H240: Total Alarm Current in Amps | S240: =SUM(S133:S235,S18:S117) -> 0.63 | U240: =B242*S240/60 -> 0.315
B241: 1
B242: 30 | D242: Enter Alarm Period in Minutes | U242: =U238+U240 -> 9.675
B243: 1
B244: 1.25 | D244: Enter Battery Derating | R244: Battery Capacity Requirement (Ah) | S244: =U242*B244 -> 12.09375
B245: 1
B246: =COUNTIF(S244,"<26")*{1} -> 1 | H246: Recommended Mircom Batteries (x2) | S246: =IF(OR(S244=0),"",IF(OR(S244<5),"BAT-12V5A",IF(OR(S244<7),"BAT-12V7A",IF(OR(S244<12),"BAT-12V12A",IF(OR(S244<18.0009),"BAT-12V18A",IF(OR(S244<26),"BAT-12V26A",IF(OR(S244>26),""))))))) -> BAT-12V18A
G247: * Battery Charging Capability: Minimum 10AH (BAT-12V12A), Maximum 42AH (BAT-12V42A)
B248: 1
B249: =COUNTIF(F251,"YES")*{1} -> 0
B250: =COUNTIF(F251,"YES")*{1} -> 0
D251: PRINT CALCULATION FOR UPS - NYC | F251: NO | M251: *Use Drop-Down | S251: *Use Drop-Down | U251: Watts | V251: Efficiency | W251: VAC | Y251: Amps
B252: =COUNTIF(F251,"YES")*{1} -> 0 | H252: Calculation for UPS: | M252: Single Phase VA Rating | R252: Watts /Power Factor | S252: 120 VAC | V252: 0.75 | W252: =IF(S252="120 VAC", "120","240") -> 120 | Z252: 120 VAC
B253: =COUNTIF(F251,"YES")*{1} -> 0 | F253: AC Current Draw in Amps | I253: =B240 -> 24 | J253: Hours Standby: | M253: =IF(M252="Three Phase VA Rating",V257,U257) -> 1199 | R253: =V253 -> 1198.08 | S253: =W253 -> 9.984 | U253: =SUM(Y253*W252*0.8) -> 898.56 | V253: =SUM(U253/V252) -> 1198.08 | W253: =SUM(V253/W252) -> 9.984 | Y253: =U238 -> 9.36 | Z253: 240 VAC
B254: =COUNTIF(F251,"YES")*{1} -> 0 | F254: AC Current Draw in Amps | I254: =B242 -> 30 | J254: Minutes Alarm: | M254: =IF(M252="Three Phase VA Rating",V258,U258) -> 5 | R254: =V254 -> 4.032 | S254: =W254 -> 0.0336 | U254: =SUM(Y254*W252*0.08) -> 3.024 | V254: =SUM(U254/V252) -> 4.032 | W254: =SUM(V254/W252) -> 0.0336 | Y254: =U240 -> 0.315
B255: =COUNTIF(F251,"YES")*{1} -> 0 | H255: TOTAL VA REQUIRED: | M255: =SUM(M253:M254) -> 1204 | R255: =IF(S252="120 VAC", "Calculated at 24V @ 120VAC","Calculated at 24V @ 240VAC") -> Calculated at 24V @ 120VAC | Z255: NO
